Workbook

Sheet START

Sheet Instructions
D2: 2020
X4: Yes
X5: No
W7: Type of Entities Range:
X8: Parent Municipality
X9: Consolidated Information
W17: MTREF Range: | X17: 2008
X18: 2009
X19: 2010
X20: 2011
X21: 2012
X22: 2013
X23: 2014
X24: 2015
X25: 2016
X26: 2017
X27: 2018
X28: 2019
X29: 2020
X30: 2021
X31: 2022
W33: MTREF Linked: | X33: 13
W34: MTREF: | X34: =INDEX(X17:X31,X33,1) -> 2020
W36: Fin Year: | X36: =MTREF&"/"&RIGHT(MTREF,2)+1 -> 2020/21

Sheet Template names (hidden)
A1: Common sheet headings
A2: Head1 | B2: =HLOOKUP(MTREF,Headings,2) -> 2018/19 | C2: Prior year -1
A3: Head1A | B3: =HLOOKUP(MTREF,Headings,3) -> 2017/18 | C3: Prior year -2
A4: Head1B | B4: =HLOOKUP(MTREF,Headings,4) -> 2016/17 | C4: Prior year -3
A5: Head2 | B5: =HLOOKUP(MTREF,Headings,5) -> Current Year 2019/20 | C5: Year in which budget is being prepared
A6: Head2A | B6: =HLOOKUP(MTREF,Headings,6) -> 2019/20 | C6: Year in which budget is being prepared
A7: Head3 | B7: =HLOOKUP(MTREF,Headings,7) -> 2020/21 Medium Term Revenue & Expenditure Framework | C7: MTREF name
A8: Head4 | B8: LTFS | C8: Long term financial strategy
A9: Head5 | B9: Audited Outcome
A10: Head5A | B10: Outcome
A11: Head5B | B11: Pre-audit outcome
A12: Head6 | B12: Original Budget
A13: Head7 | B13: Adjusted Budget
A14: Head8 | B14: Full Year Forecast
A15: Head9 | B15: =HLOOKUP(MTREF,Headings,8) -> Budget Year 2020/21 | C15: 1st year of MTREF | D15: Year1
A16: Head10 | B16: =HLOOKUP(MTREF,Headings,9) -> Budget Year +1 2021/22 | C16: 2nd year of MTREF | D16: Year2
A17: Head11 | B17: =HLOOKUP(MTREF,Headings,10) -> Budget Year +2 2022/23 | C17: 3rd year of MTREF | D17: Year3
A18: Head12 | B18: =HLOOKUP(MTREF,Headings,11) -> Forecast 2023/24 | C18: 1st yr of long term forecast | D18: Year4
A19: Head13 | B19: =HLOOKUP(MTREF,Headings,12) -> Forecast 2024/25 | C19: Next yr of long term forecast | D19: Year5
A20: Head14 | B20: =HLOOKUP(MTREF,Headings,13) -> Forecast 2025/26 | C20: Next yr of long term forecast | D20: Year6
A21: Head15 | B21: =HLOOKUP(MTREF,Headings,14) -> Forecast 2026/27 | C21: Next yr of long term forecast | D21: Year7
A22: Head16 | B22: =HLOOKUP(MTREF,Headings,15) -> Forecast 2027/28 | C22: Next yr of long term forecast | D22: Year8
A23: Head17 | B23: =HLOOKUP(MTREF,Headings,16) -> Forecast 2028/29 | C23: Next yr of long term forecast | D23: Year9
A24: Head18 | B24: =HLOOKUP(MTREF,Headings,17) -> Forecast 2029/30 | C24: Next yr of long term forecast | D24: Year10
A25: Head19 | B25: =HLOOKUP(MTREF,Headings,18) -> Forecast 2030/31 | C25: Next yr of long term forecast | D25: Year11
A26: Head20 | B26: =HLOOKUP(MTREF,Headings,19) -> Forecast 2031/32 | C26: Next yr of long term forecast | D26: Year12
A27: Head21 | B27: =HLOOKUP(MTREF,Headings,20) -> Forecast 2032/33 | C27: Next yr of long term forecast | D27: Year13
A28: Head22 | B28: =HLOOKUP(MTREF,Headings,21) -> Forecast 2033/34 | C28: Next yr of long term forecast | D28: Year14
A29: Head23 | B29: =HLOOKUP(MTREF,Headings,22) -> Forecast 2034/35 | C29: Next yr of long term forecast | D29: Year15
A30: Head24 | B30: Description
A31: Head25
A32: Head26 | B32: Vote Description
A33: Head27 | B33: Ref
A34: Head27a | B34: References
A35: Head28 | B35: Surplus/(Deficit) for the year | D35: Result
A36: Head29 | B36: =HLOOKUP(MTREF,Headings,23) -> Annual target 2020/21
A37: Head30 | B37: =HLOOKUP(MTREF,Headings,24) -> Revised target 2020/21
A38: Head31 | B38: Quarter ended 30 September
A39: Head32 | B39: Quarter ended 31 December
A40: Head33 | B40: Quarter ended 31 March
A41: Head34 | B41: Quarter ended 30 June
A42: Head35 | B42: Variance explanation
A43: Head36 | B43: YTD Actual 31 Dec
A44: Head37 | B44: YTD Budget 31 Dec
A45: Head38 | B45: Monthly actual
A46: Head39 | B46: YTD actual
A47: Head40 | B47: YTD budget
A48: Head41 | B48: YTD variance
A49: Head42 | B49: Surplus/ (Deficit) for the yr/period
A50: Head43 | B50: =Head3&" Summary" -> 2020/21 Medium Term Revenue & Expenditure Framework Summary
A51: Head44 | B51: 2001 Census
A52: Head45 | B52: 2011 Census
A53: Head46 | B53: - Adjustments Budget - January 2007
A54: Head47 | B54: Previous target year to complete
A55: Head48 | B55: Present value
A56: Head49
A57: Head50 | B57: Other Adjusts.
A58: Head51 | B58: Accum. Funds
A59: Head52 | B59: Multi-year capital
A60: Head53 | B60: Unfore. Unavoid.
A61: Head54 | B61: Prior Adjusted
A62: Head55 | B62: Nat. or Prov. Govt
A63: Head56 | B63: Total Adjusts.
A64: SFPerf1 | B64: Budgeted Financial Performance
A65: SFPerf2 | B65: Forecast Financial Performance
A66: SFPos1 | B66: Budgeted Financial Position
A67: SFPos2 | B67: Forecast Financial Position
A68: Cash1 | B68: Budget Cash Flow
A69: Cash2 | B69: Forecast Cash Flow
A70: RandM | B70: Expenditure includes repairs & maintenance of R'000
A71: Depart1 | B71: Department 1 - | D71: DEP1
A72: Depart2 | B72: Department 2 - | D72: DEP2
A73: Depart3 | B73: Department 3 - | D73: DEP3
A74: Depart4 | B74: Department 4 - | D74: DEP4
A75: Depart5 | B75: Department 5 - | D75: DEP5
A76: Depart6 | B76: Department 6 - | D76: DEP6
A77: Depart7 | B77: Department 7 - | D77: DEP7
A78: Depart8 | B78: Department 8 - | D78: DEP8
A79: Depart9 | B79: Department 9 - | D79: DEP9
A80: Depart10 | B80: Department 10 - | D80: DEP10
A81: Depart11 | B81: Department 11 - | D81: DEP11
A82: Depart12 | B82: Department 12 - | D82: DEP12
A83: Depart13 | B83: Department 13 - | D83: DEP13
A84: Depart14 | B84: Department 14 - | D84: DEP14
A87: Base year of forecast column selection names
A88: Choose | B88: ACT
B89: APP
B90: ADJ
A92: Standard nomenclature
A93: Muni | B93: ='Lookup and lists'!B28 -> KZN225 Msunduzi
A94: Municipal Entities | B94: 1 | C94: Type of report: | D94: 1
A95: =IF((MuniEntities=1)*(MuniType=2),"YES","NO") -> NO | B95: Does this municipality have entities (consolidated budget and entity budgets required)? YES/NO
A96: Entity 1 | B96: (Pty) Ltd Example 1 - Municipal entity - | D96: Ent1
A97: Entity 2 | B97: (Pty) Ltd Example 2 - Municipal entity - | D97: Ent2
A98: Entity 3 | B98: Municipal Entity Example 3 | D98: Ent3
A99: Budget approval tables | C99: Chart x-ref | D99: Sch/Tab/Ch | E99: Alternative for municipalities without entities | F99: Alternative for municipalities without entities
B100: =IF(Consolques="YES",E100,F100) -> Table A1 Budget Summary | D100: Table A1 | E100: =D100&"Consolidated Budget Summary" -> Table A1 Consolidated Budget Summary | F100: =D100&"Budget Summary" -> Table A1 Budget Summary
B101: Table A2 Budgeted Financial Performance (revenue and expenditure by functional classification) | C101: Charts 5, 6 | D101: Table A2 | E101: =D101&"Consolidated Budgeted Financial Performance (revenue and expenditure by functional classification)" -> Table A2 Consolidated Budgeted Financial Performance (revenue and expenditure by functional classification) | F101: =D101&"Budgeted Financial Performance (revenue and expenditure by functional classification)" -> Table A2 Budgeted Financial Performance (revenue and expenditure by functional classification)
B102: Table A3 Budgeted Financial Performance (revenue and expenditure by municipal vote) | D102: Table A3 | E102: =D102&"Consolidated Budgeted Financial Performance (revenue and expenditure by municipal vote)" -> Table A3 Consolidated Budgeted Financial Performance (revenue and expenditure by municipal vote) | F102: =D102&"Budgeted Financial Performance (revenue and expenditure by municipal vote)" -> Table A3 Budgeted Financial Performance (revenue and expenditure by municipal vote)
B103: Table A4 Budgeted Financial Performance (revenue and expenditure) | C103: Charts 1, 2, 3, 4 | D103: Table A4 | E103: =D103&"Consolidated Budgeted Financial Performance (revenue and expenditure)" -> Table A4 Consolidated Budgeted Financial Performance (revenue and expenditure) | F103: =D103&"Budgeted Financial Performance (revenue and expenditure)" -> Table A4 Budgeted Financial Performance (revenue and expenditure)
B104: Table A5 Budgeted Capital Expenditure by vote, functional classification and funding | C104: Charts 7, 8, 9, 10, 20 | D104: Table A5 | E104: =D104&"Consolidated Budgeted Capital Expenditure by vote, functional classification and funding" -> Table A5 Consolidated Budgeted Capital Expenditure by vote, functional classification and funding | F104: =D104&"Budgeted Capital Expenditure by vote, functional classification and funding" -> Table A5 Budgeted Capital Expenditure by vote, functional classification and funding
B105: Table A6 Budgeted Financial Position | D105: Table A6 | E105: =D105&"Consolidated Budgeted Financial Position" -> Table A6 Consolidated Budgeted Financial Position | F105: =D105&"Budgeted Financial Position" -> Table A6 Budgeted Financial Position
B106: Table A7 Budgeted Cash Flows | D106: Table A7 | E106: =D106&"Consolidated Budgeted Cash Flows" -> Table A7 Consolidated Budgeted Cash Flows | F106: =D106&"Budgeted Cash Flows" -> Table A7 Budgeted Cash Flows
B107: Table A8 Cash backed reserves/accumulated surplus reconciliation | D107: Table A8 | E107: =D107&"Consolidated Cash backed reserves/accumulated surplus reconciliation" -> Table A8 Consolidated Cash backed reserves/accumulated surplus reconciliation | F107: =D107&"Cash backed reserves/accumulated surplus reconciliation" -> Table A8 Cash backed reserves/accumulated surplus reconciliation
B108: Table A9 Asset Management | D108: Table A9 | E108: =D108&"Consolidated Asset Management" -> Table A9 Consolidated Asset Management | F108: =D108&"Asset Management" -> Table A9 Asset Management
B109: Table A10 Basic service delivery measurement | D109: Table A10 | E109: =D109&"Consolidated basic service delivery measurement" -> Table A10 Consolidated basic service delivery measurement | F109: =D109&"Basic service delivery measurement" -> Table A10 Basic service delivery measurement
A110: Supportinging Tables to the Budget Approval Tables | C110: =$C$99 -> Chart x-ref | D110: =$D$99 -> Sch/Tab/Ch
A111: Supporting Table SA1 | B111: =A111&" Supportinging detail to 'Budgeted Financial Performance'" -> Supporting Table SA1 Supportinging detail to 'Budgeted Financial Performance'
A112: Supporting Table SA2 | B112: =IF(Consolques="YES",E112,F112) -> Supporting Table SA2 Matrix Financial Performance Budget (revenue source/expenditure type and dept.) | E112: =A112&"Consolidated Matrix Financial Performance Budget (revenue source/expenditure type & dept.)" -> Supporting Table SA2 Consolidated Matrix Financial Performance Budget (revenue source/expenditure type & dept.) | F112: =A112&"Matrix Financial Performance Budget (revenue source/expenditure type and dept.)" -> Supporting Table SA2 Matrix Financial Performance Budget (revenue source/expenditure type and dept.)
A113: Supporting Table SA3 | B113: =A113&"Supportinging detail to 'Budgeted Financial Position'" -> Supporting Table SA3 Supportinging detail to 'Budgeted Financial Position'
A114: Supporting Table SA4 | B114: =A114&"Reconciliation of IDP strategic objectives and budget (revenue)" -> Supporting Table SA4 Reconciliation of IDP strategic objectives and budget (revenue) | C114: Chart 11
A115: Supporting Table SA5 | B115: =A115&"Reconciliation of IDP strategic objectives and budget (operating expenditure)" -> Supporting Table SA5 Reconciliation of IDP strategic objectives and budget (operating expenditure) | C115: Chart 12
A116: Supporting Table SA6 | B116: =A116&"Reconciliation of IDP strategic objectives and budget (capital expenditure)" -> Supporting Table SA6 Reconciliation of IDP strategic objectives and budget (capital expenditure) | C116: Chart 13
A117: Supporting Table SA7 | B117: =A117&" Measureable performance objectives" -> Supporting Table SA7 Measureable performance objectives
A118: Supporting Table SA8 | B118: =A118&" Performance indicators and benchmarks" -> Supporting Table SA8 Performance indicators and benchmarks | C118: Chts 15-19
A119: Supporting Table SA9 | B119: =A119&" Social, economic and demographic statistics and assumptions" -> Supporting Table SA9 Social, economic and demographic statistics and assumptions
A120: Supporting Table SA10 | B120: =A120&" Funding measurement" -> Supporting Table SA10 Funding measurement | C120: Chart 14
A121: Supporting Table SA11 | B121: =A121&" Property rates summary" -> Supporting Table SA11 Property rates summary
A122: Supporting Table SA12a | B122: =A122&" Property rates by category (current year)" -> Supporting Table SA12a Property rates by category (current year)
A123: Supporting Table SA12b | B123: =A123&" Property rates by category (budget year)" -> Supporting Table SA12b Property rates by category (budget year)
A124: Supporting Table SA13a | B124: =A124&" Service Tariffs by category" -> Supporting Table SA13a Service Tariffs by category
A125: Supporting Table SA13b | B125: =A125&" Service Tariffs by category - explanatory" -> Supporting Table SA13b Service Tariffs by category - explanatory
A126: Supporting Table SA14 | B126: =A126&" Household bills" -> Supporting Table SA14 Household bills
A127: Supporting Table SA15 | B127: =A127&" Investment particulars by type" -> Supporting Table SA15 Investment particulars by type
A128: Supporting Table SA16 | B128: =A128&" Investment particulars by maturity" -> Supporting Table SA16 Investment particulars by maturity
A129: Supporting Table SA17 | B129: =A129&" Borrowing" -> Supporting Table SA17 Borrowing
A130: Supporting Table SA18 | B130: =A130&" Transfers and grant receipts" -> Supporting Table SA18 Transfers and grant receipts
A131: Supporting Table SA19 | B131: =A131&" Expenditure on transfers and grant programme" -> Supporting Table SA19 Expenditure on transfers and grant programme
A132: Supporting Table SA20 | B132: =A132&" Reconciliation of transfers, grant receipts and unspent funds" -> Supporting Table SA20 Reconciliation of transfers, grant receipts and unspent funds
A133: Supporting Table SA21 | B133: =A133&" Transfers and grants made by the municipality" -> Supporting Table SA21 Transfers and grants made by the municipality
A134: Supporting Table SA22 | B134: =A134&" Summary councillor and staff benefits" -> Supporting Table SA22 Summary councillor and staff benefits
A135: Supporting Table SA23 | B135: =A135&" Salaries, allowances & benefits (political office bearers/councillors/senior managers)" -> Supporting Table SA23 Salaries, allowances & benefits (political office bearers/councillors/senior managers)
A136: Supporting Table SA24 | B136: =A136&" Summary of personnel numbers" -> Supporting Table SA24 Summary of personnel numbers
A137: Supporting Table SA25 | B137: =IF(Consolques="YES",E137,F137) -> Supporting Table SA25 Budgeted monthly revenue and expenditure | E137: =A137&" Consolidated budgeted monthly revenue and expenditure" -> Supporting Table SA25 Consolidated budgeted monthly revenue and expenditure | F137: =A137&" Budgeted monthly revenue and expenditure" -> Supporting Table SA25 Budgeted monthly revenue and expenditure
A138: Supporting Table SA26 | B138: Supporting Table SA26 Budgeted monthly revenue and expenditure (municipal vote) | E138: =A138&" Consolidated budgeted monthly revenue and expenditure (municipal vote)" -> Supporting Table SA26 Consolidated budgeted monthly revenue and expenditure (municipal vote) | F138: =A138&" Budgeted monthly revenue and expenditure (municipal vote)" -> Supporting Table SA26 Budgeted monthly revenue and expenditure (municipal vote)
A139: Supporting Table SA27 | B139: Supporting Table SA27 Budgeted monthly revenue and expenditure (functional classification) | E139: =A139&" Consolidated budgeted monthly revenue and expenditure (functional classification)" -> Supporting Table SA27 Consolidated budgeted monthly revenue and expenditure (functional classification) | F139: =A139&" Budgeted monthly revenue and expenditure (functional classification)" -> Supporting Table SA27 Budgeted monthly revenue and expenditure (functional classification)
A140: Supporting Table SA28 | B140: Supporting Table SA28 Budgeted monthly capital expenditure (municipal vote) | E140: =A140&" Consolidated budgeted monthly capital expenditure (municipal vote)" -> Supporting Table SA28 Consolidated budgeted monthly capital expenditure (municipal vote) | F140: =A140&" Budgeted monthly capital expenditure (municipal vote)" -> Supporting Table SA28 Budgeted monthly capital expenditure (municipal vote)
A141: Supporting Table SA29 | B141: Supporting Table SA29 Budgeted monthly capital expenditure (functional classification) | E141: =A141&" Consolidated budgeted monthly capital expenditure (functional classification)" -> Supporting Table SA29 Consolidated budgeted monthly capital expenditure (functional classification) | F141: =A141&" Budgeted monthly capital expenditure (functional classification)" -> Supporting Table SA29 Budgeted monthly capital expenditure (functional classification)
A142: Supporting Table SA30 | B142: Supporting Table SA30 Budgeted monthly cash flow | E142: =A142&" Consolidated budgeted monthly cash flow" -> Supporting Table SA30 Consolidated budgeted monthly cash flow | F142: =A142&" Budgeted monthly cash flow" -> Supporting Table SA30 Budgeted monthly cash flow
A143: Supporting Table SA31 | B143: NOT REQUIRED - municipality does not have entities | E143: =A143&" Aggregated entity budget" -> Supporting Table SA31 Aggregated entity budget | F143: NOT REQUIRED - municipality does not have entities
A144: Supporting Table SA32 | B144: =A144&" List of external mechanisms" -> Supporting Table SA32 List of external mechanisms
A145: Supporting Table SA33 | B145: =A145&" Contracts having future budgetary implications" -> Supporting Table SA33 Contracts having future budgetary implications
A146: Supporting Table SA34a | B146: =IF(Consolques="YES",E146,F146) -> Supporting Table SA34a Capital expenditure on new assets by asset class | E146: =A146&" Consolidated capital expenditure on new assets by asset class" -> Supporting Table SA34a Consolidated capital expenditure on new assets by asset class | F146: =A146&" Capital expenditure on new assets by asset class" -> Supporting Table SA34a Capital expenditure on new assets by asset class
A147: Supporting Table SA34b | B147: Supporting Table SA34b Capital expenditure on the renewal of existing assets by asset class | E147: =A147&" Consolidated capital expenditure on the renewal of existing assets by asset class" -> Supporting Table SA34b Consolidated capital expenditure on the renewal of existing assets by asset class | F147: =A147&" Capital expenditure on the renewal of existing assets by asset class" -> Supporting Table SA34b Capital expenditure on the renewal of existing assets by asset class
A148: Supporting Table SA34c | B148: Supporting Table SA34c Repairs and maintenance expenditure by asset class | E148: =A148&" Consolidated repairs and maintenance by asset class" -> Supporting Table SA34c Consolidated repairs and maintenance by asset class | F148: =A148&" Repairs and maintenance expenditure by asset class" -> Supporting Table SA34c Repairs and maintenance expenditure by asset class
A149: Supporting Table SA34d | B149: =IF(Consolques="YES",E149,F149) -> Supporting Table SA34d Depreciation by asset class | E149: =A149&" Consolidated Depreciation by asset class" -> Supporting Table SA34d Consolidated Depreciation by asset class | F149: =A149&" Depreciation by asset class" -> Supporting Table SA34d Depreciation by asset class
A150: Supporting Table SA34e | B150: =IF(Consolques="YES",E150,F150) -> Supporting Table SA34e Capital expenditure on the upgrading of existing assets by asset class | E150: =A150&" Consolidated capital expenditure on the upgrading of existing assets by asset class" -> Supporting Table SA34e Consolidated capital expenditure on the upgrading of existing assets by asset class | F150: =A150&" Capital expenditure on the upgrading of existing assets by asset class" -> Supporting Table SA34e Capital expenditure on the upgrading of existing assets by asset class
A151: Supporting Table SA35 | B151: Supporting Table SA35 Future financial implications of the capital budget | E151: =A151&" Consolidated future financial implications of the capital budget" -> Supporting Table SA35 Consolidated future financial implications of the capital budget | F151: =A151& " Future financial implications of the capital budget" -> Supporting Table SA35 Future financial implications of the capital budget
A152: Supporting Table SA36 | B152: Supporting Table SA36 Detailed capital budget | E152: =A152&" Consolidated detailed capital budget" -> Supporting Table SA36 Consolidated detailed capital budget | F152: =A152& " Detailed capital budget" -> Supporting Table SA36 Detailed capital budget
A153: Supporting Table SA37 | B153: Supporting Table SA37 Projects delayed from previous financial year/s | E153: =A153&" Consolidated projects delayed from previous financial year/s" -> Supporting Table SA37 Consolidated projects delayed from previous financial year/s | F153: =A153& " Projects delayed from previous financial year/s" -> Supporting Table SA37 Projects delayed from previous financial year/s
A154: Supporting Table SA38 | B154: =IF(Consolques="YES",E154,F154) -> Supporting Table SA38 Detailed operational projects | E154: =A154&" Consolidated detailed operational projects" -> Supporting Table SA38 Consolidated detailed operational projects | F154: =A154& " Detailed operational projects" -> Supporting Table SA38 Detailed operational projects
A156: Budget Charts | B156: Charts | C156: Cross reference
A157: Chart A1 | B157: =A157&"Revenue by Municipal Vote" -> Chart A1 Revenue by Municipal Vote
A158: Chart A2 | B158: =A158&"Expenditure by Municipal Vote" -> Chart A2 Expenditure by Municipal Vote
A159: Chart A3 | B159: =A159&"Revenue by Standard Classification" -> Chart A3 Revenue by Standard Classification | C159: A2
A160: Chart A4 | B160: =A160&"Expenditure by Standard Classification" -> Chart A4 Expenditure by Standard Classification | C160: A2
A161: Chart A5 | B161: =A161&"Revenue by Major Source (refer 'Minor' source for 'Other Revenue' allocation" -> Chart A5 Revenue by Major Source (refer 'Minor' source for 'Other Revenue' allocation | C161: A3
A162: Chart A6 | B162: =A162&"Revenue by Minor Source (Other)" -> Chart A6 Revenue by Minor Source (Other) | C162: A3
A163: Chart A7 | B163: =A163&"Expenditure by Major Type" -> Chart A7 Expenditure by Major Type | C163: A3
A164: Chart A8 | B164: =A164&"Expenditure by Minor Type (Other)" -> Chart A8 Expenditure by Minor Type (Other) | C164: A3
A165: Chart A9 | B165: =A165&"Capital Expenditure by Municipal Vote/Appropriation (Major)" -> Chart A9 Capital Expenditure by Municipal Vote/Appropriation (Major) | C165: A5
A166: Chart A10 | B166: =A166&"Capital Expenditure by Municipal Vote/Appropriation (Minor)" -> Chart A10 Capital Expenditure by Municipal Vote/Appropriation (Minor) | C166: A5
A167: Chart A11 | B167: =A166&"Capital Expenditure by Standard Classification" -> Chart A10 Capital Expenditure by Standard Classification | C167: A5
A168: Chart A12 | B168: =A168&"Capital expenditure performance trend" -> Chart A12 Capital expenditure performance trend | C168: A5
A169: Chart A13 | B169: =A169&"Capital funding by Source" -> Chart A13 Capital funding by Source | C169: A5
A170: Chart A14 | B170: =A170&"Cash flow trend" -> Chart A14 Cash flow trend | C170: A7
A171: Chart A15 | B171: =A171&"IDP Strategic Objective - Revenue" -> Chart A15 IDP Strategic Objective - Revenue | C171: Table A4
A172: Chart A16 | B172: =A172&"IDP Strategic Objective - Expenditure" -> Chart A16 IDP Strategic Objective - Expenditure | C172: Table A5
A173: Chart A17 | B173: =A173&"IDP Strategic Objective - Capital Expenditure" -> Chart A17 IDP Strategic Objective - Capital Expenditure | C173: Table A6
A174: Chart A18 | B174: =A174&"Debt (borrowing to Total Revenue)" -> Chart A18 Debt (borrowing to Total Revenue) | C174: Table A8
A175: Chart A19 | B175: =A175&"Debtors' trend analysis" -> Chart A19 Debtors' trend analysis | C175: Table A8
A176: Chart A20 | B176: =A176&"Distribution losses" -> Chart A20 Distribution losses | C176: Table A8
A177: Chart A21 | B177: =A177&"Borrowed funding of capital expenditure" -> Chart A21 Borrowed funding of capital expenditure | C177: Table A8
A178: Chart A22 | B178: =A178&"Expenditure analysis (% of Revenue)" -> Chart A22 Expenditure analysis (% of Revenue) | C178: Table A8
A179: Chart A23 | B179: =A179&"Increases in service charges" -> Chart A23 Increases in service charges | C179: Table A10

Sheet Lookup and lists (hidden)
A1: Description | B1: 2007 | C1: 2008 | D1: 2009 | E1: 2010 | F1: 2011 | G1: 2012 | H1: 2013 | I1: 2014 | J1: 2015 | K1: 2016 | L1: 2017 | M1: 2018 | N1: 2019 | O1: 2020 | Q1: Lists | Y1: Grants: | Z1: National - opex | AA1: Provincial - opex | AB1: National - capex | AC1: Provincial - capex
A2: ='Template names'!C2 -> Prior year -1 | B2: 2005/06 | C2: 2006/07 | D2: 2007/08 | E2: =E1-2&"/"&RIGHT(E1,2)-1 -> 2008/9 | F2: 2009/10 | G2: 2010/11 | H2: 2011/12 | I2: 2012/13 | J2: 2013/14 | K2: 2014/15 | L2: 2015/16 | M2: 2016/17 | N2: 2017/18 | O2: 2018/19 | Q2: Yes | R2: <1 | S2: <4 | T2: Market | U2: Land & impr. | V2: Yes | W2: Uniform | X2: Yrs | Z2: Local Government Equitable Share | AA2: Health subsidy | AB2: Municipal Infrastructure Grant (MIG) | AC2: Agriculture
A3: ='Template names'!C3 -> Prior year -2 | B3: 2004/05 | C3: 2005/06 | D3: 2006/07 | E3: =E1-3&"/"&RIGHT(E1,2)-2 -> 2007/8 | F3: 2008/9 | G3: 2009/10 | H3: 2010/11 | I3: 2011/12 | J3: 2012/13 | K3: 2013/14 | L3: 2014/15 | M3: 2015/16 | N3: 2016/17 | O3: 2017/18 | Q3: No | R3: 1 | S3: 4 | T3: Dep.Replace | U3: Land only | V3: No | W3: Variable | X3: Mths | Z3: RSC Levy Replacement | AA3: Ambulance subsidy | AB3: Public Transport and Systems | AC3: Education
A4: ='Template names'!C4 -> Prior year -3 | B4: 2003/04 | C4: 2004/05 | D4: 2005/06 | E4: =E1-4&"/"&RIGHT(E1,2)-3 -> 2006/7 | F4: 2007/8 | G4: 2008/9 | H4: 2009/10 | I4: 2010/11 | J4: 2011/12 | K4: 2012/13 | L4: 2013/14 | M4: 2014/15 | N4: 2015/16 | O4: 2016/17 | R4: 2 | S4: 5 | T4: Other | U4: Other | Z4: Finance Management | AA4: Housing | AB4: Rural Transport Services and Infrastructure | AC4: Health
A5: ='Template names'!C5 -> Year in which budget is being prepared | B5: Current Year 2006/07 | C5: Current Year 2007/08 | D5: Current Year 2008/09 | E5: ="Current Year "& E1-1&"/"&RIGHT(E1,2) -> Current Year 2009/10 | F5: Current Year 2010/11 | G5: Current Year 2011/12 | H5: Current Year 2012/13 | I5: Current Year 2013/14 | J5: Current Year 2014/15 | K5: Current Year 2015/16 | L5: Current Year 2016/17 | M5: Current Year 2017/18 | N5: Current Year 2018/19 | O5: Current Year 2019/20 | R5: 3 | S5: 6 | Z5: Municipal Systems Improvement | AA5: Sport and Recreation | AB5: Regional Bulk Infrastructure | AC5: Housing and Local Government
A6: ='Template names'!C6 -> Year in which budget is being prepared | B6: 2006/07 | C6: 2007/08 | D6: 2008/09 | E6: =E1-1&"/"&RIGHT(E1,2) -> 2009/10 | F6: 2010/11 | G6: 2011/12 | H6: 2012/13 | I6: 2013/14 | J6: 2014/15 | K6: 2015/16 | L6: 2016/17 | M6: 2017/18 | N6: 2018/19 | O6: 2019/20 | R6: 4 | S6: 6-10 | Z6: Water Services Operating Subsidy | AB6: Rural Households Infrastructure | AC6: Other Departments
A7: ='Template names'!C7 -> MTREF name | B7: 2007/08 Medium Term Revenue & Expenditure Framework | C7: 2008/09 Medium Term Revenue & Expenditure Framework | D7: 2009/10 Medium Term Revenue & Expenditure Framework | E7: =E1&"/"&RIGHT(E1,2)+1&" Medium Term Revenue & Expenditure Framework" -> 2010/11 Medium Term Revenue & Expenditure Framework | F7: 2011/12 Medium Term Revenue & Expenditure Framework | G7: 2012/13 Medium Term Revenue & Expenditure Framework | H7: 2013/14 Medium Term Revenue & Expenditure Framework | I7: 2014/15 Medium Term Revenue & Expenditure Framework | J7: 2015/16 Medium Term Revenue & Expenditure Framework | K7: 2016/17 Medium Term Revenue & Expenditure Framework | L7: 2017/18 Medium Term Revenue & Expenditure Framework | M7: 2018/19 Medium Term Revenue & Expenditure Framework | N7: 2019/20 Medium Term Revenue & Expenditure Framework | O7: 2020/21 Medium Term Revenue & Expenditure Framework | R7: 5 | S7: >10 | Z7: Energy Efficiency and Demand Management | AB7: Neighbourhood Development Partnership | AC7: Public Works, Roads, Transport
A8: ='Template names'!C15 -> 1st year of MTREF | B8: Budget Year 2007/08 | C8: Budget Year 2008/09 | D8: Budget Year 2009/10 | E8: ="Budget Year "&E1&"/"&RIGHT(E1,2)+1 -> Budget Year 2010/11 | F8: Budget Year 2011/12 | G8: Budget Year 2012/13 | H8: Budget Year 2013/14 | I8: Budget Year 2014/15 | J8: Budget Year 2015/16 | K8: Budget Year 2016/17 | L8: Budget Year 2017/18 | M8: Budget Year 2018/19 | N8: Budget Year 2019/20 | O8: Budget Year 2020/21 | R8: >5 | Z8: Integrated National Electrification Programme | AB8: 2010 FIFA World Cup Stadiums Development | AC8: Sport and Recreation
A9: ='Template names'!C16 -> 2nd year of MTREF | B9: Budget Year +1 2008/09 | C9: Budget Year +1 2009/10 | D9: Budget Year +1 2010/11 | E9: ="Budget Year +1 "&E1+1&"/"&RIGHT(E1,2)+2 -> Budget Year +1 2011/12 | F9: Budget Year +1 2012/13 | G9: Budget Year +1 2013/14 | H9: Budget Year +1 2014/15 | I9: Budget Year +1 2015/16 | J9: Budget Year +1 2016/17 | K9: Budget Year +1 2017/18 | L9: Budget Year +1 2018/19 | M9: Budget Year +1 2019/20 | N9: Budget Year +1 2020/21 | O9: Budget Year +1 2021/22 | Z9: Municipal Drought Relief
A10: ='Template names'!C17 -> 3rd year of MTREF | B10: Budget Year +2 2009/10 | C10: Budget Year +2 2010/11 | D10: Budget Year +2 2011/12 | E10: ="Budget Year +2 "&E1+2&"/"&RIGHT(E1,2)+3 -> Budget Year +2 2012/13 | F10: Budget Year +2 2013/14 | G10: Budget Year +2 2014/15 | H10: Budget Year +2 2015/16 | I10: Budget Year +2 2016/17 | J10: Budget Year +2 2017/18 | K10: Budget Year +2 2018/19 | L10: Budget Year +2 2019/20 | M10: Budget Year +2 2020/21 | N10: Budget Year +2 2021/22 | O10: Budget Year +2 2022/23 | Z10: 2010 FIFA World Cup Operating
A11: ='Template names'!C18 -> 1st yr of long term forecast | B11: Forecast 2010/11 | C11: Forecast 2011/12 | D11: Forecast 2012/13 | E11: ="Forecast "&E1+3&"/"&RIGHT(E1,2)+4 -> Forecast 2013/14 | F11: Forecast 2014/15 | G11: Forecast 2015/16 | H11: Forecast 2016/17 | I11: Forecast 2017/18 | J11: Forecast 2018/19 | K11: Forecast 2019/20 | L11: Forecast 2020/21 | M11: Forecast 2021/22 | N11: Forecast 2022/23 | O11: Forecast 2023/24 | Z11: Electricity Demand Side Management
A12: ='Template names'!C19 -> Next yr of long term forecast | B12: Forecast 2011/12 | C12: Forecast 2012/13 | D12: Forecast 2013/14 | E12: ="Forecast "&E1+4&"/"&RIGHT(E1,2)+5 -> Forecast 2014/15 | F12: Forecast 2015/16 | G12: Forecast 2016/17 | H12: Forecast 2017/18 | I12: Forecast 2018/19 | J12: Forecast 2019/20 | K12: Forecast 2020/21 | L12: Forecast 2021/22 | M12: Forecast 2022/23 | N12: Forecast 2023/24 | O12: Forecast 2024/25 | Z12: EPWP Incentive
A13: ='Template names'!C20 -> Next yr of long term forecast | B13: Forecast 2012/13 | C13: Forecast 2013/14 | D13: Forecast 2014/15 | E13: ="Forecast "&E1+5&"/"&RIGHT(E1,2)+6 -> Forecast 2015/16 | F13: Forecast 2016/17 | G13: Forecast 2017/18 | H13: Forecast 2018/19 | I13: Forecast 2019/20 | J13: Forecast 2020/21 | K13: Forecast 2021/22 | L13: Forecast 2022/23 | M13: Forecast 2023/24 | N13: Forecast 2024/25 | O13: Forecast 2025/26
A14: ='Template names'!C21 -> Next yr of long term forecast | B14: Forecast 2013/14 | C14: Forecast 2014/15 | D14: Forecast 2015/16 | E14: ="Forecast "&E1+6&"/"&RIGHT(E1,2)+7 -> Forecast 2016/17 | F14: Forecast 2017/18 | G14: Forecast 2018/19 | H14: Forecast 2019/20 | I14: Forecast 2020/21 | J14: Forecast 2021/22 | K14: Forecast 2022/23 | L14: Forecast 2023/24 | M14: Forecast 2024/25 | N14: Forecast 2025/26 | O14: Forecast 2026/27 | Z14: Asset Class | AA14: Asset sub-class old | AB14: Asset sub-class | AC14: IUDF | AD14: MTSF
A15: ='Template names'!C22 -> Next yr of long term forecast | B15: Forecast 2014/15 | C15: Forecast 2015/16 | D15: Forecast 2016/17 | E15: ="Forecast "&E1+7&"/"&RIGHT(E1,2)+8 -> Forecast 2017/18 | F15: Forecast 2018/19 | G15: Forecast 2019/20 | H15: Forecast 2020/21 | I15: Forecast 2021/22 | J15: Forecast 2022/23 | K15: Forecast 2023/24 | L15: Forecast 2024/25 | M15: Forecast 2025/26 | N15: Forecast 2026/27 | O15: Forecast 2027/28
A16: ='Template names'!C23 -> Next yr of long term forecast | B16: Forecast 2015/16 | C16: Forecast 2016/17 | D16: Forecast 2017/18 | E16: ="Forecast "&E1+8&"/"&RIGHT(E1,2)+9 -> Forecast 2018/19 | F16: Forecast 2019/20 | G16: Forecast 2020/21 | H16: Forecast 2021/22 | I16: Forecast 2022/23 | J16: Forecast 2023/24 | K16: Forecast 2024/25 | L16: Forecast 2025/26 | M16: Forecast 2026/27 | N16: Forecast 2027/28 | O16: Forecast 2028/29 | Z16: Roads Infrastructure | AA16: Roads, Pavements & Bridges | AB16: Roads | AC16: Spatial integration | AD16: Quality basic education
A17: ='Template names'!C24 -> Next yr of long term forecast | B17: Forecast 2016/17 | C17: Forecast 2017/18 | D17: Forecast 2018/19 | E17: ="Forecast "&E1+9&"/"&RIGHT(E1,2)+10 -> Forecast 2019/20 | F17: Forecast 2020/21 | G17: Forecast 2021/22 | H17: Forecast 2022/23 | I17: Forecast 2023/24 | J17: Forecast 2024/25 | K17: Forecast 2025/26 | L17: Forecast 2026/27 | M17: Forecast 2027/28 | N17: Forecast 2028/29 | O17: Forecast 2029/30 | Z17: Storm water Infrastructure | AA17: Storm water | AB17: Road Structures | AC17: Inclusion and access | AD17: A long and healthy life for all South Africans
A18: ='Template names'!C25 -> Next yr of long term forecast | B18: Forecast 2017/18 | C18: Forecast 2018/19 | D18: Forecast 2019/20 | E18: ="Forecast "&E1+10&"/"&RIGHT(E1,2)+11 -> Forecast 2020/21 | F18: Forecast 2021/22 | G18: Forecast 2022/23 | H18: Forecast 2023/24 | I18: Forecast 2024/25 | J18: Forecast 2025/26 | K18: Forecast 2026/27 | L18: Forecast 2027/28 | M18: Forecast 2028/29 | N18: Forecast 2029/30 | O18: Forecast 2030/31 | Z18: Electrical Infrastructure | AA18: Generation | AB18: Road Furniture | AC18: Growth | AD18: All people in South Africa are and feel safe
A19: ='Template names'!C26 -> Next yr of long term forecast | B19: Forecast 2018/19 | C19: Forecast 2019/20 | D19: Forecast 2020/21 | E19: ="Forecast "&E1+11&"/"&RIGHT(E1,2)+12 -> Forecast 2021/22 | F19: Forecast 2022/23 | G19: Forecast 2023/24 | H19: Forecast 2024/25 | I19: Forecast 2025/26 | J19: Forecast 2026/27 | K19: Forecast 2027/28 | L19: Forecast 2028/29 | M19: Forecast 2029/30 | N19: Forecast 2030/31 | O19: Forecast 2031/32 | Z19: Water Supply Infrastructure | AA19: Transmission & Reticulation | AB19: Capital Spares | AC19: Governance | AD19: Decent employment through inclusive growth
A20: ='Template names'!C27 -> Next yr of long term forecast | B20: Forecast 2019/20 | C20: Forecast 2020/21 | D20: Forecast 2021/22 | E20: ="Forecast "&E1+12&"/"&RIGHT(E1,2)+13 -> Forecast 2022/23 | F20: Forecast 2023/24 | G20: Forecast 2024/25 | H20: Forecast 2025/26 | I20: Forecast 2026/27 | J20: Forecast 2027/28 | K20: Forecast 2028/29 | L20: Forecast 2029/30 | M20: Forecast 2030/31 | N20: Forecast 2031/32 | O20: Forecast 2032/33 | Z20: Sanitation Infrastructure | AA20: Street Lighting | AB20: Drainage Collection | AD20: A skilled and capable workforce to support an inclusive growth path
A21: ='Template names'!C28 -> Next yr of long term forecast | B21: Forecast 2020/21 | C21: Forecast 2021/22 | D21: Forecast 2022/23 | E21: ="Forecast "&E1+13&"/"&RIGHT(E1,2)+14 -> Forecast 2023/24 | F21: Forecast 2024/25 | G21: Forecast 2025/26 | H21: Forecast 2026/27 | I21: Forecast 2027/28 | J21: Forecast 2028/29 | K21: Forecast 2029/30 | L21: Forecast 2030/31 | M21: Forecast 2031/32 | N21: Forecast 2032/33 | O21: Forecast 2033/34 | Z21: Solid Waste Infrastructure | AA21: Dams & Reservoirs | AB21: Storm water Conveyance | AD21: An efficient, competitive and responsive economic infrastructure network
A22: ='Template names'!C29 -> Next yr of long term forecast | B22: Forecast 2021/22 | C22: Forecast 2022/23 | D22: Forecast 2023/24 | E22: ="Forecast "&E1+14&"/"&RIGHT(E1,2)+15 -> Forecast 2024/25 | F22: Forecast 2025/26 | G22: Forecast 2026/27 | H22: Forecast 2027/28 | I22: Forecast 2028/29 | J22: Forecast 2029/30 | K22: Forecast 2030/31 | L22: Forecast 2031/32 | M22: Forecast 2032/33 | N22: Forecast 2033/34 | O22: Forecast 2034/35 | Z22: Rail Infrastructure | AA22: Water purification | AB22: Attenuation | AD22: Vibrant, equitable, sustainable rural communities contributing towards food security for all
A23: Adjustments Budget | B23: Annual target 2007/08 | C23: Annual target 2008/09 | D23: Annual target 2009/10 | E23: ="Annual target " & E1&"/"&RIGHT(E1,2)+1 -> Annual target 2010/11 | F23: Annual target 2011/12 | G23: Annual target 2012/13 | H23: Annual target 2013/14 | I23: Annual target 2014/15 | J23: Annual target 2015/16 | K23: Annual target 2016/17 | L23: Annual target 2017/18 | M23: Annual target 2018/19 | N23: Annual target 2019/20 | O23: Annual target 2020/21 | Z23: Coastal Infrastructure | AA23: Reticulation | AB23: Power Plants | AD23: Sustainable human settlements and improved quality of household life
A24: =A23 -> Adjustments Budget | B24: Revised target 2007/08 | C24: Revised target 2008/09 | D24: Revised target 2009/10 | E24: ="Revised target "& E1&"/"&RIGHT(E1,2)+1 -> Revised target 2010/11 | F24: Revised target 2011/12 | G24: Revised target 2012/13 | H24: Revised target 2013/14 | I24: Revised target 2014/15 | J24: Revised target 2015/16 | K24: Revised target 2016/17 | L24: Revised target 2017/18 | M24: Revised target 2018/19 | N24: Revised target 2019/20 | O24: Revised target 2020/21 | Z24: Information and Communication Infrastructure | AA24: Sewerage purification | AB24: HV Substations | AD24: Responsive, accountable, effective and efficient local government
A25: NOTE: This sheet should not be directly amended - select headings from sheet 'S' | Z25: Community Facilities | AA25: Waste Management | AB25: HV Switching Station | AD25: Protect and enhance our environmental assets and natural resources
Z26: Sport and Recreation Facilities | AA26: Transportation | AB26: HV Transmission Conductors | AD26: Create a better South Africa and contribute to a better Africa and a better world
A27: Name link | B27: 85 | Z27: Heritage assets | AA27: Gas | AB27: MV Substations | AD27: An efficient, effective and development-oriented public service
A28: Name of Muni | B28: =INDEX(B29:B307,B27,1) -> KZN225 Msunduzi | Z28: Revenue Generating | AA28: Parks & gardens | AB28: MV Switching Stations | AD28: A comprehensive, responsive and sustainable social protection system
B29: Choose name from list | C29: Set name on 'Instructions' sheet | Z29: Non-revenue Generating | AA29: Sportsfields & stadia | AB29: MV Networks | AD29: A diverse, socially cohesive society with a common national identity
B30: BUF Buffalo City | C30: EC EASTERN CAPE | Z30: Operational Buildings | AA30: Swimming pools | AB30: LV Networks
B31: NMA Nelson Mandela Bay | C31: EC EASTERN CAPE | Z31: Housing | AA31: Community halls | AB31: Capital Spares
B32: EC101 Dr Beyers Naude | C32: EC EASTERN CAPE | Z32: Biological or Cultivated Assets | AA32: Libraries | AB32: Dams and Weirs
B33: EC102 Blue Crane Route | C33: EC EASTERN CAPE | Z33: Servitudes | AA33: Recreational facilities | AB33: Boreholes
B34: EC104 Makana | C34: EC EASTERN CAPE | Z34: Licences and Rights | AA34: Fire, safety & emergency | AB34: Reservoirs
B35: EC105 Ndlambe | C35: EC EASTERN CAPE | Z35: Computer Equipment | AA35: Security and policing | AB35: Pump Stations
B36: EC106 Sundays River Valley | C36: EC EASTERN CAPE | Z36: Furniture and Office Equipment | AA36: Buses | AB36: Water Treatment Works
B37: EC108 Kouga | C37: EC EASTERN CAPE | Z37: Machinery and Equipment | AA37: Clinics | AB37: Bulk Mains
B38: EC109 Kou-Kamma | C38: EC EASTERN CAPE | Z38: Transport Assets | AA38: Museums & Art Galleries | AB38: Distribution
B39: DC10 Sarah Baartman | C39: EC EASTERN CAPE | Z39: Land | AA39: Cemeteries | AB39: Distribution Points
B40: EC121 Mbhashe | C40: EC EASTERN CAPE | Z40: Zoo's, Marine and Non-biological Animals | AA40: Social rental housing | AB40: PRV Stations
B41: EC122 Mnquma | C41: EC EASTERN CAPE | AA41: Buildings | AB41: Capital Spares
B42: EC123 Great Kei | C42: EC EASTERN CAPE | AA42: Housing development | AB42: Pump Station
B43: EC124 Amahlathi | C43: EC EASTERN CAPE | AA43: General vehicles | AB43: Reticulation
B44: EC126 Ngqushwa | C44: EC EASTERN CAPE | AA44: Specialised vehicles - Refuse | AB44: Waste Water Treatment Works
B45: EC129 Raymond Mhlaba | C45: EC EASTERN CAPE | AA45: Specialised vehicles - Fire | AB45: Outfall Sewers
B46: DC12 Amathole | C46: EC EASTERN CAPE | AA46: Specialised vehicles - Conservancy | AB46: Toilet Facilities
B47: EC131 Inxuba Yethemba | C47: EC EASTERN CAPE | AA47: Specialised vehicles - Ambulances | AB47: Capital Spares
B48: EC135 Intsika Yethu | C48: EC EASTERN CAPE | AA48: Plant & equipment | AB48: Landfill Sites
B49: EC136 Emalahleni (Ec) | C49: EC EASTERN CAPE | AA49: Computers - hardware/equipment | AB49: Waste Transfer Stations
B50: EC137 Engcobo | C50: EC EASTERN CAPE | AA50: Furniture and other office equipment | AB50: Waste Processing Facilities
B51: EC138 Sakhisizwe | C51: EC EASTERN CAPE | AA51: Abattoirs | AB51: Waste Drop-off Points
B52: EC139 Enoch Mgijima | C52: EC EASTERN CAPE | AA52: Markets | AB52: Waste Separation Facilities
B53: DC13 Chris Hani | C53: EC EASTERN CAPE | AA53: Civic Land and Buildings | AB53: Electricity Generation Facilities
B54: EC141 Elundini | C54: EC EASTERN CAPE | AA54: Other Buildings | AB54: Capital Spares
B55: EC142 Senqu | C55: EC EASTERN CAPE | AA55: Other Land | AB55: Rail Lines
B56: EC145 Walter Sisulu | C56: EC EASTERN CAPE | AA56: Surplus Assets - (Investment or Inventory) | AB56: Rail Structures
B57: DC14 Joe Gqabi | C57: EC EASTERN CAPE | AA57: Computers - software & programming | AB57: Rail Furniture
B58: EC153 Ngquza Hills | C58: EC EASTERN CAPE | AA58: Other | AB58: Drainage Collection
B59: EC154 Port St Johns | C59: EC EASTERN CAPE | AB59: Storm water Conveyance
B60: EC155 Nyandeni | C60: EC EASTERN CAPE | Z60: SA16 - Investments | AB60: Attenuation
B61: EC156 Mhlontlo | C61: EC EASTERN CAPE | Z61: Security | AA61: Interest rate | AB61: MV Substations
B62: EC157 King Sabata Dalindyebo | C62: EC EASTERN CAPE | Z62: Yes | AA62: Fixed | AB62: LV Networks
B63: DC15 O .R. Tambo | C63: EC EASTERN CAPE | Z63: No | AA63: Variable | AB63: Capital Spares
B64: EC441 Matatiele | C64: EC EASTERN CAPE | AB64: Sand Pumps
B65: EC442 Umzimvubu | C65: EC EASTERN CAPE | AB65: Piers
B66: EC443 Mbizana | C66: EC EASTERN CAPE | Z66: SA36, SA37 - Capital projects | AB66: Revetments
B67: EC444 Ntabankulu | C67: EC EASTERN CAPE | Z67: Yes | AB67: Promenades
B68: DC44 Alfred Nzo | C68: EC EASTERN CAPE | Z68: No | AB68: Capital Spares
B69: MAN Mangaung | C69: FS FREE STATE | AB69: Data Centres
B70: FS161 Letsemeng | C70: FS FREE STATE | AB70: Core Layers
B71: FS162 Kopanong | C71: FS FREE STATE | AB71: Distribution Layers
B72: FS163 Mohokare | C72: FS FREE STATE | AB72: Capital Spares
B73: DC16 Xhariep | C73: FS FREE STATE | AB73: Halls
B74: FS181 Masilonyana | C74: FS FREE STATE | AB74: Centres
B75: FS182 Tokologo | C75: FS FREE STATE | AB75: Crèches
B76: FS183 Tswelopele | C76: FS FREE STATE | AB76: Clinics/Care Centres
B77: FS184 Matjhabeng | C77: FS FREE STATE | AB77: Fire/Ambulance Stations
B78: FS185 Nala | C78: FS FREE STATE | AB78: Testing Stations
B79: DC18 Lejweleputswa | C79: FS FREE STATE | AB79: Museums
B80: FS191 Setsoto | C80: FS FREE STATE | AB80: Galleries
B81: FS192 Dihlabeng | C81: FS FREE STATE | AB81: Theatres
B82: FS193 Nketoana | C82: FS FREE STATE | AB82: Libraries
B83: FS194 Maluti-a-Phofung | C83: FS FREE STATE | AB83: Cemeteries/Crematoria
B84: FS195 Phumelela | C84: FS FREE STATE | AB84: Police
B85: FS196 Mantsopa | C85: FS FREE STATE | AB85: Purls
B86: DC19 Thabo Mofutsanyana | C86: FS FREE STATE | AB86: Public Open Space
B87: FS201 Moqhaka | C87: FS FREE STATE | AB87: Nature Reserves
B88: FS203 Ngwathe | C88: FS FREE STATE | AB88: Public Ablution Facilities
B89: FS204 Metsimaholo | C89: FS FREE STATE | AB89: Markets
B90: FS205 Mafube | C90: FS FREE STATE | AB90: Stalls
B91: DC20 Fezile Dabi | C91: FS FREE STATE | AB91: Abattoirs
B92: EKU City of Ekurhuleni | C92: GT GAUTENG | AB92: Airports
B93: JHB City Of Johannesburg | C93: GT GAUTENG | AB93: Taxi Ranks/Bus Terminals
B94: TSH City Of Tshwane | C94: GT GAUTENG | AB94: Capital Spares
B95: GT421 Emfuleni | C95: GT GAUTENG | AB95: Indoor Facilities
B96: GT422 Midvaal | C96: GT GAUTENG | AB96: Outdoor Facilities
B97: GT423 Lesedi | C97: GT GAUTENG | AB97: Capital Spares
B98: DC42 Sedibeng | C98: GT GAUTENG | AB98: Monuments
B99: GT481 Mogale City | C99: GT GAUTENG | AB99: Historic Buildings
B100: GT484 Merafong City | C100: GT GAUTENG | AB100: Works of Art
B101: GT485 Rand West City | C101: GT GAUTENG | AB101: Conservation Areas
B102: DC48 West Rand | C102: GT GAUTENG | AB102: Other Heritage
B103: ETH eThekwini | C103: KZN KWAZULU-NATAL | AB103: Improved Property
B104: KZN212 Umdoni | C104: KZN KWAZULU-NATAL | AB104: Unimproved Property
B105: KZN213 Umzumbe | C105: KZN KWAZULU-NATAL | AB105: Municipal Offices
B106: KZN214 uMuziwabantu | C106: KZN KWAZULU-NATAL | AB106: Pay/Enquiry Points
B107: KZN216 Ray Nkonyeni | C107: KZN KWAZULU-NATAL | AB107: Building Plan Offices
B108: DC21 Ugu | C108: KZN KWAZULU-NATAL | AB108: Workshops
B109: KZN221 uMshwathi | C109: KZN KWAZULU-NATAL | AB109: Yards
B110: KZN222 uMngeni | C110: KZN KWAZULU-NATAL | AB110: Stores
B111: KZN223 Mpofana | C111: KZN KWAZULU-NATAL | AB111: Laboratories
B112: KZN224 Impendle | C112: KZN KWAZULU-NATAL | AB112: Training Centres
B113: KZN225 Msunduzi | C113: KZN KWAZULU-NATAL | AB113: Manufacturing Plant
B114: KZN226 Mkhambathini | C114: KZN KWAZULU-NATAL | AB114: Depots
B115: KZN227 Richmond | C115: KZN KWAZULU-NATAL | AB115: Capital Spares
B116: DC22 uMgungundlovu | C116: KZN KWAZULU-NATAL | AB116: Staff Housing
B117: KZN235 Okhahlamba | C117: KZN KWAZULU-NATAL | AB117: Social Housing
B118: KZN237 Inkosi Langalibalele | C118: KZN KWAZULU-NATAL | AB118: Capital Spares
B119: KZN238 Alfred Duma | C119: KZN KWAZULU-NATAL | AB119: Water Rights
B120: DC23 Uthukela | C120: KZN KWAZULU-NATAL | AB120: Effluent Licenses
B121: KZN241 Endumeni | C121: KZN KWAZULU-NATAL | AB121: Solid Waste Licenses
B122: KZN242 Nquthu | C122: KZN KWAZULU-NATAL | AB122: Computer Software and Applications
B123: KZN244 Msinga | C123: KZN KWAZULU-NATAL | AB123: Load Settlement Software Applications
B124: KZN245 Umvoti | C124: KZN KWAZULU-NATAL | AB124: Unspecified
B125: DC24 Umzinyathi | C125: KZN KWAZULU-NATAL
B126: KZN252 Newcastle | C126: KZN KWAZULU-NATAL
B127: KZN253 Emadlangeni | C127: KZN KWAZULU-NATAL
B128: KZN254 Dannhauser | C128: KZN KWAZULU-NATAL
B129: DC25 Amajuba | C129: KZN KWAZULU-NATAL
B130: KZN261 eDumbe | C130: KZN KWAZULU-NATAL
B131: KZN262 uPhongolo | C131: KZN KWAZULU-NATAL
B132: KZN263 Abaqulusi | C132: KZN KWAZULU-NATAL
B133: KZN265 Nongoma | C133: KZN KWAZULU-NATAL
B134: KZN266 Ulundi | C134: KZN KWAZULU-NATAL
B135: DC26 Zululand | C135: KZN KWAZULU-NATAL
B136: KZN271 Umhlabuyalingana | C136: KZN KWAZULU-NATAL
B137: KZN272 Jozini | C137: KZN KWAZULU-NATAL
B138: KZN275 Mtubatuba | C138: KZN KWAZULU-NATAL
B139: KZN276 Hlabisa Big Five | C139: KZN KWAZULU-NATAL
B140: DC27 Umkhanyakude | C140: KZN KWAZULU-NATAL
B141: KZN281 Mfolozi | C141: KZN KWAZULU-NATAL
B142: KZN282 uMhlathuze | C142: KZN KWAZULU-NATAL
B143: KZN284 uMlalazi | C143: KZN KWAZULU-NATAL
B144: KZN285 Mthonjaneni | C144: KZN KWAZULU-NATAL
B145: KZN286 Nkandla | C145: KZN KWAZULU-NATAL
B146: DC28 King Cetshwayo | C146: KZN KWAZULU-NATAL
B147: KZN291 Mandeni | C147: KZN KWAZULU-NATAL
B148: KZN292 KwaDukuza | C148: KZN KWAZULU-NATAL
B149: KZN293 Ndwedwe | C149: KZN KWAZULU-NATAL
B150: KZN294 Maphumulo | C150: KZN KWAZULU-NATAL
B151: DC29 iLembe | C151: KZN KWAZULU-NATAL
B152: KZN433 Greater Kokstad | C152: KZN KWAZULU-NATAL
B153: KZN434 Ubuhlebezwe | C153: KZN KWAZULU-NATAL
B154: KZN435 Umzimkhulu | C154: KZN KWAZULU-NATAL
B155: KZN436 Dr Nkosazana Dlamini Zuma | C155: KZN KWAZULU-NATAL
B156: DC43 Harry Gwala | C156: KZN KWAZULU-NATAL
B157: LIM331 Greater Giyani | C157: LIM LIMPOPO
B158: LIM332 Greater Letaba | C158: LIM LIMPOPO
B159: LIM333 Greater Tzaneen | C159: LIM LIMPOPO
B160: LIM334 Ba-Phalaborwa | C160: LIM LIMPOPO
B161: LIM335 Maruleng | C161: LIM LIMPOPO
B162: DC33 Mopani | C162: LIM LIMPOPO
B163: LIM341 Musina | C163: LIM LIMPOPO
B164: LIM343 Thulamela | C164: LIM LIMPOPO
B165: LIM344 Makhado | C165: LIM LIMPOPO
B166: LIM345 Collins Chabane | C166: LIM LIMPOPO
B167: DC34 Vhembe | C167: LIM LIMPOPO
B168: LIM351 Blouberg | C168: LIM LIMPOPO
B169: LIM353 Molemole | C169: LIM LIMPOPO
B170: LIM354 Polokwane | C170: LIM LIMPOPO
B171: LIM355 Lepelle-Nkumpi | C171: LIM LIMPOPO
B172: DC35 Capricorn | C172: LIM LIMPOPO
B173: LIM361 Thabazimbi | C173: LIM LIMPOPO
B174: LIM362 Lephalale | C174: LIM LIMPOPO
B175: LIM366 Bela Bela | C175: LIM LIMPOPO
B176: LIM367 Mogalakwena | C176: LIM LIMPOPO
B177: LIM368 Modimolle-Mookgopong | C177: LIM LIMPOPO
B178: DC36 Waterberg | C178: LIM LIMPOPO
B179: LIM471 Ephraim Mogale | C179: LIM LIMPOPO
B180: LIM472 Elias Motsoaledi | C180: LIM LIMPOPO
B181: LIM473 Makhuduthamaga | C181: LIM LIMPOPO
B182: LIM476 Tubatse Fetakgomo | C182: LIM LIMPOPO
B183: DC47 Sekhukhune | C183: LIM LIMPOPO
B184: MP301 Albert Luthuli | C184: MP MPUMALANGA
B185: MP302 Msukaligwa | C185: MP MPUMALANGA
B186: MP303 Mkhondo | C186: MP MPUMALANGA
B187: MP304 Pixley Ka Seme (MP) | C187: MP MPUMALANGA
B188: MP305 Lekwa | C188: MP MPUMALANGA
B189: MP306 Dipaleseng | C189: MP MPUMALANGA
B190: MP307 Govan Mbeki | C190: MP MPUMALANGA
B191: DC30 Gert Sibande | C191: MP MPUMALANGA
B192: MP311 Victor Khanye | C192: MP MPUMALANGA
B193: MP312 Emalahleni (Mp) | C193: MP MPUMALANGA
B194: MP313 Steve Tshwete | C194: MP MPUMALANGA
B195: MP314 Emakhazeni | C195: MP MPUMALANGA
B196: MP315 Thembisile Hani | C196: MP MPUMALANGA
B197: MP316 Dr J.S. Moroka | C197: MP MPUMALANGA
B198: DC31 Nkangala | C198: MP MPUMALANGA
B199: MP321 Thaba Chweu | C199: MP MPUMALANGA
B200: MP324 Nkomazi | C200: MP MPUMALANGA
... 87 more rows

Sheet Org structure
A1: Organisational Structure Votes | C1: Organisational Structure Sub-Votes | E1: Display Sub-Votes
A2: =B2&" - "&C2 -> Vote 1 - City Manager | B2: Vote 1 | C2: City Manager
A3: =B13&" - "& C13 -> Vote 2 - City Finance | B3: 1.1 | C3: Internal Audit and Compliance | D3: =CONCATENATE(B3, " - ", C3) -> 1,1 - Internal Audit and Compliance | E3: 1.1 - Internal Audit and Compliance
A4: =B24&" - "&C24 -> Vote 3 - Community Services and Social Equity | B4: 1.2 | C4: Office of the City Manager | D4: 1,2 - Office of the City Manager | E4: 1.2 - Office of the City Manager
A5: =B35&" - "&C35 -> Vote 4 - Corporate Services | B5: 1.3 | C5: Political Support | D5: 1,3 - Political Support | E5: 1.3 - Political Support
A6: =B46&" - "&C46 -> Vote 5 - Infrastructure Services | B6: 1.4 | C6: Strategic Planning | D6: 1,4 - Strategic Planning | E6: 1.4 - Strategic Planning
A7: =B57&" - "&C57 -> Vote 6 - Sustainable Development and City Enterprises | B7: 1.5 | C7: [Name of sub-vote] | D7: 1,5 - [Name of sub-vote]
A8: =B68&" - "&C68 -> Vote 7 - [NAME OF VOTE 7] | B8: 1.6 | C8: [Name of sub-vote] | D8: 1,6 - [Name of sub-vote]
A9: =B79&" - "&C79 -> Vote 8 - [NAME OF VOTE 8] | B9: 1.7 | C9: [Name of sub-vote] | D9: 1,7 - [Name of sub-vote]
A10: =B90&" - "&C90 -> Vote 9 - [NAME OF VOTE 9] | B10: 1.8 | C10: [Name of sub-vote] | D10: 1,8 - [Name of sub-vote]
A11: =B101&" - "&C101 -> Vote 10 - [NAME OF VOTE 10] | B11: 1.9 | C11: [Name of sub-vote] | D11: 1,9 - [Name of sub-vote]
A12: =B112&" - "&C112 -> Vote 11 - [NAME OF VOTE 11] | B12: 1.10 | C12: [Name of sub-vote] | D12: 1.10 - [Name of sub-vote]
A13: =B123&" - "&C123 -> Vote 12 - [NAME OF VOTE 12] | B13: Vote 2 | C13: City Finance
A14: =B134&" - "&C134 -> Vote 13 - [NAME OF VOTE 13] | B14: 2.1 | C14: Asset Management | D14: =CONCATENATE(B14, " - ", C14) -> 2,1 - Asset Management | E14: 2.1 - Asset Management
A15: =B145&" - "&C145 -> Vote 14 - [NAME OF VOTE 14] | B15: 2.2 | C15: Budget and Treasury Management | D15: 2,2 - Budget and Treasury Management | E15: 2.2 - Budget and Treasury Management
A16: =B156&" - "&C156 -> Vote 15 - [NAME OF VOTE 15] | B16: 2.3 | C16: Expenditure Management | D16: 2,3 - Expenditure Management | E16: 2.3 - Expenditure Management
B17: 2.4 | C17: Revenue Management | D17: 2,4 - Revenue Management | E17: 2.4 - Revenue Management
B18: 2.5 | C18: Supply Chain Management | D18: 2,5 - Supply Chain Management | E18: 2.5 - Supply Chain Management
B19: 2.6 | C19: [Name of sub-vote] | D19: 2,6 - [Name of sub-vote]
B20: 2.7 | C20: [Name of sub-vote] | D20: 2,7 - [Name of sub-vote]
B21: 2.8 | C21: [Name of sub-vote] | D21: 2,8 - [Name of sub-vote]
B22: 2.9 | C22: [Name of sub-vote] | D22: 2,9 - [Name of sub-vote]
B23: 2.10 | C23: [Name of sub-vote] | D23: 2.10 - [Name of sub-vote]
B24: Vote 3 | C24: Community Services and Social Equity
B25: 3.1 | C25: Area Based Management | D25: =CONCATENATE(B25, " - ", C25) -> 3,1 - Area Based Management | E25: 3.1 - Area Based Management
B26: 3.2 | C26: Public Safety, Emergency Services and Enforcement | D26: 3,2 - Public Safety, Emergency Services and Enforcement | E26: 3.2 - Public Safety, Emergency Services and Enforcement
B27: 3.3 | C27: Recreation and Facilities | D27: 3,3 - Recreation and Facilities | E27: 3.3 - Recreation and Facilities
B28: 3.4 | C28: Waste Management | D28: 3,4 - Waste Management | E28: 3.4 - Waste Management
B29: 3.5 | C29: [Name of sub-vote] | D29: 3,5 - [Name of sub-vote]
B30: 3.6 | C30: [Name of sub-vote] | D30: 3,6 - [Name of sub-vote]
B31: 3.7 | C31: [Name of sub-vote] | D31: 3,7 - [Name of sub-vote]
B32: 3.8 | C32: [Name of sub-vote] | D32: 3,8 - [Name of sub-vote]
B33: 3.9 | C33: [Name of sub-vote] | D33: 3,9 - [Name of sub-vote]
B34: 3.10 | C34: [Name of sub-vote] | D34: 3.10 - [Name of sub-vote]
B35: Vote 4 | C35: Corporate Services
B36: 4.1 | C36: Human Resources Management | D36: =CONCATENATE(B36, " - ", C36) -> 4,1 - Human Resources Management | E36: 4.1 - Human Resources Management
B37: 4.2 | C37: Information Technology | D37: 4,2 - Information Technology | E37: 4.2 - Information Technology
B38: 4.3 | C38: Legal Services | D38: 4,3 - Legal Services | E38: 4.3 - Legal Services
B39: 4.4 | C39: Secretariat and Auxiliary Services | D39: 4,4 - Secretariat and Auxiliary Services | E39: 4.4 - Secretariat and Auxiliary Services
B40: 4.5 | C40: General Manager: Corporate Service | D40: 4,5 - General Manager: Corporate Service | E40: 4.5 - General Manager: Corporate Service
B41: 4.6 | C41: [Name of sub-vote] | D41: 4,6 - [Name of sub-vote]
B42: 4.7 | C42: [Name of sub-vote] | D42: 4,7 - [Name of sub-vote]
B43: 4.8 | C43: [Name of sub-vote] | D43: 4,8 - [Name of sub-vote]
B44: 4.9 | C44: [Name of sub-vote] | D44: 4,9 - [Name of sub-vote]
B45: 4.10 | C45: [Name of sub-vote] | D45: 4.10 - [Name of sub-vote]
B46: Vote 5 | C46: Infrastructure Services
B47: 5.1 | C47: Electricity | D47: =CONCATENATE(B47, " - ", C47) -> 5,1 - Electricity | E47: 5.1 - Electricity
B48: 5.2 | C48: Project Management Office | D48: 5,2 - Project Management Office | E48: 5.2 - Project Management Office
B49: 5.3 | C49: Roads and Transportation | D49: 5,3 - Roads and Transportation | E49: 5.3 - Roads and Transportation
B50: 5.4 | C50: Water and Sanitation | D50: 5,4 - Water and Sanitation | E50: 5.4 - Water and Sanitation
B51: 5.5 | C51: General Manager: Infrastructure | D51: 5,5 - General Manager: Infrastructure | E51: 5.5 - General Manager: Infrastructure
B52: 5.6 | C52: [Name of sub-vote] | D52: 5,6 - [Name of sub-vote]
B53: 5.7 | C53: [Name of sub-vote] | D53: 5,7 - [Name of sub-vote]
B54: 5.8 | C54: [Name of sub-vote] | D54: 5,8 - [Name of sub-vote]
B55: 5.9 | C55: [Name of sub-vote] | D55: 5,9 - [Name of sub-vote]
B56: 5.10 | C56: [Name of sub-vote] | D56: 5.10 - [Name of sub-vote]
B57: Vote 6 | C57: Sustainable Development and City Enterprises
B58: 6.1 | C58: City Entities | D58: =CONCATENATE(B58, " - ", C58) -> 6,1 - City Entities | E58: 6.1 - City Entities
B59: 6.2 | C59: Development Services | D59: 6,2 - Development Services | E59: 6.2 - Development Services
B60: 6.3 | C60: Human Settlement Development | D60: 6,3 - Human Settlement Development | E60: 6.3 - Human Settlement Development
B61: 6.4 | C61: Town Planning | D61: 6,4 - Town Planning | E61: 6.4 - Town Planning
B62: 6.5 | C62: 6.5 - General Manager: Sustainable Development and City Enterprises | D62: 6,5 - 6.5 - General Manager: Sustainable Development and City Enterprises | E62: 6.5 - 6.5 - General Manager: Sustainable Development and City Enterprises
B63: 6.6 | C63: [Name of sub-vote] | D63: 6,6 - [Name of sub-vote]
B64: 6.7 | C64: [Name of sub-vote] | D64: 6,7 - [Name of sub-vote]
B65: 6.8 | C65: [Name of sub-vote] | D65: 6,8 - [Name of sub-vote]
B66: 6.9 | C66: [Name of sub-vote] | D66: 6,9 - [Name of sub-vote]
B67: 6.10 | C67: [Name of sub-vote] | D67: 6.10 - [Name of sub-vote]
B68: Vote 7 | C68: [NAME OF VOTE 7]
B69: 7.1 | C69: [Name of sub-vote] | D69: =CONCATENATE(B69, " - ", C69) -> 7,1 - [Name of sub-vote] | E69: 7.1 - [Name of sub-vote]
B70: 7.2 | C70: [Name of sub-vote] | D70: 7,2 - [Name of sub-vote]
B71: 7.3 | C71: [Name of sub-vote] | D71: 7,3 - [Name of sub-vote]
B72: 7.4 | C72: [Name of sub-vote] | D72: 7,4 - [Name of sub-vote]
B73: 7.5 | C73: [Name of sub-vote] | D73: 7,5 - [Name of sub-vote]
B74: 7.6 | C74: [Name of sub-vote] | D74: 7,6 - [Name of sub-vote]
B75: 7.7 | C75: [Name of sub-vote] | D75: 7,7 - [Name of sub-vote]
B76: 7.8 | C76: [Name of sub-vote] | D76: 7,8 - [Name of sub-vote]
B77: 7.9 | C77: [Name of sub-vote] | D77: 7,9 - [Name of sub-vote]
B78: 7.10 | C78: [Name of sub-vote] | D78: 7.10 - [Name of sub-vote]
B79: Vote 8 | C79: [NAME OF VOTE 8]
B80: 8.1 | C80: [Name of sub-vote] | D80: =CONCATENATE(B80, " - ", C80) -> 8,1 - [Name of sub-vote] | E80: 8.1 - [Name of sub-vote]
B81: 8.2 | C81: [Name of sub-vote] | D81: 8,2 - [Name of sub-vote]
B82: 8.3 | C82: [Name of sub-vote] | D82: 8,3 - [Name of sub-vote]
B83: 8.4 | C83: [Name of sub-vote] | D83: 8,4 - [Name of sub-vote]
B84: 8.5 | C84: [Name of sub-vote] | D84: 8,5 - [Name of sub-vote]
B85: 8.6 | C85: [Name of sub-vote] | D85: 8,6 - [Name of sub-vote]
B86: 8.7 | C86: [Name of sub-vote] | D86: 8,7 - [Name of sub-vote]
B87: 8.8 | C87: [Name of sub-vote] | D87: 8,8 - [Name of sub-vote]
B88: 8.9 | C88: [Name of sub-vote] | D88: 8,9 - [Name of sub-vote]
B89: 8.10 | C89: [Name of sub-vote] | D89: 8.10 - [Name of sub-vote]
B90: Vote 9 | C90: [NAME OF VOTE 9]
B91: 9.1 | C91: [Name of sub-vote] | D91: =CONCATENATE(B91, " - ", C91) -> 9,1 - [Name of sub-vote] | E91: 9.1 - [Name of sub-vote]
B92: 9.2 | C92: [Name of sub-vote] | D92: 9,2 - [Name of sub-vote]
B93: 9.3 | C93: [Name of sub-vote] | D93: 9,3 - [Name of sub-vote]
B94: 9.4 | C94: [Name of sub-vote] | D94: 9,4 - [Name of sub-vote]
B95: 9.5 | C95: [Name of sub-vote] | D95: 9,5 - [Name of sub-vote]
B96: 9.6 | C96: [Name of sub-vote] | D96: 9,6 - [Name of sub-vote]
B97: 9.7 | C97: [Name of sub-vote] | D97: 9,7 - [Name of sub-vote]
B98: 9.8 | C98: [Name of sub-vote] | D98: 9,8 - [Name of sub-vote]
B99: 9.9 | C99: [Name of sub-vote] | D99: 9,9 - [Name of sub-vote]
B100: 9.10 | C100: [Name of sub-vote] | D100: 9.10 - [Name of sub-vote]
B101: Vote 10 | C101: [NAME OF VOTE 10]
B102: 10.1 | C102: [Name of sub-vote] | D102: =CONCATENATE(B102, " - ", C102) -> 10,1 - [Name of sub-vote] | E102: 10.1 - [Name of sub-vote]
B103: 10.2 | C103: [Name of sub-vote] | D103: 10,2 - [Name of sub-vote]
B104: 10.3 | C104: [Name of sub-vote] | D104: 10,3 - [Name of sub-vote]
B105: 10.4 | C105: [Name of sub-vote] | D105: 10,4 - [Name of sub-vote]
B106: 10.5 | C106: [Name of sub-vote] | D106: 10,5 - [Name of sub-vote]
B107: 10.6 | C107: [Name of sub-vote] | D107: 10,6 - [Name of sub-vote]
B108: 10.7 | C108: [Name of sub-vote] | D108: 10,7 - [Name of sub-vote]
B109: 10.8 | C109: [Name of sub-vote] | D109: 10,8 - [Name of sub-vote]
B110: 10.9 | C110: [Name of sub-vote] | D110: 10,9 - [Name of sub-vote]
B111: 10.10 | C111: [Name of sub-vote] | D111: 10.10 - [Name of sub-vote]
B112: Vote 11 | C112: [NAME OF VOTE 11]
B113: 11.1 | C113: [Name of sub-vote] | D113: =CONCATENATE(B113, " - ", C113) -> 11,1 - [Name of sub-vote] | E113: 11.1 - [Name of sub-vote]
B114: 11.2 | C114: [Name of sub-vote] | D114: 11,2 - [Name of sub-vote]
B115: 11.3 | C115: [Name of sub-vote] | D115: 11,3 - [Name of sub-vote]
B116: 11.4 | C116: [Name of sub-vote] | D116: 11,4 - [Name of sub-vote]
B117: 11.5 | C117: [Name of sub-vote] | D117: 11,5 - [Name of sub-vote]
B118: 11.6 | C118: [Name of sub-vote] | D118: 11,6 - [Name of sub-vote]
B119: 11.7 | C119: [Name of sub-vote] | D119: 11,7 - [Name of sub-vote]
B120: 11.8 | C120: [Name of sub-vote] | D120: 11,8 - [Name of sub-vote]
B121: 11.9 | C121: [Name of sub-vote] | D121: 11,9 - [Name of sub-vote]
B122: 11.10 | C122: [Name of sub-vote] | D122: 11.10 - [Name of sub-vote]
B123: Vote 12 | C123: [NAME OF VOTE 12]
B124: 12.1 | C124: [Name of sub-vote] | D124: =CONCATENATE(B124, " - ", C124) -> 12,1 - [Name of sub-vote] | E124: 12.1 - [Name of sub-vote]
B125: 12.2 | C125: [Name of sub-vote] | D125: 12,2 - [Name of sub-vote]
B126: 12.3 | C126: [Name of sub-vote] | D126: 12,3 - [Name of sub-vote]
B127: 12.4 | C127: [Name of sub-vote] | D127: 12,4 - [Name of sub-vote]
B128: 12.5 | C128: [Name of sub-vote] | D128: 12,5 - [Name of sub-vote]
B129: 12.6 | C129: [Name of sub-vote] | D129: 12,6 - [Name of sub-vote]
B130: 12.7 | C130: [Name of sub-vote] | D130: 12,7 - [Name of sub-vote]
B131: 12.8 | C131: [Name of sub-vote] | D131: 12,8 - [Name of sub-vote]
B132: 12.9 | C132: [Name of sub-vote] | D132: 12,9 - [Name of sub-vote]
B133: 12.10 | C133: [Name of sub-vote] | D133: 12.10 - [Name of sub-vote]
B134: Vote 13 | C134: [NAME OF VOTE 13]
B135: 13.1 | C135: [Name of sub-vote] | D135: =CONCATENATE(B135, " - ", C135) -> 13,1 - [Name of sub-vote] | E135: 13.1 - [Name of sub-vote]
B136: 13.2 | C136: [Name of sub-vote] | D136: 13,2 - [Name of sub-vote]
B137: 13.3 | C137: [Name of sub-vote] | D137: 13,3 - [Name of sub-vote]
B138: 13.4 | C138: [Name of sub-vote] | D138: 13,4 - [Name of sub-vote]
B139: 13.5 | C139: [Name of sub-vote] | D139: 13,5 - [Name of sub-vote]
B140: 13.6 | C140: [Name of sub-vote] | D140: 13,6 - [Name of sub-vote]
B141: 13.7 | C141: [Name of sub-vote] | D141: 13,7 - [Name of sub-vote]
B142: 13.8 | C142: [Name of sub-vote] | D142: 13,8 - [Name of sub-vote]
B143: 13.9 | C143: [Name of sub-vote] | D143: 13,9 - [Name of sub-vote]
B144: 13.10 | C144: [Name of sub-vote] | D144: 13.10 - [Name of sub-vote]
B145: Vote 14 | C145: [NAME OF VOTE 14]
B146: 14.1 | C146: [Name of sub-vote] | D146: =CONCATENATE(B146, " - ", C146) -> 14,1 - [Name of sub-vote] | E146: 14.1 - [Name of sub-vote]
B147: 14.2 | C147: [Name of sub-vote] | D147: 14,2 - [Name of sub-vote]
B148: 14.3 | C148: [Name of sub-vote] | D148: 14,3 - [Name of sub-vote]
B149: 14.4 | C149: [Name of sub-vote] | D149: 14,4 - [Name of sub-vote]
B150: 14.5 | C150: [Name of sub-vote] | D150: 14,5 - [Name of sub-vote]
B151: 14.6 | C151: [Name of sub-vote] | D151: 14,6 - [Name of sub-vote]
B152: 14.7 | C152: [Name of sub-vote] | D152: 14,7 - [Name of sub-vote]
B153: 14.8 | C153: [Name of sub-vote] | D153: 14,8 - [Name of sub-vote]
B154: 14.9 | C154: [Name of sub-vote] | D154: 14,9 - [Name of sub-vote]
B155: 14.10 | C155: [Name of sub-vote] | D155: 14.10 - [Name of sub-vote]
B156: Vote 15 | C156: [NAME OF VOTE 15]
B157: 15.1 | C157: [Name of sub-vote] | D157: =CONCATENATE(B157, " - ", C157) -> 15,1 - [Name of sub-vote] | E157: 15.1 - [Name of sub-vote]
B158: 15.2 | C158: [Name of sub-vote] | D158: 15,2 - [Name of sub-vote]
B159: 15.3 | C159: [Name of sub-vote] | D159: 15,3 - [Name of sub-vote]
B160: 15.4 | C160: [Name of sub-vote] | D160: 15,4 - [Name of sub-vote]
B161: 15.5 | C161: [Name of sub-vote] | D161: 15,5 - [Name of sub-vote]
B162: 15.6 | C162: [Name of sub-vote] | D162: 15,6 - [Name of sub-vote]
B163: 15.7 | C163: [Name of sub-vote] | D163: 15,7 - [Name of sub-vote]
B164: 15.8 | C164: [Name of sub-vote] | D164: 15,8 - [Name of sub-vote]
B165: 15.9 | C165: [Name of sub-vote] | D165: 15,9 - [Name of sub-vote]
B166: 15.10 | C166: [Name of sub-vote] | D166: 15.10 - [Name of sub-vote]

Sheet Contacts
A1: =muni&" - "&" Contact Information" -> KZN225 Msunduzi - Contact Information
A3: A. GENERAL INFORMATION
A4: Municipality | B4: =muni -> KZN225 Msunduzi | C4: =IF(B4="Choose name from List","Set name on 'Instructions' sheet", "") -> 
A6: Grade | C6: 1 Grade in terms of the Remuneration of Public Office Bearers Act.
A8: Province | B8: =IF(B4>" ",VLOOKUP(B4,'Lookup and lists'!B29:C307,2, FALSE)," ") -> KZN KWAZULU-NATAL
A10: Web Address
A12: e-mail Address
A14: B. CONTACT INFORMATION
A15: Postal address:
A16: P.O. Box
A17: City / Town
A18: Postal Code
A20: Street address
A21: Building
A22: Street No. & Name
A23: City / Town
A24: Postal Code
A26: General Contacts
A27: Telephone number
A28: Fax number
A30: C. POLITICAL LEADERSHIP
A31: Speaker: | C31: Secretary/PA to the Speaker:
A32: ID Number | C32: ID Number
A33: Title | C33: Title
A34: Name | C34: Name
A35: Telephone number | C35: Telephone number
A36: Cell number | C36: Cell number
A37: Fax number | C37: Fax number
A38: E-mail address | C38: E-mail address
A40: Mayor/Executive Mayor: | C40: Secretary/PA to the Mayor/Executive Mayor:
A41: ID Number | C41: ID Number
A42: Title | C42: Title
A43: Name | C43: Name
A44: Telephone number | C44: Telephone number
A45: Cell number | C45: Cell number
A46: Fax number | C46: Fax number
A47: E-mail address | C47: E-mail address
A49: Deputy Mayor/Executive Mayor: | C49: Secretary/PA to the Deputy Mayor/Executive Mayor:
A50: ID Number | C50: ID Number
A51: Title | C51: Title
A52: Name | C52: Name
A53: Telephone number | C53: Telephone number
A54: Cell number | C54: Cell number
A55: Fax number | C55: Fax number
A56: E-mail address | C56: E-mail address
A58: D. MANAGEMENT LEADERSHIP
A59: Municipal Manager: | C59: Secretary/PA to the Municipal Manager:
A60: ID Number | C60: ID Number
A61: Title | C61: Title
A62: Name | C62: Name
A63: Telephone number | C63: Telephone number
A64: Cell number | C64: Cell number
A65: Fax number | C65: Fax number
A66: E-mail address | C66: E-mail address
A68: Chief Financial Officer | C68: Secretary/PA to the Chief Financial Officer
A69: ID Number | C69: ID Number
A70: Title | C70: Title
A71: Name | B71: Nelisiwe Ngcobo | C71: Name
A72: Telephone number | C72: Telephone number
A73: Cell number | C73: Cell number
A74: Fax number | C74: Fax number
A75: E-mail address | C75: E-mail address
A77: Official responsible for submitting financial information | C77: Official responsible for submitting financial information
A78: ID Number | C78: ID Number
A79: Title | C79: Title
A80: Name | C80: Name
A81: Telephone number | C81: Telephone number
A82: Cell number | C82: Cell number
A83: Fax number | C83: Fax number
A84: E-mail address | C84: E-mail address
A85: Official responsible for submitting financial information | C85: Official responsible for submitting financial information
A86: ID Number | C86: ID Number
A87: Title | C87: Title
A88: Name | C88: Name
A89: Telephone number | C89: Telephone number
A90: Cell number | C90: Cell number
A91: Fax number | C91: Fax number
A92: E-mail address | C92: E-mail address
A93: Official responsible for submitting financial information | C93: Official responsible for submitting financial information
A94: ID Number | C94: ID Number
A95: Title | C95: Title
A96: Name | C96: Name
A97: Telephone number | C97: Telephone number
A98: Cell number | C98: Cell number
A99: Fax number | C99: Fax number
A100: E-mail address | C100: E-mail address
A101: Official responsible for submitting financial information | C101: Official responsible for submitting financial information
A102: ID Number | C102: ID Number
A103: Title | C103: Title
A104: Name | C104: Name
A105: Telephone number | C105: Telephone number
A106: Cell number | C106: Cell number
A107: Fax number | C107: Fax number
A108: E-mail address | C108: E-mail address
A109: Official responsible for submitting financial information | C109: Official responsible for submitting financial information
A110: ID Number | C110: ID Number
A111: Title | C111: Title
A112: Name | C112: Name
A113: Telephone number | C113: Telephone number
A114: Cell number | C114: Cell number
A115: Fax number | C115: Fax number
A116: E-mail address | C116: E-mail address
A117: Official responsible for submitting financial information | C117: Official responsible for submitting financial information
A118: ID Number | C118: ID Number
A119: Title | C119: Title
A120: Name | C120: Name
A121: Telephone number | C121: Telephone number
A122: Cell number | C122: Cell number
A123: Fax number | C123: Fax number
A124: E-mail address | C124: E-mail address
A125: Official responsible for submitting financial information | C125: Official responsible for submitting financial information
A126: ID Number | C126: ID Number
A127: Title | C127: Title
A128: Name | C128: Name
A129: Telephone number | C129: Telephone number
A130: Cell number | C130: Cell number
A131: Fax number | C131: Fax number
A132: E-mail address | C132: E-mail address
A133: Official responsible for submitting financial information
A134: ID Number
A135: Title
A136: Name
A137: Telephone number
A138: Cell number
A139: Fax number
A140: E-mail address

Sheet A1-Sum
A1: =muni&" - "&Approve1 -> KZN225 Msunduzi - Table A1 Budget Summary
A2: =desc -> Description | B2: =head1b -> 2016/17 | C2: =head1A -> 2017/18 | D2: =Head1 -> 2018/19 | E2: =Head2 -> Current Year 2019/20 | I2: =Head3 -> 2020/21 Medium Term Revenue & Expenditure Framework
A3: R thousands | B3: =Head5 -> Audited Outcome | C3: =Head5 -> Audited Outcome | D3: =Head5 -> Audited Outcome | E3: =Head6 -> Original Budget | F3: =Head7 -> Adjusted Budget | G3: =Head8 -> Full Year Forecast | H3: =Head5b -> Pre-audit outcome | I3: =Head9 -> Budget Year 2020/21 | J3: =Head10 -> Budget Year +1 2021/22 | K3: =Head11 -> Budget Year +2 2022/23
A4: Financial Performance
A5: Property rates | B5: ='A4-FinPerf RE'!C5 -> 793014215 | C5: ='A4-FinPerf RE'!D5 -> 864164006 | D5: ='A4-FinPerf RE'!E5 -> 930980085 | E5: ='A4-FinPerf RE'!F5 -> 1200771538 | F5: ='A4-FinPerf RE'!G5 -> 1200771538 | G5: ='A4-FinPerf RE'!H5 -> 1200771538 | H5: ='A4-FinPerf RE'!I5 -> 1200771538 | I5: ='A4-FinPerf RE'!J5 -> 1272817831 | J5: ='A4-FinPerf RE'!K5 -> 1349186901 | K5: ='A4-FinPerf RE'!L5 -> 1430138115
A6: Service charges | B6: =SUM('A4-FinPerf RE'!C6:C9) -> 2537578909 | C6: =SUM('A4-FinPerf RE'!D6:D9) -> 2710791730 | D6: =SUM('A4-FinPerf RE'!E6:E9) -> 2942608164 | E6: =SUM('A4-FinPerf RE'!F6:F9) -> 3337748765 | F6: =SUM('A4-FinPerf RE'!G6:G9) -> 3337748765 | G6: =SUM('A4-FinPerf RE'!H6:H9) -> 3337748765 | H6: =SUM('A4-FinPerf RE'!I6:I9) -> 3337748765 | I6: =SUM('A4-FinPerf RE'!J6:J9) -> 3608630841 | J6: =SUM('A4-FinPerf RE'!K6:K9) -> 3825917357 | K6: =SUM('A4-FinPerf RE'!L6:L9) -> 4158844034
A7: Investment revenue | B7: ='A4-FinPerf RE'!C12 -> 53631477 | C7: ='A4-FinPerf RE'!D12 -> 39046190 | D7: ='A4-FinPerf RE'!E12 -> 20378755 | E7: ='A4-FinPerf RE'!F12 -> 14702275.05 | F7: ='A4-FinPerf RE'!G12 -> 14603275.05 | G7: ='A4-FinPerf RE'!H12 -> 14603275.05 | H7: ='A4-FinPerf RE'!I12 -> 14603275.05 | I7: ='A4-FinPerf RE'!J12 -> 15479471.55 | J7: ='A4-FinPerf RE'!K12 -> 16408239.85 | K7: ='A4-FinPerf RE'!L12 -> 17392734.24
A8: Transfers recognised - operational | B8: ='A4-FinPerf RE'!C18 -> 949742135 | C8: ='A4-FinPerf RE'!D18 -> 943374430 | D8: ='A4-FinPerf RE'!E18 -> 1016641629 | E8: ='A4-FinPerf RE'!F18 -> 672022829 | F8: ='A4-FinPerf RE'!G18 -> 681050778 | G8: ='A4-FinPerf RE'!H18 -> 681050778 | H8: ='A4-FinPerf RE'!I18 -> 681050778 | I8: ='A4-FinPerf RE'!J18 -> 681364901 | J8: ='A4-FinPerf RE'!K18 -> 735201115.5 | K8: ='A4-FinPerf RE'!L18 -> 793102908.6
A9: Other own revenue | B9: ='A4-FinPerf RE'!C11+'A4-FinPerf RE'!C13+'A4-FinPerf RE'!C14+'A4-FinPerf RE'!C15+'A4-FinPerf RE'!C16+'A4-FinPerf RE'!C17+'A4-FinPerf RE'!C19+'A4-FinPerf RE'!C20 -> 265372037 | C9: ='A4-FinPerf RE'!D11+'A4-FinPerf RE'!D13+'A4-FinPerf RE'!D14+'A4-FinPerf RE'!D15+'A4-FinPerf RE'!D16+'A4-FinPerf RE'!D17+'A4-FinPerf RE'!D19+'A4-FinPerf RE'!D20 -> 316068421 | D9: ='A4-FinPerf RE'!E11+'A4-FinPerf RE'!E13+'A4-FinPerf RE'!E14+'A4-FinPerf RE'!E15+'A4-FinPerf RE'!E16+'A4-FinPerf RE'!E17+'A4-FinPerf RE'!E19+'A4-FinPerf RE'!E20 -> 318675571 | E9: ='A4-FinPerf RE'!F11+'A4-FinPerf RE'!F13+'A4-FinPerf RE'!F14+'A4-FinPerf RE'!F15+'A4-FinPerf RE'!F16+'A4-FinPerf RE'!F17+'A4-FinPerf RE'!F19+'A4-FinPerf RE'!F20 -> 379422713.4 | F9: ='A4-FinPerf RE'!G11+'A4-FinPerf RE'!G13+'A4-FinPerf RE'!G14+'A4-FinPerf RE'!G15+'A4-FinPerf RE'!G16+'A4-FinPerf RE'!G17+'A4-FinPerf RE'!G19+'A4-FinPerf RE'!G20 -> 379422713.4 | G9: ='A4-FinPerf RE'!H11+'A4-FinPerf RE'!H13+'A4-FinPerf RE'!H14+'A4-FinPerf RE'!H15+'A4-FinPerf RE'!H16+'A4-FinPerf RE'!H17+'A4-FinPerf RE'!H19+'A4-FinPerf RE'!H20 -> 379422713.4 | H9: ='A4-FinPerf RE'!I11+'A4-FinPerf RE'!I13+'A4-FinPerf RE'!I14+'A4-FinPerf RE'!I15+'A4-FinPerf RE'!I16+'A4-FinPerf RE'!I17+'A4-FinPerf RE'!I19+'A4-FinPerf RE'!I20 -> 379422713.4 | I9: ='A4-FinPerf RE'!J11+'A4-FinPerf RE'!J13+'A4-FinPerf RE'!J14+'A4-FinPerf RE'!J15+'A4-FinPerf RE'!J16+'A4-FinPerf RE'!J17+'A4-FinPerf RE'!J19+'A4-FinPerf RE'!J20 -> 402188076.2 | J9: ='A4-FinPerf RE'!K11+'A4-FinPerf RE'!K13+'A4-FinPerf RE'!K14+'A4-FinPerf RE'!K15+'A4-FinPerf RE'!K16+'A4-FinPerf RE'!K17+'A4-FinPerf RE'!K19+'A4-FinPerf RE'!K20 -> 426319360.7 | K9: ='A4-FinPerf RE'!L11+'A4-FinPerf RE'!L13+'A4-FinPerf RE'!L14+'A4-FinPerf RE'!L15+'A4-FinPerf RE'!L16+'A4-FinPerf RE'!L17+'A4-FinPerf RE'!L19+'A4-FinPerf RE'!L20 -> 451898522.4
A10: ='A4-FinPerf RE'!A21 -> Total Revenue (excluding capital transfers and contributions) | B10: =SUM(B5:B9) -> 4599338773 | C10: 4873444777 | D10: 5229284204 | E10: 5604668121 | F10: 5613597070 | G10: 5613597070 | H10: 5613597070 | I10: 5980481120 | J10: 6353032973 | K10: 6851376314
A11: Employee costs | B11: ='A4-FinPerf RE'!C24 -> 990111002.1 | C11: ='A4-FinPerf RE'!D24 -> 1120867730 | D11: ='A4-FinPerf RE'!E24 -> 1268313732 | E11: ='A4-FinPerf RE'!F24 -> 1455869443 | F11: ='A4-FinPerf RE'!G24 -> 1445367850 | G11: ='A4-FinPerf RE'!H24 -> 1445367850 | H11: ='A4-FinPerf RE'!I24 -> 1445367850 | I11: ='A4-FinPerf RE'!J24 -> 1538851434 | J11: ='A4-FinPerf RE'!K24 -> 1646571034 | K11: ='A4-FinPerf RE'!L24 -> 1761831006
A12: Remuneration of councillors | B12: ='A4-FinPerf RE'!C25 -> 43574297 | C12: ='A4-FinPerf RE'!D25 -> 45020093 | D12: ='A4-FinPerf RE'!E25 -> 44130681 | E12: ='A4-FinPerf RE'!F25 -> 51487908.94 | F12: ='A4-FinPerf RE'!G25 -> 51487908.94 | G12: ='A4-FinPerf RE'!H25 -> 51487908.94 | H12: ='A4-FinPerf RE'!I25 -> 51487908.94 | I12: ='A4-FinPerf RE'!J25 -> 54062304.39 | J12: ='A4-FinPerf RE'!K25 -> 56765419.61 | K12: ='A4-FinPerf RE'!L25 -> 59603690.59
A13: Depreciation & asset impairment | B13: ='A4-FinPerf RE'!C27 -> 605422092.3 | C13: ='A4-FinPerf RE'!D27 -> 470370498.3 | D13: ='A4-FinPerf RE'!E27 -> 467691505 | E13: ='A4-FinPerf RE'!F27 -> 492025080.3 | F13: ='A4-FinPerf RE'!G27 -> 491076080.3 | G13: ='A4-FinPerf RE'!H27 -> 491076080.3 | H13: ='A4-FinPerf RE'!I27 -> 491076080.3 | I13: ='A4-FinPerf RE'!J27 -> 520540645.1 | J13: ='A4-FinPerf RE'!K27 -> 551773083.8 | K13: ='A4-FinPerf RE'!L27 -> 584879468.8
A14: Finance charges | B14: ='A4-FinPerf RE'!C28 -> 114567960 | C14: ='A4-FinPerf RE'!D28 -> 103988457 | D14: ='A4-FinPerf RE'!E28 -> 85530407 | E14: ='A4-FinPerf RE'!F28 -> 41660099 | F14: ='A4-FinPerf RE'!G28 -> 41660099 | G14: ='A4-FinPerf RE'!H28 -> 41660099 | H14: ='A4-FinPerf RE'!I28 -> 41660099 | I14: ='A4-FinPerf RE'!J28 -> 39577094.05 | J14: ='A4-FinPerf RE'!K28 -> 37598239.35 | K14: ='A4-FinPerf RE'!L28 -> 35718327.38
A15: Materials and bulk purchases | B15: ='A4-FinPerf RE'!C29+'A4-FinPerf RE'!C30 -> 1912307792 | C15: ='A4-FinPerf RE'!D29+'A4-FinPerf RE'!D30 -> 2026286166 | D15: ='A4-FinPerf RE'!E29+'A4-FinPerf RE'!E30 -> 2066496538 | E15: ='A4-FinPerf RE'!F29+'A4-FinPerf RE'!F30 -> 2338356310 | F15: ='A4-FinPerf RE'!G29+'A4-FinPerf RE'!G30 -> 2325032480 | G15: ='A4-FinPerf RE'!H29+'A4-FinPerf RE'!H30 -> 2325032480 | H15: ='A4-FinPerf RE'!I29+'A4-FinPerf RE'!I30 -> 2325032480 | I15: ='A4-FinPerf RE'!J29+'A4-FinPerf RE'!J30 -> 2539385044 | J15: ='A4-FinPerf RE'!K29+'A4-FinPerf RE'!K30 -> 2693496024 | K15: ='A4-FinPerf RE'!L29+'A4-FinPerf RE'!L30 -> 2932289300
A16: Transfers and grants | B16: ='A4-FinPerf RE'!C32 -> 36447088.95 | C16: ='A4-FinPerf RE'!D32 -> 25890640.17 | D16: ='A4-FinPerf RE'!E32 -> 42492244 | E16: ='A4-FinPerf RE'!F32 -> 46379439.52 | F16: ='A4-FinPerf RE'!G32 -> 58899891.34 | G16: ='A4-FinPerf RE'!H32 -> 58899891.34 | H16: ='A4-FinPerf RE'!I32 -> 58899891.34 | I16: ='A4-FinPerf RE'!J32 -> 48494679.46 | J16: ='A4-FinPerf RE'!K32 -> 49960137.47 | K16: ='A4-FinPerf RE'!L32 -> 52848745.72
A17: Other expenditure | B17: ='A4-FinPerf RE'!C26+'A4-FinPerf RE'!C31+'A4-FinPerf RE'!C33+'A4-FinPerf RE'!C34 -> 906515288.9 | C17: ='A4-FinPerf RE'!D26+'A4-FinPerf RE'!D31+'A4-FinPerf RE'!D33+'A4-FinPerf RE'!D34 -> 1816990448 | D17: ='A4-FinPerf RE'!E26+'A4-FinPerf RE'!E31+'A4-FinPerf RE'!E33+'A4-FinPerf RE'!E34 -> 1700629573 | E17: ='A4-FinPerf RE'!F26+'A4-FinPerf RE'!F31+'A4-FinPerf RE'!F33+'A4-FinPerf RE'!F34 -> 902728708.9 | F17: ='A4-FinPerf RE'!G26+'A4-FinPerf RE'!G31+'A4-FinPerf RE'!G33+'A4-FinPerf RE'!G34 -> 722496001.1 | G17: ='A4-FinPerf RE'!H26+'A4-FinPerf RE'!H31+'A4-FinPerf RE'!H33+'A4-FinPerf RE'!H34 -> 722496001.1 | H17: ='A4-FinPerf RE'!I26+'A4-FinPerf RE'!I31+'A4-FinPerf RE'!I33+'A4-FinPerf RE'!I34 -> 722496001.1 | I17: ='A4-FinPerf RE'!J26+'A4-FinPerf RE'!J31+'A4-FinPerf RE'!J33+'A4-FinPerf RE'!J34 -> 897127346.9 | J17: ='A4-FinPerf RE'!K26+'A4-FinPerf RE'!K31+'A4-FinPerf RE'!K33+'A4-FinPerf RE'!K34 -> 939087562.3 | K17: ='A4-FinPerf RE'!L26+'A4-FinPerf RE'!L31+'A4-FinPerf RE'!L33+'A4-FinPerf RE'!L34 -> 1002651957
A18: ='A4-FinPerf RE'!A35 -> Total Expenditure | B18: =SUM(B11:B17) -> 4608945522 | C18: =SUM(C11:C17) -> 5609414033 | D18: 5675284680 | E18: 5328506989 | F18: 5136020311 | G18: 5136020311 | H18: 5136020311 | I18: 5638038548 | J18: 5975251501 | K18: 6429822496
A19: ='A4-FinPerf RE'!A37 -> Surplus/(Deficit) | B19: =B10-B18 -> -9606748.54 | C19: -735969256.2 | D19: -446000476 | E19: 276161132.2 | F19: 477576759.1 | G19: 477576759.1 | H19: 477576759.1 | I19: 342442572.6 | J19: 377781472.7 | K19: 421553818.4
A20: ='A4-FinPerf RE'!A38 -> Transfers and subsidies - capital (monetary allocations) (National / Provincial and District) | B20: ='A4-FinPerf RE'!C38 -> -9606748.54 | C20: ='A4-FinPerf RE'!D38 -> 146624820.5 | D20: ='A4-FinPerf RE'!E38 -> 460142625 | E20: ='A4-FinPerf RE'!F38 -> 439342400 | F20: ='A4-FinPerf RE'!G38 -> 639959713 | G20: ='A4-FinPerf RE'!H38 -> 639959713 | H20: ='A4-FinPerf RE'!I38 -> 639959713 | I20: ='A4-FinPerf RE'!J38 -> 363588753 | J20: ='A4-FinPerf RE'!K38 -> 407180777.7 | K20: ='A4-FinPerf RE'!L38 -> 401100303.8
A21: ='A4-FinPerf RE'!A39&" & "&'A4-FinPerf RE'!A40 -> Transfers and subsidies - capital (monetary allocations) (National / Provincial Departmental Agencies, Households, Non-profit Institutions, Private Enterprises, Public Corporatons, Higher Educational Institutions) & Transfers and subsidies - capital (in-kind - all) | B21: ='A4-FinPerf RE'!C39+'A4-FinPerf RE'!C40 -> 0 | C21: ='A4-FinPerf RE'!D39+'A4-FinPerf RE'!D40 -> 0 | D21: ='A4-FinPerf RE'!E39+'A4-FinPerf RE'!E40 -> 0 | E21: ='A4-FinPerf RE'!F39+'A4-FinPerf RE'!F40 -> 0 | F21: ='A4-FinPerf RE'!G39+'A4-FinPerf RE'!G40 -> 0 | G21: ='A4-FinPerf RE'!H39+'A4-FinPerf RE'!H40 -> 0 | H21: ='A4-FinPerf RE'!I39+'A4-FinPerf RE'!I40 -> 0 | I21: ='A4-FinPerf RE'!J39+'A4-FinPerf RE'!J40 -> 0 | J21: ='A4-FinPerf RE'!K39+'A4-FinPerf RE'!K40 -> 0 | K21: ='A4-FinPerf RE'!L39+'A4-FinPerf RE'!L40 -> 0
A22: ='A4-FinPerf RE'!A41 -> Surplus/(Deficit) after capital transfers & contributions | B22: =B19+SUM(B20:B21) -> -19213497.08 | C22: =C19+SUM(C20:C21) -> -589344435.8 | D22: 14142149.03 | E22: 715503532.2 | F22: 1117536472 | G22: 1117536472 | H22: 1117536472 | I22: 706031325.6 | J22: 784962250.4 | K22: 822654122.2
A23: ='A4-FinPerf RE'!A46 -> Share of surplus/ (deficit) of associate | B23: ='A4-FinPerf RE'!C46 -> 0 | C23: ='A4-FinPerf RE'!D46 -> 0 | D23: ='A4-FinPerf RE'!E46 -> 0 | E23: ='A4-FinPerf RE'!F46 -> 0 | F23: ='A4-FinPerf RE'!G46 -> 0 | G23: ='A4-FinPerf RE'!H46 -> 0 | H23: ='A4-FinPerf RE'!I46 -> 0 | I23: ='A4-FinPerf RE'!J46 -> 0 | J23: ='A4-FinPerf RE'!K46 -> 0 | K23: ='A4-FinPerf RE'!L46 -> 0
A24: ='A4-FinPerf RE'!A47 -> Surplus/(Deficit) for the year | B24: =B22+B23 -> -19213497.08 | C24: =C22+C23 -> -589344435.8 | D24: 14142149.03 | E24: 715503532.2 | F24: 1117536472 | G24: 1117536472 | H24: 1117536472 | I24: 706031325.6 | J24: 784962250.4 | K24: 822654122.2
A26: Capital expenditure & funds sources
A27: Capital expenditure | B27: ='A5-Capex'!C63 -> 648113767 | C27: ='A5-Capex'!D63 -> 594892443.5 | D27: ='A5-Capex'!E63 -> 613486541 | E27: ='A5-Capex'!F63 -> 555371301.4 | F27: ='A5-Capex'!G63 -> 700730214.4 | G27: ='A5-Capex'!H63 -> 700730214.4 | H27: ='A5-Capex'!I63 -> 700730214.4 | I27: ='A5-Capex'!J63 -> 417372993 | J27: ='A5-Capex'!K63 -> 467876641.7 | K27: ='A5-Capex'!L63 -> 464805653.8
A28: Transfers recognised - capital | B28: ='A5-Capex'!C70 -> 401255418.1 | C28: ='A5-Capex'!D70 -> 363745921.2 | D28: ='A5-Capex'!E70 -> 466029304 | E28: ='A5-Capex'!F70 -> 439342400 | F28: ='A5-Capex'!G70 -> 639959713 | G28: ='A5-Capex'!H70 -> 639959713 | H28: ='A5-Capex'!I70 -> 639959713 | I28: ='A5-Capex'!J70 -> 363588753 | J28: ='A5-Capex'!K70 -> 407180777.7 | K28: ='A5-Capex'!L70 -> 401100303.8
A30: ='A5-Capex'!A72 -> Borrowing | B30: ='A5-Capex'!C72 -> 40245430.79 | C30: ='A5-Capex'!D72 -> 88896142.76 | D30: ='A5-Capex'!E72 -> 47052852 | E30: ='A5-Capex'!F72 -> 5631044 | F30: ='A5-Capex'!G72 -> 5631044 | G30: ='A5-Capex'!H72 -> 5631044 | H30: ='A5-Capex'!I72 -> 5631044 | I30: ='A5-Capex'!J72 -> 0 | J30: ='A5-Capex'!K72 -> 0 | K30: ='A5-Capex'!L72 -> 0
A31: ='A5-Capex'!A73 -> Internally generated funds | B31: ='A5-Capex'!C73 -> 206612918.1 | C31: ='A5-Capex'!D73 -> 142250379.5 | D31: ='A5-Capex'!E73 -> 100404385 | E31: ='A5-Capex'!F73 -> 110397857.4 | F31: ='A5-Capex'!G73 -> 55139457.4 | G31: ='A5-Capex'!H73 -> 55139457.4 | H31: ='A5-Capex'!I73 -> 55139457.4 | I31: ='A5-Capex'!J73 -> 53784240 | J31: ='A5-Capex'!K73 -> 60695864 | K31: ='A5-Capex'!L73 -> 63705350
A32: Total sources of capital funds | B32: =+B28+B30+B31 -> 648113767 | C32: =+C28+C30+C31 -> 594892443.5 | D32: 613486541 | E32: 555371301.4 | F32: 700730214.4 | G32: 700730214.4 | H32: 700730214.4 | I32: 417372993 | J32: 467876641.7 | K32: 464805653.8
A34: Financial position
A35: ='A6-FinPos'!A12 -> Total current assets | B35: ='A6-FinPos'!C12 -> 1867415718 | C35: ='A6-FinPos'!D12 -> 2259302038 | D35: ='A6-FinPos'!E12 -> 1112296563 | E35: ='A6-FinPos'!F12 -> 1437363761 | F35: ='A6-FinPos'!G12 -> 1508845165 | G35: ='A6-FinPos'!H12 -> 1508845165 | H35: ='A6-FinPos'!I12 -> 1147726157 | I35: ='A6-FinPos'!J12 -> 1842463212 | J35: ='A6-FinPos'!K12 -> 1902454288 | K35: ='A6-FinPos'!L12 -> 2068275054
A36: ='A6-FinPos'!A24 -> Total non current assets | B36: ='A6-FinPos'!C24 -> 8112404783 | C36: ='A6-FinPos'!D24 -> 8072771753 | D36: ='A6-FinPos'!E24 -> 8119855157 | E36: ='A6-FinPos'!F24 -> 8039624767 | F36: ='A6-FinPos'!G24 -> 7763435058 | G36: ='A6-FinPos'!H24 -> 7763435058 | H36: ='A6-FinPos'!I24 -> 7763435058 | I36: ='A6-FinPos'!J24 -> 7779715081 | J36: ='A6-FinPos'!K24 -> 7736399000 | K36: ='A6-FinPos'!L24 -> 7656039871
A37: ='A6-FinPos'!A34 -> Total current liabilities | B37: ='A6-FinPos'!C34 -> 1133029893 | C37: ='A6-FinPos'!D34 -> 1503868226 | D37: ='A6-FinPos'!E34 -> 1472880073 | E37: ='A6-FinPos'!F34 -> 1320730518 | F37: ='A6-FinPos'!G34 -> 1295044325 | G37: ='A6-FinPos'!H34 -> 1295044325 | H37: ='A6-FinPos'!I34 -> 1295044325 | I37: ='A6-FinPos'!J34 -> 1338000399 | J37: ='A6-FinPos'!K34 -> 1357962039 | K37: ='A6-FinPos'!L34 -> 1378601132
A38: ='A6-FinPos'!A39 -> Total non current liabilities | B38: ='A6-FinPos'!C39 -> 1268707696 | C38: ='A6-FinPos'!D39 -> 1253157710 | D38: ='A6-FinPos'!E39 -> 366291537 | E38: ='A6-FinPos'!F39 -> 1202464024 | F38: ='A6-FinPos'!G39 -> 1182802373 | G38: ='A6-FinPos'!H39 -> 1182802373 | H38: ='A6-FinPos'!I39 -> 1182802373 | I38: ='A6-FinPos'!J39 -> 1018849441 | J38: ='A6-FinPos'!K39 -> 1026925423 | K38: ='A6-FinPos'!L39 -> 1037548528
A39: Community wealth/Equity | B39: ='A6-FinPos'!C48 -> 7666303151 | C39: ='A6-FinPos'!D48 -> 6962117886 | D39: ='A6-FinPos'!E48 -> 6768878453 | E39: ='A6-FinPos'!F48 -> 6953793987 | F39: ='A6-FinPos'!G48 -> 6794433525 | G39: ='A6-FinPos'!H48 -> 6794433525 | H39: ='A6-FinPos'!I48 -> 6433314517 | I39: ='A6-FinPos'!J48 -> 7265328453 | J39: ='A6-FinPos'!K48 -> 7753965826 | K39: ='A6-FinPos'!L48 -> 8208165264
A41: Cash flows
A42: Net cash from (used) operating | B42: ='A7-CFlow'!C17 -> 350310479 | C42: ='A7-CFlow'!D17 -> 574768380 | D42: ='A7-CFlow'!E17 -> 369216649 | E42: ='A7-CFlow'!F17 -> 645280409.5 | F42: ='A7-CFlow'!G17 -> 674690540.4 | G42: ='A7-CFlow'!H17 -> 674690540.4 | H42: ='A7-CFlow'!I17 -> 674690540.4 | I42: ='A7-CFlow'!J17 -> 573192528.9 | J42: ='A7-CFlow'!K17 -> 628137826.1 | K42: ='A7-CFlow'!L17 -> 640907610.6
A43: Net cash from (used) investing | B43: ='A7-CFlow'!C27 -> -629172079 | C43: ='A7-CFlow'!D27 -> -676624905 | D43: ='A7-CFlow'!E27 -> -480422623 | E43: ='A7-CFlow'!F27 -> -527602753.1 | F43: ='A7-CFlow'!G27 -> -595676035 | G43: ='A7-CFlow'!H27 -> -595676035 | H43: ='A7-CFlow'!I27 -> -595676035 | I43: ='A7-CFlow'!J27 -> -413588753 | J43: ='A7-CFlow'!K27 -> -465580777.7 | K43: ='A7-CFlow'!L27 -> -459500303.8
A44: Net cash from (used) financing | B44: ='A7-CFlow'!C36 -> -15995355 | C44: ='A7-CFlow'!D36 -> -61681966 | D44: ='A7-CFlow'!E36 -> -94966367 | E44: ='A7-CFlow'!F36 -> -79056107 | F44: ='A7-CFlow'!G36 -> -83374955.78 | G44: ='A7-CFlow'!H36 -> -83374955.78 | H44: ='A7-CFlow'!I36 -> -83374955.78 | I44: ='A7-CFlow'!J36 -> -77018522.24 | J44: ='A7-CFlow'!K36 -> -73013772.68 | K44: ='A7-CFlow'!L36 -> -69207148.14
A45: =LEFT('A7-CFlow'!A40,37) -> Cash/cash equivalents at the year end | B45: ='A7-CFlow'!C40 -> 674766998 | C45: ='A7-CFlow'!D40 -> 511228506 | D45: ='A7-CFlow'!E40 -> 305056165 | E45: ='A7-CFlow'!F40 -> 499740557.1 | F45: ='A7-CFlow'!G40 -> 461119007.7 | G45: ='A7-CFlow'!H40 -> 461119007.7 | H45: ='A7-CFlow'!I40 -> 461119007.7 | I45: ='A7-CFlow'!J40 -> 478121152.3 | J45: ='A7-CFlow'!K40 -> 567664428 | K45: ='A7-CFlow'!L40 -> 679864586.7
A47: Cash backing/surplus reconciliation
A48: ='A8-ResRecon'!A4 -> Cash and investments available | B48: ='A8-ResRecon'!C8 -> 909778700 | C48: ='A8-ResRecon'!D8 -> 747007570 | D48: ='A8-ResRecon'!E8 -> 593404689 | E48: ='A8-ResRecon'!F8 -> 499740557.1 | F48: ='A8-ResRecon'!G8 -> 461119007.3 | G48: ='A8-ResRecon'!H8 -> 461119007.3 | H48: ='A8-ResRecon'!I8 -> 100000000 | I48: ='A8-ResRecon'!J8 -> 478121152.3 | J48: ='A8-ResRecon'!K8 -> 567664428 | K48: ='A8-ResRecon'!L8 -> 679864586.7
A49: ='A8-ResRecon'!A10 -> Application of cash and investments | B49: ='A8-ResRecon'!C18 -> -83798261 | C49: ='A8-ResRecon'!D18 -> -47329523 | D49: ='A8-ResRecon'!E18 -> 696755698 | E49: ='A8-ResRecon'!F18 -> 305649751.1 | F49: ='A8-ResRecon'!G18 -> 585356366 | G49: ='A8-ResRecon'!H18 -> 585356366 | H49: ='A8-ResRecon'!I18 -> 585356366 | I49: ='A8-ResRecon'!J18 -> 94031649.16 | J49: ='A8-ResRecon'!K18 -> 146070062.1 | K49: ='A8-ResRecon'!L18 -> 130214303.4
A50: Balance - surplus (shortfall) | B50: =B48-B49 -> 993576961 | C50: =C48-C49 -> 794337093 | D50: -103351009 | E50: 194090806 | F50: -124237358.7 | G50: -124237358.7 | H50: -485356366 | I50: 384089503.1 | J50: 421594365.8 | K50: 549650283.3
A52: Asset management
A53: Asset register summary (WDV) | B53: ='A9-Asset'!C165 -> 7170057388 | C53: ='A9-Asset'!D165 -> 8003466549 | D53: ='A9-Asset'!E165 -> 0 | E53: ='A9-Asset'!F165 -> 8299932731 | F53: ='A9-Asset'!G165 -> 8011347404 | G53: ='A9-Asset'!H165 -> 8011347404 | H53: ='A9-Asset'!H165 -> 8011347404 | I53: ='A9-Asset'!I165 -> 7904395512 | J53: ='A9-Asset'!J165 -> 7818203206 | K53: ='A9-Asset'!K165 -> 7943582371
A54: ='A9-Asset'!A168 -> Depreciation | B54: ='A9-Asset'!C168 -> 555153429.2 | C54: ='A9-Asset'!D168 -> 605422092.3 | D54: ='A9-Asset'!E168 -> 470370498.3 | E54: ='A9-Asset'!F168 -> 468636492.5 | F54: ='A9-Asset'!G168 -> 468636505 | G54: ='A9-Asset'!H168 -> 468636505 | H54: ='A9-Asset'!H168 -> 468636505 | I54: ='A9-Asset'!I168 -> 520540645.1 | J54: ='A9-Asset'!J168 -> 551773083.8 | K54: ='A9-Asset'!K168 -> 584879468.8
A55: Renewal and Upgrading of Existing Assets | B55: ='A9-Asset'!C37+'A9-Asset'!C69 -> 297657017.7 | C55: ='A9-Asset'!D37+'A9-Asset'!D69 -> 515763053.1 | D55: ='A9-Asset'!E37+'A9-Asset'!E69 -> 427389635.9 | E55: ='A9-Asset'!F37+'A9-Asset'!F69 -> 459994808 | F55: ='A9-Asset'!G37+'A9-Asset'!G69 -> 478003823.5 | G55: ='A9-Asset'!H37+'A9-Asset'!H69 -> 478003823.5 | H55: ='A9-Asset'!H37+'A9-Asset'!H69 -> 478003823.5 | I55: ='A9-Asset'!I37+'A9-Asset'!I69 -> 154200000 | J55: ='A9-Asset'!J37+'A9-Asset'!J69 -> 184001547.8 | K55: ='A9-Asset'!K37+'A9-Asset'!K69 -> 196981640.7
A56: Repairs and Maintenance | B56: ='A9-Asset'!C169 -> 162843610 | C56: ='A9-Asset'!D169 -> 171343507.7 | D56: ='A9-Asset'!E169 -> 0 | E56: ='A9-Asset'!F169 -> 212406748.2 | F56: ='A9-Asset'!G169 -> 212406748.2 | G56: ='A9-Asset'!H169 -> 212406748.2 | H56: ='A9-Asset'!H169 -> 212406748.2 | I56: ='A9-Asset'!I169 -> 233303814.3 | J56: ='A9-Asset'!J169 -> 240361720.7 | K56: ='A9-Asset'!K169 -> 251495810.8
A58: Free services
A59: Cost of Free Basic Services provided | B59: ='A10-SerDel'!C60 -> 151511069.2 | C59: ='A10-SerDel'!D60 -> 159928350.8 | D59: ='A10-SerDel'!E60 -> 169960906.6 | E59: ='A10-SerDel'!F60 -> 183952677.4 | F59: ='A10-SerDel'!G60 -> 183952677.4 | G59: ='A10-SerDel'!H60 -> 183952677.4 | H59: ='A10-SerDel'!I60 -> 200842171.6 | I59: ='A10-SerDel'!I60 -> 200842171.6 | J59: ='A10-SerDel'!J60 -> 218219950.7 | K59: ='A10-SerDel'!K60 -> 237243176.9
A60: Revenue cost of free services provided | B60: ='A10-SerDel'!C79 -> 411620109.6 | C60: ='A10-SerDel'!D79 -> 412660651.9 | D60: ='A10-SerDel'!E79 -> 442431264.4 | E60: ='A10-SerDel'!F79 -> 123989276.5 | F60: ='A10-SerDel'!G79 -> 123989276.5 | G60: ='A10-SerDel'!H79 -> 123989276.5 | H60: ='A10-SerDel'!I79 -> 131444221.4 | I60: ='A10-SerDel'!I79 -> 131444221.4 | J60: ='A10-SerDel'!J79 -> 139323184.6 | K60: ='A10-SerDel'!K79 -> 147707569.6
A61: Households below minimum service level
A62: ='A10-SerDel'!A5 -> Water: | B62: ='A10-SerDel'!C14 -> 9136 | C62: ='A10-SerDel'!D14 -> 9318.72 | D62: ='A10-SerDel'!E14 -> 8505.0944 | E62: ='A10-SerDel'!F14 -> 8195.196288 | F62: ='A10-SerDel'!G14 -> 8195.196288 | G62: ='A10-SerDel'!H14 -> 8195.196288 | H62: ='A10-SerDel'!I14 -> 7889.100214 | I62: ='A10-SerDel'!I14 -> 7889.100214 | J62: ='A10-SerDel'!J14 -> 8078.438619 | K62: ='A10-SerDel'!K14 -> 8272.321146
A63: ='A10-SerDel'!A16 -> Sanitation/sewerage: | B63: ='A10-SerDel'!C26 -> 4022 | C63: ='A10-SerDel'!D26 -> 2102.44 | D63: ='A10-SerDel'!E26 -> 1184.4888 | E63: ='A10-SerDel'!F26 -> 868.178576 | F63: ='A10-SerDel'!G26 -> 868.178576 | G63: ='A10-SerDel'!H26 -> 868.178576 | H63: ='A10-SerDel'!I26 -> 353.5421475 | I63: ='A10-SerDel'!I26 -> 353.5421475 | J63: ='A10-SerDel'!J26 -> 362.0271591 | K63: ='A10-SerDel'!K26 -> 370.7158109
A64: ='A10-SerDel'!A28 -> Energy: | B64: ='A10-SerDel'!C35 -> 14237 | C64: ='A10-SerDel'!D35 -> 10000 | D64: ='A10-SerDel'!E35 -> 8000 | E64: ='A10-SerDel'!F35 -> 6000 | F64: ='A10-SerDel'!G35 -> 6000 | G64: ='A10-SerDel'!H35 -> 6000 | H64: ='A10-SerDel'!I35 -> 4000 | I64: ='A10-SerDel'!I35 -> 4000 | J64: ='A10-SerDel'!J35 -> 4096 | K64: ='A10-SerDel'!K35 -> 4194.304
A65: ='A10-SerDel'!A37 -> Refuse: | B65: ='A10-SerDel'!C45 -> 43993 | C65: ='A10-SerDel'!D45 -> 44872.86 | D65: ='A10-SerDel'!E45 -> 40770.3172 | E65: ='A10-SerDel'!F45 -> 36685.72354 | F65: ='A10-SerDel'!G45 -> 36685.72354 | G65: ='A10-SerDel'!H45 -> 36685.72354 | H65: ='A10-SerDel'!I45 -> 28952.43801 | I65: ='A10-SerDel'!I45 -> 28952.43801 | J65: ='A10-SerDel'!J45 -> 29647.29653 | K65: ='A10-SerDel'!K45 -> 30358.83164

Sheet A2-FinPerf SC
A1: =muni&" - "&Approve3 -> KZN225 Msunduzi - Table A2 Budgeted Financial Performance (revenue and expenditure by functional classification)
A2: ="Functional Classification "&desc -> Functional Classification Description | B2: =head27 -> Ref | C2: =head1b -> 2016/17 | D2: =head1A -> 2017/18 | E2: =Head1 -> 2018/19 | F2: =Head2 -> Current Year 2019/20 | I2: =Head3 -> 2020/21 Medium Term Revenue & Expenditure Framework
A3: R thousand | B3: 1 | C3: =Head5 -> Audited Outcome | D3: =Head5 -> Audited Outcome | E3: =Head5 -> Audited Outcome | F3: =Head6 -> Original Budget | G3: =Head7 -> Adjusted Budget | H3: =Head8 -> Full Year Forecast | I3: =Head9 -> Budget Year 2020/21 | J3: =Head10 -> Budget Year +1 2021/22 | K3: =Head11 -> Budget Year +2 2022/23
A4: Revenue - Functional
A5: Governance and administration | C5: =SUM(C6:C8) -> 1177987350 | D5: =SUM(D6:D8) -> 1314579132 | E5: 1884451557 | F5: 1810164797 | G5: 1810065797 | H5: 1810065797 | I5: 1916519555 | J5: 2037033336 | K5: 2176161788
A6: Executive and council | C6: =A2A!C6 -> 3912513.23 | D6: =A2A!D6 -> 8115405.88 | E6: =A2A!E6 -> 3096549 | F6: =A2A!F6 -> 4256966.52 | G6: =A2A!G6 -> 4256966.52 | H6: =A2A!H6 -> 4256966.52 | I6: =A2A!I6 -> 4448384.511 | J6: =A2A!J6 -> 64007.58187 | K6: =A2A!K6 -> 67848.03678
A7: Finance and administration | C7: =A2A!C9 -> 1174074837 | D7: =A2A!D9 -> 1306466515 | E7: =A2A!E9 -> 1881355008 | F7: =A2A!F9 -> 1805907831 | G7: =A2A!G9 -> 1805808831 | H7: =A2A!H9 -> 1805808831 | I7: =A2A!I9 -> 1912071171 | J7: =A2A!J9 -> 2036969328 | K7: =A2A!K9 -> 2176093940
A8: Internal audit | C8: =A2A!C23 -> 0 | D8: =A2A!D23 -> -2788.35 | E8: =A2A!E23 -> 0 | F8: =A2A!F23 -> 0 | G8: =A2A!G23 -> 0 | H8: =A2A!H23 -> 0 | I8: =A2A!I23 -> 0 | J8: =A2A!J23 -> 0 | K8: =A2A!K23 -> 0
A9: Community and public safety | C9: =SUM(C10:C14) -> 321159682.4 | D9: =SUM(D10:D14) -> 114024500 | E9: 189741250 | F9: 109380497.9 | G9: 319025759.9 | H9: 319025759.9 | I9: 224692902.1 | J9: 252144726.5 | K9: 235838183.7
A10: Community and social services | C10: =A2A!C26 -> 35741622.86 | D10: =A2A!D26 -> 28614804.88 | E10: =A2A!E26 -> 29034011 | F10: =A2A!F26 -> 24887236.06 | G10: =A2A!G26 -> 25424378.06 | H10: =A2A!H26 -> 25424378.06 | I10: =A2A!I26 -> 26709570.22 | J10: =A2A!J26 -> 28213644.44 | K10: =A2A!K26 -> 29673453.1
A11: Sport and recreation | C11: =A2A!C48 -> 15520255.66 | D11: =A2A!D48 -> 11184128.98 | E11: =A2A!E48 -> 10053818 | F11: =A2A!F48 -> 10383827.44 | G11: =A2A!G48 -> 10383827.44 | H11: =A2A!H48 -> 10383827.44 | I11: =A2A!I48 -> 11006032.44 | J11: =A2A!J48 -> 11919301.27 | K11: =A2A!K48 -> 12518245.86
A12: Public safety | C12: =A2A!C54 -> 38769740.07 | D12: =A2A!D54 -> 18371823.37 | E12: =A2A!E54 -> 23856429 | F12: =A2A!F54 -> 3606445.42 | G12: =A2A!G54 -> 3606445.42 | H12: =A2A!H54 -> 3606445.42 | I12: =A2A!I54 -> 3822832.145 | J12: =A2A!J54 -> 4052202.074 | K12: =A2A!K54 -> 4295334.198
A13: Housing | C13: =A2A!C63 -> 231128063.8 | D13: =A2A!D63 -> 55853742.81 | E13: =A2A!E63 -> 126796992 | F13: =A2A!F63 -> 70502989 | G13: =A2A!G63 -> 279611109 | H13: =A2A!H63 -> 279611109 | I13: =A2A!I63 -> 183154467.3 | J13: =A2A!J63 -> 207959578.8 | K13: =A2A!K63 -> 189351150.6
A14: Health | C14: =A2A!C66 -> 0 | D14: =A2A!D66 -> 0 | E14: =A2A!E66 -> 0 | F14: =A2A!F66 -> 0 | G14: =A2A!G66 -> 0 | H14: =A2A!H66 -> 0 | I14: =A2A!I66 -> 0 | J14: =A2A!J66 -> 0 | K14: =A2A!K66 -> 0
A15: Economic and environmental services | C15: =SUM(C16:C18) -> 294113343.6 | D15: =SUM(D16:D18) -> 284890218.3 | E15: 316615533 | F15: 316347369.9 | G15: 316347369.9 | H15: 316347369.9 | I15: 107597467.3 | J15: 114429806.5 | K15: 123446332.7
A16: Planning and development | C16: =A2A!C75 -> 15852048.66 | D16: =A2A!D75 -> 57660546.35 | E16: =A2A!E75 -> 58630681 | F16: =A2A!F75 -> 53904495.16 | G16: =A2A!G75 -> 53904495.16 | H16: =A2A!H75 -> 53904495.16 | I16: =A2A!I75 -> 39138764.87 | J16: =A2A!J75 -> 39387090.76 | K16: =A2A!K75 -> 44650316.21
A17: Road transport | C17: =A2A!C86 -> 278242067.6 | D17: =A2A!D86 -> 227108094.1 | E17: =A2A!E86 -> 257948727 | F17: =A2A!F86 -> 262339193 | G17: =A2A!G86 -> 262339193 | H17: =A2A!H86 -> 262339193 | I17: =A2A!I86 -> 68348799.76 | J17: =A2A!J86 -> 74926218.93 | K17: =A2A!K86 -> 78672529.88
A18: Environmental protection | C18: =A2A!C91 -> 19227.4 | D18: =A2A!D91 -> 121577.81 | E18: =A2A!E91 -> 36125 | F18: =A2A!F91 -> 103681.78 | G18: =A2A!G91 -> 103681.78 | H18: =A2A!H91 -> 103681.78 | I18: =A2A!I91 -> 109902.6868 | J18: =A2A!J91 -> 116496.848 | K18: =A2A!K91 -> 123486.6589
A19: Trading services | C19: =SUM(C20:C23) -> 2942647708 | D19: =SUM(D20:D23) -> 3177992119 | E19: 3680521464 | F19: 4057142423 | G19: 4057142423 | H19: 4057142423 | I19: 4365372692 | J19: =SUM(J20:J23) -> 4649616117 | K19: 5034962265
A20: Energy sources | C20: =A2A!C99 -> 1928074519 | D20: =A2A!D99 -> 1972392713 | E20: =A2A!E99 -> 2235472736 | F20: =A2A!F99 -> 2484432540 | G20: =A2A!G99 -> 2484432540 | H20: =A2A!H99 -> 2484432540 | I20: =A2A!I99 -> 2676568201 | J20: =A2A!J99 -> 2817382622 | K20: =A2A!K99 -> 3073071551
A21: Water management | C21: =A2A!C103 -> 711698173.6 | D21: =A2A!D103 -> 855835877.4 | E21: =A2A!E103 -> 1063455446 | F21: =A2A!F103 -> 1165716745 | G21: =A2A!G103 -> 1165716745 | H21: =A2A!H103 -> 1165716745 | I21: =A2A!I103 -> 1255872938 | J21: =A2A!J103 -> 1370363136 | K21: =A2A!K103 -> 1478626771
A22: Waste water management | C22: =A2A!C107 -> 185039031.7 | D22: =A2A!D107 -> 219430789.6 | E22: =A2A!E107 -> 222239922 | F22: =A2A!F107 -> 242422885.9 | G22: =A2A!G107 -> 242422885.9 | H22: =A2A!H107 -> 242422885.9 | I22: =A2A!I107 -> 257492473.5 | J22: =A2A!J107 -> 274730495.9 | K22: =A2A!K107 -> 285339801.9
A23: Waste management | C23: =A2A!C112 -> 117835983.7 | D23: =A2A!D112 -> 130332739.4 | E23: =A2A!E112 -> 159353360 | F23: =A2A!F112 -> 164570252.3 | G23: =A2A!G112 -> 164570252.3 | H23: =A2A!H112 -> 164570252.3 | I23: =A2A!I112 -> 175439079.6 | J23: =A2A!J112 -> 187139862.7 | K23: =A2A!K112 -> 197924141.4
A24: Other | B24: 4 | C24: =A2A!C117 -> 47111547.8 | D24: =A2A!D117 -> 51389836.79 | E24: =A2A!E117 -> 26919475 | F24: =A2A!F117 -> 58902383.16 | G24: =A2A!G117 -> 58902383.16 | H24: =A2A!H117 -> 58902383.16 | I24: =A2A!I117 -> 62436526.15 | J24: =A2A!J117 -> 66182717.72 | K24: =A2A!K117 -> 70153680.78
A25: ="Total "&A4 -> Total Revenue - Functional | B25: 2 | C25: =C5+C9+C15+C19+C24 -> 4783019632 | D25: =D5+D9+D15+D19+D24 -> 4942875807 | E25: =E5+E9+E15+E19+E24 -> 6098249279 | F25: 6351937471 | G25: 6561483733 | H25: 6561483733 | I25: =I5+I9+I15+I19+I24 -> 6676619143 | J25: 7119406703 | K25: 7640562250
A27: Expenditure - Functional
A28: Governance and administration | C28: =SUM(C29:C31) -> 958976805.2 | D28: =SUM(D29:D31) -> 908162793.9 | E28: 1594305157 | F28: 1417089010 | G28: 1412398038 | H28: 1412398038 | I28: 1492919177 | J28: 1573289224 | K28: 1674294430
A29: Executive and council | C29: =A2A!C128 -> 152627220.4 | D29: =A2A!D128 -> 215359061.9 | E29: =A2A!E128 -> 157678062.5 | F29: =A2A!F128 -> 189360836.8 | G29: =A2A!G128 -> 188104964.3 | H29: =A2A!H128 -> 188104964.3 | I29: =A2A!I128 -> 196812130.7 | J29: =A2A!J128 -> 202985211.9 | K29: =A2A!K128 -> 215533606.1
A30: Finance and administration | C30: =A2A!C131 -> 785737067.9 | D30: =A2A!D131 -> 679958112.4 | E30: =A2A!E131 -> 1407041307 | F30: =A2A!F131 -> 1213645200 | G30: =A2A!G131 -> 1210210101 | H30: =A2A!H131 -> 1210210101 | I30: =A2A!I131 -> 1281505066 | J30: =A2A!J131 -> 1355058156 | K30: =A2A!K131 -> 1442526587
A31: Internal audit | C31: =A2A!C145 -> 20612516.92 | D31: =A2A!D145 -> 12845619.53 | E31: =A2A!E145 -> 29585787 | F31: =A2A!F145 -> 14082972.99 | G31: =A2A!G145 -> 14082972.99 | H31: =A2A!H145 -> 14082972.99 | I31: =A2A!I145 -> 14601979.73 | J31: =A2A!J145 -> 15245856.36 | K31: =A2A!K145 -> 16234236.5
A32: Community and public safety | C32: =SUM(C33:C37) -> 558218845.1 | D32: =SUM(D33:D37) -> 468536565.9 | E32: 527521416.5 | F32: 520692886 | G32: 485957236.3 | H32: 485957236.3 | I32: 551869184.9 | J32: 587549855.4 | K32: 626886847.5
A33: Community and social services | C33: =A2A!C148 -> 130558786.8 | D33: =A2A!D148 -> 113019937.6 | E33: =A2A!E148 -> 114264920 | F33: =A2A!F148 -> 115536350.2 | G33: =A2A!G148 -> 115598308.2 | H33: =A2A!H148 -> 115598308.2 | I33: =A2A!I148 -> 121308823.8 | J33: =A2A!J148 -> 130437486.8 | K33: =A2A!K148 -> 139095761.4
A34: Sport and recreation | C34: =A2A!C170 -> 167480561.4 | D34: =A2A!D170 -> 137259360 | E34: =A2A!E170 -> 121845681.8 | F34: =A2A!F170 -> 125730407.1 | G34: =A2A!G170 -> 125730407.1 | H34: =A2A!H170 -> 125730407.1 | I34: =A2A!I170 -> 132781140.4 | J34: =A2A!J170 -> 141424588.6 | K34: =A2A!K170 -> 151014346
A35: Public safety | C35: =A2A!C176 -> 160981680.3 | D35: =A2A!D176 -> 152733927.4 | E35: =A2A!E176 -> 170573214.7 | F35: =A2A!F176 -> 180293582.3 | G35: =A2A!G176 -> 136529983.5 | H35: =A2A!H176 -> 136529983.5 | I35: =A2A!I176 -> 195974980.7 | J35: =A2A!J176 -> 209206449.4 | K35: =A2A!K176 -> 223541417.5
A36: Housing | C36: =A2A!C185 -> 94678208.3 | D36: =A2A!D185 -> 60453655.17 | E36: =A2A!E185 -> 120625836 | F36: =A2A!F185 -> 98864970.18 | G36: =A2A!G185 -> 107830961.2 | H36: =A2A!H185 -> 107830961.2 | I36: =A2A!I185 -> 101584183.6 | J36: =A2A!J185 -> 106253247.3 | K36: =A2A!K185 -> 112990702.7
A37: Health | C37: =A2A!C188 -> 4519608.31 | D37: =A2A!D188 -> 5069685.76 | E37: =A2A!E188 -> 211764 | F37: =A2A!F188 -> 267576.3 | G37: =A2A!G188 -> 267576.3 | H37: =A2A!H188 -> 267576.3 | I37: =A2A!I188 -> 220056.3 | J37: =A2A!J188 -> 228083.249 | K37: =A2A!K188 -> 244619.7839
A38: Economic and environmental services | C38: =SUM(C39:C41) -> 339509962.2 | D38: =SUM(D39:D41) -> 338301626.6 | E38: 280587711 | F38: 251001715.6 | G38: 251001715.6 | H38: 251001715.6 | I38: 226259842.6 | J38: 239170388 | K38: 253365561.2
A39: Planning and development | C39: =A2A!C197 -> 72583898.06 | D39: =A2A!D197 -> 73017068.09 | E39: =A2A!E197 -> 86015704.44 | F39: =A2A!F197 -> 81394952.58 | G39: =A2A!G197 -> 81394952.58 | H39: =A2A!H197 -> 81394952.58 | I39: =A2A!I197 -> 94810716.62 | J39: =A2A!J197 -> 100393614.8 | K39: =A2A!K197 -> 106509793.2
A40: Road transport | C40: =A2A!C208 -> 255231695.2 | D40: =A2A!D208 -> 253088873.6 | E40: =A2A!E208 -> 177738673.6 | F40: =A2A!F208 -> 151400330.6 | G40: =A2A!G208 -> 151400330.6 | H40: =A2A!H208 -> 151400330.6 | I40: =A2A!I208 -> 112214761.1 | J40: =A2A!J208 -> 118338557.8 | K40: =A2A!K208 -> 125026523.6
A41: Environmental protection | C41: =A2A!C213 -> 11694368.94 | D41: =A2A!D213 -> 12195684.9 | E41: =A2A!E213 -> 16833333 | F41: =A2A!F213 -> 18206432.42 | G41: =A2A!G213 -> 18206432.42 | H41: =A2A!H213 -> 18206432.42 | I41: =A2A!I213 -> 19234364.85 | J41: =A2A!J213 -> 20438215.44 | K41: =A2A!K213 -> 21829244.33
A42: Trading services | C42: =SUM(C43:C46) -> 3073241303 | D42: =SUM(D43:D46) -> 3151997189 | E42: 3070326136 | F42: =SUM(F43:F46) -> 3377237003 | G42: 3224176947 | H42: 3224176947 | I42: 3626343501 | J42: 3857475588 | K42: =SUM(K43:K46) -> 4181549741
A43: Energy sources | C43: =A2A!C221 -> 1885208485 | D43: =A2A!D221 -> 1737650843 | E43: =A2A!E221 -> 1813418647 | F43: =A2A!F221 -> 2021215276 | G43: =A2A!G221 -> 1881436852 | H43: =A2A!H221 -> 1881436852 | I43: =A2A!I221 -> 2175008248 | J43: =A2A!J221 -> 2288590793 | K43: =A2A!K221 -> 2483052970
A44: Water management | C44: =A2A!C225 -> 886437687.3 | D44: =A2A!D225 -> 1067151586 | E44: =A2A!E225 -> 878194761.9 | F44: =A2A!F225 -> 907107115.4 | G44: =A2A!G225 -> 893825483.8 | H44: =A2A!H225 -> 893825483.8 | I44: =A2A!I225 -> 981811161.5 | J44: =A2A!J225 -> 1064599059 | K44: =A2A!K225 -> 1156111451
A45: Waste water management | C45: =A2A!C229 -> 195839687.2 | D45: =A2A!D229 -> 265209594.3 | E45: =A2A!E229 -> 258354772 | F45: =A2A!F229 -> 319854782.7 | G45: =A2A!G229 -> 319854782.7 | H45: =A2A!H229 -> 319854782.7 | I45: =A2A!I229 -> 334913701.1 | J45: =A2A!J229 -> 361598996.7 | K45: =A2A!K229 -> 390280017.2
A46: Waste management | C46: =A2A!C234 -> 105755443.6 | D46: =A2A!D234 -> 81985165.73 | E46: =A2A!E234 -> 120357955.2 | F46: =A2A!F234 -> 129059828.6 | G46: =A2A!G234 -> 129059828.6 | H46: =A2A!H234 -> 129059828.6 | I46: =A2A!I234 -> 134610390.7 | J46: =A2A!J234 -> 142686738.7 | K46: =A2A!K234 -> 152105303
A47: Other | B47: 4 | C47: =A2A!C239 -> 89507332.98 | D47: =A2A!D239 -> 65475741.97 | E47: =A2A!E239 -> 72379861.56 | F47: =A2A!F239 -> 70459108.67 | G47: =A2A!G239 -> 70459108.67 | H47: =A2A!H239 -> 70459108.67 | I47: =A2A!I239 -> 73196111.58 | J47: =A2A!J239 -> 76959397.66 | K47: =A2A!K239 -> 81811547.89
A48: ="Total "&A27 -> Total Expenditure - Functional | B48: 3 | C48: =C28+C32+C38+C42+C47 -> 5019454249 | D48: =D28+D32+D38+D42+D47 -> 4932473917 | E48: =E28+E32+E38+E42+E47 -> 5545120282 | F48: =F28+F32+F38+F42+F47 -> 5636479723 | G48: 5443993045 | H48: 5443993045 | I48: 5970587817 | J48: 6334444453 | K48: 6817908128
A49: =result -> Surplus/(Deficit) for the year | C49: =C25-C48 -> -236434616.6 | D49: =D25-D48 -> 10401889.44 | E49: 553128997 | F49: 715457748.2 | G49: 1117490688 | H49: 1117490688 | I49: 706031325.8 | J49: 784962250.6 | K49: 822654122.5
A50: =head27a -> References
A51: 1. Government Finance Statistics Functions and Sub-functions are standardised to assist the compilation of national and international accounts for comparison purposes
A52: 2. Total Revenue by functional classification must reconcile to Total Operating Revenue shown in Budgeted Financial Performance (revenue and expenditure)
A53: 3. Total Expenditure by Functional Classification must reconcile to Total Operating Expenditure shown in Budgeted Financial Performance (revenue and expenditure)
A54: 4. All amounts must be classified under a functional classification . The GFS function 'Other' is only for Abbatoirs, Air Transport, Forestry, Licensing and Regulation, Markets and Tourism - and if used must be supported by footnotes. Nothing else may be placed under 'Other'. Assign associate share to relevant classification.
A57: check oprev balance | C57: =C25-'A4-FinPerf RE'!C59 -> 193287607.6 | D57: =D25-'A4-FinPerf RE'!D59 -> -77193790.61 | E57: =E25-'A4-FinPerf RE'!E59 -> 408822450 | F57: =F25-'A4-FinPerf RE'!F59 -> 307926950.3 | G57: =G25-'A4-FinPerf RE'!G59 -> 307926950.3 | H57: =H25-'A4-FinPerf RE'!H59 -> 307926950.3 | I57: =I25-'A4-FinPerf RE'!J59 -> 332549269.5 | J57: =J25-'A4-FinPerf RE'!K59 -> 359192952 | K57: =K25-'A4-FinPerf RE'!L59 -> 388085632.6
A58: check opexp balance | C58: =C48-'A4-FinPerf RE'!C35 -> 410508727.1 | D58: =D48-'A4-FinPerf RE'!D35 -> -676940115.8 | E58: =E48-'A4-FinPerf RE'!E35 -> -130164398 | F58: =F48-'A4-FinPerf RE'!F35 -> 307972734.3 | G58: =G48-'A4-FinPerf RE'!G35 -> 307972734.3 | H58: =H48-'A4-FinPerf RE'!H35 -> 307972734.3 | I58: =I48-'A4-FinPerf RE'!J35 -> 332549269.2 | J58: =J48-'A4-FinPerf RE'!K35 -> 359192951.7 | K58: =K48-'A4-FinPerf RE'!L35 -> 388085632.3

Sheet A2A
A1: =muni&" - "&Approve3 -> KZN225 Msunduzi - Table A2 Budgeted Financial Performance (revenue and expenditure by functional classification)
A2: ="Functional Classification "&desc -> Functional Classification Description | B2: =head27 -> Ref | C2: =head1b -> 2016/17 | D2: =head1A -> 2017/18 | E2: =Head1 -> 2018/19 | F2: =Head2 -> Current Year 2019/20 | I2: =Head3 -> 2020/21 Medium Term Revenue & Expenditure Framework
A3: R thousand | B3: 1 | C3: =Head5 -> Audited Outcome | D3: =Head5 -> Audited Outcome | E3: =Head5 -> Audited Outcome | F3: =Head6 -> Original Budget | G3: =Head7 -> Adjusted Budget | H3: =Head8 -> Full Year Forecast | I3: =Head9 -> Budget Year 2020/21 | J3: =Head10 -> Budget Year +1 2021/22 | K3: =Head11 -> Budget Year +2 2022/23
A4: Revenue - Functional
A5: Municipal governance and administration | C5: =C6+C9+C23 -> 1177987350 | D5: 1314579132 | E5: 1884451557 | F5: 1810164797 | G5: 1810065797 | H5: 1810065797 | I5: 1916519555 | J5: 2037033336 | K5: 2176161788
A6: Executive and council | C6: =SUM(C7:C8) -> 3912513.23 | D6: =SUM(D7:D8) -> 8115405.88 | E6: 3096549 | F6: 4256966.52 | G6: 4256966.52 | H6: 4256966.52 | I6: 4448384.511 | J6: 64007.58187 | K6: 67848.03678
A7: Mayor and Council | D7: 38148.93
A8: Municipal Manager, Town Secretary and Chief Executive | C8: 3912513.23 | D8: 8077256.95 | E8: 3096549 | F8: 4256966.52 | G8: 4256966.52 | H8: 4256966.52 | I8: 4448384.511 | J8: 64007.58187 | K8: 67848.03678
A9: Finance and administration | C9: =SUM(C10:C22) -> 1174074837 | D9: 1306466515 | E9: 1881355008 | F9: 1805907831 | G9: 1805808831 | H9: 1805808831 | I9: 1912071171 | J9: 2036969328 | K9: 2176093940
A10: Administrative and Corporate Support | D10: -1108.29 | E10: 380
A11: Asset Management | C11: 11486495.12 | D11: 7758588.04 | E11: 280027 | F11: 10640040.44 | G11: 10640040.44 | H11: 10640040.44 | I11: 11278442.87 | J11: 11955149.44 | K11: 12672458.4
A12: Finance | C12: 1120820151 | D12: 1242081094 | E12: 1834465983 | F12: 1762302546 | G12: 1762203546 | H12: 1762203546 | I12: 1875693569 | J12: 1997533630 | K12: 2133887476
A13: Fleet Management
A14: Human Resources | C14: 5104936.67 | D14: 6255068.83 | E14: 24486021 | F14: 20093836 | G14: 20093836 | H14: 20093836 | I14: 11455466.18 | J14: 13018234.15 | K14: 14203952.2
A15: Information Technology | C15: -25122.37 | D15: -47306.64 | E15: 11858 | F15: 1929.2 | G15: 1929.2 | H15: 1929.2 | I15: 2044.952 | J15: 2167.64912 | K15: 2297.708067
A16: Legal Services | C16: 1344.8 | D16: -228133.21 | E16: 9395 | F16: 246034.48 | G16: 246034.48 | H16: 246034.48 | I16: 260796.5488 | J16: 276444.3417 | K16: 293031.0022
A17: Marketing, Customer Relations, Publicity and Media Co-ordination | D17: -4.23
A18: Property Services | C18: 11886972.29 | D18: 14347802.9 | E18: 21864521 | F18: 12355263.54 | G18: 12355263.54 | H18: 12355263.54 | I18: 13096579.35 | J18: 13882374.11 | K18: 14715316.56
A19: Risk Management
A20: Security Services | D20: 7872.74 | E20: 138
A21: Supply Chain Management | C21: 24800059.44 | D21: 36292640.32 | E21: 236685 | F21: 268181.06 | G21: 268181.06 | H21: 268181.06 | I21: 284271.9236 | J21: 301328.239 | K21: 319407.9334
A22: Valuation Service
A23: Internal audit | C23: =SUM(C24:C24) -> 0 | D23: -2788.35 | E23: 0 | F23: 0 | G23: 0 | H23: 0 | I23: 0 | J23: 0 | K23: 0
A24: Governance Function | D24: -2788.35
A25: Community and public safety | C25: =C26+C48+C54+C63+C66 -> 321159682.4 | D25: 114024500 | E25: 189741250 | F25: 109380497.9 | G25: 319025759.9 | H25: 319025759.9 | I25: 224692902.1 | J25: 252144726.5 | K25: 235838183.7
A26: Community and social services | C26: =SUM(C27:C47) -> 35741622.86 | D26: =SUM(D27:D47) -> 28614804.88 | E26: 29034011 | F26: 24887236.06 | G26: 25424378.06 | H26: 25424378.06 | I26: 26709570.22 | J26: 28213644.44 | K26: 29673453.1
A27: Aged Care | D27: -0.47
A28: Agricultural
A29: Animal Care and Diseases
A30: Cemeteries, Funeral Parlours and Crematoriums | C30: 3130859.31 | D30: 3097949.28 | E30: 609991 | F30: 3371472.04 | G30: 3371472.04 | H30: 3371472.04 | I30: 3573760.362 | J30: 3788185.984 | K30: 4015477.143
A31: Child Care Facilities
A32: Community Halls and Facilities | C32: 3672839.02 | D32: 4189000.67 | E32: 7957867 | F32: 1000764.02 | G32: 1000764.02 | H32: 1000764.02 | I32: 1060809.861 | J32: 1124458.453 | K32: 1191925.96
A33: Consumer Protection
A34: Cultural Matters
A35: Disaster Management
A36: Education
A37: Indigenous and Customary Law
A38: Industrial Promotion
A39: Language Policy
A40: Libraries and Archives | C40: 23987042.24 | D40: 21247691.89 | E40: 20000000 | F40: 20052000 | G40: 20052000 | H40: 20052000 | I40: 21587000 | J40: 22786000 | K40: 23925300
A41: Literacy Programmes
A42: Media Services
A43: Museums and Art Galleries | C43: 195308.86 | D43: 124218.47 | E43: 441000 | F43: 463000 | G43: 1000142 | H43: 1000142 | I43: 488000 | J43: 515000 | K43: 540750
A44: Population Development | C44: 4755573.43 | D44: -44054.96 | E44: 25153
A45: Provincial Cultural Matters
A46: Theatres
A47: Zoo's
A48: Sport and recreation | C48: =SUM(C49:C53) -> 15520255.66 | D48: =SUM(D49:D53) -> 11184128.98 | E48: 10053818 | F48: 10383827.44 | G48: 10383827.44 | H48: 10383827.44 | I48: 11006032.44 | J48: 11919301.27 | K48: 12518245.86
A49: Beaches and Jetties
A50: Casinos, Racing, Gambling, Wagering
A51: Community Parks (including Nurseries) | C51: 215775.96 | D51: -288.91
A52: Recreational Facilities | C52: 15304479.7 | D52: 11184417.89 | E52: 10053818 | F52: 10383827.44 | G52: 10383827.44 | H52: 10383827.44 | I52: 11006032.44 | J52: 11919301.27 | K52: 12518245.86
A53: Sports Grounds and Stadiums
A54: Public safety | C54: =SUM(C55:C62) -> 38769740.07 | D54: 18371823.37 | E54: 23856429 | F54: 3606445.42 | G54: 3606445.42 | H54: 3606445.42 | I54: 3822832.145 | J54: 4052202.074 | K54: 4295334.198
A55: Civil Defence | C55: -35568 | D55: -10.66 | E55: 5397
A56: Cleansing
A57: Control of Public Nuisances
A58: Fencing and Fences
A59: Fire Fighting and Protection | C59: 524639.98 | D59: 308155.74 | E59: 312733 | F59: 319875.14 | G59: 319875.14 | H59: 319875.14 | I59: 339067.6484 | J59: 359411.7073 | K59: 380976.4097
A60: Licensing and Control of Animals
A61: Police Forces, Traffic and Street Parking Control | C61: 38280668.09 | D61: 18063678.29 | E61: 23538299 | F61: 3286570.28 | G61: 3286570.28 | H61: 3286570.28 | I61: 3483764.497 | J61: 3692790.367 | K61: 3914357.789
A62: Pounds
A63: Housing | C63: =SUM(C64:C65) -> 231128063.8 | D63: =SUM(D64:D65) -> 55853742.81 | E63: 126796992 | F63: 70502989 | G63: 279611109 | H63: 279611109 | I63: 183154467.3 | J63: 207959578.8 | K63: 189351150.6
A64: Housing | C64: 231128063.8 | D64: 55853742.81 | E64: 126796992 | F64: 70502989 | G64: 279611109 | H64: 279611109 | I64: 183154467.3 | J64: 207959578.8 | K64: 189351150.6
A65: Informal Settlements
A66: Health | C66: =SUM(C67:C73) -> 0 | D66: =SUM(D67:D73) -> 0 | E66: 0 | F66: 0 | G66: 0 | H66: 0 | I66: 0 | J66: 0 | K66: 0
A67: Ambulance
A68: Health Services
A69: Laboratory Services
A70: Food Control
A71: Health Surveillance and Prevention of Communicable Diseases including immunizations
A72: Vector Control
A73: Chemical Safety
A74: Economic and environmental services | C74: =C75+C86+C91 -> 294113343.6 | D74: 284890218.3 | E74: 316615533 | F74: 316347369.9 | G74: 316347369.9 | H74: 316347369.9 | I74: 107597467.3 | J74: 114429806.5 | K74: 123446332.7
A75: Planning and development | C75: =SUM(C76:C85) -> 15852048.66 | D75: =SUM(D76:D85) -> 57660546.35 | E75: 58630681 | F75: 53904495.16 | G75: 53904495.16 | H75: 53904495.16 | I75: 39138764.87 | J75: 39387090.76 | K75: 44650316.21
A76: Billboards
A77: Corporate Wide Strategic Planning (IDPs, LEDs) | D77: -11744.97
A78: Central City Improvement District
A79: Development Facilitation
A80: Economic Development/Planning | C80: 238567.12 | D80: -22108.31
A81: Regional Planning and Development
A82: Town Planning, Building Regulations and Enforcement, and City Engineer | C82: 15613481.54 | D82: 57694399.63 | E82: 58630681 | F82: 53904495.16 | G82: 53904495.16 | H82: 53904495.16 | I82: 39138764.87 | J82: 39387090.76 | K82: 44650316.21
A83: Project Management Unit
A84: Provincial Planning
A85: Support to Local Municipalities
A86: Road transport | C86: =SUM(C87:C90) -> 278242067.6 | D86: 227108094.1 | E86: 257948727 | F86: 262339193 | G86: 262339193 | H86: 262339193 | I86: 68348799.76 | J86: 74926218.93 | K86: 78672529.88
A87: Public Transport | C87: 201247380 | D87: 134317688.4 | E87: 199373912 | F87: 194665000 | G87: 194665000 | H87: 194665000
A88: Road and Traffic Regulation
A89: Roads | C89: 76994687.58 | D89: 92790405.76 | E89: 58453902 | F89: 67674193 | G89: 67674193 | H89: 67674193 | I89: 68348799.76 | J89: 74926218.93 | K89: 78672529.88
A90: Taxi Ranks | E90: 120913
A91: Environmental protection | C91: =SUM(C92:C97) -> 19227.4 | D91: =SUM(D92:D97) -> 121577.81 | E91: 36125 | F91: 103681.78 | G91: 103681.78 | H91: 103681.78 | I91: 109902.6868 | J91: 116496.848 | K91: 123486.6589
A92: Biodiversity and Landscape
A93: Coastal Protection
A94: Indigenous Forests
A95: Nature Conservation
A96: Pollution Control | C96: 19227.4 | D96: 121577.81 | E96: 36125 | F96: 103681.78 | G96: 103681.78 | H96: 103681.78 | I96: 109902.6868 | J96: 116496.848 | K96: 123486.6589
A97: Soil Conservation
A98: Trading services | C98: =C99+C103+C107+C112 -> 2942647708 | D98: =D99+D103+D107+D112 -> 3177992119 | E98: 3680521464 | F98: 4057142423 | G98: 4057142423 | H98: 4057142423 | I98: 4365372692 | J98: 4649616117 | K98: =K99+K103+K107+K112 -> 5034962265
A99: Energy sources | C99: =SUM(C100:C102) -> 1928074519 | D99: =SUM(D100:D102) -> 1972392713 | E99: 2235472736 | F99: 2484432540 | G99: 2484432540 | H99: 2484432540 | I99: 2676568201 | J99: 2817382622 | K99: 3073071551
A100: Electricity | C100: 1928044171 | D100: 1972392713 | E100: 2234877988 | F100: 2484432540 | G100: 2484432540 | H100: 2484432540 | I100: 2676568201 | J100: 2817382622 | K100: 3073071551
A101: Street Lighting and Signal Systems | C101: 30348.48 | E101: 594748
A102: Nonelectric Energy
A103: Water management | C103: =SUM(C104:C106) -> 711698173.6 | D103: =SUM(D104:D106) -> 855835877.4 | E103: 1063455446 | F103: 1165716745 | G103: 1165716745 | H103: 1165716745 | I103: 1255872938 | J103: 1370363136 | K103: 1478626771
A104: Water Treatment
A105: Water Distribution | C105: 711698173.6 | D105: 855835877.4 | E105: 1063455446 | F105: 1165716745 | G105: 1165716745 | H105: 1165716745 | I105: 1255872938 | J105: 1370363136 | K105: 1478626771
A106: Water Storage
A107: Waste water management | C107: =SUM(C108:C111) -> 185039031.7 | D107: =SUM(D108:D111) -> 219430789.6 | E107: 222239922 | F107: 242422885.9 | G107: 242422885.9 | H107: 242422885.9 | I107: 257492473.5 | J107: 274730495.9 | K107: 285339801.9
A108: Public Toilets | D108: -3078.65
A109: Sewerage | C109: 185039031.7 | D109: 219269404 | E109: 222239761 | F109: 242422885.9 | G109: 242422885.9 | H109: 242422885.9 | I109: 257492473.5 | J109: 274730495.9 | K109: 285339801.9
A110: Storm Water Management | D110: 164464.28 | E110: 161
A111: Waste Water Treatment
A112: Waste management | C112: =SUM(C113:C116) -> 117835983.7 | D112: =SUM(D113:D116) -> 130332739.4 | E112: 159353360 | F112: 164570252.3 | G112: 164570252.3 | H112: 164570252.3 | I112: 175439079.6 | J112: 187139862.7 | K112: 197924141.4
A113: Recycling
A114: Solid Waste Disposal (Landfill Sites) | C114: 32153750.28 | D114: 21468274.25 | E114: 39818614 | F114: 37542392.22 | G114: 37542392.22 | H114: 37542392.22 | I114: 40789499.9 | J114: 44411308.22 | K114: 46631873.64
A115: Solid Waste Removal | C115: 85682233.43 | D115: 108864465.1 | E115: 119534746 | F115: 127027860.1 | G115: 127027860.1 | H115: 127027860.1 | I115: 134649579.7 | J115: 142728554.5 | K115: 151292267.7
A116: Street Cleaning
A117: Other | C117: =SUM(C118:C123) -> 47111547.8 | D117: =SUM(D118:D123) -> 51389836.79 | E117: 26919475 | F117: 58902383.16 | G117: 58902383.16 | H117: 58902383.16 | I117: 62436526.15 | J117: 66182717.72 | K117: 70153680.78
A118: Abattoirs
A119: Air Transport | C119: 12331740.06 | D119: 11991073.64 | E119: 7068721 | F119: 9560497.22 | G119: 9560497.22 | H119: 9560497.22 | I119: 10134127.05 | J119: 10742174.68 | K119: 11386705.16
A120: Forestry | C120: 22508048.92 | D120: 9923913.8 | E120: 6918116 | F120: 7333202.96 | G120: 7333202.96 | H120: 7333202.96 | I120: 7773195.138 | J120: 8239586.846 | K120: 8733962.057
A121: Licensing and Regulation | C121: 267222.68 | D121: 362630.42 | E121: 352870 | F121: 423052.36 | G121: 423052.36 | H121: 423052.36 | I121: 448435.5016 | J121: 475341.6317 | K121: 503862.1296
A122: Markets | C122: 12004536.14 | D122: 29106812.27 | E122: 12579768 | F122: 41585630.62 | G122: 41585630.62 | H122: 41585630.62 | I122: 44080768.46 | J122: 46725614.56 | K122: 49529151.44
A123: Tourism | D123: 5406.66
A124: ="Total "&A4 -> Total Revenue - Functional | B124: 2 | C124: =C5+C25+C74+C98+C117 -> 4783019632 | D124: 4942875807 | E124: 6098249279 | F124: 6351937471 | G124: 6561483733 | H124: 6561483733 | I124: 6676619143 | J124: 7119406703 | K124: 7640562250
A126: Expenditure - Functional
A127: =A5 -> Municipal governance and administration | C127: =C128+C131+C145 -> 958976805.2 | D127: 908162793.9 | E127: 1594305157 | F127: 1417089010 | G127: 1412398038 | H127: 1412398038 | I127: 1492919177 | J127: 1573289224 | K127: 1674294430
A128: Executive and council | C128: =SUM(C129:C130) -> 152627220.4 | D128: 215359061.9 | E128: 157678062.5 | F128: 189360836.8 | G128: 188104964.3 | H128: 188104964.3 | I128: 196812130.7 | J128: 202985211.9 | K128: 215533606.1
A129: Mayor and Council | C129: 78149733.76 | D129: 92779927.99 | E129: 93734726 | F129: 97957323.37 | G129: 97957323.37 | H129: 97957323.37 | I129: 101906993.5 | J129: 106993920.9 | K129: 113052606.1
A130: Municipal Manager, Town Secretary and Chief Executive | C130: 74477486.59 | D130: 122579133.9 | E130: 63943336.54 | F130: 91403513.41 | G130: 90147640.89 | H130: 90147640.89 | I130: 94905137.17 | J130: 95991290.98 | K130: 102481000
A131: Finance and administration | C131: =SUM(C132:C144) -> 785737067.9 | D131: 679958112.4 | E131: 1407041307 | F131: 1213645200 | G131: 1210210101 | H131: 1210210101 | I131: 1281505066 | J131: 1355058156 | K131: 1442526587
A132: Administrative and Corporate Support | C132: 23457456.41 | D132: 23831897.82 | E132: 52451674 | F132: 55953075.06 | G132: 55953075.06 | H132: 55953075.06 | I132: 59491164.58 | J132: 63499210.74 | K132: 68020084.3
A133: Asset Management | C133: 59710885.64 | D133: 52156209.33 | E133: 108133005.8 | F133: 116359965.9 | G133: 116359965.9 | H133: 116359965.9 | I133: 122616289.1 | J133: 129611378.6 | K133: 137414664.2
A134: Finance | C134: 234500226.2 | D134: 111925136.8 | E134: 797933757.1 | F134: 522068793 | G134: 519531119.6 | H134: 519531119.6 | I134: 551180174.8 | J134: 581738244.7 | K134: 618551968.2
A135: Fleet Management | D135: 949228.1
A136: Human Resources | C136: 109444415.9 | D136: 123342315.7 | E136: 113834911.3 | F136: 208925093 | G136: 208027667 | H136: 208027667 | I136: 219314971.3 | J136: 234897040.7 | K136: 250622436.5
A137: Information Technology | C137: 45712163.3 | D137: 43894388.85 | E137: 41302542 | F137: 39094046.59 | G137: 39094046.59 | H137: 39094046.59 | I137: 44416421.77 | J137: 44835894.79 | K137: 48189798.72
A138: Legal Services | C138: 10777667.44 | D138: 16645212.17 | E138: 10705121 | F138: 10073928.72 | G138: 10073928.72 | H138: 10073928.72 | I138: 12484789.89 | J138: 14050460.47 | K138: 14780515.9
A139: Marketing, Customer Relations, Publicity and Media Co-ordination | C139: 96733.23 | D139: 97792.87 | E139: 7369798 | F139: 7959107.68 | G139: 7959107.68 | H139: 7959107.68 | I139: 8516050.562 | J139: 9112048.136 | K139: 9749833.417
A140: Property Services | C140: 37966171.37 | D140: 55851839.82 | E140: 58887380 | F140: 55766651.45 | G140: 55766651.45 | H140: 55766651.45 | I140: 59150996.54 | J140: 62660972.81 | K140: 66575683.37
A141: Risk Management
A142: Security Services | C142: 173288719.3 | D142: 150786224 | E142: 150426551 | F142: 133223049 | G142: 133223049 | H142: 133223049 | I142: 137838638.5 | J142: 144864379.4 | K142: 154334767.2
A143: Supply Chain Management | C143: 90782629.03 | D143: 100477867 | E143: 65996567.22 | F143: 64221489.58 | G143: 64221489.58 | H143: 64221489.58 | I143: 66495569.23 | J143: 69788525.2 | K143: 74286835.67
A144: Valuation Service
A145: Internal audit | C145: =SUM(C146:C146) -> 20612516.92 | D145: 12845619.53 | E145: 29585787 | F145: 14082972.99 | G145: 14082972.99 | H145: 14082972.99 | I145: 14601979.73 | J145: 15245856.36 | K145: 16234236.5
A146: Governance Function | C146: 20612516.92 | D146: 12845619.53 | E146: 29585787 | F146: 14082972.99 | G146: 14082972.99 | H146: 14082972.99 | I146: 14601979.73 | J146: 15245856.36 | K146: 16234236.5
A147: Community and public safety | C147: =C148+C170+C176+C185+C188 -> 558218845.1 | D147: 468536565.9 | E147: 527521416.5 | F147: 520692886 | G147: 485957236.3 | H147: 485957236.3 | I147: 551869184.9 | J147: 587549855.4 | K147: 626886847.5
A148: Community and social services | C148: =SUM(C149:C169) -> 130558786.8 | D148: =SUM(D149:D169) -> 113019937.6 | E148: 114264920 | F148: 115536350.2 | G148: 115598308.2 | H148: 115598308.2 | I148: 121308823.8 | J148: 130437486.8 | K148: 139095761.4
A149: Aged Care | C149: -80945.57 | D149: 4787.79 | E149: 4368270 | F149: 4717466.09 | G149: 4717466.09 | H149: 4717466.09 | I149: 5047473.547 | J149: 5400667.093 | K149: 5778668.841
A150: Agricultural
A151: Animal Care and Diseases | C151: 901274.66 | D151: 1178842.41 | E151: 1248398 | F151: 1323388 | G151: 1323388 | H151: 1323388 | I151: 1400053 | J151: 1439755 | K151: 1521540
A152: Cemeteries, Funeral Parlours and Crematoriums | C152: 6790122.26 | D152: 8144035.71 | E152: 21888152 | F152: 22558533.08 | G152: 22558533.08 | H152: 22558533.08 | I152: 24758441.98 | J152: 26389488.24 | K152: 28164781.18
A153: Child Care Facilities
A154: Community Halls and Facilities | C154: 28487827.94 | D154: 25757185.54 | E154: 16419755.46 | F154: 14963961.5 | G154: 14963961.5 | H154: 14963961.5 | I154: 15741341.74 | J154: 16647055.52 | K154: 17652318.03
A155: Consumer Protection
A156: Cultural Matters
A157: Disaster Management
A158: Education
A159: =A37 -> Indigenous and Customary Law
A160: Industrial Promotion
A161: Language Policy
A162: Libraries and Archives | C162: 64060443.07 | D162: 54041948.11 | E162: 60285670 | F162: 60964497 | G162: 60964497 | H162: 60964497 | I162: 63052367.6 | J162: 68647679.12 | K162: 73279331.98
A163: Literacy Programmes
A164: Media Services
A165: Museums and Art Galleries | C165: 14654350.84 | D165: 7876466.43 | E165: 8147499 | F165: 9028207.13 | G165: 9090165.13 | H165: 9090165.13 | I165: 9406818.061 | J165: 9918955.622 | K165: 10572883.03
A166: Population Development | C166: 15739265.83 | D166: 16010223.83 | E166: 1907175.54 | F166: 1980297.42 | G166: 1980297.42 | H166: 1980297.42 | I166: 1902327.926 | J166: 1993886.221 | K166: 2126238.381
A167: Provincial Cultural Matters
A168: Theatres | C168: 6447.79 | D168: 6447.79
A169: Zoo's
A170: Sport and recreation | C170: =SUM(C171:C175) -> 167480561.4 | D170: 137259360 | E170: 121845681.8 | F170: 125730407.1 | G170: 125730407.1 | H170: 125730407.1 | I170: 132781140.4 | J170: 141424588.6 | K170: 151014346
A171: Beaches and Jetties
A172: Casinos, Racing, Gambling, Wagering
A173: Community Parks (including Nurseries) | C173: 43895762.92 | D173: 34967543.34 | E173: 68830747.07 | F173: 74305880.46 | G173: 74305880.46 | H173: 74305880.46 | I173: 79237079.36 | J173: 84586639.3 | K173: 90382744.27
A174: Recreational Facilities | C174: 123584798.5 | D174: 102291816.7 | E174: 53014934.75 | F174: 51424526.62 | G174: 51424526.62 | H174: 51424526.62 | I174: 53544061.01 | J174: 56837949.29 | K174: 60631601.75
A175: Sports Grounds and Stadiums
A176: Public safety | C176: =SUM(C177:C184) -> 160981680.3 | D176: 152733927.4 | E176: 170573214.7 | F176: 180293582.3 | G176: 136529983.5 | H176: 136529983.5 | I176: 195974980.7 | J176: 209206449.4 | K176: 223541417.5
A177: Civil Defence | C177: 8739818.41 | D177: 9533965.7 | E177: 1828973 | F177: 11267482.29 | G177: 14443827.25 | H177: 14443827.25 | I177: 15489418.32 | J177: 16394484.95 | K177: 17362958.56
A178: Cleansing
A179: =A57 -> Control of Public Nuisances
A180: Fencing and Fences
A181: Fire Fighting and Protection | C181: 74897188.83 | D181: 75639242.64 | E181: 97259032 | F181: 92037320.64 | G181: 45097376.93 | H181: 45097376.93 | I181: 98233987.27 | J181: 104950557.2 | K181: 112222392.4
A182: Licensing and Control of Animals
A183: Police Forces, Traffic and Street Parking Control | C183: 77344673.04 | D183: 67560719.03 | E183: 71485209.72 | F183: 76988779.33 | G183: 76988779.33 | H183: 76988779.33 | I183: 82251575.14 | J183: 87861407.26 | K183: 93956066.56
A184: Pounds
A185: =A63 -> Housing | C185: =SUM(C186:C187) -> 94678208.3 | D185: 60453655.17 | E185: 120625836 | F185: 98864970.18 | G185: 107830961.2 | H185: 107830961.2 | I185: 101584183.6 | J185: 106253247.3 | K185: 112990702.7
A186: Housing | C186: 94678208.3 | D186: 60453655.17 | E186: 120625836 | F186: 98864970.18 | G186: 107830961.2 | H186: 107830961.2 | I186: 101584183.6 | J186: 106253247.3 | K186: 112990702.7
A187: Informal Settlements
A188: Health | C188: =SUM(C189:C195) -> 4519608.31 | D188: =SUM(D189:D195) -> 5069685.76 | E188: 211764 | F188: 267576.3 | G188: 267576.3 | H188: 267576.3 | I188: 220056.3 | J188: 228083.249 | K188: 244619.7839
A189: Ambulance
A190: Health Services | C190: 4519608.31 | D190: 5069685.76 | E190: 211764 | F190: 267576.3 | G190: 267576.3 | H190: 267576.3 | I190: 220056.3 | J190: 228083.249 | K190: 244619.7839
A191: Laboratory Services
A192: Food Control
A193: Health Surveillance and Prevention of Communicable Diseases including immunizations
A194: Vector Control
A195: Chemical Safety
A196: Economic and environmental services | C196: =C197+C208+C213 -> 339509962.2 | D196: 338301626.6 | E196: 280587711 | F196: 251001715.6 | G196: 251001715.6 | H196: 251001715.6 | I196: 226259842.6 | J196: 239170388 | K196: 253365561.2
A197: Planning and development | C197: =SUM(C198:C207) -> 72583898.06 | D197: =SUM(D198:D207) -> 73017068.09 | E197: 86015704.44 | F197: 81394952.58 | G197: 81394952.58 | H197: 81394952.58 | I197: 94810716.62 | J197: 100393614.8 | K197: 106509793.2
A198: Billboards
A199: Corporate Wide Strategic Planning (IDPs, LEDs) | C199: 4266557.87 | D199: 4979248.01 | E199: 9393331 | F199: 6677956.12 | G199: 6677956.12 | H199: 6677956.12 | I199: 16198736.23 | J199: 17050713.41 | K199: 17547227.87
A200: Central City Improvement District
A201: Development Facilitation
... 53 more rows

Sheet A3-FinPerf V
A1: =muni&" - "&Approve2 -> KZN225 Msunduzi - Table A3 Budgeted Financial Performance (revenue and expenditure by municipal vote)
A2: =Vdesc -> Vote Description | B2: =head27 -> Ref | C2: =head1b -> 2016/17 | D2: =head1A -> 2017/18 | E2: =Head1 -> 2018/19 | F2: =Head2 -> Current Year 2019/20 | I2: =Head3 -> 2020/21 Medium Term Revenue & Expenditure Framework | L2: =Head4 -> LTFS
A3: R thousand | C3: =Head5 -> Audited Outcome | D3: =Head5 -> Audited Outcome | E3: =Head5 -> Audited Outcome | F3: =Head6 -> Original Budget | G3: =Head7 -> Adjusted Budget | H3: =Head8 -> Full Year Forecast | I3: =Head9 -> Budget Year 2020/21 | J3: =Head10 -> Budget Year +1 2021/22 | K3: =Head11 -> Budget Year +2 2022/23 | L3: =Head12 -> Forecast 2023/24 | M3: =Head13 -> Forecast 2024/25 | N3: =Head14 -> Forecast 2025/26 | O3: =Head15 -> Forecast 2026/27 | P3: =Head16 -> Forecast 2027/28 | Q3: =Head17 -> Forecast 2028/29 | R3: =Head18 -> Forecast 2029/30 | S3: =Head19 -> Forecast 2030/31 | T3: =Head20 -> Forecast 2031/32 | U3: =Head21 -> Forecast 2032/33 | V3: =Head22 -> Forecast 2033/34 | W3: =Head23 -> Forecast 2034/35
A4: Revenue by Vote | B4: 1
A5: =A3A!A5 -> Vote 1 - City Manager | C5: =A3A!C5 -> 0 | D5: =A3A!D5 -> 88662.54 | E5: =A3A!E5 -> 214 | F5: =A3A!F5 -> 56966.52 | G5: =A3A!G5 -> 56966.52 | H5: =A3A!H5 -> 56966.52 | I5: =A3A!I5 -> 60384.5112 | J5: =A3A!J5 -> 64007.58187 | K5: =A3A!K5 -> 67848.03678
A6: =A3A!A16 -> Vote 2 - City Finance | C6: =A3A!C16 -> 1162601605 | D6: =A3A!D16 -> 1292218742 | E6: =A3A!E16 -> 1841339268 | F6: =A3A!F16 -> 1777245066 | G6: =A3A!G16 -> 1777146066 | H6: =A3A!H16 -> 1777146066 | I6: =A3A!I16 -> 1891748475 | J6: =A3A!J16 -> 2014551830 | K6: =A3A!K16 -> 2151926769
A7: =A3A!A27 -> Vote 3 - Community Services and Social Equity | C7: =A3A!C27 -> 213712394.3 | D7: =A3A!D27 -> 199491348.7 | E7: =A3A!E27 -> 236959425 | F7: =A3A!F27 -> 210736724.6 | G7: =A3A!G27 -> 210736724.6 | H7: =A3A!H27 -> 210736724.6 | I7: =A3A!I27 -> 224706595.6 | J7: =A3A!J27 -> 239520116.5 | K7: =A3A!K27 -> 253103137
A8: =A3A!A38 -> Vote 4 - Corporate Services | C8: =A3A!C38 -> 5676012.36 | D8: =A3A!D38 -> 9383448.99 | E8: =A3A!E38 -> 5862268 | F8: =A3A!F38 -> 6541799.7 | G8: =A3A!G38 -> 6541799.7 | H8: =A3A!H38 -> 6541799.7 | I8: =A3A!I38 -> 6870307.682 | J8: =A3A!J38 -> 2631246.143 | K8: =A3A!K38 -> 2789120.911
A9: =A3A!A49 -> Vote 5 - Infrastructure Services | C9: =A3A!C49 -> 3106589450 | D9: =A3A!D49 -> 3280433242 | E9: =A3A!E49 -> 3801263831 | F9: =A3A!F49 -> 4173276747 | G9: =A3A!G49 -> 4173276747 | H9: =A3A!H49 -> 4173276747 | I9: =A3A!I49 -> 4267905719 | J9: =A3A!J49 -> 4548478618 | K9: =A3A!K49 -> 4927855992
A10: =A3A!A60 -> Vote 6 - Sustainable Development and City Enterprises | C10: =A3A!C60 -> 294440169.6 | D10: =A3A!D60 -> 161260363 | E10: =A3A!E60 -> 212824273 | F10: =A3A!F60 -> 184080167 | G10: =A3A!G60 -> 393725429 | H10: =A3A!H60 -> 393725429 | I10: =A3A!I60 -> 285327661 | J10: =A3A!J60 -> 314160884.1 | K10: =A3A!K60 -> 304819384.2
A11: =A3A!A71 -> Vote 7 - [NAME OF VOTE 7] | C11: =A3A!C71 -> 0 | D11: =A3A!D71 -> 0 | E11: =A3A!E71 -> 0 | F11: =A3A!F71 -> 0 | G11: =A3A!G71 -> 0 | H11: =A3A!H71 -> 0 | I11: =A3A!I71 -> 0 | J11: =A3A!J71 -> 0 | K11: =A3A!K71 -> 0
A12: =A3A!A82 -> Vote 8 - [NAME OF VOTE 8] | C12: =A3A!C82 -> 0 | D12: =A3A!D82 -> 0 | E12: =A3A!E82 -> 0 | F12: =A3A!F82 -> 0 | G12: =A3A!G82 -> 0 | H12: =A3A!H82 -> 0 | I12: =A3A!I82 -> 0 | J12: =A3A!J82 -> 0 | K12: =A3A!K82 -> 0
A13: =A3A!A93 -> Vote 9 - [NAME OF VOTE 9] | C13: =A3A!C93 -> 0 | D13: =A3A!D93 -> 0 | E13: =A3A!E93 -> 0 | F13: =A3A!F93 -> 0 | G13: =A3A!G93 -> 0 | H13: =A3A!H93 -> 0 | I13: =A3A!I93 -> 0 | J13: =A3A!J93 -> 0 | K13: =A3A!K93 -> 0
A14: =A3A!A104 -> Vote 10 - [NAME OF VOTE 10] | C14: =A3A!C104 -> 0 | D14: =A3A!D104 -> 0 | E14: =A3A!E104 -> 0 | F14: =A3A!F104 -> 0 | G14: =A3A!G104 -> 0 | H14: =A3A!H104 -> 0 | I14: =A3A!I104 -> 0 | J14: =A3A!J104 -> 0 | K14: =A3A!K104 -> 0
A15: =A3A!A115 -> Vote 11 - [NAME OF VOTE 11] | C15: =A3A!C115 -> 0 | D15: =A3A!D115 -> 0 | E15: =A3A!E115 -> 0 | F15: =A3A!F115 -> 0 | G15: =A3A!G115 -> 0 | H15: =A3A!H115 -> 0 | I15: =A3A!I115 -> 0 | J15: =A3A!J115 -> 0 | K15: =A3A!K115 -> 0 | L15: =A5A!L115 -> 0
A16: =A3A!A126 -> Vote 12 - [NAME OF VOTE 12] | C16: =A3A!C126 -> 0 | D16: =A3A!D126 -> 0 | E16: =A3A!E126 -> 0 | F16: =A3A!F126 -> 0 | G16: =A3A!G126 -> 0 | H16: =A3A!H126 -> 0 | I16: =A3A!I126 -> 0 | J16: =A3A!J126 -> 0 | K16: =A3A!K126 -> 0 | L16: =A5A!L126 -> 0
A17: =A3A!A137 -> Vote 13 - [NAME OF VOTE 13] | C17: =A3A!C137 -> 0 | D17: =A3A!D137 -> 0 | E17: =A3A!E137 -> 0 | F17: =A3A!F137 -> 0 | G17: =A3A!G137 -> 0 | H17: =A3A!H137 -> 0 | I17: =A3A!I137 -> 0 | J17: =A3A!J137 -> 0 | K17: =A3A!K137 -> 0 | L17: =A5A!L137 -> 0
A18: =A3A!A148 -> Vote 14 - [NAME OF VOTE 14] | C18: =A3A!C148 -> 0 | D18: =A3A!D148 -> 0 | E18: =A3A!E148 -> 0 | F18: =A3A!F148 -> 0 | G18: =A3A!G148 -> 0 | H18: =A3A!H148 -> 0 | I18: =A3A!I148 -> 0 | J18: =A3A!J148 -> 0 | K18: =A3A!K148 -> 0 | L18: =A5A!L148 -> 0
A19: =A3A!A159 -> Vote 15 - [NAME OF VOTE 15] | C19: =A3A!C159 -> 0 | D19: =A3A!D159 -> 0 | E19: =A3A!E159 -> 0 | F19: =A3A!F159 -> 0 | G19: =A3A!G159 -> 0 | H19: =A3A!H159 -> 0 | I19: =A3A!I159 -> 0 | J19: =A3A!J159 -> 0 | K19: =A3A!K159 -> 0 | L19: =A5A!L159 -> 0
A20: Total Revenue by Vote | B20: 2 | C20: =SUM(C5:C19) -> 4783019632 | D20: =SUM(D5:D19) -> 4942875807 | E20: 6098249279 | F20: 6351937471 | G20: 6561483733 | H20: 6561483733 | I20: 6676619143 | J20: 7119406703 | K20: 7640562250
A22: Expenditure by Vote to be appropriated | B22: 1
A23: =A3A!A173 -> Vote 1 - City Manager | C23: =A3A!C173 -> 166772623.6 | D23: =A3A!D173 -> 176238545.4 | E23: =A3A!E173 -> 194108064 | F23: =A3A!F173 -> 177602227.4 | G23: =A3A!G173 -> 177602227.4 | H23: =A3A!H173 -> 177602227.4 | I23: =A3A!I173 -> 193814013.9 | J23: =A3A!J173 -> 203590227.6 | K23: =A3A!K173 -> 215268231.9
A24: =A3A!A184 -> Vote 2 - City Finance | C24: =A3A!C184 -> 371289500.3 | D24: =A3A!D184 -> 275761302.6 | E24: =A3A!E184 -> 975349935 | F24: =A3A!F184 -> 691435774.5 | G24: =A3A!G184 -> 691435774.5 | H24: =A3A!H184 -> 691435774.5 | I24: =A3A!I184 -> 735802063 | J24: =A3A!J184 -> 776196213.4 | K24: =A3A!K184 -> 824869817
A25: =A3A!A195 -> Vote 3 - Community Services and Social Equity | C25: =A3A!C195 -> 768569616.5 | D25: =A3A!D195 -> 668362475.6 | E25: =A3A!E195 -> 724942866.7 | F25: =A3A!F195 -> 742913351.7 | G25: =A3A!G195 -> 742913351.7 | H25: =A3A!H195 -> 742913351.7 | I25: =A3A!I195 -> 776032451.4 | J25: =A3A!J195 -> 825579538.4 | K25: =A3A!K195 -> 880814682.6
A26: =A3A!A206 -> Vote 4 - Corporate Services | C26: =A3A!C206 -> 193613185.4 | D26: =A3A!D206 -> 258379079.4 | E26: =A3A!E206 -> 196080850 | F26: =A3A!F206 -> 289334727.8 | G26: =A3A!G206 -> 276053096.2 | H26: =A3A!H206 -> 276053096.2 | I26: =A3A!I206 -> 315389421.2 | J26: =A3A!J206 -> 330829949.8 | K26: =A3A!K206 -> 353113664.2
A27: =A3A!A217 -> Vote 5 - Infrastructure Services | C27: =A3A!C217 -> 3237035390 | D27: =A3A!D217 -> 3336665965 | E27: =A3A!E217 -> 3150241607 | F27: =A3A!F217 -> 3451917726 | G27: =A3A!G217 -> 3312139301 | H27: =A3A!H217 -> 3312139301 | I27: =A3A!I217 -> 3656492418 | J27: =A3A!J217 -> 3889640287 | K27: =A3A!K217 -> 4215277539
A28: =A3A!A228 -> Vote 6 - Sustainable Development and City Enterprises | C28: =A3A!C228 -> 282173932.9 | D28: =A3A!D228 -> 217066549 | E28: =A3A!E228 -> 304396959 | F28: =A3A!F228 -> 283275916.3 | G28: =A3A!G228 -> 243849294.7 | H28: =A3A!H228 -> 243849294.7 | I28: =A3A!I228 -> 293057450 | J28: =A3A!J228 -> 308608236.8 | K28: =A3A!K228 -> 328564193.8
A29: =A3A!A239 -> Vote 7 - [NAME OF VOTE 7] | C29: =A3A!C239 -> 0 | D29: =A3A!D239 -> 0 | E29: =A3A!E239 -> 0 | F29: =A3A!F239 -> 0 | G29: =A3A!G239 -> 0 | H29: =A3A!H239 -> 0 | I29: =A3A!I239 -> 0 | J29: =A3A!J239 -> 0 | K29: =A3A!K239 -> 0
A30: =A3A!A250 -> Vote 8 - [NAME OF VOTE 8] | C30: =A3A!C250 -> 0 | D30: =A3A!D250 -> 0 | E30: =A3A!E250 -> 0 | F30: =A3A!F250 -> 0 | G30: =A3A!G250 -> 0 | H30: =A3A!H250 -> 0 | I30: =A3A!I250 -> 0 | J30: =A3A!J250 -> 0 | K30: =A3A!K250 -> 0
A31: =A3A!A261 -> Vote 9 - [NAME OF VOTE 9] | C31: =A3A!C261 -> 0 | D31: =A3A!D261 -> 0 | E31: =A3A!E261 -> 0 | F31: =A3A!F261 -> 0 | G31: =A3A!G261 -> 0 | H31: =A3A!H261 -> 0 | I31: =A3A!I261 -> 0 | J31: =A3A!J261 -> 0 | K31: =A3A!K261 -> 0
A32: =A3A!A272 -> Vote 10 - [NAME OF VOTE 10] | C32: =A3A!C272 -> 0 | D32: =A3A!D272 -> 0 | E32: =A3A!E272 -> 0 | F32: =A3A!F272 -> 0 | G32: =A3A!G272 -> 0 | H32: =A3A!H272 -> 0 | I32: =A3A!I272 -> 0 | J32: =A3A!J272 -> 0 | K32: =A3A!K272 -> 0
A33: =A3A!A283 -> Vote 11 - [NAME OF VOTE 11] | C33: =A3A!C283 -> 0 | D33: =A3A!D283 -> 0 | E33: =A3A!E283 -> 0 | F33: =A3A!F283 -> 0 | G33: =A3A!G283 -> 0 | H33: =A3A!H283 -> 0 | I33: =A3A!I283 -> 0 | J33: =A3A!J283 -> 0 | K33: =A3A!K283 -> 0 | L33: =A3A!L284 -> 0
A34: =A3A!A294 -> Vote 12 - [NAME OF VOTE 12] | C34: =A3A!C294 -> 0 | D34: =A3A!D294 -> 0 | E34: =A3A!E294 -> 0 | F34: =A3A!F294 -> 0 | G34: =A3A!G294 -> 0 | H34: =A3A!H294 -> 0 | I34: =A3A!I294 -> 0 | J34: =A3A!J294 -> 0 | K34: =A3A!K294 -> 0 | L34: =A3A!L295 -> 0
A35: =A3A!A305 -> Vote 13 - [NAME OF VOTE 13] | C35: =A3A!C305 -> 0 | D35: =A3A!D305 -> 0 | E35: =A3A!E305 -> 0 | F35: =A3A!F305 -> 0 | G35: =A3A!G305 -> 0 | H35: =A3A!H305 -> 0 | I35: =A3A!I305 -> 0 | J35: =A3A!J305 -> 0 | K35: =A3A!K305 -> 0 | L35: =A3A!L306 -> 0
A36: =A3A!A316 -> Vote 14 - [NAME OF VOTE 14] | C36: =A3A!C316 -> 0 | D36: =A3A!D316 -> 0 | E36: =A3A!E316 -> 0 | F36: =A3A!F316 -> 0 | G36: =A3A!G316 -> 0 | H36: =A3A!H316 -> 0 | I36: =A3A!I316 -> 0 | J36: =A3A!J316 -> 0 | K36: =A3A!K316 -> 0 | L36: =A3A!L317 -> 0
A37: =A3A!A327 -> Vote 15 - [NAME OF VOTE 15] | C37: =A3A!C327 -> 0 | D37: =A3A!D327 -> 0 | E37: =A3A!E327 -> 0 | F37: =A3A!F327 -> 0 | G37: =A3A!G327 -> 0 | H37: =A3A!H327 -> 0 | I37: =A3A!I327 -> 0 | J37: =A3A!J327 -> 0 | K37: =A3A!K327 -> 0 | L37: =A3A!L328 -> 0
A38: Total Expenditure by Vote | B38: 2 | C38: =SUM(C23:C37) -> 5019454249 | D38: =SUM(D23:D37) -> 4932473917 | E38: 5545120282 | F38: 5636479723 | G38: 5443993045 | H38: 5443993045 | I38: 5970587817 | J38: 6334444453 | K38: 6817908128 | L38: =SUM(L23:L29) -> 0 | M38: 0 | N38: 0 | O38: 0 | P38: 0 | Q38: 0 | R38: 0 | S38: 0 | T38: 0 | U38: 0 | V38: 0 | W38: 0
A39: =result -> Surplus/(Deficit) for the year | B39: 2 | C39: =C20-C38 -> -236434616.6 | D39: 10401889.44 | E39: 553128997 | F39: 715457748.2 | G39: 1117490688 | H39: 1117490688 | I39: 706031325.6 | J39: 784962250.4 | K39: 822654122.2 | L39: 0 | M39: 0 | N39: 0 | O39: 0 | P39: 0 | Q39: 0 | R39: 0 | S39: 0 | T39: 0 | U39: 0 | V39: 0 | W39: 0
A40: =head27a -> References
A41: 1. Insert 'Vote'; e.g. department, if different to functional classification structure
A42: 2. Must reconcile to Budgeted Financial Performance (revenue and expenditure)
A43: 3. Assign share in 'associate' to relevant Vote
A45: ="check "&A39 -> check Surplus/(Deficit) for the year | C45: =C39-A3A!C340 -> 0 | D45: =D39-A3A!D340 -> 0 | E45: =E39-A3A!E340 -> 0 | F45: =F39-A3A!F340 -> 0 | G45: =G39-A3A!G340 -> 0 | H45: =H39-A3A!H340 -> 0 | I45: =I39-A3A!I340 -> 0 | J45: =J39-A3A!J340 -> 0 | K45: =K39-A3A!K340 -> 0

Sheet A3A
A1: =muni&" - "&Approve2&"A" -> KZN225 Msunduzi - Table A3 Budgeted Financial Performance (revenue and expenditure by municipal vote)A
A2: =Vdesc -> Vote Description | B2: =head27 -> Ref | C2: =head1b -> 2016/17 | D2: =head1A -> 2017/18 | E2: =Head1 -> 2018/19 | F2: =Head2 -> Current Year 2019/20 | I2: =Head3 -> 2020/21 Medium Term Revenue & Expenditure Framework | L2: =Head4 -> LTFS
A3: R thousand | C3: =Head5 -> Audited Outcome | D3: =Head5 -> Audited Outcome | E3: =Head5 -> Audited Outcome | F3: =Head6 -> Original Budget | G3: =Head7 -> Adjusted Budget | H3: =Head8 -> Full Year Forecast | I3: =Head9 -> Budget Year 2020/21 | J3: =Head10 -> Budget Year +1 2021/22 | K3: =Head11 -> Budget Year +2 2022/23 | L3: =Head12 -> Forecast 2023/24 | M3: =Head13 -> Forecast 2024/25 | N3: =Head14 -> Forecast 2025/26 | O3: =Head15 -> Forecast 2026/27 | P3: =Head16 -> Forecast 2027/28 | Q3: =Head17 -> Forecast 2028/29 | R3: =Head18 -> Forecast 2029/30 | S3: =Head19 -> Forecast 2030/31 | T3: =Head20 -> Forecast 2031/32 | U3: =Head21 -> Forecast 2032/33 | V3: =Head22 -> Forecast 2033/34 | W3: =Head23 -> Forecast 2034/35
A4: Revenue by Vote | B4: 1
A5: ='Org structure'!A2 -> Vote 1 - City Manager | C5: =SUM(C6:C15) -> 0 | D5: =SUM(D6:D15) -> 88662.54 | E5: 214 | F5: 56966.52 | G5: 56966.52 | H5: 56966.52 | I5: 60384.5112 | J5: 64007.58187 | K5: 67848.03678
A6: ='[3]Org structure'!E3 -> 1.1 - Internal Audit and Compliance | D6: -2788.35
A7: ='[3]Org structure'!E4 -> 1.2 - Office of the City Manager | D7: 65141.63 | E7: 214 | F7: 56966.52 | G7: 56966.52 | H7: 56966.52 | I7: 60384.5112 | J7: 64007.58187 | K7: 67848.03678
A8: ='[3]Org structure'!E5 -> 1.3 - Political Support | D8: 38054.23
A9: ='[3]Org structure'!E6 -> 1.4 - Strategic Planning | D9: -11744.97
A10: ='Org structure'!E7 -> 0
A11: ='Org structure'!E8 -> 0
A12: ='Org structure'!E9 -> 0
A13: ='Org structure'!E10 -> 0
A14: ='Org structure'!E11 -> 0
A15: ='Org structure'!E12 -> 0
A16: ='Org structure'!A3 -> Vote 2 - City Finance | C16: =SUM(C17:C26) -> 1162601605 | D16: =SUM(D17:D26) -> 1292218742 | E16: 1841339268 | F16: 1777245066 | G16: 1777146066 | H16: 1777146066 | I16: 1891748475 | J16: 2014551830 | K16: 2151926769
A17: ='Org structure'!E14 -> 2.1 - Asset Management | C17: 20819124.91 | D17: 13790711.19 | E17: 6761852 | F17: 14877956.48 | G17: 14877956.48 | H17: 14877956.48 | I17: 15770633.87 | J17: 16716871.9 | K17: 17719884.21
A18: ='Org structure'!E15 -> 2.2 - Budget and Treasury Management | C18: 283313112 | D18: 299699535.5 | E18: 439797155 | F18: 308311384 | G18: 308212384 | H18: 308212384 | I18: 334567876.6 | J18: 363940396.4 | K18: 402278648.6
A19: ='Org structure'!E16 -> 2.3 - Expenditure Management | C19: 287790.64 | D19: -79924.06 | E19: 62 | F19: 320895.92 | G19: 320895.92 | H19: 320895.92 | I19: 340149.6752 | J19: 360558.6557 | K19: 382192.1751
A20: ='Org structure'!E17 -> 2.4 - Revenue Management | C20: 833381518.4 | D20: 942515778.6 | E20: 1394543514 | F20: 1453466649 | G20: 1453466649 | H20: 1453466649 | I20: 1540785543 | J20: 1633232675 | K20: 1731226636
A21: ='Org structure'!E18 -> 2.5 - Supply Chain Management | C21: 24800059.44 | D21: 36292640.32 | E21: 236685 | F21: 268181.06 | G21: 268181.06 | H21: 268181.06 | I21: 284271.9236 | J21: 301328.239 | K21: 319407.9334
A22: ='Org structure'!E19 -> 0
A23: ='Org structure'!E20 -> 0
A24: ='Org structure'!E21 -> 0
A25: ='Org structure'!E22 -> 0
A26: ='Org structure'!E23 -> 0
A27: ='Org structure'!A4 -> Vote 3 - Community Services and Social Equity | C27: =SUM(C28:C37) -> 213712394.3 | D27: 199491348.7 | E27: 236959425 | F27: 210736724.6 | G27: 210736724.6 | H27: 210736724.6 | I27: 224706595.6 | J27: 239520116.5 | K27: 253103137
A28: ='Org structure'!E25 -> 3.1 - Area Based Management | C28: 6246733.31 | D28: 629162.9 | E28: 25153 | F28: 972327.4 | G28: 972327.4 | H28: 972327.4 | I28: 1030667.044 | J28: 1092507.067 | K28: 1158057.491
A29: ='Org structure'!E26 -> 3.2 - Public Safety, Emergency Services and Enforcement | C29: 38660412.07 | D29: 18379696.11 | E29: 23856567 | F29: 3606445.42 | G29: 3606445.42 | H29: 3606445.42 | I29: 3822832.145 | J29: 4052202.074 | K29: 4295334.198
A30: ='Org structure'!E27 -> 3.3 - Recreation and Facilities | C30: 50969265.26 | D30: 50152829 | E30: 53724345 | F30: 41587699.48 | G30: 41587699.48 | H30: 41587699.48 | I30: 44414016.8 | J30: 47235544.69 | K30: 49725603.89
A31: ='Org structure'!E28 -> 3.4 - Waste Management | C31: 117835983.7 | D31: 130329660.7 | E31: 159353360 | F31: 164570252.3 | G31: 164570252.3 | H31: 164570252.3 | I31: 175439079.6 | J31: 187139862.7 | K31: 197924141.4
A32: ='Org structure'!E29 -> 0
A33: ='Org structure'!E30 -> 0
A34: ='Org structure'!E31 -> 0
A35: ='Org structure'!E32 -> 0
A36: ='Org structure'!E33 -> 0
A37: ='Org structure'!E34 -> 0
A38: ='Org structure'!A5 -> Vote 4 - Corporate Services | C38: =SUM(C39:C48) -> 5676012.36 | D38: 9383448.99 | E38: 5862268 | F38: 6541799.7 | G38: 6541799.7 | H38: 6541799.7 | I38: 6870307.682 | J38: 2631246.143 | K38: 2789120.911
A39: ='Org structure'!E36 -> 4.1 - Human Resources Management | C39: 1787276.7 | D39: 1648642.13 | E39: 2948539 | F39: 2093836.02 | G39: 2093836.02 | H39: 2093836.02 | I39: 2219466.181 | J39: 2352634.152 | K39: 2493792.201
A40: ='Org structure'!E37 -> 4.2 - Information Technology | C40: -25122.37 | D40: -47306.64 | E40: 11644 | F40: 1929.2 | G40: 1929.2 | H40: 1929.2 | I40: 2044.952 | J40: 2167.64912 | K40: 2297.708067
A41: ='Org structure'!E38 -> 4.3 - Legal Services | C41: 1344.8 | D41: -228133.21 | E41: 9395 | F41: 246034.48 | G41: 246034.48 | H41: 246034.48 | I41: 260796.5488 | J41: 276444.3417 | K41: 293031.0022
A42: ='Org structure'!E39 -> 4.4 - Secretariat and Auxiliary Services | C42: 3912513.23 | D42: -1071.42 | E42: 341 | F42: 4200000 | G42: 4200000 | H42: 4200000 | I42: 4388000 | J42: 0 | K42: 0
A43: ='Org structure'!E40 -> 4.5 - General Manager: Corporate Service | D43: 8011318.13 | E43: 2892349
A44: ='Org structure'!E41 -> 0
A45: ='Org structure'!E42 -> 0
A46: ='Org structure'!E43 -> 0
A47: ='Org structure'!E44 -> 0
A48: ='Org structure'!E45 -> 0
A49: ='Org structure'!A6 -> Vote 5 - Infrastructure Services | C49: =SUM(C50:C59) -> 3106589450 | D49: =SUM(D50:D59) -> 3280433242 | E49: 3801263831 | F49: 4173276747 | G49: 4173276747 | H49: 4173276747 | I49: 4267905719 | J49: 4548478618 | K49: 4927855992
A50: ='Org structure'!E47 -> 5.1 - Electricity | C50: 1928074519 | D50: 1972985112 | E50: 2235472736 | F50: 2484338398 | G50: 2484338398 | H50: 2484338398 | I50: 2676568201 | J50: 2817382622 | K50: 3073071551
A51: ='Org structure'!E48 -> 5.2 - Project Management Office | C51: 3317659.97 | D51: 4607940.21 | E51: 21662773 | F51: 21662773 | G51: 21662773 | H51: 21662773 | I51: 9236000 | J51: 10665600 | K51: 11710160
A52: ='Org structure'!E49 -> 5.3 - Roads and Transportation | C52: 278460065.7 | D52: 227734016.2 | E52: 258228915 | F52: 259135944.9 | G52: 259135944.9 | H52: 259135944.9 | I52: 68736106.92 | J52: 75336764.53 | K52: 79107708.21
A53: ='Org structure'!E50 -> 5.4 - Water and Sanitation | C53: 896737205.3 | D53: 1075105281 | E53: 1285695207 | F53: 1408139631 | G53: 1408139631 | H53: 1408139631 | I53: 1513365412 | J53: 1645093632 | K53: 1763966573
A54: ='Org structure'!E51 -> 5.5 - General Manager: Infrastructure | D54: 891.89 | E54: 204200
A55: ='Org structure'!E52 -> 0
A56: ='Org structure'!E53 -> 0
A57: ='Org structure'!E54 -> 0
A58: ='Org structure'!E55 -> 0
A59: ='Org structure'!E56 -> 0
A60: ='Org structure'!A7 -> Vote 6 - Sustainable Development and City Enterprises | C60: =SUM(C61:C70) -> 294440169.6 | D60: =SUM(D61:D70) -> 161260363 | E60: 212824273 | F60: 184080167 | G60: 393725429 | H60: 393725429 | I60: 285327661 | J60: 314160884.1 | K60: 304819384.2
A61: ='Org structure'!E58 -> 6.1 - City Entities | C61: 47341268.17 | D61: 51087740.86 | E61: 27007605 | F61: 59041330.8 | G61: 59578472.8 | H61: 59578472.8 | I61: 62476090.65 | J61: 66222376.09 | K61: 70190568.65
A62: ='Org structure'!E59 -> 6.2 - Development Services | C62: 416853.43 | D62: 356064.34 | E62: 352870 | F62: 423052.36 | G62: 423052.36 | H62: 423052.36 | I62: 448435.5016 | J62: 475341.6317 | K62: 503862.1296
A63: ='Org structure'!E60 -> 6.3 - Human Settlement Development | C63: 231128063.8 | D63: 52005113.31 | E63: 126796992 | F63: 70607606.88 | G63: 279715726.9 | H63: 279715726.9 | I63: 183154467.3 | J63: 207959578.8 | K63: 189351150.6
A64: ='Org structure'!E61 -> 6.4 - Town Planning | C64: 15553984.23 | D64: 57826986.74 | E64: 58666806 | F64: 54008176.94 | G64: 54008176.94 | H64: 54008176.94 | I64: 39248667.56 | J64: 39503587.61 | K64: 44773802.87
A65: ='Org structure'!E62 -> 6.5 - 6.5 - General Manager: Sustainable Development and City Enterprises | D65: -15542.23
A66: ='Org structure'!E63 -> 0
A67: ='Org structure'!E64 -> 0
A68: ='Org structure'!E65 -> 0
A69: ='Org structure'!E66 -> 0
A70: ='Org structure'!E67 -> 0
A71: ='Org structure'!A8 -> Vote 7 - [NAME OF VOTE 7] | C71: =SUM(C72:C81) -> 0 | D71: 0 | E71: 0 | F71: 0 | G71: 0 | H71: 0 | I71: 0 | J71: 0 | K71: 0
A72: ='Org structure'!E69 -> 7.1 - [Name of sub-vote]
A73: ='Org structure'!E70 -> 0
A74: ='Org structure'!E71 -> 0
A75: ='Org structure'!E72 -> 0
A76: ='Org structure'!E73 -> 0
A77: ='Org structure'!E74 -> 0
A78: ='Org structure'!E75 -> 0
A79: ='Org structure'!E76 -> 0
A80: ='Org structure'!E77 -> 0
A81: ='Org structure'!E78 -> 0
A82: ='Org structure'!A9 -> Vote 8 - [NAME OF VOTE 8] | C82: =SUM(C83:C92) -> 0 | D82: =SUM(D83:D92) -> 0 | E82: 0 | F82: 0 | G82: 0 | H82: 0 | I82: 0 | J82: 0 | K82: 0
A83: ='Org structure'!E80 -> 8.1 - [Name of sub-vote]
A84: ='Org structure'!E81 -> 0
A85: ='Org structure'!E82 -> 0
A86: ='Org structure'!E83 -> 0
A87: ='Org structure'!E84 -> 0
A88: ='Org structure'!E85 -> 0
A89: ='Org structure'!E86 -> 0
A90: ='Org structure'!E87 -> 0
A91: ='Org structure'!E88 -> 0
A92: ='Org structure'!E89 -> 0
A93: ='Org structure'!A10 -> Vote 9 - [NAME OF VOTE 9] | C93: =SUM(C94:C103) -> 0 | D93: =SUM(D94:D103) -> 0 | E93: 0 | F93: 0 | G93: 0 | H93: 0 | I93: 0 | J93: 0 | K93: 0
A94: ='Org structure'!E91 -> 9.1 - [Name of sub-vote]
A95: ='Org structure'!E92 -> 0
A96: ='Org structure'!E93 -> 0
A97: ='Org structure'!E94 -> 0
A98: ='Org structure'!E95 -> 0
A99: ='Org structure'!E96 -> 0
A100: ='Org structure'!E97 -> 0
A101: ='Org structure'!E98 -> 0
A102: ='Org structure'!E99 -> 0
A103: ='Org structure'!E100 -> 0
A104: ='Org structure'!A11 -> Vote 10 - [NAME OF VOTE 10] | C104: =SUM(C105:C114) -> 0 | D104: =SUM(D105:D114) -> 0 | E104: 0 | F104: 0 | G104: 0 | H104: 0 | I104: 0 | J104: 0 | K104: 0
A105: ='Org structure'!E102 -> 10.1 - [Name of sub-vote]
A106: ='Org structure'!E103 -> 0
A107: ='Org structure'!E104 -> 0
A108: ='Org structure'!E105 -> 0
A109: ='Org structure'!E106 -> 0
A110: ='Org structure'!E107 -> 0
A111: ='Org structure'!E108 -> 0
A112: ='Org structure'!E109 -> 0
A113: ='Org structure'!E110 -> 0
A114: ='Org structure'!E111 -> 0
A115: ='Org structure'!A12 -> Vote 11 - [NAME OF VOTE 11] | C115: =SUM(C116:C125) -> 0 | D115: =SUM(D116:D125) -> 0 | E115: 0 | F115: 0 | G115: 0 | H115: 0 | I115: 0 | J115: 0 | K115: 0
A116: ='Org structure'!E113 -> 11.1 - [Name of sub-vote]
A117: ='Org structure'!E114 -> 0
A118: ='Org structure'!E115 -> 0
A119: ='Org structure'!E116 -> 0
A120: ='Org structure'!E117 -> 0
A121: ='Org structure'!E118 -> 0
A122: ='Org structure'!E119 -> 0
A123: ='Org structure'!E120 -> 0
A124: ='Org structure'!E121 -> 0
A125: ='Org structure'!E122 -> 0
A126: ='Org structure'!A13 -> Vote 12 - [NAME OF VOTE 12] | C126: =SUM(C127:C136) -> 0 | D126: =SUM(D127:D136) -> 0 | E126: 0 | F126: 0 | G126: 0 | H126: 0 | I126: 0 | J126: 0 | K126: 0
A127: ='Org structure'!E124 -> 12.1 - [Name of sub-vote]
A128: ='Org structure'!E125 -> 0
A129: ='Org structure'!E126 -> 0
A130: ='Org structure'!E127 -> 0
A131: ='Org structure'!E128 -> 0
A132: ='Org structure'!E129 -> 0
A133: ='Org structure'!E130 -> 0
A134: ='Org structure'!E131 -> 0
A135: ='Org structure'!E132 -> 0
A136: ='Org structure'!E133 -> 0
A137: ='Org structure'!A14 -> Vote 13 - [NAME OF VOTE 13] | C137: =SUM(C138:C147) -> 0 | D137: =SUM(D138:D147) -> 0 | E137: 0 | F137: 0 | G137: 0 | H137: 0 | I137: 0 | J137: 0 | K137: 0
A138: ='Org structure'!E135 -> 13.1 - [Name of sub-vote]
A139: ='Org structure'!E136 -> 0
A140: ='Org structure'!E137 -> 0
A141: ='Org structure'!E138 -> 0
A142: ='Org structure'!E139 -> 0
A143: ='Org structure'!E140 -> 0
A144: ='Org structure'!E141 -> 0
A145: ='Org structure'!E142 -> 0
A146: ='Org structure'!E143 -> 0
A147: ='Org structure'!E144 -> 0
A148: ='Org structure'!A15 -> Vote 14 - [NAME OF VOTE 14] | C148: =SUM(C149:C158) -> 0 | D148: =SUM(D149:D158) -> 0 | E148: 0 | F148: 0 | G148: 0 | H148: 0 | I148: 0 | J148: 0 | K148: 0
A149: ='Org structure'!E146 -> 14.1 - [Name of sub-vote]
A150: ='Org structure'!E147 -> 0
A151: ='Org structure'!E148 -> 0
A152: ='Org structure'!E149 -> 0
A153: ='Org structure'!E150 -> 0
A154: ='Org structure'!E151 -> 0
A155: ='Org structure'!E152 -> 0
A156: ='Org structure'!E153 -> 0
A157: ='Org structure'!E154 -> 0
A158: ='Org structure'!E155 -> 0
A159: ='Org structure'!A16 -> Vote 15 - [NAME OF VOTE 15] | C159: =SUM(C160:C169) -> 0 | D159: =SUM(D160:D169) -> 0 | E159: 0 | F159: 0 | G159: 0 | H159: 0 | I159: 0 | J159: 0 | K159: 0
A160: ='Org structure'!E157 -> 15.1 - [Name of sub-vote]
A161: ='Org structure'!E158 -> 0
A162: ='Org structure'!E159 -> 0
A163: ='Org structure'!E160 -> 0
A164: ='Org structure'!E161 -> 0
A165: ='Org structure'!E162 -> 0
A166: ='Org structure'!E163 -> 0
A167: ='Org structure'!E164 -> 0
A168: ='Org structure'!E165 -> 0
A169: ='Org structure'!E166 -> 0
A170: Total Revenue by Vote | B170: 2 | C170: =C5+C16+C27+C38+C49+C60+C71+C82+C93+C104+C115+C126+C137+C148+C159 -> 4783019632 | D170: =D5+D16+D27+D38+D49+D60+D71+D82+D93+D104+D115+D126+D137+D148+D159 -> 4942875807 | E170: =E5+E16+E27+E38+E49+E60+E71+E82+E93+E104+E115+E126+E137+E148+E159 -> 6098249279 | F170: 6351937471 | G170: 6561483733 | H170: 6561483733 | I170: =I5+I16+I27+I38+I49+I60+I71+I82+I93+I104+I115+I126+I137+I148+I159 -> 6676619143 | J170: 7119406703 | K170: 7640562250 | L170: =SUM(L78:L81) -> 0 | M170: 0 | N170: 0 | O170: 0 | P170: 0 | Q170: 0 | R170: 0 | S170: 0 | T170: 0 | U170: 0 | V170: 0 | W170: 0
A172: Expenditure by Vote | B172: 1
A173: =A5 -> Vote 1 - City Manager | C173: =SUM(C174:C183) -> 166772623.6 | D173: 176238545.4 | E173: 194108064 | F173: 177602227.4 | G173: 177602227.4 | H173: 177602227.4 | I173: 193814013.9 | J173: 203590227.6 | K173: 215268231.9
A174: =A6 -> 1.1 - Internal Audit and Compliance | C174: 20612516.92 | D174: 12845619.53 | E174: 29585787 | F174: 14082972.99 | G174: 14082972.99 | H174: 14082972.99 | I174: 14601979.73 | J174: 15245856.36 | K174: 16234236.5
A175: 1.2 - Office of the City Manager | C175: 66678819.66 | D175: 78843976.27 | E175: 69404433 | F175: 66783091.83 | G175: 66783091.83 | H175: 66783091.83 | I175: 68654916.02 | J175: 71860200.56 | K175: 76368732.64
A176: 1.3 - Political Support | C176: 75214729.12 | D176: 79569701.56 | E176: 85724513 | F176: 90058206.45 | G176: 90058206.45 | H176: 90058206.45 | I176: 94358381.92 | J176: 99433457.24 | K176: 105118034.9
A177: 1.4 - Strategic Planning | C177: 4266557.87 | D177: 4979248.01 | E177: 9393331 | F177: 6677956.12 | G177: 6677956.12 | H177: 6677956.12 | I177: 16198736.23 | J177: 17050713.41 | K177: 17547227.87
A178: 0
A179: 0
A180: 0
A181: 0
A182: 0
A183: 0
A184: =A16 -> Vote 2 - City Finance | C184: =SUM(C185:C194) -> 371289500.3 | D184: =SUM(D185:D194) -> 275761302.6 | E184: =SUM(E185:E194) -> 975349935 | F184: 691435774.5 | G184: 691435774.5 | H184: 691435774.5 | I184: 735802063 | J184: 776196213.4 | K184: 824869817
A185: =A17 -> 2.1 - Asset Management | C185: 40809334.92 | D185: 56698215.01 | E185: 121395371.8 | F185: 119442557.9 | G185: 119442557.9 | H185: 119442557.9 | I185: 132100964.5 | J185: 140131544.2 | K185: 148989900.6
A186: 2.2 - Budget and Treasury Management | C186: 162432799.8 | D186: -25922100.37 | E186: 80325809 | F186: 103173194 | G186: 103173194 | H186: 103173194 | I186: 113936438.7 | J186: 118601960.4 | K186: 126069104.7
A187: 2.3 - Expenditure Management | C187: 58234389.04 | D187: 58469733.36 | E187: 46587775 | F187: 57898260.21 | G187: 57898260.21 | H187: 57898260.21 | I187: 56672809.32 | J187: 59885775.12 | K187: 63715583.08
A188: 2.4 - Revenue Management | C188: 19030347.52 | D188: 86037587.67 | E188: 661044412 | F188: 346700272.9 | G188: 346700272.9 | H188: 346700272.9 | I188: 366596281.3 | J188: 387788408.5 | K188: 411808392.9
A189: 2.5 - Supply Chain Management | C189: 90782629.03 | D189: 100477867 | E189: 65996567.22 | F189: 64221489.58 | G189: 64221489.58 | H189: 64221489.58 | I189: 66495569.23 | J189: 69788525.2 | K189: 74286835.67
A190: 0
A191: 0
A192: 0
A193: 0
A194: 0
A195: =A27 -> Vote 3 - Community Services and Social Equity | C195: =SUM(C196:C205) -> 768569616.5 | D195: 668362475.6 | E195: 724942866.7 | F195: 742913351.7 | G195: 742913351.7 | H195: 742913351.7 | I195: 776032451.4 | J195: 825579538.4 | K195: 880814682.6
A196: 3.1 - Area Based Management | C196: 25483263.59 | D196: 26776269.83 | E196: 29901836.54 | F196: 32191569.52 | G196: 32191569.52 | H196: 32191569.52 | I196: 34062884.8 | J196: 36337686.16 | K196: 38858492.64
A197: 3.2 - Public Safety, Emergency Services and Enforcement | C197: 329139478.6 | D197: 295712197 | E197: 309168018.7 | F197: 304172524.5 | G197: 304172524.5 | H197: 304172524.5 | I197: 320376940.3 | J197: 339837849.1 | K197: 362814126.3
A198: 3.3 - Recreation and Facilities | C198: 293348104.8 | D198: 252089568.5 | E198: 258723405.3 | F198: 269930846.6 | G198: 269930846.6 | H198: 269930846.6 | I198: 278705792.5 | J198: 297932277.3 | K198: 317669805.4
A199: 3.4 - Waste Management | C199: 120598769.5 | D199: 93784440.16 | E199: 127149606.2 | F199: 136618411.1 | G199: 136618411.1 | H199: 136618411.1 | I199: 142886833.9 | J199: 151471725.8 | K199: 161472258.3
A200: 0
A201: 0
... 144 more rows

Sheet A4-FinPerf RE
A1: =muni&" - "&Approve4 -> KZN225 Msunduzi - Table A4 Budgeted Financial Performance (revenue and expenditure)
A2: =desc -> Description | B2: =head27 -> Ref | C2: =head1b -> 2016/17 | D2: =head1A -> 2017/18 | E2: =Head1 -> 2018/19 | F2: =Head2 -> Current Year 2019/20 | J2: =Head3 -> 2020/21 Medium Term Revenue & Expenditure Framework | M2: =Head4 -> LTFS
A3: R thousand | B3: 1 | C3: =Head5 -> Audited Outcome | D3: =Head5 -> Audited Outcome | E3: =Head5 -> Audited Outcome | F3: =Head6 -> Original Budget | G3: =Head7 -> Adjusted Budget | H3: =Head8 -> Full Year Forecast | I3: =Head5b -> Pre-audit outcome | J3: =Head9 -> Budget Year 2020/21 | K3: =Head10 -> Budget Year +1 2021/22 | L3: =Head11 -> Budget Year +2 2022/23 | M3: =Head12 -> Forecast 2023/24 | N3: =Head13 -> Forecast 2024/25 | O3: =Head14 -> Forecast 2025/26 | P3: =Head15 -> Forecast 2026/27 | Q3: =Head16 -> Forecast 2027/28 | R3: =Head17 -> Forecast 2028/29 | S3: =Head18 -> Forecast 2029/30 | T3: =Head19 -> Forecast 2030/31 | U3: =Head20 -> Forecast 2031/32 | V3: =Head21 -> Forecast 2032/33 | W3: =Head22 -> Forecast 2033/34 | X3: =Head23 -> Forecast 2034/35
A4: Revenue By Source
A5: Property rates | B5: 2 | C5: 793014215 | D5: 864164006 | E5: 930980085 | F5: ='SA1'!F9 -> 1200771538 | G5: ='SA1'!G9 -> 1200771538 | H5: ='SA1'!H9 -> 1200771538 | I5: ='SA1'!I9 -> 1200771538 | J5: ='SA1'!J9 -> 1272817831 | K5: ='SA1'!K9 -> 1349186901 | L5: ='SA1'!L9 -> 1430138115
A6: Service charges - electricity revenue | B6: 2 | C6: 1862781121 | D6: 1905071220 | E6: 2032237677 | F6: ='SA1'!F15 -> 2417983742 | G6: ='SA1'!G15 -> 2417983742 | H6: ='SA1'!H15 -> 2417983742 | I6: ='SA1'!I15 -> 2417983742 | J6: ='SA1'!J15 -> 2613790933 | K6: ='SA1'!K15 -> 2749708061 | L6: ='SA1'!L15 -> 2994432079
A7: Service charges - water revenue | B7: 2 | C7: 88916983 | D7: 563095497 | E7: 649733747 | F7: ='SA1'!F21 -> 662966142 | G7: ='SA1'!G21 -> 662966142 | H7: ='SA1'!H21 -> 662966142 | I7: ='SA1'!I21 -> 662966142 | J7: ='SA1'!J21 -> 722633094.8 | K7: ='SA1'!K21 -> 787670073.4 | L7: ='SA1'!L21 -> 858560380
A8: Service charges - sanitation revenue | B8: 2 | C8: 121773982 | D8: 142391879 | E8: 161144633 | F8: ='SA1'!F27 -> 145475358.2 | G8: ='SA1'!G27 -> 145475358.2 | H8: ='SA1'!H27 -> 145475358.2 | I8: ='SA1'!I27 -> 145475358.2 | J8: ='SA1'!J27 -> 154203879.7 | K8: ='SA1'!K27 -> 163456112.5 | L8: ='SA1'!L27 -> 173263479.3
A9: Service charges - refuse revenue | B9: 2 | C9: 464106823 | D9: 100233134 | E9: 99492107 | F9: ='SA1'!F34 -> 111323522.5 | G9: ='SA1'!G34 -> 111323522.5 | H9: ='SA1'!H34 -> 111323522.5 | I9: ='SA1'!I34 -> 111323522.5 | J9: ='SA1'!J34 -> 118002933.8 | K9: ='SA1'!K34 -> 125083109.8 | L9: ='SA1'!L34 -> 132588096.4
A11: Rental of facilities and equipment | C11: 26144056 | D11: 27295067 | E11: 20617910 | F11: 27826600.6 | G11: 27826600.6 | H11: 27826600.6 | I11: 27826600.6 | J11: 29496196.64 | K11: 31265968.43 | L11: 33141926.54
A12: Interest earned - external investments | C12: 53631477 | D12: 39046190 | E12: 20378755 | F12: 14702275.05 | G12: 14603275.05 | H12: 14603275.05 | I12: 14603275.05 | J12: 15479471.55 | K12: 16408239.85 | L12: 17392734.24
A13: Interest earned - outstanding debtors | C13: 120869107 | D13: 201961916 | E13: 218926060 | F13: 193739515.7 | G13: 193739515.7 | H13: 193739515.7 | I13: 193739515.7 | J13: 205363886.6 | K13: 217685719.8 | L13: 230746863
A14: Dividends received | D14: 0 | E14: 0 | G14: 0 | H14: 0 | I14: 0
A15: Fines, penalties and forfeits | C15: 17813254 | D15: 14284733 | E15: 12557144 | F15: 16064007.44 | G15: 16064007.44 | H15: 16064007.44 | I15: 16064007.44 | J15: 17027847.89 | K15: 18049518.76 | L15: 19132489.89
A16: Licences and permits | C16: 520627 | D16: 898614 | E16: 829644 | F16: 1071357.9 | G16: 1071357.9 | H16: 1071357.9 | I16: 1071357.9 | J16: 1135639.374 | K16: 1203777.736 | L16: 1276004.401
A17: Agency services | C17: 2997556 | D17: 2577730 | E17: 1970390 | F17: 575982.8 | G17: 575982.8 | H17: 575982.8 | I17: 575982.8 | J17: 610541.768 | K17: 647174.2741 | L17: 686004.7305
A18: Transfers and subsidies | C18: 949742135 | D18: 943374430 | E18: 1016641629 | F18: 672022829 | G18: 681050778 | H18: 681050778 | I18: 681050778 | J18: 681364901 | K18: 735201115.5 | L18: 793102908.6
A19: Other revenue | B19: 2 | C19: 79621578 | D19: 68616952 | E19: 63353381 | F19: ='SA1'!F49 -> 140145248.9 | G19: ='SA1'!G49 -> 140145248.9 | H19: ='SA1'!H49 -> 140145248.9 | I19: ='SA1'!I49 -> 140145248.9 | J19: ='SA1'!J49 -> 148553963.9 | K19: ='SA1'!K49 -> 157467201.7 | L19: ='SA1'!L49 -> 166915233.8
A20: Gains | C20: 17405859 | D20: 433409 | E20: 421042
A21: Total Revenue (excluding capital transfers and contributions) | C21: =SUM(C5:C9)+SUM(C11:C20) -> 4599338773 | D21: =SUM(D5:D9)+SUM(D11:D20) -> 4873444777 | E21: 5229284204 | F21: 5604668121 | G21: 5613597070 | H21: 5613597070 | I21: 5613597070 | J21: 5980481120 | K21: 6353032973 | L21: 6851376314 | M21: =SUM(M5:M20) -> 0 | N21: 0 | O21: 0 | P21: 0 | Q21: 0 | R21: 0 | S21: 0 | T21: 0 | U21: 0 | V21: 0 | W21: 0 | X21: 0
A23: Expenditure By Type
A24: Employee related costs | B24: 2 | C24: ='SA1'!C67 -> 990111002.1 | D24: ='SA1'!D67 -> 1120867730 | E24: ='SA1'!E67 -> 1268313732 | F24: ='SA1'!F67 -> 1455869443 | G24: ='SA1'!G67 -> 1445367850 | H24: ='SA1'!H67 -> 1445367850 | I24: ='SA1'!I67 -> 1445367850 | J24: ='SA1'!J67 -> 1538851434 | K24: ='SA1'!K67 -> 1646571034 | L24: ='SA1'!L67 -> 1761831006
A25: Remuneration of councillors | C25: 43574297 | D25: 45020093 | E25: 44130681 | F25: 51487908.94 | G25: 51487908.94 | H25: 51487908.94 | I25: 51487908.94 | J25: 54062304.39 | K25: 56765419.61 | L25: 59603690.59
A26: Debt impairment | B26: 3 | C26: 40800039 | D26: 908868803 | E26: 697521846 | F26: 116890701.2 | G26: 116890701.2 | H26: 116890701.2 | I26: 116890701.2 | J26: 138904143.3 | K26: 131338391.9 | L26: 139211818.9
A27: Depreciation & asset impairment | B27: 2 | C27: ='SA1'!C83 -> 605422092.3 | D27: ='SA1'!D83 -> 470370498.3 | E27: ='SA1'!E83 -> 467691505 | F27: ='SA1'!F83 -> 492025080.3 | G27: ='SA1'!G83 -> 491076080.3 | H27: ='SA1'!H83 -> 491076080.3 | I27: ='SA1'!I83 -> 491076080.3 | J27: ='SA1'!J83 -> 520540645.1 | K27: ='SA1'!K83 -> 551773083.8 | L27: ='SA1'!L83 -> 584879468.8
A28: Finance charges | C28: 114567960 | D28: 103988457 | E28: 85530407 | F28: 41660099 | G28: 41660099 | H28: 41660099 | I28: 41660099 | J28: 39577094.05 | K28: 37598239.35 | L28: 35718327.38
A29: Bulk purchases | B29: 2 | C29: ='SA1'!C88 -> 1866282816 | D29: ='SA1'!D88 -> 1956998980 | E29: ='SA1'!E88 -> 2010059855 | F29: ='SA1'!F88 -> 2282599889 | G29: ='SA1'!G88 -> 2282599889 | H29: ='SA1'!H88 -> 2282599889 | I29: ='SA1'!I88 -> 2282599889 | J29: ='SA1'!J88 -> 2473006560 | K29: ='SA1'!K88 -> 2625073272 | L29: ='SA1'!L88 -> 2860017931
A30: Other materials | B30: 8 | C30: 46024976 | D30: 69287186 | E30: 56436683 | F30: 55756420.65 | G30: 42432591.39 | H30: 42432591.39 | I30: 42432591.39 | J30: 66378484 | K30: 68422752.01 | L30: 72271369.41
A31: Contracted services | C31: ='SA1'!C146 -> 556503161.8 | D31: ='SA1'!D146 -> 622403225.7 | E31: ='SA1'!E146 -> 671010484.4 | F31: ='SA1'!F146 -> 587242320.1 | G31: ='SA1'!G146 -> 455596635.3 | H31: ='SA1'!H146 -> 455596635.3 | I31: ='SA1'!I146 -> 455596635.3 | J31: ='SA1'!J146 -> 542328641.4 | K31: ='SA1'!K146 -> 569828871.3 | L31: ='SA1'!L146 -> 611065901.1
A32: Transfers and subsidies | C32: ='SA1'!C93 -> 36447088.95 | D32: ='SA1'!D93 -> 25890640.17 | E32: ='SA1'!E93 -> 42492244 | F32: ='SA1'!F93 -> 46379439.52 | G32: ='SA1'!G93 -> 58899891.34 | H32: ='SA1'!H93 -> 58899891.34 | I32: ='SA1'!I93 -> 58899891.34 | J32: ='SA1'!J93 -> 48494679.46 | K32: ='SA1'!K93 -> 49960137.47 | L32: ='SA1'!L93 -> 52848745.72
A33: Other expenditure | B33: 4, 5 | C33: ='SA1'!C181 -> 201571876.1 | D33: ='SA1'!D181 -> 167375246.6 | E33: ='SA1'!E181 -> 206293884.5 | F33: ='SA1'!F181 -> 198552291.6 | G33: ='SA1'!G181 -> 149965268.6 | H33: ='SA1'!H181 -> 149965268.6 | I33: ='SA1'!I181 -> 149965268.6 | J33: ='SA1'!J181 -> 215894562.2 | K33: ='SA1'!K181 -> 237920299.1 | L33: ='SA1'!L181 -> 252374236.7
A34: Losses | C34: 107640212 | D34: 118343173 | E34: 125803358 | F34: 43396 | G34: 43396 | H34: 43396 | I34: 43396
A35: Total Expenditure | C35: =SUM(C24:C34) -> 4608945522 | D35: =SUM(D24:D34) -> 5609414033 | E35: 5675284680 | F35: 5328506989 | G35: 5136020311 | H35: 5136020311 | I35: 5136020311 | J35: 5638038548 | K35: 5975251501 | L35: 6429822496 | M35: =SUM(M24:M34) -> 0 | N35: 0 | O35: 0 | P35: 0 | Q35: 0 | R35: 0 | S35: 0 | T35: 0 | U35: 0 | V35: 0 | W35: 0 | X35: 0
A37: Surplus/(Deficit) | C37: =C21-C35 -> -9606748.54 | D37: -735969256.2 | E37: -446000476 | F37: 276161132.2 | G37: 477576759.1 | H37: 477576759.1 | I37: 477576759.1 | J37: 342442572.6 | K37: 377781472.7 | L37: 421553818.4 | M37: =M21+M35 -> 0 | N37: 0 | O37: 0 | P37: 0 | Q37: 0 | R37: 0 | S37: 0 | T37: 0 | U37: 0 | V37: 0 | W37: 0 | X37: 0
A38: Transfers and subsidies - capital (monetary allocations) (National / Provincial and District) | C38: =C21-C35 -> -9606748.54 | D38: 146624820.5 | E38: 460142625 | F38: 439342400 | G38: 639959713 | H38: 639959713 | I38: 639959713 | J38: 363588753 | K38: 407180777.7 | L38: 401100303.8
A39: Transfers and subsidies - capital (monetary allocations) (National / Provincial Departmental Agencies, Households, Non-profit Institutions, Private Enterprises, Public Corporatons, Higher Educational Institutions) | B39: 6 | C39: ='SA1'!C76 -> 0
A40: Transfers and subsidies - capital (in-kind - all)
A41: Surplus/(Deficit) after capital transfers & contributions | C41: =SUM(C37:C40) -> -19213497.08 | D41: -589344435.8 | E41: 14142149.03 | F41: 715503532.2 | G41: 1117536472 | H41: 1117536472 | I41: 1117536472 | J41: 706031325.6 | K41: 784962250.4 | L41: 822654122.2
A42: Taxation
A43: Surplus/(Deficit) after taxation | C43: =C41-C42 -> -19213497.08 | D43: -589344435.8 | E43: 14142149.03 | F43: 715503532.2 | G43: 1117536472 | H43: 1117536472 | I43: 1117536472 | J43: 706031325.6 | K43: 784962250.4 | L43: 822654122.2
A44: Attributable to minorities
A45: Surplus/(Deficit) attributable to municipality | C45: =SUM(C43:C44) -> -19213497.08 | D45: -589344435.8 | E45: 14142149.03 | F45: 715503532.2 | G45: 1117536472 | H45: 1117536472 | I45: 1117536472 | J45: 706031325.6 | K45: 784962250.4 | L45: 822654122.2
A46: Share of surplus/ (deficit) of associate | B46: 7
A47: =result -> Surplus/(Deficit) for the year | C47: =SUM(C45:C46) -> -19213497.08 | D47: -589344435.8 | E47: 14142149.03 | F47: 715503532.2 | G47: 1117536472 | H47: 1117536472 | I47: 1117536472 | J47: 706031325.6 | K47: 784962250.4 | L47: 822654122.2 | M47: =M25+M46 -> 0 | N47: 0 | O47: 0 | P47: 0 | Q47: 0 | R47: 0 | S47: 0 | T47: 0 | U47: 0 | V47: 0 | W47: 0 | X47: 0
A48: =head27a -> References
A49: 1. Classifications are revenue sources and expenditure type
A50: 2. Detail to be provided in Table SA1
A51: 3. Previously described as 'bad or doubtful debts' - amounts shown should reflect the change in the provision for debt impairment
A52: 4. Expenditure type components previously shown under repairs and maintenance should be allocated back to the originating expenditure group/item; e.g. employee costs
A53: 5. Repairs & maintenance detailed in Table A9 and Table SA34c
A54: 6. Contributions are funds provided by external organisations to assist with infrastructure development; e.g. developer contributions (detail to be provided in Table SA1)
A55: 7. Equity method ( Includes Joint Ventures)
A56: 8. All materials not part of 'bulk' e.g road making materials, pipe, cable etc.
A57: check balance | C57: =C45-'A3-FinPerf V'!C39 -> 217221119.5 | D57: =D45-'A3-FinPerf V'!D39 -> -599746325.2 | E57: =E45-'A3-FinPerf V'!E39 -> -538986848 | F57: =F45-'A3-FinPerf V'!F39 -> 45783.99968 | G57: =G45-'A3-FinPerf V'!G39 -> 45783.99968 | H57: =H45-'A3-FinPerf V'!H39 -> 45783.99968 | J57: =J45-'A3-FinPerf V'!I39 -> 0 | K57: =K45-'A3-FinPerf V'!J39 -> 0 | L57: =L45-'A3-FinPerf V'!K39 -> -1.072883606e-06
A59: Total revenue | C59: =C21+SUM(C38:C40) -> 4589732024 | D59: 5020069597 | E59: 5689426829 | F59: 6044010521 | G59: 6253556783 | H59: 6253556783 | I59: 6253556783 | J59: 6344069873 | K59: 6760213751 | L59: 7252476618

Sheet A5-Capex
A2: =Vdesc -> Vote Description | B2: =head27 -> Ref | C2: =head1b -> 2016/17 | D2: =head1A -> 2017/18 | E2: =Head1 -> 2018/19 | F2: =Head2 -> Current Year 2019/20 | J2: =Head3 -> 2020/21 Medium Term Revenue & Expenditure Framework
A3: R thousand | B3: 1 | C3: =Head5 -> Audited Outcome | D3: =Head5 -> Audited Outcome | E3: =Head5 -> Audited Outcome | F3: =Head6 -> Original Budget | G3: =Head7 -> Adjusted Budget | H3: =Head8 -> Full Year Forecast | I3: =Head5b -> Pre-audit outcome | J3: =Head9 -> Budget Year 2020/21 | K3: =Head10 -> Budget Year +1 2021/22 | L3: =Head11 -> Budget Year +2 2022/23
A4: Capital expenditure - Vote
A5: Multi-year expenditure to be appropriated | B5: 2
A6: =A5A!A6 -> Vote 1 - City Manager | C6: =A5A!C6 -> 3866284.29 | D6: =A5A!D6 -> 320532.86 | E6: =A5A!E6 -> 10000 | F6: =A5A!F6 -> 5131500 | G6: =A5A!G6 -> 5131500 | H6: =A5A!H6 -> 5131500 | I6: =A5A!I6 -> 5131500 | J6: =A5A!J6 -> 0 | K6: =A5A!K6 -> 0 | L6: =A5A!L6 -> 0
A7: =A5A!A17 -> Vote 2 - City Finance | C7: =A5A!C17 -> 30114037.03 | D7: =A5A!D17 -> 8968380.12 | E7: =A5A!E17 -> 0 | F7: =A5A!F17 -> 22500000 | G7: =A5A!G17 -> 22500000 | H7: =A5A!H17 -> 22500000 | I7: =A5A!I17 -> 22500000 | J7: =A5A!J17 -> 0 | K7: =A5A!K17 -> 0 | L7: =A5A!L17 -> 0
A8: =A5A!A28 -> Vote 3 - Community Services and Social Equity | C8: =A5A!C28 -> 102852006.5 | D8: =A5A!D28 -> 20104586.9 | E8: =A5A!E28 -> 35939310 | F8: =A5A!F28 -> 22974656 | G8: =A5A!G28 -> 22974656 | H8: =A5A!H28 -> 22974656 | I8: =A5A!I28 -> 22974656 | J8: =A5A!J28 -> 25284240 | K8: =A5A!K28 -> 29295864 | L8: =A5A!L28 -> 30745350
A9: =A5A!A39 -> Vote 4 - Corporate Services | C9: =A5A!C39 -> 25749118.25 | D9: =A5A!D39 -> 823826.7 | E9: =A5A!E39 -> 2587789 | F9: =A5A!F39 -> 700000 | G9: =A5A!G39 -> 700000 | H9: =A5A!H39 -> 700000 | I9: =A5A!I39 -> 700000 | J9: =A5A!J39 -> 0 | K9: =A5A!K39 -> 0 | L9: =A5A!L39 -> 0
A10: =A5A!A50 -> Vote 5 - Infrastructure Services | C10: =A5A!C50 -> 438846136.9 | D10: =A5A!D50 -> 391837160.5 | E10: =A5A!E50 -> 29245686 | F10: =A5A!F50 -> 377869601 | G10: =A5A!G50 -> 322869601 | H10: =A5A!H50 -> 322869601 | I10: =A5A!I50 -> 322869601 | J10: =A5A!J50 -> 154700000 | K10: =A5A!K50 -> 167250174.8 | L10: =A5A!L50 -> 177285185.3
A11: =A5A!A61 -> Vote 6 - Sustainable Development and City Enterprises | C11: =A5A!C61 -> 46681959.06 | D11: =A5A!D61 -> 72410247 | E11: =A5A!E61 -> 75459271 | F11: =A5A!F61 -> 60790000.4 | G11: =A5A!G61 -> 260673729.4 | H11: =A5A!H61 -> 260673729.4 | I11: =A5A!I61 -> 260673729.4 | J11: =A5A!J61 -> 700000 | K11: =A5A!K61 -> 7677225 | L11: =A5A!L61 -> 8137858.5
A12: =A5A!A72 -> Vote 7 - [NAME OF VOTE 7] | C12: =A5A!C72 -> 0 | D12: =A5A!D72 -> 0 | E12: =A5A!E72 -> 0 | F12: =A5A!F72 -> 0 | G12: =A5A!G72 -> 0 | H12: =A5A!H72 -> 0 | I12: =A5A!I72 -> 0 | J12: =A5A!J72 -> 0 | K12: =A5A!K72 -> 0 | L12: =A5A!L72 -> 0
A13: =A5A!A83 -> Vote 8 - [NAME OF VOTE 8] | C13: =A5A!C83 -> 0 | D13: =A5A!D83 -> 0 | E13: =A5A!E83 -> 0 | F13: =A5A!F83 -> 0 | G13: =A5A!G83 -> 0 | H13: =A5A!H83 -> 0 | I13: =A5A!I83 -> 0 | J13: =A5A!J83 -> 0 | K13: =A5A!K83 -> 0 | L13: =A5A!L83 -> 0
A14: =A5A!A94 -> Vote 9 - [NAME OF VOTE 9] | C14: =A5A!C94 -> 0 | D14: =A5A!D94 -> 0 | E14: =A5A!E94 -> 0 | F14: =A5A!F94 -> 0 | G14: =A5A!G94 -> 0 | H14: =A5A!H94 -> 0 | I14: =A5A!I94 -> 0 | J14: =A5A!J94 -> 0 | K14: =A5A!K94 -> 0 | L14: =A5A!L94 -> 0
A15: =A5A!A105 -> Vote 10 - [NAME OF VOTE 10] | C15: =A5A!C105 -> 0 | D15: =A5A!D105 -> 0 | E15: =A5A!E105 -> 0 | F15: =A5A!F105 -> 0 | G15: =A5A!G105 -> 0 | H15: =A5A!H105 -> 0 | I15: =A5A!I105 -> 0 | J15: =A5A!J105 -> 0 | K15: =A5A!K105 -> 0 | L15: =A5A!L105 -> 0
A16: =A5A!A116 -> Vote 11 - [NAME OF VOTE 11] | C16: =A5A!C116 -> 0 | D16: =A5A!D116 -> 0 | E16: =A5A!E116 -> 0 | F16: =A5A!F116 -> 0 | G16: =A5A!G116 -> 0 | H16: =A5A!H116 -> 0 | I16: =A5A!I116 -> 0 | J16: =A5A!J116 -> 0 | K16: =A5A!K116 -> 0 | L16: =A5A!L116 -> 0
A17: =A5A!A127 -> Vote 12 - [NAME OF VOTE 12] | C17: =A5A!C127 -> 0 | D17: =A5A!D127 -> 0 | E17: =A5A!E127 -> 0 | F17: =A5A!F127 -> 0 | G17: =A5A!G127 -> 0 | H17: =A5A!H127 -> 0 | I17: =A5A!I127 -> 0 | J17: =A5A!J127 -> 0 | K17: =A5A!K127 -> 0 | L17: =A5A!L127 -> 0
A18: =A5A!A138 -> Vote 13 - [NAME OF VOTE 13] | C18: =A5A!C138 -> 0 | D18: =A5A!D138 -> 0 | E18: =A5A!E138 -> 0 | F18: =A5A!F138 -> 0 | G18: =A5A!G138 -> 0 | H18: =A5A!H138 -> 0 | I18: =A5A!I138 -> 0 | J18: =A5A!J138 -> 0 | K18: =A5A!K138 -> 0 | L18: =A5A!L138 -> 0
A19: =A5A!A149 -> Vote 14 - [NAME OF VOTE 14] | C19: =A5A!C149 -> 0 | D19: =A5A!D149 -> 0 | E19: =A5A!E149 -> 0 | F19: =A5A!F149 -> 0 | G19: =A5A!G149 -> 0 | H19: =A5A!H149 -> 0 | I19: =A5A!I149 -> 0 | J19: =A5A!J149 -> 0 | K19: =A5A!K149 -> 0 | L19: =A5A!L149 -> 0
A20: =A5A!A160 -> Vote 15 - [NAME OF VOTE 15] | C20: =A5A!C160 -> 0 | D20: =A5A!D160 -> 0 | E20: =A5A!E160 -> 0 | F20: =A5A!F160 -> 0 | G20: =A5A!G160 -> 0 | H20: =A5A!H160 -> 0 | I20: =A5A!I160 -> 0 | J20: =A5A!J160 -> 0 | K20: =A5A!K160 -> 0 | L20: =A5A!L160 -> 0
A21: Capital multi-year expenditure sub-total | B21: 7 | C21: =SUM(C6:C20) -> 648109542 | D21: =SUM(D6:D20) -> 494464734.1 | E21: 143242056 | F21: 489965757.4 | G21: 634849486.4 | H21: =SUM(H6:H20) -> 634849486.4 | I21: 634849486.4 | J21: 180684240 | K21: 204223263.8 | L21: 216168393.8
A23: Single-year expenditure to be appropriated | B23: 2
A24: =A6 -> Vote 1 - City Manager | C24: =A5A!C175 -> 0 | D24: =A5A!D175 -> 872127.31 | E24: =A5A!E175 -> 4313936 | F24: =A5A!F175 -> 4868500 | G24: =A5A!G175 -> 4868500 | H24: =A5A!H175 -> 4868500 | I24: =A5A!I175 -> 4868500 | J24: =A5A!J175 -> 5000000 | K24: =A5A!K175 -> 0 | L24: =A5A!L175 -> 0
A25: =A7 -> Vote 2 - City Finance | C25: =A5A!C186 -> 0 | D25: =A5A!D186 -> 14741557.57 | E25: =A5A!E186 -> 17257057 | F25: =A5A!F186 -> 12335000 | G25: =A5A!G186 -> 12335000 | H25: =A5A!H186 -> 12335000 | I25: =A5A!I186 -> 12335000 | J25: =A5A!J186 -> 27500000 | K25: =A5A!K186 -> 27300000 | L25: =A5A!L186 -> 28400000
A26: Vote 3 - Community Services and Social Equity | C26: =A5A!C197 -> 0 | D26: =A5A!D197 -> 62491875.35 | E26: =A5A!E197 -> 15738155 | F26: =A5A!F197 -> 12991000 | G26: =A5A!G197 -> 12991000 | H26: =A5A!H197 -> 12991000 | I26: =A5A!I197 -> 12991000 | J26: =A5A!J197 -> 10784240 | K26: =A5A!K197 -> 1395864 | L26: =A5A!L197 -> 305350
A27: Vote 4 - Corporate Services | C27: =A5A!C208 -> 0 | D27: =A5A!D208 -> 4126633.36 | E27: =A5A!E208 -> 875802 | F27: =A5A!F208 -> 4500000 | G27: =A5A!G208 -> 4500000 | H27: =A5A!H208 -> 4500000 | I27: =A5A!I208 -> 4500000 | J27: =A5A!J208 -> 0 | K27: =A5A!K208 -> 0 | L27: =A5A!L208 -> 0
A28: Vote 5 - Infrastructure Services | C28: =A5A!C219 -> 0 | D28: =A5A!D219 -> 15489003.69 | E28: =A5A!E219 -> 414791205 | F28: =A5A!F219 -> 27501044 | G28: =A5A!G219 -> 27501044 | H28: =A5A!H219 -> 27501044 | I28: =A5A!I219 -> 27501044 | J28: =A5A!J219 -> 46755000 | K28: =A5A!K219 -> 70000000 | L28: =A5A!L219 -> 70160000
A29: Vote 6 - Sustainable Development and City Enterprises | C29: =A5A!C230 -> 0 | D29: =A5A!D230 -> 2710737.17 | E29: =A5A!E230 -> 17268330 | F29: =A5A!F230 -> 3210000 | G29: =A5A!G230 -> 3685184 | H29: =A5A!H230 -> 3685184 | I29: =A5A!I230 -> 3685184 | J29: =A5A!J230 -> 143433753 | K29: =A5A!K230 -> 163253377.9 | L29: =A5A!L230 -> 145077260
A30: Vote 7 - [NAME OF VOTE 7] | C30: =A5A!C241 -> 0 | D30: =A5A!D241 -> 0 | E30: =A5A!E241 -> 0 | F30: =A5A!F241 -> 0 | G30: =A5A!G241 -> 0 | H30: =A5A!H241 -> 0 | I30: =A5A!I241 -> 0 | J30: =A5A!J241 -> 0 | K30: =A5A!K241 -> 0 | L30: =A5A!L241 -> 0
A31: Vote 8 - [NAME OF VOTE 8] | C31: =A5A!C252 -> 0 | D31: =A5A!D252 -> 0 | E31: =A5A!E252 -> 0 | F31: =A5A!F252 -> 0 | G31: =A5A!G252 -> 0 | H31: =A5A!H252 -> 0 | I31: =A5A!I252 -> 0 | J31: =A5A!J252 -> 0 | K31: =A5A!K252 -> 0 | L31: =A5A!L252 -> 0
A32: Vote 9 - [NAME OF VOTE 9] | C32: =A5A!C263 -> 0 | D32: =A5A!D263 -> 0 | E32: =A5A!E263 -> 0 | F32: =A5A!F263 -> 0 | G32: =A5A!G263 -> 0 | H32: =A5A!H263 -> 0 | I32: =A5A!I263 -> 0 | J32: =A5A!J263 -> 0 | K32: =A5A!K263 -> 0 | L32: =A5A!L263 -> 0
A33: Vote 10 - [NAME OF VOTE 10] | C33: =A5A!C274 -> 0 | D33: =A5A!D274 -> 0 | E33: =A5A!E274 -> 0 | F33: =A5A!F274 -> 0 | G33: =A5A!G274 -> 0 | H33: =A5A!H274 -> 0 | I33: =A5A!I274 -> 0 | J33: =A5A!J274 -> 0 | K33: =A5A!K274 -> 0 | L33: =A5A!L274 -> 0
A34: Vote 11 - [NAME OF VOTE 11] | C34: =A5A!C285 -> 0 | D34: =A5A!D285 -> 0 | E34: =A5A!E285 -> 0 | F34: =A5A!F285 -> 0 | G34: =A5A!G285 -> 0 | H34: =A5A!H285 -> 0 | I34: =A5A!I285 -> 0 | J34: =A5A!J285 -> 0 | K34: =A5A!K285 -> 0 | L34: =A5A!L285 -> 0
A35: Vote 12 - [NAME OF VOTE 12] | C35: =A5A!C296 -> 0 | D35: =A5A!D296 -> 0 | E35: =A5A!E296 -> 0 | F35: =A5A!F296 -> 0 | G35: =A5A!G296 -> 0 | H35: =A5A!H296 -> 0 | I35: =A5A!I296 -> 0 | J35: =A5A!J296 -> 0 | K35: =A5A!K296 -> 0 | L35: =A5A!L296 -> 0
A36: Vote 13 - [NAME OF VOTE 13] | C36: =A5A!C307 -> 0 | D36: =A5A!D307 -> 0 | E36: =A5A!E307 -> 0 | F36: =A5A!F307 -> 0 | G36: =A5A!G307 -> 0 | H36: =A5A!H307 -> 0 | I36: =A5A!I307 -> 0 | J36: =A5A!J307 -> 0 | K36: =A5A!K307 -> 0 | L36: =A5A!L307 -> 0
A37: Vote 14 - [NAME OF VOTE 14] | C37: =A5A!C318 -> 0 | D37: =A5A!D318 -> 0 | E37: =A5A!E318 -> 0 | F37: =A5A!F318 -> 0 | G37: =A5A!G318 -> 0 | H37: =A5A!H318 -> 0 | I37: =A5A!I318 -> 0 | J37: =A5A!J318 -> 0 | K37: =A5A!K318 -> 0 | L37: =A5A!L318 -> 0
A38: =A20 -> Vote 15 - [NAME OF VOTE 15] | C38: =A5A!C329 -> 0 | D38: =A5A!D329 -> 0 | E38: =A5A!E329 -> 0 | F38: =A5A!F329 -> 0 | G38: =A5A!G329 -> 0 | H38: =A5A!H329 -> 0 | I38: =A5A!I329 -> 0 | J38: =A5A!J329 -> 0 | K38: =A5A!K329 -> 0 | L38: =A5A!L329 -> 0
A39: Capital single-year expenditure sub-total | C39: =SUM(C24:C38) -> 0 | D39: =SUM(D24:D38) -> 100431934.4 | E39: 470244485 | F39: 65405544 | G39: 65880728 | H39: 65880728 | I39: 65880728 | J39: 233472993 | K39: 261949241.9 | L39: 243942610
A40: Total Capital Expenditure - Vote | C40: =C39+C21 -> 648109542 | D40: =D39+D21 -> 594896668.5 | E40: 613486541 | F40: 555371301.4 | G40: 700730214.4 | H40: 700730214.4 | I40: 700730214.4 | J40: 414157233 | K40: 466172505.7 | L40: 460111003.8
A42: Capital Expenditure - Functional
A43: Governance and administration | C43: =SUM(C44:C46) -> 61849172.99 | D43: =SUM(D44:D46) -> 29972312.97 | E43: 28132933 | F43: 51135000 | G43: 31135000 | H43: 31135000 | I43: 31135000 | J43: 32500000 | K43: 27300000 | L43: 28400000
A44: Executive and council | C44: 3706714.29 | D44: 999317.72 | E44: 3715815 | F44: 2178500 | G44: 2178500 | H44: 2178500 | I44: 2178500 | J44: 5000000
A45: Finance and administration | C45: 57978663.7 | D45: 28972995.25 | E45: 24297118 | F45: 48706500 | G45: 28706500 | H45: 28706500 | I45: 28706500 | J45: 27500000 | K45: 27300000 | L45: 28400000
A46: Internal audit | C46: 163795 | E46: 120000 | F46: 250000 | G46: 250000 | H46: 250000 | I46: 250000
A47: Community and public safety | C47: =SUM(C48:C52) -> 119183080.9 | D47: =SUM(D48:D52) -> 66163824.06 | E47: 94239595 | F47: 28965656 | G47: 229324569 | H47: 229324569 | I47: 229324569 | J47: 159422332 | K47: 58519966 | L47: 56773208.5
A48: Community and social services | C48: 40840403.86 | D48: 10800630.3 | E48: 30651091 | F48: 22407256 | G48: 22407256 | H48: 22407256 | I48: 22407256 | J48: 31000000 | K48: 23300000 | L48: 24080000
A49: Sport and recreation | C49: 50889611.23 | D49: 29669037.71 | E49: 11558226 | F49: 1500000 | G49: 1975184 | H49: 1975184 | I49: 1975184
A50: Public safety | C50: 1959969.31 | D50: 5109025.42 | E50: 2000000 | F50: 1058400 | G50: 800000 | H50: 800000 | I50: 800000 | J50: 3784240 | K50: 2295864 | L50: 5305350
A51: Housing | C51: 25493096.45 | D51: 20585130.63 | E51: 50030278 | F51: 4000000 | G51: 204142129 | H51: 204142129 | I51: 204142129 | J51: 124638092 | K51: 32924102 | L51: 27387858.5
A52: Health
A53: Economic and environmental services | C53: =SUM(C54:C56) -> 291475858.3 | D53: =SUM(D54:D56) -> 271330477.5 | E53: 308823251 | F53: 286538900.4 | G53: 266538900.4 | H53: 266538900.4 | I53: 266538900.4 | J53: 110695661 | K53: 211398550.7 | L53: 203622832.8
A54: Planning and development | C54: 15201018.66 | D54: 53736385.34 | E54: 35975923 | F54: 51800000.4 | G54: 51800000.4 | H54: 51800000.4 | I54: 51800000.4 | J54: 19495661 | K54: 138006500.9 | L54: 125827260
A55: Road transport | C55: 275024113.6 | D55: 217280658.6 | E55: 271262353 | F55: 234378900 | G55: 214378900 | H55: 214378900 | I55: 214378900 | J55: 91200000 | K55: 73392049.82 | L55: 77795572.81
A56: Environmental protection | C56: 1250726.01 | D56: 313433.59 | E56: 1584975 | F56: 360000 | G56: 360000 | H56: 360000 | I56: 360000
A57: Trading services | C57: =SUM(C58:C61) -> 173198526.2 | D57: =SUM(D58:D61) -> 226939794.4 | E57: 177154337 | F57: 180491745 | G57: 165491745 | H57: 165491745 | I57: 165491745 | J57: 114755000 | K57: 170658125 | L57: 176009612.5
A58: Energy sources | C58: 79785727.25 | D58: 108120630.9 | E58: 56636360 | F58: 28331044 | G58: 28331044 | H58: 28331044 | I58: 28331044 | J58: 12500000 | K58: 9000000 | L58: 9540000
A59: Water management | C59: 61137887.75 | D59: 59634353.24 | E59: 75391016 | F59: 100054457 | G59: 85054457 | H59: 85054457 | I59: 85054457 | J59: 59255000 | K59: 94817500 | L59: 96466550
A60: Waste water management | C60: 23781407.9 | D60: 25570137.06 | E60: 44301896 | F60: 45106244 | G60: 45106244 | H60: 45106244 | I60: 45106244 | J60: 38500000 | K60: 60040625 | L60: 63643062.5
A61: Waste management | C61: 8493503.3 | D61: 33614673.25 | E61: 825065 | F61: 7000000 | G61: 7000000 | H61: 7000000 | I61: 7000000 | J61: 4500000 | K61: 6800000 | L61: 6360000
A62: Other | C62: 2407128.7 | D62: 486034.61 | E62: 5136425 | F62: 8240000 | G62: 8240000 | H62: 8240000 | I62: 8240000
A63: Total Capital Expenditure - Functional | B63: 3 | C63: =C43+C47+C53+C57+C62 -> 648113767 | D63: =D43+D47+D53+D57+D62 -> 594892443.5 | E63: 613486541 | F63: 555371301.4 | G63: 700730214.4 | H63: 700730214.4 | I63: 700730214.4 | J63: 417372993 | K63: 467876641.7 | L63: =L43+L47+L53+L57+L62 -> 464805653.8
A65: Funded by:
A66: National Government | C66: 376644064.5 | D66: 232549654.4 | E66: 393481109 | F66: 429351400 | G66: 429351400 | H66: 429351400 | I66: 429351400 | J66: 255155000 | K66: 279198399.8 | L66: 295850303.8
A67: Provincial Government | C67: 24611353.61 | D67: 131196266.8 | E67: 72548195 | F67: 9991000 | G67: 210608313 | H67: 210608313 | I67: 210608313 | J67: 108433753 | K67: 127982377.9 | L67: 105250000
A68: District Municipality
A69: ='A4-FinPerf RE'!A39 -> Transfers and subsidies - capital (monetary allocations) (National / Provincial Departmental Agencies, Households, Non-profit Institutions, Private Enterprises, Public Corporatons, Higher Educational Institutions)
A70: Transfers recognised - capital | B70: 4 | C70: =SUM(C66:C69) -> 401255418.1 | D70: 363745921.2 | E70: 466029304 | F70: 439342400 | G70: 639959713 | H70: 639959713 | I70: 639959713 | J70: 363588753 | K70: 407180777.7 | L70: 401100303.8
A72: Borrowing | B72: 6 | C72: 40245430.79 | D72: 88896142.76 | E72: 47052852 | F72: 5631044 | G72: 5631044 | H72: 5631044 | I72: 5631044
A73: Internally generated funds | C73: 206612918.1 | D73: 142250379.5 | E73: 100404385 | F73: 110397857.4 | G73: 55139457.4 | H73: 55139457.4 | I73: 55139457.4 | J73: 53784240 | K73: 60695864 | L73: 63705350
A74: Total Capital Funding | B74: 7 | C74: =+C70+C72+C73 -> 648113767 | D74: =+D70+D72+D73 -> 594892443.5 | E74: 613486541 | F74: 555371301.4 | G74: 700730214.4 | H74: 700730214.4 | I74: 700730214.4 | J74: 417372993 | K74: 467876641.7 | L74: 464805653.8
A75: =head27a -> References
A76: 1. Municipalities may choose to appropriate for capital expenditure for three years or for one year (if one year appropriation projected expenditure required for yr2 and yr3).
A77: 2. Include capital component of PPP unitary payment. Note that capital transfers are only appropriated to municipalities for the budget year
A78: 3. Capital expenditure by functional classification must reconcile to the appropriations by vote
A79: 4. Must reconcile to supporting table SA20 and to Budgeted Financial Performance (revenue and expenditure)
A81: 6. Include finance leases and PPP capital funding component of unitary payment - total borrowing/repayments to reconcile to changes in Table SA17
A82: 7. Total Capital Funding must balance with Total Capital Expenditure
A83: 8. Include any capitalised interest (MFMA section 46) as part of relevant capital budget
A85: check balance | C85: =IF((C63-C74)=0,0,"Unbalanced") -> Unbalanced | D85: =IF((D63-D74)=0,0,"Unbalanced") -> 0 | E85: 0 | F85: 0 | G85: 0 | H85: 0 | I85: 0 | J85: 0 | K85: Unbalanced | L85: 0

Sheet A5A
A1: =muni&" - "&Approve5 -> KZN225 Msunduzi - Table A5 Budgeted Capital Expenditure by vote, functional classification and funding
A2: =Vdesc -> Vote Description | B2: =head27 -> Ref | C2: =head1b -> 2016/17 | D2: =head1A -> 2017/18 | E2: =Head1 -> 2018/19 | F2: =Head2 -> Current Year 2019/20 | J2: =Head3 -> 2020/21 Medium Term Revenue & Expenditure Framework | N2: ="Multi-year appropriation for "&Head9& " in the "&Head2A&" Annual Budget" -> Multi-year appropriation for Budget Year 2020/21 in the 2019/20 Annual Budget | R2: ="Multi-year appropriation for "&RIGHT(Head10,7)& " in the "&Head2A&" Annual Budget" -> Multi-year appropriation for 2021/22 in the 2019/20 Annual Budget | V2: New multi-year appropriations (funds for new and existing projects)
A3: R thousand | B3: 1 | C3: =Head5 -> Audited Outcome | D3: =Head5 -> Audited Outcome | E3: =Head5 -> Audited Outcome | F3: =Head6 -> Original Budget | G3: =Head7 -> Adjusted Budget | H3: =Head8 -> Full Year Forecast | I3: =Head5b -> Pre-audit outcome | J3: =Head9 -> Budget Year 2020/21 | K3: =Head10 -> Budget Year +1 2021/22 | L3: =Head11 -> Budget Year +2 2022/23 | N3: ="Appropriation for "&RIGHT(Head9,7) -> Appropriation for 2020/21 | O3: ="Adjustments in "&Head2A -> Adjustments in 2019/20 | P3: ="Downward adjustments for "&RIGHT(Head9,7) -> Downward adjustments for 2020/21 | Q3: Appropriation carried forward | R3: ="Appropriation for "&RIGHT(Head9,7) -> Appropriation for 2020/21 | S3: ="Adjustments in "&Head2A -> Adjustments in 2019/20 | T3: ="Downward adjustments for "&RIGHT(Head9,7) -> Downward adjustments for 2020/21 | U3: Appropriation carried forward | V3: =Head9 -> Budget Year 2020/21 | W3: =Head10 -> Budget Year +1 2021/22 | X3: =Head11 -> Budget Year +2 2022/23
A4: Capital expenditure - Municipal Vote
A5: Multi-year expenditure appropriation | B5: 2
A6: ='Org structure'!A2 -> Vote 1 - City Manager | C6: =SUM(C7:C16) -> 3866284.29 | D6: =SUM(D7:D16) -> 320532.86 | E6: 10000 | F6: 5131500 | G6: 5131500 | H6: 5131500 | I6: =SUM(I7:I16) -> 5131500 | J6: 0 | K6: 0 | L6: 0 | N6: =SUM(N7:N16) -> 0 | O6: 0 | P6: 0 | Q6: 0 | R6: 0 | S6: 0 | T6: 0 | U6: 0 | V6: =SUM(V7:V16) -> 0 | W6: =SUM(W7:W16) -> 0 | X6: =SUM(X7:X16) -> 0
A7: ='Org structure'!E3 -> 1.1 - Internal Audit and Compliance | C7: 163795 | J7: =Q7+V7 -> 0 | K7: =U7+W7 -> 0 | L7: =X7 -> 0 | Q7: =SUM(N7:P7) -> 0 | U7: =SUM(R7:T7) -> 0
A8: ='Org structure'!E4 -> 1.2 - Office of the City Manager | C8: 3683616.56 | D8: 320532.86 | E8: 10000 | F8: 5131500 | G8: 5131500 | H8: 5131500 | I8: 5131500 | J8: =Q8+V8 -> 0 | K8: =U8+W8 -> 0 | L8: =X8 -> 0 | Q8: =SUM(N8:P8) -> 0 | U8: =SUM(R8:T8) -> 0
A9: ='Org structure'!E5 -> 1.3 - Political Support | C9: 18872.73 | J9: =Q9+V9 -> 0 | K9: =U9+W9 -> 0 | L9: 0 | Q9: 0 | U9: 0
A10: ='Org structure'!E6 -> 1.4 - Strategic Planning | J10: 0 | K10: 0 | L10: 0 | Q10: 0 | U10: 0
A11: ='Org structure'!E7 -> 0 | J11: 0 | K11: 0 | L11: =X11 -> 0 | Q11: 0 | U11: 0
A12: ='Org structure'!E8 -> 0 | J12: 0 | K12: 0 | L12: 0 | Q12: 0 | U12: 0
A13: ='Org structure'!E9 -> 0 | J13: 0 | K13: 0 | L13: 0 | Q13: 0 | U13: 0
A14: ='Org structure'!E10 -> 0 | J14: 0 | K14: 0 | L14: 0 | Q14: 0 | U14: 0
A15: ='Org structure'!E11 -> 0 | J15: 0 | K15: 0 | L15: 0 | Q15: 0 | U15: 0
A16: ='Org structure'!E12 -> 0 | J16: 0 | K16: 0 | L16: 0 | Q16: 0 | U16: 0
A17: ='Org structure'!A3 -> Vote 2 - City Finance | C17: =SUM(C18:C27) -> 30114037.03 | D17: =SUM(D18:D27) -> 8968380.12 | E17: 0 | F17: 22500000 | G17: 22500000 | H17: 22500000 | I17: =SUM(I18:I27) -> 22500000 | J17: 0 | K17: 0 | L17: 0 | N17: =SUM(N18:N27) -> 0 | O17: 0 | P17: 0 | Q17: 0 | R17: 0 | S17: 0 | T17: 0 | U17: 0 | V17: 0 | W17: 0 | X17: 0
A18: ='Org structure'!E14 -> 2.1 - Asset Management | C18: 15400 | F18: 500000 | G18: 500000 | H18: 500000 | I18: 500000 | J18: =Q18+V18 -> 0 | K18: =U18+W18 -> 0 | L18: =X18 -> 0 | Q18: =SUM(N18:P18) -> 0 | U18: 0
A19: ='Org structure'!E15 -> 2.2 - Budget and Treasury Management | C19: 29348282.23 | D19: 8968380.12 | F19: 22000000 | G19: 22000000 | H19: 22000000 | I19: 22000000 | J19: =Q19+V19 -> 0 | K19: =U19+W19 -> 0 | L19: 0 | Q19: 0 | U19: 0
A20: ='Org structure'!E16 -> 2.3 - Expenditure Management | C20: 76372.78 | J20: 0 | K20: 0 | L20: 0 | Q20: 0 | U20: 0
A21: ='Org structure'!E17 -> 2.4 - Revenue Management | C21: 312172.48 | J21: 0 | K21: =U21+W21 -> 0 | L21: 0 | Q21: 0 | U21: 0
A22: ='Org structure'!E18 -> 2.5 - Supply Chain Management | C22: 361809.54 | J22: 0 | K22: 0 | L22: 0 | Q22: 0 | U22: 0
A23: ='Org structure'!E19 -> 0 | J23: 0 | K23: 0 | L23: 0 | Q23: 0 | U23: 0
A24: ='Org structure'!E20 -> 0 | J24: 0 | K24: 0 | L24: 0 | Q24: 0 | U24: 0
A25: ='Org structure'!E21 -> 0 | J25: 0 | K25: 0 | L25: 0 | Q25: 0 | U25: 0
A26: ='Org structure'!E22 -> 0 | J26: 0 | K26: 0 | L26: 0 | Q26: 0 | U26: 0
A27: ='Org structure'!E23 -> 0 | J27: 0 | K27: 0 | L27: 0 | Q27: 0 | U27: 0
A28: ='Org structure'!A4 -> Vote 3 - Community Services and Social Equity | C28: =SUM(C29:C38) -> 102852006.5 | D28: =SUM(D29:D38) -> 20104586.9 | E28: 35939310 | F28: 22974656 | G28: 22974656 | H28: 22974656 | I28: =SUM(I29:I38) -> 22974656 | J28: 25284240 | K28: 29295864 | L28: 30745350 | N28: =SUM(N29:N38) -> 0 | O28: 0 | P28: 0 | Q28: 0 | R28: 0 | S28: 0 | T28: 0 | U28: 0 | V28: 25284240 | W28: 29295864 | X28: 30745350
A29: ='Org structure'!E25 -> 3.1 - Area Based Management | C29: 32500 | E29: 0 | F29: 800000 | G29: 800000 | H29: 800000 | I29: 800000 | J29: =Q29+V29 -> 0 | K29: =U29+W29 -> 0 | L29: =X29 -> 0 | Q29: =SUM(N29:P29) -> 0 | U29: 0
A30: ='Org structure'!E26 -> 3.2 - Public Safety, Emergency Services and Enforcement | C30: 3098655.24 | D30: 254720.61 | E30: 4241000 | F30: 3258400 | G30: 3258400 | H30: 3258400 | I30: 3258400 | J30: 284240 | K30: 295864 | L30: 305350 | Q30: 0 | U30: 0 | V30: 284240 | W30: 295864 | X30: 305350
A31: ='Org structure'!E27 -> 3.3 - Recreation and Facilities | C31: 91227347.95 | D31: 15517625.77 | E31: 31612609 | F31: 11916256 | G31: 11916256 | H31: 11916256 | I31: 11916256 | J31: 23000000 | K31: 23000000 | L31: 24080000 | Q31: 0 | U31: =SUM(R31:T31) -> 0 | V31: 23000000 | W31: 23000000 | X31: 24080000
A32: ='Org structure'!E28 -> 3.4 - Waste Management | C32: 8493503.3 | D32: 4332240.52 | E32: 85701 | F32: 7000000 | G32: 7000000 | H32: 7000000 | I32: 7000000 | J32: 2000000 | K32: =U32+W32 -> 6000000 | L32: 6360000 | Q32: 0 | U32: 0 | V32: 2000000 | W32: 6000000 | X32: 6360000
A33: ='Org structure'!E29 -> 0 | J33: =Q33+V33 -> 0 | K33: 0 | L33: 0 | Q33: 0 | U33: 0
A34: ='Org structure'!E30 -> 0 | J34: 0 | K34: 0 | L34: 0 | Q34: 0 | U34: 0
A35: ='Org structure'!E31 -> 0 | J35: 0 | K35: 0 | L35: 0 | Q35: 0 | U35: 0
A36: ='Org structure'!E32 -> 0 | J36: 0 | K36: 0 | L36: 0 | Q36: 0 | U36: 0
A37: ='Org structure'!E33 -> 0 | J37: 0 | K37: 0 | L37: 0 | Q37: 0 | U37: 0
A38: ='Org structure'!E34 -> 0 | J38: 0 | K38: 0 | L38: 0 | Q38: 0 | U38: 0
A39: ='Org structure'!A5 -> Vote 4 - Corporate Services | C39: =SUM(C40:C49) -> 25749118.25 | D39: =SUM(D40:D49) -> 823826.7 | E39: 2587789 | F39: 700000 | G39: 700000 | H39: 700000 | I39: =SUM(I40:I49) -> 700000 | J39: 0 | K39: 0 | L39: 0 | N39: =SUM(N40:N49) -> 0 | O39: 0 | P39: 0 | Q39: 0 | R39: 0 | S39: 0 | T39: 0 | U39: 0 | V39: 0 | W39: 0 | X39: 0
A40: ='Org structure'!E36 -> 4.1 - Human Resources Management | C40: 92909.01 | J40: =Q40+V40 -> 0 | K40: =U40+W40 -> 0 | L40: =X40 -> 0 | Q40: =SUM(N40:P40) -> 0 | U40: 0
A41: ='Org structure'!E37 -> 4.2 - Information Technology | C41: 25516692.05 | D41: 823826.7 | E41: 2587789 | J41: 0 | K41: 0 | L41: 0 | Q41: 0 | U41: 0
A42: ='Org structure'!E38 -> 4.3 - Legal Services | C42: 7500 | F42: 500000 | G42: 500000 | H42: 500000 | I42: 500000 | J42: 0 | K42: 0 | L42: 0 | Q42: 0 | U42: 0
A43: ='Org structure'!E39 -> 4.4 - Secretariat and Auxiliary Services | C43: 132017.19 | J43: 0 | K43: 0 | L43: 0 | Q43: 0 | U43: 0
A44: ='Org structure'!E40 -> 4.5 - General Manager: Corporate Service | F44: 200000 | G44: 200000 | H44: 200000 | I44: 200000 | J44: 0 | K44: 0 | L44: 0 | Q44: 0 | U44: 0
A45: ='Org structure'!E41 -> 0 | J45: 0 | K45: 0 | L45: 0 | Q45: 0 | U45: 0
A46: ='Org structure'!E42 -> 0 | J46: 0 | K46: 0 | L46: 0 | Q46: 0 | U46: 0
A47: ='Org structure'!E43 -> 0 | J47: 0 | K47: 0 | L47: 0 | Q47: 0 | U47: 0
A48: ='Org structure'!E44 -> 0 | J48: 0 | K48: 0 | L48: 0 | Q48: 0 | U48: 0
A49: ='Org structure'!E45 -> 0 | J49: 0 | K49: 0 | L49: 0 | Q49: 0 | U49: 0
A50: ='Org structure'!A6 -> Vote 5 - Infrastructure Services | C50: =SUM(C51:C60) -> 438846136.9 | D50: =SUM(D51:D60) -> 391837160.5 | E50: 29245686 | F50: 377869601 | G50: 322869601 | H50: 322869601 | I50: =SUM(I51:I60) -> 322869601 | J50: 154700000 | K50: 167250174.8 | L50: 177285185.3 | N50: =SUM(N51:N60) -> 0 | O50: 0 | P50: 0 | Q50: 0 | R50: 0 | S50: 0 | T50: 0 | U50: 0 | V50: 154700000 | W50: 167250174.8 | X50: 177285185.3
A51: ='Org structure'!E47 -> 5.1 - Electricity | C51: 79785727.25 | D51: 99456099.19 | E51: 7811932 | F51: 14900000 | G51: 14900000 | H51: 14900000 | I51: 14900000 | J51: =Q51+V51 -> 7500000 | K51: =U51+W51 -> 9000000 | L51: =X51 -> 9540000 | Q51: =SUM(N51:P51) -> 0 | U51: 0 | V51: 7500000 | W51: 9000000 | X51: 9540000
A52: ='Org structure'!E48 -> 5.2 - Project Management Office | C52: 160686.32 | J52: 0 | K52: 0 | L52: 0 | Q52: 0 | U52: 0
A53: ='Org structure'!E49 -> 5.3 - Roads and Transportation | C53: 273980427.7 | D53: 210859456.2 | E53: 19991754 | F53: 219058900 | G53: 164058900 | H53: 164058900 | I53: 164058900 | J53: 87700000 | K53: 72842049.82 | L53: 77212572.81 | Q53: 0 | U53: 0 | V53: 87700000 | W53: 72842049.82 | X53: 77212572.81
A54: ='Org structure'!E50 -> 5.4 - Water and Sanitation | C54: 84919295.65 | D54: 81517380.13 | E54: 1442000 | F54: 143910701 | G54: 143910701 | H54: 143910701 | I54: 143910701 | J54: 59500000 | K54: 85408125 | L54: 90532612.5 | Q54: 0 | U54: 0 | V54: 59500000 | W54: 85408125 | X54: 90532612.5
A55: ='Org structure'!E51 -> 5.5 - General Manager: Infrastructure | D55: 4225 | J55: 0 | K55: 0 | L55: 0 | Q55: 0 | U55: 0
A56: ='Org structure'!E52 -> 0 | J56: 0 | K56: 0 | L56: 0 | Q56: 0 | U56: 0
A57: ='Org structure'!E53 -> 0 | J57: 0 | K57: 0 | L57: 0 | Q57: 0 | U57: 0
A58: ='Org structure'!E54 -> 0 | J58: 0 | K58: 0 | L58: 0 | Q58: 0 | U58: 0
A59: ='Org structure'!E55 -> 0 | J59: 0 | K59: 0 | L59: 0 | Q59: 0 | U59: 0
A60: ='Org structure'!E56 -> 0 | J60: 0 | K60: 0 | L60: 0 | Q60: 0 | U60: 0
A61: ='Org structure'!A7 -> Vote 6 - Sustainable Development and City Enterprises | C61: =SUM(C62:C71) -> 46681959.06 | D61: =SUM(D62:D71) -> 72410247 | E61: 75459271 | F61: 60790000.4 | G61: 260673729.4 | H61: 260673729.4 | I61: =SUM(I62:I71) -> 260673729.4 | J61: 700000 | K61: 7677225 | L61: 8137858.5 | N61: =SUM(N62:N71) -> 0 | O61: 0 | P61: 0 | Q61: 0 | R61: 0 | S61: 0 | T61: 0 | U61: 0 | V61: 700000 | W61: 7677225 | X61: 8137858.5
A62: ='Org structure'!E58 -> 6.1 - City Entities | C62: 4717972.94 | D62: 77653.21 | E62: 4173693 | F62: 6540000 | G62: 6281600 | H62: 6281600 | I62: 6281600 | J62: =Q62+V62 -> 0 | K62: =U62+W62 -> 0 | L62: =X62 -> 0 | Q62: =SUM(N62:P62) -> 0 | U62: 0
A63: ='Org structure'!E59 -> 6.2 - Development Services | C63: 19145 | F63: 0 | J63: 0 | K63: 0 | L63: 0 | Q63: 0 | U63: 0
A64: ='Org structure'!E60 -> 6.3 - Human Settlement Development | C64: 25493096.45 | D64: 19804945.66 | E64: 42805253 | F64: 4000000 | G64: 204142129 | H64: 204142129 | I64: 204142129 | J64: 700000 | K64: 7677225 | L64: 8137858.5 | Q64: 0 | U64: 0 | V64: 700000 | W64: 7677225 | X64: 8137858.5
A65: ='Org structure'!E61 -> 6.4 - Town Planning | C65: 16451744.67 | D65: 52527648.13 | E65: 28480325 | F65: 50250000.4 | G65: 50250000.4 | H65: 50250000.4 | I65: 50250000.4 | J65: 0 | K65: 0 | L65: 0 | Q65: 0 | U65: 0
A66: ='Org structure'!E62 -> 6.5 - 6.5 - General Manager: Sustainable Development and City Enterprises | J66: 0 | K66: 0 | L66: 0 | Q66: 0 | U66: 0
A67: ='Org structure'!E63 -> 0 | J67: 0 | K67: 0 | L67: 0 | Q67: 0 | U67: 0
A68: ='Org structure'!E64 -> 0 | J68: 0 | K68: 0 | L68: 0 | Q68: 0 | U68: 0
A69: ='Org structure'!E65 -> 0 | J69: 0 | K69: 0 | L69: 0 | Q69: 0 | U69: 0
A70: ='Org structure'!E66 -> 0 | J70: 0 | K70: 0 | L70: 0 | Q70: 0 | U70: 0
A71: ='Org structure'!E67 -> 0 | J71: 0 | K71: 0 | L71: 0 | Q71: 0 | U71: 0
A72: ='Org structure'!A8 -> Vote 7 - [NAME OF VOTE 7] | C72: =SUM(C73:C82) -> 0 | D72: 0 | E72: 0 | F72: 0 | G72: 0 | H72: 0 | I72: 0 | J72: 0 | K72: 0 | L72: 0 | N72: =SUM(N73:N82) -> 0 | O72: 0 | P72: 0 | Q72: 0 | R72: 0 | S72: 0 | T72: 0 | U72: 0 | V72: 0 | W72: 0 | X72: 0
A73: ='Org structure'!E69 -> 7.1 - [Name of sub-vote] | J73: =Q73+V73 -> 0 | K73: =U73+W73 -> 0 | L73: =X73 -> 0 | Q73: =SUM(N73:P73) -> 0 | U73: =SUM(R73:T73) -> 0
A74: ='Org structure'!E70 -> 0 | J74: 0 | K74: 0 | L74: 0 | Q74: 0 | U74: 0
A75: ='Org structure'!E71 -> 0 | J75: 0 | K75: 0 | L75: 0 | Q75: 0 | U75: 0
A76: ='Org structure'!E72 -> 0 | J76: 0 | K76: 0 | L76: 0 | Q76: 0 | U76: 0
A77: ='Org structure'!E73 -> 0 | J77: 0 | K77: 0 | L77: 0 | Q77: 0 | U77: 0
A78: ='Org structure'!E74 -> 0 | J78: 0 | K78: 0 | L78: 0 | Q78: 0 | U78: 0
A79: ='Org structure'!E75 -> 0 | J79: 0 | K79: 0 | L79: 0 | Q79: 0 | U79: 0
A80: ='Org structure'!E76 -> 0 | J80: 0 | K80: 0 | L80: 0 | Q80: 0 | U80: 0
A81: ='Org structure'!E77 -> 0 | J81: 0 | K81: 0 | L81: 0 | Q81: 0 | U81: 0
A82: ='Org structure'!E78 -> 0 | J82: 0 | K82: 0 | L82: 0 | Q82: 0 | U82: 0
A83: ='Org structure'!A9 -> Vote 8 - [NAME OF VOTE 8] | C83: =SUM(C84:C93) -> 0 | D83: 0 | E83: 0 | F83: 0 | G83: 0 | H83: 0 | I83: 0 | J83: 0 | K83: 0 | L83: 0 | N83: =SUM(N84:N93) -> 0 | O83: 0 | P83: 0 | Q83: 0 | R83: 0 | S83: 0 | T83: 0 | U83: 0 | V83: 0 | W83: 0 | X83: 0
A84: ='Org structure'!E80 -> 8.1 - [Name of sub-vote] | J84: =Q84+V84 -> 0 | K84: =U84+W84 -> 0 | L84: =X84 -> 0 | Q84: =SUM(N84:P84) -> 0 | U84: 0
A85: ='Org structure'!E81 -> 0 | J85: 0 | K85: 0 | L85: 0 | Q85: 0 | U85: 0
A86: ='Org structure'!E82 -> 0 | J86: 0 | K86: 0 | L86: 0 | Q86: 0 | U86: 0
A87: ='Org structure'!E83 -> 0 | J87: 0 | K87: 0 | L87: 0 | Q87: 0 | U87: 0
A88: ='Org structure'!E84 -> 0 | J88: 0 | K88: 0 | L88: 0 | Q88: 0 | U88: 0
A89: ='Org structure'!E85 -> 0 | J89: 0 | K89: 0 | L89: 0 | Q89: 0 | U89: 0
A90: ='Org structure'!E86 -> 0 | J90: 0 | K90: 0 | L90: 0 | Q90: 0 | U90: 0
A91: ='Org structure'!E87 -> 0 | J91: 0 | K91: 0 | L91: 0 | Q91: 0 | U91: 0
A92: ='Org structure'!E88 -> 0 | J92: 0 | K92: 0 | L92: 0 | Q92: 0 | U92: 0
A93: ='Org structure'!E89 -> 0 | J93: 0 | K93: 0 | L93: 0 | Q93: 0 | U93: 0
A94: ='Org structure'!A10 -> Vote 9 - [NAME OF VOTE 9] | C94: =SUM(C95:C104) -> 0 | D94: =SUM(D95:D104) -> 0 | E94: 0 | F94: 0 | G94: 0 | H94: 0 | I94: 0 | J94: 0 | K94: 0 | L94: 0 | N94: =SUM(N95:N104) -> 0 | O94: 0 | P94: 0 | Q94: 0 | R94: 0 | S94: 0 | T94: 0 | U94: 0 | V94: 0 | W94: 0 | X94: 0
A95: ='Org structure'!E91 -> 9.1 - [Name of sub-vote] | J95: =Q95+V95 -> 0 | K95: =U95+W95 -> 0 | L95: =X95 -> 0 | Q95: =SUM(N95:P95) -> 0 | U95: 0
A96: ='Org structure'!E92 -> 0 | J96: 0 | K96: 0 | L96: 0 | Q96: 0 | U96: 0
A97: ='Org structure'!E93 -> 0 | J97: 0 | K97: 0 | L97: 0 | Q97: 0 | U97: 0
A98: ='Org structure'!E94 -> 0 | J98: 0 | K98: 0 | L98: 0 | Q98: 0 | U98: 0
A99: ='Org structure'!E95 -> 0 | J99: 0 | K99: 0 | L99: 0 | Q99: 0 | U99: 0
A100: ='Org structure'!E96 -> 0 | J100: 0 | K100: 0 | L100: 0 | Q100: 0 | U100: 0
A101: ='Org structure'!E97 -> 0 | J101: 0 | K101: 0 | L101: 0 | Q101: 0 | U101: 0
A102: ='Org structure'!E98 -> 0 | J102: 0 | K102: 0 | L102: 0 | Q102: 0 | U102: 0
A103: ='Org structure'!E99 -> 0 | J103: 0 | K103: 0 | L103: 0 | Q103: 0 | U103: 0
A104: ='Org structure'!E100 -> 0 | J104: 0 | K104: 0 | L104: 0 | Q104: 0 | U104: 0
A105: ='Org structure'!A11 -> Vote 10 - [NAME OF VOTE 10] | C105: =SUM(C106:C115) -> 0 | D105: =SUM(D106:D115) -> 0 | E105: 0 | F105: 0 | G105: 0 | H105: 0 | I105: 0 | J105: 0 | K105: 0 | L105: 0 | N105: =SUM(N106:N115) -> 0 | O105: 0 | P105: 0 | Q105: 0 | R105: 0 | S105: 0 | T105: 0 | U105: 0 | V105: 0 | W105: 0 | X105: 0
A106: ='Org structure'!E102 -> 10.1 - [Name of sub-vote] | J106: =Q106+V106 -> 0 | K106: =U106+W106 -> 0 | L106: =X106 -> 0 | Q106: =SUM(N106:P106) -> 0 | U106: 0
A107: ='Org structure'!E103 -> 0 | J107: 0 | K107: 0 | L107: 0 | Q107: 0 | U107: 0
A108: ='Org structure'!E104 -> 0 | J108: 0 | K108: 0 | L108: 0 | Q108: 0 | U108: 0
A109: ='Org structure'!E105 -> 0 | J109: 0 | K109: 0 | L109: 0 | Q109: 0 | U109: 0
A110: ='Org structure'!E106 -> 0 | J110: 0 | K110: 0 | L110: 0 | Q110: 0 | U110: 0
A111: ='Org structure'!E107 -> 0 | J111: 0 | K111: 0 | L111: 0 | Q111: 0 | U111: 0
A112: ='Org structure'!E108 -> 0 | J112: 0 | K112: 0 | L112: 0 | Q112: 0 | U112: 0
A113: ='Org structure'!E109 -> 0 | J113: 0 | K113: 0 | L113: 0 | Q113: 0 | U113: 0
A114: ='Org structure'!E110 -> 0 | J114: 0 | K114: 0 | L114: 0 | Q114: 0 | U114: 0
A115: ='Org structure'!E111 -> 0 | J115: 0 | K115: 0 | L115: 0 | Q115: 0 | U115: 0
A116: ='Org structure'!A12 -> Vote 11 - [NAME OF VOTE 11] | C116: =SUM(C117:C126) -> 0 | D116: 0 | E116: 0 | F116: 0 | G116: 0 | H116: 0 | I116: 0 | J116: 0 | K116: 0 | L116: 0 | N116: =SUM(N117:N126) -> 0 | O116: 0 | P116: 0 | Q116: 0 | R116: 0 | S116: 0 | T116: 0 | U116: 0 | V116: 0 | W116: 0 | X116: 0
A117: ='Org structure'!E113 -> 11.1 - [Name of sub-vote] | J117: =Q117+V117 -> 0 | K117: =U117+W117 -> 0 | L117: =X117 -> 0 | Q117: =SUM(N117:P117) -> 0 | U117: 0
A118: ='Org structure'!E114 -> 0 | J118: 0 | K118: 0 | L118: 0 | Q118: 0 | U118: 0
A119: ='Org structure'!E115 -> 0 | J119: 0 | K119: 0 | L119: 0 | Q119: 0 | U119: 0
A120: ='Org structure'!E116 -> 0 | J120: 0 | K120: 0 | L120: 0 | Q120: 0 | U120: 0
A121: ='Org structure'!E117 -> 0 | J121: 0 | K121: 0 | L121: 0 | Q121: 0 | U121: 0
A122: ='Org structure'!E118 -> 0 | J122: 0 | K122: 0 | L122: 0 | Q122: 0 | U122: 0
A123: ='Org structure'!E119 -> 0 | J123: 0 | K123: 0 | L123: 0 | Q123: 0 | U123: 0
A124: ='Org structure'!E120 -> 0 | J124: 0 | K124: 0 | L124: 0 | Q124: 0 | U124: 0
A125: ='Org structure'!E121 -> 0 | J125: 0 | K125: 0 | L125: 0 | Q125: 0 | U125: 0
A126: ='Org structure'!E122 -> 0 | J126: 0 | K126: 0 | L126: 0 | Q126: 0 | U126: 0
A127: ='Org structure'!A13 -> Vote 12 - [NAME OF VOTE 12] | C127: =SUM(C128:C137) -> 0 | D127: 0 | E127: 0 | F127: 0 | G127: 0 | H127: 0 | I127: 0 | J127: 0 | K127: 0 | L127: 0 | N127: =SUM(N128:N137) -> 0 | O127: 0 | P127: 0 | Q127: 0 | R127: 0 | S127: 0 | T127: 0 | U127: 0 | V127: 0 | W127: 0 | X127: 0
A128: ='Org structure'!E124 -> 12.1 - [Name of sub-vote] | J128: =Q128+V128 -> 0 | K128: =U128+W128 -> 0 | L128: =X128 -> 0 | Q128: =SUM(N128:P128) -> 0 | U128: 0
A129: ='Org structure'!E125 -> 0 | J129: 0 | K129: 0 | L129: 0 | Q129: 0 | U129: 0
A130: ='Org structure'!E126 -> 0 | J130: 0 | K130: 0 | L130: 0 | Q130: 0 | U130: 0
A131: ='Org structure'!E127 -> 0 | J131: 0 | K131: 0 | L131: 0 | Q131: 0 | U131: 0
A132: ='Org structure'!E128 -> 0 | J132: 0 | K132: 0 | L132: 0 | Q132: 0 | U132: 0
A133: ='Org structure'!E129 -> 0 | J133: =Q133+V133 -> 0 | K133: 0 | L133: 0 | Q133: 0 | U133: 0
A134: ='Org structure'!E130 -> 0 | J134: 0 | K134: 0 | L134: 0 | Q134: 0 | U134: 0
A135: ='Org structure'!E131 -> 0 | J135: 0 | K135: 0 | L135: 0 | Q135: 0 | U135: 0
A136: ='Org structure'!E132 -> 0 | J136: 0 | K136: 0 | L136: 0 | Q136: 0 | U136: =SUM(R136:T136) -> 0
A137: ='Org structure'!E133 -> 0 | J137: 0 | K137: 0 | L137: 0 | Q137: 0 | U137: 0
A138: ='Org structure'!A14 -> Vote 13 - [NAME OF VOTE 13] | C138: =SUM(C139:C148) -> 0 | D138: 0 | E138: 0 | F138: 0 | G138: 0 | H138: 0 | I138: 0 | J138: 0 | K138: 0 | L138: 0 | N138: =SUM(N139:N148) -> 0 | O138: 0 | P138: 0 | Q138: 0 | R138: 0 | S138: 0 | T138: 0 | U138: 0 | V138: 0 | W138: 0 | X138: 0
A139: ='Org structure'!E135 -> 13.1 - [Name of sub-vote] | J139: =Q139+V139 -> 0 | K139: =U139+W139 -> 0 | L139: =X139 -> 0 | Q139: =SUM(N139:P139) -> 0 | U139: 0
A140: ='Org structure'!E136 -> 0 | J140: 0 | K140: 0 | L140: 0 | Q140: 0 | U140: 0
A141: ='Org structure'!E137 -> 0 | J141: 0 | K141: 0 | L141: 0 | Q141: 0 | U141: 0
A142: ='Org structure'!E138 -> 0 | J142: 0 | K142: 0 | L142: 0 | Q142: 0 | U142: 0
A143: ='Org structure'!E139 -> 0 | J143: 0 | K143: 0 | L143: 0 | Q143: 0 | U143: 0
A144: ='Org structure'!E140 -> 0 | J144: 0 | K144: 0 | L144: 0 | Q144: 0 | U144: 0
A145: ='Org structure'!E141 -> 0 | J145: 0 | K145: 0 | L145: 0 | Q145: 0 | U145: 0
A146: ='Org structure'!E142 -> 0 | J146: 0 | K146: 0 | L146: 0 | Q146: 0 | U146: 0
A147: ='Org structure'!E143 -> 0 | J147: 0 | K147: 0 | L147: 0 | Q147: 0 | U147: 0
A148: ='Org structure'!E144 -> 0 | J148: 0 | K148: 0 | L148: 0 | Q148: 0 | U148: 0
A149: ='Org structure'!A15 -> Vote 14 - [NAME OF VOTE 14] | C149: =SUM(C150:C159) -> 0 | D149: 0 | E149: 0 | F149: 0 | G149: 0 | H149: 0 | I149: 0 | J149: 0 | K149: 0 | L149: 0 | N149: =SUM(N150:N159) -> 0 | O149: 0 | P149: 0 | Q149: 0 | R149: 0 | S149: 0 | T149: 0 | U149: 0 | V149: 0 | W149: 0 | X149: 0
A150: ='Org structure'!E146 -> 14.1 - [Name of sub-vote] | J150: =Q150+V150 -> 0 | K150: =U150+W150 -> 0 | L150: =X150 -> 0 | Q150: =SUM(N150:P150) -> 0 | U150: 0
A151: ='Org structure'!E147 -> 0 | J151: 0 | K151: 0 | L151: 0 | Q151: 0 | U151: 0
A152: ='Org structure'!E148 -> 0 | J152: 0 | K152: 0 | L152: 0 | Q152: 0 | U152: 0
A153: ='Org structure'!E149 -> 0 | J153: 0 | K153: 0 | L153: 0 | Q153: 0 | U153: 0
A154: ='Org structure'!E150 -> 0 | J154: 0 | K154: 0 | L154: 0 | Q154: 0 | U154: 0
A155: ='Org structure'!E151 -> 0 | J155: 0 | K155: 0 | L155: 0 | Q155: 0 | U155: 0
A156: ='Org structure'!E152 -> 0 | J156: 0 | K156: 0 | L156: 0 | Q156: 0 | U156: 0
A157: ='Org structure'!E153 -> 0 | J157: 0 | K157: 0 | L157: 0 | Q157: 0 | U157: 0
A158: ='Org structure'!E154 -> 0 | J158: 0 | K158: 0 | L158: 0 | Q158: 0 | U158: 0
A159: ='Org structure'!E155 -> 0 | J159: 0 | K159: 0 | L159: 0 | Q159: 0 | U159: 0
A160: ='Org structure'!A16 -> Vote 15 - [NAME OF VOTE 15] | C160: =SUM(C161:C170) -> 0 | D160: 0 | E160: 0 | F160: 0 | G160: 0 | H160: 0 | I160: 0 | J160: 0 | K160: 0 | L160: 0 | N160: =SUM(N161:N170) -> 0 | O160: 0 | P160: 0 | Q160: 0 | R160: 0 | S160: 0 | T160: 0 | U160: 0 | V160: 0 | W160: 0 | X160: 0
A161: ='Org structure'!E157 -> 15.1 - [Name of sub-vote] | J161: =Q161+V161 -> 0 | K161: =U161+W161 -> 0 | L161: =X161 -> 0 | Q161: =SUM(N161:P161) -> 0 | U161: 0
A162: ='Org structure'!E158 -> 0 | J162: 0 | K162: 0 | L162: 0 | Q162: 0 | U162: 0
A163: ='Org structure'!E159 -> 0 | J163: 0 | K163: 0 | L163: 0 | Q163: 0 | U163: 0
A164: ='Org structure'!E160 -> 0 | J164: 0 | K164: 0 | L164: 0 | Q164: 0 | U164: 0
A165: ='Org structure'!E161 -> 0 | J165: 0 | K165: 0 | L165: 0 | Q165: 0 | U165: 0
A166: ='Org structure'!E162 -> 0 | J166: 0 | K166: 0 | L166: 0 | Q166: 0 | U166: 0
A167: ='Org structure'!E163 -> 0 | J167: 0 | K167: 0 | L167: 0 | Q167: 0 | U167: 0
A168: ='Org structure'!E164 -> 0 | J168: 0 | K168: 0 | L168: 0 | Q168: 0 | U168: 0
A169: ='Org structure'!E165 -> 0 | J169: 0 | K169: 0 | L169: 0 | Q169: 0 | U169: 0
A170: ='Org structure'!E166 -> 0 | J170: 0 | K170: 0 | L170: 0 | Q170: 0 | U170: 0
A171: Capital multi-year expenditure sub-total | C171: =C6+C17+C28+C39+C50+C61+C72+C83+C94+C105+C116+C127+C138+C149+C160 -> 648109542 | D171: =D6+D17+D28+D39+D50+D61+D72+D83+D94+D105+D116+D127+D138+D149+D160 -> 494464734.1 | E171: 143242056 | F171: 489965757.4 | G171: 634849486.4 | H171: 634849486.4 | I171: 634849486.4 | J171: 180684240 | K171: 204223263.8 | L171: 216168393.8 | N171: =N6+N17+N28+N39+N50+N61+N72+N83+N94+N105+N116+N127+N138+N149+N160 -> 0 | O171: 0 | P171: 0 | Q171: 0 | R171: 0 | S171: 0 | U171: 0 | V171: =V6+V17+V28+V39+V50+V61+V72+V83+V94+V105+V116+V127+V138+V149+V160 -> 180684240 | W171: =W6+W17+W28+W39+W50+W61+W72+W83+W94+W105+W116+W127+W138+W149+W160 -> 204223263.8 | X171: =X6+X17+X28+X39+X50+X61+X72+X83+X94+X105+X116+X127+X138+X149+X160 -> 216168393.8
A173: Capital expenditure - Municipal Vote
A174: Single-year expenditure appropriation | B174: 2
A175: =A6 -> Vote 1 - City Manager | C175: =SUM(C176:C185) -> 0 | D175: 872127.31 | E175: 4313936 | F175: 4868500 | G175: 4868500 | H175: 4868500 | I175: 4868500 | J175: 5000000 | K175: 0 | L175: 0
A176: =A7 -> 1.1 - Internal Audit and Compliance | E176: 120000 | F176: 250000 | G176: 250000 | H176: 250000 | I176: 250000
A177: 1.2 - Office of the City Manager | D177: 365629.35 | E177: 3913171 | F177: 3000000 | G177: 3000000 | H177: 3000000 | I177: 3000000 | J177: 5000000
A178: 1.3 - Political Support | D178: 506497.96 | E178: 280765 | F178: 1218500 | G178: 1218500 | H178: 1218500 | I178: 1218500
A179: 1.4 - Strategic Planning | F179: 400000 | G179: 400000 | H179: 400000 | I179: 400000
A180: 0
A181: 0
A182: 0
A183: 0
A184: 0
A185: 0
A186: Vote 2 - City Finance | C186: =SUM(C187:C196) -> 0 | D186: 14741557.57 | E186: 17257057 | F186: 12335000 | G186: 12335000 | H186: 12335000 | I186: 12335000 | J186: 27500000 | K186: 27300000 | L186: 28400000
A187: 2.1 - Asset Management | D187: 12967773.48 | E187: 5250000 | F187: 8580000 | G187: 8580000 | H187: 8580000 | I187: 8580000 | J187: 15000000 | K187: 9300000 | L187: 10400000
A188: 2.2 - Budget and Treasury Management | D188: 360308.93 | E188: 8147057 | F188: 750000 | G188: 750000 | H188: 750000 | I188: 750000 | J188: 12500000 | K188: 18000000 | L188: 18000000
A189: 2.3 - Expenditure Management | D189: 95618.8 | E189: 50000
A190: 2.4 - Revenue Management | D190: 548139.91 | E190: 2050000 | F190: 1665000 | G190: 1665000 | H190: 1665000 | I190: 1665000
A191: 2.5 - Supply Chain Management | D191: 769716.45 | E191: 1760000 | F191: 1340000 | G191: 1340000 | H191: 1340000 | I191: 1340000
A192: 0
A193: 0
A194: 0
A195: 0
A196: 0
A197: Vote 3 - Community Services and Social Equity | C197: =SUM(C198:C207) -> 0 | D197: 62491875.35 | E197: 15738155 | F197: 12991000 | G197: 12991000 | H197: 12991000 | I197: 12991000 | J197: 10784240 | K197: 1395864 | L197: 305350
A198: 3.1 - Area Based Management | D198: 354586.95 | E198: 2349800 | F198: 700000 | G198: 700000 | H198: 700000 | I198: 700000 | J198: 5000000 | K198: 300000
A199: 3.2 - Public Safety, Emergency Services and Enforcement | D199: 8257400.38 | E199: 2902083 | F199: 800000 | G199: 800000 | H199: 800000 | I199: 800000 | J199: 284240 | K199: 295864 | L199: 305350
A200: 3.3 - Recreation and Facilities | D200: 24597455.29 | E200: 9746908 | F200: 11491000 | G200: 11491000 | H200: 11491000 | I200: 11491000 | J200: 3000000 | K200: 0 | L200: 0
A201: 3.4 - Waste Management | D201: 29282432.73 | E201: 739364 | J201: 2500000 | K201: 800000
... 140 more rows

Sheet A6-FinPos
A1: =muni&" - "&Approve6 -> KZN225 Msunduzi - Table A6 Budgeted Financial Position
A2: =desc -> Description | B2: =head27 -> Ref | C2: =head1b -> 2016/17 | D2: =head1A -> 2017/18 | E2: =Head1 -> 2018/19 | F2: =Head2 -> Current Year 2019/20 | J2: =Head3 -> 2020/21 Medium Term Revenue & Expenditure Framework
A3: R thousand | C3: =Head5 -> Audited Outcome | D3: =Head5 -> Audited Outcome | E3: =Head5 -> Audited Outcome | F3: =Head6 -> Original Budget | G3: =Head7 -> Adjusted Budget | H3: =Head8 -> Full Year Forecast | I3: =Head5b -> Pre-audit outcome | J3: =Head9 -> Budget Year 2020/21 | K3: =Head10 -> Budget Year +1 2021/22 | L3: =Head11 -> Budget Year +2 2022/23
A4: ASSETS
A5: Current assets
A6: Cash | C6: 674766997 | D6: 511228506 | E6: 305056164 | F6: 100000000 | G6: 100000000 | H6: 100000000 | I6: 100000000 | J6: 102187477.8 | K6: 104418705.1 | L6: 106694556.9
A7: Call investment deposits | B7: 1 | C7: 8799357 | D7: 8869457 | E7: 15674518 | F7: 399740557.1 | G7: 361119007.3 | H7: 361119007.3 | J7: 375933674.5 | K7: 463245722.9 | L7: 573170029.7
A8: Consumer debtors | B8: 1 | C8: ='SA3'!C14 -> 1010800351 | D8: ='SA3'!D14 -> 1346513563 | E8: ='SA3'!E14 -> 454837531 | F8: ='SA3'!F14 -> 835519383 | G8: ='SA3'!G14 -> 819136649.4 | H8: ='SA3'!H14 -> 819136649.4 | I8: ='SA3'!I14 -> 819136649.4 | J8: ='SA3'!J14 -> 1126839340 | K8: ='SA3'!K14 -> 1087978594 | L8: ='SA3'!L14 -> 1131876558
A9: Other debtors | C9: 113449543 | D9: 34952595 | E9: 7568964 | F9: 66723549.67 | G9: 83875465 | H9: 83875465 | I9: 83875465 | J9: 85552974.3 | K9: 87264033.79 | L9: 89009314.46
A10: Current portion of long-term receivables | C10: 0 | D10: 0 | E10: 0 | F10: 0 | G10: 0 | H10: 0 | I10: 0
A11: Inventory | B11: 2 | C11: 59599470 | D11: 357737917 | E11: 329159386 | F11: 35380271.68 | G11: 144714043.1 | H11: 144714043.1 | I11: 144714043.1 | J11: 151949745.2 | K11: 159547232.5 | L11: 167524594.1
A12: Total current assets | C12: =SUM(C6:C11) -> 1867415718 | D12: 2259302038 | E12: 1112296563 | F12: 1437363761 | G12: 1508845165 | H12: 1508845165 | I12: 1147726157 | J12: 1842463212 | K12: 1902454288 | L12: 2068275054
A14: Non current assets
A15: Long-term receivables | C15: 0 | D15: 0
A16: Investments | C16: 226212346 | D16: 226909607 | E16: 272674007
A17: Investment property | C17: 708752912 | D17: 741015000 | E17: 702385000 | F17: 738049560 | G17: 723578000 | H17: 723578000 | I17: 723578000 | J17: 857524500 | K17: 900400725 | L17: 945420761.2
A18: Investment in Associate | C18: 0 | D18: 0 | E18: 0
A19: Property, plant and equipment | B19: 3 | C19: ='SA3'!C81 -> 7062054555 | D19: ='SA3'!D81 -> 6983281087 | E19: ='SA3'!E81 -> 7020446765 | F19: ='SA3'!F81 -> 7154795394 | G19: ='SA3'!G81 -> 7014505288 | H19: ='SA3'!H81 -> 7014505288 | I19: ='SA3'!I81 -> 7014505288 | J19: ='SA3'!J81 -> 6896838811 | K19: ='SA3'!K81 -> 6810646505 | L19: ='SA3'!L81 -> 6685267340
A21: Biological | C21: 769726 | D21: 928494 | E21: 948425
A22: Intangible | C22: 50602956 | D22: 52109485 | E22: 41057963 | F22: 146779813.5 | G22: 25351770 | H22: 25351770 | I22: 25351770 | J22: 25351770 | K22: 25351770 | L22: 25351770
A23: Other non-current assets | C23: 64012288 | D23: 68528080 | E23: 82342997
A24: Total non current assets | C24: =SUM(C15:C19)+SUM(C21:C23) -> 8112404783 | D24: =SUM(D15:D19)+SUM(D21:D23) -> 8072771753 | E24: 8119855157 | F24: 8039624767 | G24: 7763435058 | H24: 7763435058 | I24: 7763435058 | J24: 7779715081 | K24: 7736399000 | L24: 7656039871
A25: TOTAL ASSETS | C25: =C12+C24 -> 9979820501 | D25: =D12+D24 -> 10332073791 | E25: =E12+E24 -> 9232151720 | F25: =F12+F24 -> 9476988529 | G25: 9272280223 | H25: 9272280223 | I25: 8911161216 | J25: 9622178293 | K25: 9638853288 | L25: 9724314925
A27: LIABILITIES
A28: Current liabilities
A29: Bank overdraft | B29: 1
A30: Borrowing | B30: 4 | C30: ='SA3'!C87 -> 79714918 | D30: ='SA3'!D87 -> 84512317 | E30: ='SA3'!E87 -> 114310751 | F30: ='SA3'!F87 -> 79056107.29 | G30: ='SA3'!G87 -> 84512316.78 | H30: ='SA3'!H87 -> 84512316.78 | I30: ='SA3'!I87 -> 84512316.78 | J30: ='SA3'!J87 -> 79206000 | K30: ='SA3'!K87 -> 75245000 | L30: ='SA3'!L87 -> 71483000
A31: Consumer deposits | C31: 101381633 | D31: 108809333 | E31: 107229302 | F31: 108899457.8 | G31: 103713769.3 | H31: 103713769.3 | I31: 103713769.3 | J31: 111561365.8 | K31: 113792593.1 | L31: 116068445
A32: Trade and other payables | B32: 4 | C32: ='SA3'!C94 -> 839896739 | D32: ='SA3'!D94 -> 1149340477 | E32: ='SA3'!E94 -> 1080435698 | F32: ='SA3'!F94 -> 999062751.1 | G32: ='SA3'!G94 -> 979473285 | H32: ='SA3'!H94 -> 979473285 | I32: ='SA3'!I94 -> 979473285 | J32: ='SA3'!J94 -> 1084570649 | K32: ='SA3'!K94 -> 1106262062 | L32: ='SA3'!L94 -> 1128387303
A33: Provisions | C33: 112036603 | D33: 161206099 | E33: 170904322 | F33: 133712201.7 | G33: 127344954 | H33: 127344954 | I33: 127344954 | J33: 62662384 | K33: 62662384 | L33: 62662384
A34: Total current liabilities | C34: =SUM(C29:C33) -> 1133029893 | D34: 1503868226 | E34: 1472880073 | F34: 1320730518 | G34: 1295044325 | H34: 1295044325 | I34: 1295044325 | J34: 1338000399 | K34: 1357962039 | L34: 1378601132
A36: Non current liabilities
A37: Borrowing | C37: ='SA3'!C99 -> 535738525 | D37: ='SA3'!D99 -> 451226205 | E37: ='SA3'!E99 -> 366291537 | F37: ='SA3'!F99 -> 459547129.4 | G37: ='SA3'!G99 -> 451226212.2 | H37: ='SA3'!H99 -> 451226212.2 | I37: ='SA3'!I99 -> 451226212.2 | J37: ='SA3'!J99 -> 428664901 | K37: ='SA3'!K99 -> 407231656 | L37: ='SA3'!L99 -> 386870073
A38: Provisions | C38: ='SA3'!C106 -> 732969171.3 | D38: ='SA3'!D106 -> 801931505 | E38: ='SA3'!E106 -> 0 | F38: ='SA3'!F106 -> 742916894.4 | G38: ='SA3'!G106 -> 731576161 | H38: ='SA3'!H106 -> 731576161 | I38: ='SA3'!I106 -> 731576161 | J38: ='SA3'!J106 -> 590184539.7 | K38: ='SA3'!K106 -> 619693766.7 | L38: ='SA3'!L106 -> 650678455
A39: Total non current liabilities | C39: =SUM(C37:C38) -> 1268707696 | D39: =SUM(D37:D38) -> 1253157710 | E39: =SUM(E37:E38) -> 366291537 | F39: =SUM(F37:F38) -> 1202464024 | G39: 1182802373 | H39: 1182802373 | I39: 1182802373 | J39: 1018849441 | K39: =SUM(K37:K38) -> 1026925423 | L39: 1037548528
A40: TOTAL LIABILITIES | C40: =C34+C39 -> 2401737589 | D40: =D34+D39 -> 2757025936 | E40: =E34+E39 -> 1839171610 | F40: =F34+F39 -> 2523194542 | G40: 2477846698 | H40: 2477846698 | I40: 2477846698 | J40: 2356849840 | K40: =K34+K39 -> 2384887462 | L40: 2416149660
A42: NET ASSETS | B42: 5 | C42: =C25-C40 -> 7578082912 | D42: 7575047855 | E42: 7392980110 | F42: 6953793987 | G42: 6794433525 | H42: 6794433525 | I42: 6433314517 | J42: 7265328453 | K42: 7253965826 | L42: 7308165264
A44: COMMUNITY WEALTH/EQUITY
A45: Accumulated Surplus/(Deficit) | C45: 7371413430 | D45: 6630483242 | E45: 6539965195 | F45: 6717549721 | G45: 6510648444 | H45: 6510648444 | I45: 6149529436 | J45: 7047860858 | K45: 7547371610 | L45: 8011900760
A46: Reserves | B46: 4 | C46: ='SA3'!C125 -> 294889721 | D46: ='SA3'!D125 -> 331634644 | E46: ='SA3'!E125 -> 228913258 | F46: ='SA3'!F125 -> 236244266 | G46: ='SA3'!G125 -> 283785081 | H46: ='SA3'!H125 -> 283785081 | I46: ='SA3'!I125 -> 283785081 | J46: ='SA3'!J125 -> 217467595.1 | K46: ='SA3'!K125 -> 206594215.3 | L46: ='SA3'!L125 -> 196264504.6
A48: TOTAL COMMUNITY WEALTH/EQUITY | B48: 5 | C48: =SUM(C45:C46) -> 7666303151 | D48: =SUM(D45:D46) -> 6962117886 | E48: 6768878453 | F48: 6953793987 | G48: 6794433525 | H48: 6794433525 | I48: 6433314517 | J48: 7265328453 | K48: 7753965826 | L48: 8208165264
A49: =head27a -> References
A50: 1. Detail to be provided in Table SA3
A51: 2. Include completed low cost housing to be transferred to beneficiaries within 12 months
A52: 3. Include 'Construction-work-in-progress' (disclosed separately in annual financial statements)
A53: 4. Detail to be provided in Table SA3. Includes reserves to be funded by statute.
A54: 5. Net assets must balance with Total Community Wealth/Equity
A55: check balance | C55: =IF((C42-C48)=0,0,"Unbalanced") -> Unbalanced | D55: =IF((D42-D48)=0,0,"Unbalanced") -> Unbalanced | E55: Unbalanced | F55: 0 | G55: 0 | H55: 0 | I55: 0 | J55: Unbalanced | K55: Unbalanced | L55: Unbalanced

Sheet A7-CFlow
A1: =muni&" - "&Approve7 -> KZN225 Msunduzi - Table A7 Budgeted Cash Flows
A2: =desc -> Description | B2: =head27 -> Ref | C2: =head1b -> 2016/17 | D2: =head1A -> 2017/18 | E2: =Head1 -> 2018/19 | F2: =Head2 -> Current Year 2019/20 | J2: =Head3 -> 2020/21 Medium Term Revenue & Expenditure Framework
A3: R thousand | C3: =Head5 -> Audited Outcome | D3: =Head5 -> Audited Outcome | E3: =Head5 -> Audited Outcome | F3: =Head6 -> Original Budget | G3: =Head7 -> Adjusted Budget | H3: =Head8 -> Full Year Forecast | I3: =Head5b -> Pre-audit outcome | J3: =Head9 -> Budget Year 2020/21 | K3: =Head10 -> Budget Year +1 2021/22 | L3: =Head11 -> Budget Year +2 2022/23
A4: CASH FLOW FROM OPERATING ACTIVITIES
A5: Receipts
A6: Property rates | C6: 735044920 | D6: 842538662 | E6: 869541960 | F6: 960617230.8 | G6: 824007554.8 | H6: 824007554.8 | I6: 824007554.8 | J6: ='SA30'!N5 -> 1081895156 | K6: ='SA30'!O5 -> 1146808866 | L6: ='SA30'!P5 -> 1215617397
A7: Service charges | C7: 2205134759 | D7: 2527615985 | E7: 2608625879 | F7: 2670162385 | G7: 2687042354 | H7: 2687042354 | I7: 2687042354 | J7: ='SA30'!N6+'SA30'!N7+'SA30'!N8+'SA30'!N9 -> 3067336215 | K7: ='SA30'!O6+'SA30'!O7+'SA30'!O8+'SA30'!O9 -> 3252029753 | L7: ='SA30'!P6+'SA30'!P7+'SA30'!P8+'SA30'!P9 -> 3535017429
A8: Other revenue | C8: 0 | D8: 0 | E8: 0 | F8: 148876026.3 | G8: 180911256 | H8: 180911256 | I8: 180911256 | J8: ='SA30'!N11+'SA30'!N15+'SA30'!N16+'SA30'!N17+'SA30'!N19 -> 167562488.3 | K8: ='SA30'!O11+'SA30'!O15+'SA30'!O16+'SA30'!O17+'SA30'!O19 -> 177616237.6 | L8: ='SA30'!P11+'SA30'!P15+'SA30'!P16+'SA30'!P17+'SA30'!P19 -> 188273211.8
A9: Transfers and Subsidies - Operational | B9: 1 | C9: 564421560.3 | D9: 605812000.6 | E9: 629285924.6 | F9: 672022829 | G9: 671406465 | H9: 671406465 | I9: 671406465 | J9: ='SA30'!N18 -> 681364901 | K9: ='SA30'!O18 -> 735201115.5 | L9: ='SA30'!P18 -> 793102908.6
A10: Transfers and Subsidies - Capital | B10: 1 | C10: 368996873.7 | D10: 396056334.4 | E10: 411402673.4 | F10: 439342400 | G10: 425276655 | H10: 425276655 | I10: 425276655 | J10: ='SA30'!N23 -> 363588753 | K10: ='SA30'!O23 -> 407180777.7 | L10: ='SA30'!P23 -> 401100303.8
A11: Interest | C11: 174500584 | D11: 41967354 | E11: 37353463 | F11: 169693887.6 | G11: 191459205 | H11: 191459205 | I11: 191459205 | J11: ='SA30'!N12+'SA30'!N13 -> 190038775.2 | K11: ='SA30'!O12+'SA30'!O13 -> 201441101.7 | L11: ='SA30'!P12+'SA30'!P13 -> 213527567.8
A12: Dividends | C12: 0 | D12: 0 | E12: 0 | J12: ='SA30'!N14 -> 0 | K12: ='SA30'!O14 -> 0 | L12: ='SA30'!P14 -> 0
A13: Payments | C13: 0 | D13: 0 | E13: 0
A14: Suppliers and employees | C14: -3629325177 | D14: -3784261801 | E14: -4139588842 | F14: -4329713783 | G14: -4196303808 | H14: -4196303808 | I14: -4196303808 | J14: =-('SA30'!N35+'SA30'!N36+'SA30'!N38+'SA30'!N39+'SA30'!N40+'SA30'!N41+'SA30'!N44+'SA30'!N50) -> -4890521986 | K14: =-('SA30'!O35+'SA30'!O36+'SA30'!O38+'SA30'!O39+'SA30'!O40+'SA30'!O41+'SA30'!O44+'SA30'!O50) -> -5204581648 | L14: =-('SA30'!P35+'SA30'!P36+'SA30'!P38+'SA30'!P39+'SA30'!P40+'SA30'!P41+'SA30'!P44+'SA30'!P50) -> -5617164135
A15: Finance charges | C15: -68463041 | D15: -54960155 | E15: -47404409 | F15: -41660099 | G15: -50672170.67 | H15: -50672170.67 | I15: -50672170.67 | J15: =-('SA30'!N37) -> -39577094.05 | K15: =-('SA30'!O37) -> -37598239.35 | L15: =-('SA30'!P37) -> -35718327.38
A16: Transfers and Grants | B16: 1 | C16: 0 | D16: 0 | E16: 0 | F16: -44060467.54 | G16: -58436970.38 | H16: -58436970.38 | I16: -58436970.38 | J16: =-('SA30'!N42+'SA30'!N43) -> -48494679.46 | K16: =-('SA30'!O42+'SA30'!O43) -> -49960137.47 | L16: =-('SA30'!P42+'SA30'!P43) -> -52848745.72
A17: NET CASH FROM/(USED) OPERATING ACTIVITIES | C17: =SUM(C6:C12)+SUM(C14:C16) -> 350310479 | D17: 574768380 | E17: 369216649 | F17: 645280409.5 | G17: 674690540.4 | H17: 674690540.4 | I17: 674690540.4 | J17: 573192528.9 | K17: 628137826.1 | L17: 640907610.6
A19: CASH FLOWS FROM INVESTING ACTIVITIES
A20: Receipts
A21: Proceeds on disposal of PPE | C21: -366848183 | D21: 0 | E21: 3715678 | J21: ='SA30'!N24+'SA30'!N25 -> 0 | K21: ='SA30'!O24+'SA30'!O25 -> 0 | L21: ='SA30'!P24+'SA30'!P25 -> 0
C22: 0 | D22: 0 | E22: 0
A23: Decrease (increase) in non-current receivables | C23: -24380945 | D23: -8616620 | E23: -613746 | J23: ='SA30'!N30 -> 0 | K23: ='SA30'!O30 -> 0 | L23: ='SA30'!P30 -> 0
A24: Decrease (increase) in non-current investments | C24: 372500 | D24: 306236 | E24: -6155452 | J24: ='SA30'!N31 -> 0 | K24: ='SA30'!O31 -> 0 | L24: ='SA30'!P31 -> 0
A25: Payments | C25: 0 | D25: 0 | E25: 0
A26: Capital assets | C26: -238315451 | D26: -668314521 | E26: -477369103 | F26: -527602753.1 | G26: -595676035 | H26: -595676035 | I26: -595676035 | J26: =-('SA30'!N48) -> -413588753 | K26: =-('SA30'!O48) -> -465580777.7 | L26: =-('SA30'!P48) -> -459500303.8
A27: NET CASH FROM/(USED) INVESTING ACTIVITIES | C27: =+C21+C23+C24+C26 -> -629172079 | D27: =+D21+D23+D24+D26 -> -676624905 | E27: -480422623 | F27: -527602753.1 | G27: -595676035 | H27: -595676035 | I27: -595676035 | J27: -413588753 | K27: -465580777.7 | L27: -459500303.8
A29: CASH FLOWS FROM FINANCING ACTIVITIES
A30: Receipts
A31: Short term loans | C31: 0 | D31: 0 | E31: 0 | J31: ='SA30'!N26 -> 0 | K31: ='SA30'!O26 -> 0 | L31: ='SA30'!P26 -> 0
A32: Borrowing long term/refinancing | C32: 0 | D32: 0 | E32: 0 | J32: ='SA30'!N27 -> 0 | K32: ='SA30'!O27 -> 0 | L32: ='SA30'!P27 -> 0
A33: Increase (decrease) in consumer deposits | C33: 7865429 | D33: 0 | E33: 0 | J33: ='SA30'!N28 -> 2187477.761 | K33: ='SA30'!O28 -> 2231227.316 | L33: ='SA30'!P28 -> 2275851.862
A34: Payments | C34: 0 | D34: 0 | E34: 0
A35: Repayment of borrowing | C35: -23860784 | D35: -61681966 | E35: -94966367 | F35: -79056107 | G35: -83374955.78 | H35: -83374955.78 | I35: -83374955.78 | J35: =-('SA30'!N49) -> -79206000 | K35: =-('SA30'!O49) -> -75245000 | L35: =-('SA30'!P49) -> -71483000
A36: NET CASH FROM/(USED) FINANCING ACTIVITIES | C36: =SUM(C31:C33)+C35 -> -15995355 | D36: =SUM(D31:D33)+D35 -> -61681966 | E36: -94966367 | F36: -79056107 | G36: -83374955.78 | H36: -83374955.78 | I36: -83374955.78 | J36: -77018522.24 | K36: -73013772.68 | L36: -69207148.14
A38: NET INCREASE/ (DECREASE) IN CASH HELD | C38: =C17+C27+C36 -> -294856955 | D38: =D17+D27+D36 -> -163538491 | E38: -206172341 | F38: 38621549.4 | G38: -4360450.341 | H38: -4360450.341 | I38: -4360450.341 | J38: 82585253.63 | K38: 89543275.7 | L38: 112200158.7
A39: Cash/cash equivalents at the year begin: | B39: 2 | C39: 969623953 | D39: 674766997 | E39: 511228506 | F39: 461119007.7 | G39: 465479458 | H39: 465479458 | I39: 465479458 | J39: ='SA30'!N54 -> 395535898.6 | K39: =J40 -> 478121152.3 | L39: =K40 -> 567664428
A40: Cash/cash equivalents at the year end: | B40: 2 | C40: =C38+C39 -> 674766998 | D40: =D38+D39 -> 511228506 | E40: =E38+E39 -> 305056165 | F40: =F38+F39 -> 499740557.1 | G40: 461119007.7 | H40: 461119007.7 | I40: 461119007.7 | J40: 478121152.3 | K40: 567664428 | L40: 679864586.7
A41: =head27a -> References
A42: 1. Local/District municipalities to include transfers from/to District/Local Municipalities
A43: 2. Cash equivalents includes investments with maturities of 3 months or less
A44: 3. The MTREF is populated directly from SA30.
A45: Total receipts | C45: =SUM(C6:C12)+SUM(C21:C23) -> 3656869569 | D45: 4405373716 | E45: 4559311832 | F45: 5060714759 | G45: 4980103490 | H45: 4980103490 | I45: 4980103490 | J45: 5551786288 | K45: 5920277851 | L45: 6346638819
A46: Total payments | C46: =SUM(C14:C16)+C26 -> -3936103669 | D46: =SUM(D14:D16)+D26 -> -4507536477 | E46: -4664362354 | F46: -4943037102 | G46: -4901088984 | H46: -4901088984 | I46: -4901088984 | J46: -5392182513 | K46: -5757720803 | L46: -6165231512
C47: =C45+C46 -> -279234100 | D47: =D45+D46 -> -102162761 | E47: -105050522 | F47: 117677656.4 | G47: 79014505.44 | H47: 79014505.44 | I47: 79014505.44 | J47: 159603775.9 | K47: 162557048.4 | L47: 181407306.8
A48: Borrowings & investments & c.deposits | C48: =C24+C32+C33 -> 8237929 | D48: =D24+D32+D33 -> 306236 | E48: -6155452 | F48: 0 | G48: 0 | H48: 0 | I48: 0 | J48: 2187477.761 | K48: 2231227.316 | L48: 2275851.862
A49: =A35 -> Repayment of borrowing | C49: =C35 -> -23860784 | D49: =D35 -> -61681966 | E49: -94966367 | F49: -79056107 | G49: -83374955.78 | H49: -83374955.78 | I49: =I35 -> -83374955.78 | J49: -79206000 | K49: -75245000 | L49: -71483000
C50: =C47+C48+C49 -> -294856955 | D50: =D47+D48+D49 -> -163538491 | E50: -206172341 | F50: 38621549.4 | G50: -4360450.341 | H50: -4360450.341 | I50: -4360450.341 | J50: 82585253.63 | K50: 89543275.7 | L50: 112200158.7
C51: =C38-C50 -> 0 | D51: 0 | E51: 0 | F51: 1.788139343e-07 | G51: 0 | H51: 0 | I51: 0 | J51: 0 | K51: 0 | L51: 0

Sheet A8-ResRecon
A1: =muni&" - "&Approve8 -> KZN225 Msunduzi - Table A8 Cash backed reserves/accumulated surplus reconciliation
A2: =desc -> Description | B2: =head27 -> Ref | C2: =head1b -> 2016/17 | D2: =head1A -> 2017/18 | E2: =Head1 -> 2018/19 | F2: =Head2 -> Current Year 2019/20 | J2: =Head3 -> 2020/21 Medium Term Revenue & Expenditure Framework
A3: R thousand | C3: =Head5 -> Audited Outcome | D3: =Head5 -> Audited Outcome | E3: =Head5 -> Audited Outcome | F3: =Head6 -> Original Budget | G3: =Head7 -> Adjusted Budget | H3: =Head8 -> Full Year Forecast | I3: =Head5b -> Pre-audit outcome | J3: =Head9 -> Budget Year 2020/21 | K3: =Head10 -> Budget Year +1 2021/22 | L3: =Head11 -> Budget Year +2 2022/23
A4: Cash and investments available
A5: =LEFT('A7-CFlow'!A40,37) -> Cash/cash equivalents at the year end | B5: 1 | C5: ='A7-CFlow'!C40 -> 674766998 | D5: ='A7-CFlow'!D40 -> 511228506 | E5: ='A7-CFlow'!E40 -> 305056165 | F5: ='A7-CFlow'!F40 -> 499740557.1 | G5: ='A7-CFlow'!G40 -> 461119007.7 | H5: ='A7-CFlow'!H40 -> 461119007.7 | I5: ='A7-CFlow'!I40 -> 461119007.7 | J5: ='A7-CFlow'!J40 -> 478121152.3 | K5: ='A7-CFlow'!K40 -> 567664428 | L5: ='A7-CFlow'!L40 -> 679864586.7
A6: Other current investments > 90 days | C6: ='A6-FinPos'!C6+'A6-FinPos'!C7-'A6-FinPos'!C29-'A8-ResRecon'!C5 -> 8799356 | D6: ='A6-FinPos'!D6+'A6-FinPos'!D7-'A6-FinPos'!D29-'A8-ResRecon'!D5 -> 8869457 | E6: ='A6-FinPos'!E6+'A6-FinPos'!E7-'A6-FinPos'!E29-'A8-ResRecon'!E5 -> 15674517 | F6: ='A6-FinPos'!F6+'A6-FinPos'!F7-'A6-FinPos'!F29-'A8-ResRecon'!F5 -> 0 | G6: ='A6-FinPos'!G6+'A6-FinPos'!G7-'A6-FinPos'!G29-'A8-ResRecon'!G5 -> -0.3159091473 | H6: ='A6-FinPos'!H6+'A6-FinPos'!H7-'A6-FinPos'!H29-'A8-ResRecon'!H5 -> -0.3159091473 | I6: ='A6-FinPos'!I6+'A6-FinPos'!I7-'A6-FinPos'!I29-'A8-ResRecon'!I5 -> -361119007.7 | J6: ='A6-FinPos'!J6+'A6-FinPos'!J7-'A6-FinPos'!J29-'A8-ResRecon'!J5 -> 0 | K6: ='A6-FinPos'!K6+'A6-FinPos'!K7-'A6-FinPos'!K29-'A8-ResRecon'!K5 -> 0 | L6: ='A6-FinPos'!L6+'A6-FinPos'!L7-'A6-FinPos'!L29-'A8-ResRecon'!L5 -> 0
A7: ='A6-FinPos'!A14&" - "&'A6-FinPos'!A16 -> Non current assets - Investments | B7: 1 | C7: ='A6-FinPos'!C16 -> 226212346 | D7: ='A6-FinPos'!D16 -> 226909607 | E7: ='A6-FinPos'!E16 -> 272674007 | F7: ='A6-FinPos'!F16 -> 0 | G7: ='A6-FinPos'!G16 -> 0 | H7: ='A6-FinPos'!H16 -> 0 | I7: ='A6-FinPos'!I16 -> 0 | J7: ='A6-FinPos'!J16 -> 0 | K7: ='A6-FinPos'!K16 -> 0 | L7: ='A6-FinPos'!L16 -> 0
A8: Cash and investments available: | C8: =SUM(C5:C7) -> 909778700 | D8: =SUM(D5:D7) -> 747007570 | E8: 593404689 | F8: 499740557.1 | G8: 461119007.3 | H8: 461119007.3 | I8: 100000000 | J8: 478121152.3 | K8: 567664428 | L8: 679864586.7
A10: Application of cash and investments
A11: ='SA3'!A92 -> Unspent conditional transfers | C11: ='SA3'!C92 -> 0 | D11: ='SA3'!D92 -> 0 | E11: ='SA3'!E92 -> 0 | F11: ='SA3'!F92 -> 0 | G11: ='SA3'!G92 -> 0 | H11: ='SA3'!H92 -> 0 | I11: ='SA3'!I92 -> 0 | J11: ='SA3'!J92 -> 78310833.34 | K11: ='SA3'!K92 -> 59907787.5 | L11: ='SA3'!L92 -> 33947746.25
A12: Unspent borrowing | C12: ='SA17'!C67 -> 0 | D12: ='SA17'!D67 -> 0 | E12: ='SA17'!E67 -> 0 | F12: ='SA17'!F67 -> 0 | G12: ='SA17'!G67 -> 0 | H12: ='SA17'!H67 -> 0 | J12: ='SA17'!I67 -> 0 | K12: ='SA17'!J67 -> 0 | L12: ='SA17'!K67 -> 0
A13: Statutory requirements | B13: 2
A14: Other working capital requirements | B14: 3 | C14: =-C32 -> -83798261 | D14: =-D32 -> -47329523 | E14: 696755698 | F14: =-F32 -> 305649751.1 | G14: 301571285 | H14: 301571285 | I14: 301571285 | J14: 15720815.82 | K14: 86162274.64 | L14: 96266557.13
A15: Other provisions
A16: Long term investments committed | B16: 4 | C16: =C52 -> 0 | D16: =D52 -> 0 | E16: 0 | F16: 0 | G16: 0 | H16: 0 | I16: 0 | J16: 0 | K16: 0 | L16: 0
A17: Reserves to be backed by cash/investments | B17: 5 | G17: 283785081 | H17: 283785081 | I17: 283785081
A18: ="Total "&A10&":" -> Total Application of cash and investments: | C18: =SUM(C11:C17) -> -83798261 | D18: =SUM(D11:D17) -> -47329523 | E18: 696755698 | F18: 305649751.1 | G18: 585356366 | H18: 585356366 | I18: 585356366 | J18: 94031649.16 | K18: 146070062.1 | L18: 130214303.4
A19: Surplus(shortfall) | C19: =C8-C18 -> 993576961 | D19: =D8-D18 -> 794337093 | E19: -103351009 | F19: 194090806 | G19: -124237358.7 | H19: -124237358.7 | I19: -485356366 | J19: 384089503.1 | K19: 421594365.8 | L19: 549650283.3
A20: =head27a -> References
A21: 1. Must reconcile with Budgeted Cash Flows
A22: 2. For example: VAT, taxation
A23: 3. Council approval for policy required - include sufficient working capital (e.g. allowing for a % of current debtors > 90 days as uncollectable)
A24: 4. For example: sinking fund requirements for borrowing
A25: 5. Council approval required for each reserve created and basis of cash backing of reserves
A28: Other working capital requirements
A29: Debtors | C29: =IF(ISERROR(ROUND(C35*C36,-3)),0,(ROUND(C35*C36,-3))) -> 923695000 | D29: =IF(ISERROR(ROUND(D35*D36,-3)),0,(ROUND(D35*D36,-3))) -> 1196670000 | E29: 383680000 | F29: 693413000 | G29: 677902000 | H29: 677902000 | I29: 677902000 | J29: 990539000 | K29: 960192000 | L29: 998173000
A31: Creditors due | C31: ='SA3'!C90+'SA3'!C91 -> 839896739 | D31: ='SA3'!D90+'SA3'!D91 -> 1149340477 | E31: ='SA3'!E90+'SA3'!E91 -> 1080435698 | F31: ='SA3'!F90+'SA3'!F91 -> 999062751.1 | G31: ='SA3'!G90+'SA3'!G91 -> 979473285 | H31: ='SA3'!H90+'SA3'!H91 -> 979473285 | I31: ='SA3'!I90+'SA3'!I91 -> 979473285 | J31: ='SA3'!J90+'SA3'!J91 -> 1006259816 | K31: ='SA3'!K90+'SA3'!K91 -> 1046354275 | L31: ='SA3'!L90+'SA3'!L91 -> 1094439557
A32: Total | C32: =C29-C31 -> 83798261 | D32: =D29-D31 -> 47329523 | E32: -696755698 | F32: -305649751.1 | G32: -301571285 | H32: -301571285 | I32: -301571285 | J32: -15720815.82 | K32: -86162274.64 | L32: -96266557.13
A34: Debtors collection assumptions
A35: Balance outstanding - debtors | C35: ='A6-FinPos'!C8+'A6-FinPos'!C9+'A6-FinPos'!C15 -> 1124249894 | D35: ='A6-FinPos'!D8+'A6-FinPos'!D9+'A6-FinPos'!D15 -> 1381466158 | E35: ='A6-FinPos'!E8+'A6-FinPos'!E9+'A6-FinPos'!E15 -> 462406495 | F35: ='A6-FinPos'!F8+'A6-FinPos'!F9+'A6-FinPos'!F15 -> 902242932.7 | G35: ='A6-FinPos'!G8+'A6-FinPos'!G9+'A6-FinPos'!G15 -> 903012114.4 | H35: ='A6-FinPos'!H8+'A6-FinPos'!H9+'A6-FinPos'!H15 -> 903012114.4 | I35: ='A6-FinPos'!I8+'A6-FinPos'!I9+'A6-FinPos'!I15 -> 903012114.4 | J35: ='A6-FinPos'!J8+'A6-FinPos'!J9+'A6-FinPos'!J15 -> 1212392314 | K35: ='A6-FinPos'!K8+'A6-FinPos'!K9+'A6-FinPos'!K15 -> 1175242627 | L35: ='A6-FinPos'!L8+'A6-FinPos'!L9+'A6-FinPos'!L15 -> 1220885873
A36: Estimate of debtors collection rate | C36: =IF(ISERROR('SA10'!D10),0,('SA10'!D10)) -> 0.8216098801 | D36: =IF(ISERROR('SA10'!E10),0,('SA10'!E10)) -> 0.8662321137 | E36: =IF(ISERROR('SA10'!F10),0,('SA10'!F10)) -> 0.8297467303 | F36: =IF(ISERROR('SA10'!G10),0,('SA10'!G10)) -> 0.7685440089 | G36: =IF(ISERROR('SA10'!H10),0,('SA10'!H10)) -> 0.7507124731 | H36: =IF(ISERROR('SA10'!I10),0,('SA10'!I10)) -> 0.7507124731 | I36: =IF(ISERROR('SA10'!J10),0,('SA10'!J10)) -> 0.7507124731 | J36: =IF(ISERROR('SA10'!K10),0,('SA10'!K10)) -> 0.8170118548 | K36: =IF(ISERROR('SA10'!L10),0,('SA10'!L10)) -> 0.8170163816 | L36: =IF(ISERROR('SA10'!M10),0,('SA10'!M10)) -> 0.8175807978
K39: `
A40: =A16 -> Long term investments committed
A41: Balance (Insert description; eg sinking fund)
C52: =SUM(C41:C51) -> 0 | D52: =SUM(D41:D51) -> 0 | E52: 0 | F52: 0 | G52: 0 | H52: 0 | I52: 0 | J52: 0 | K52: 0 | L52: 0
A53: =A17 -> Reserves to be backed by cash/investments
A54: ='SA3'!A120 -> Housing Development Fund | C54: ='SA3'!C120 -> 79571771 | D54: ='SA3'!D120 -> 87653806 | E54: ='SA3'!E120 -> 90761936 | F54: ='SA3'!F120 -> 89406883 | G54: ='SA3'!G120 -> 183556050 | H54: ='SA3'!H120 -> 183556050 | I54: ='SA3'!I120 -> 183556050 | J54: ='SA3'!J120 -> 38942759.1 | K54: ='SA3'!K120 -> 36995621.15 | L54: ='SA3'!L120 -> 35145840.09
A55: ='SA3'!A121 -> Capital replacement
A56: ='SA3'!A122 -> Self-insurance
A57: Other (list)
C67: =SUM(C54:C65) -> 79571771 | D67: 87653806 | E67: 90761936 | F67: 89406883 | G67: 183556050 | H67: 183556050 | I67: 183556050 | J67: 38942759.1 | K67: 36995621.15 | L67: 35145840.09

Sheet A9-Asset
A1: =muni&" - "&Approve9 -> KZN225 Msunduzi - Table A9 Asset Management
A2: =desc -> Description | B2: =head27 -> Ref | C2: =head1b -> 2016/17 | D2: =head1A -> 2017/18 | E2: =Head1 -> 2018/19 | F2: =Head2 -> Current Year 2019/20 | I2: =Head3 -> 2020/21 Medium Term Revenue & Expenditure Framework
A3: R thousand | C3: =Head5 -> Audited Outcome | D3: =Head5 -> Audited Outcome | E3: =Head5 -> Audited Outcome | F3: =Head6 -> Original Budget | G3: =Head7 -> Adjusted Budget | H3: =Head8 -> Full Year Forecast | I3: =Head9 -> Budget Year 2020/21 | J3: =Head10 -> Budget Year +1 2021/22 | K3: =Head11 -> Budget Year +2 2022/23
A4: CAPITAL EXPENDITURE
A5: Total New Assets | B5: 1 | C5: =C15+C18+C19+C22+C25+C26+SUM(C29:C35) -> 185312231.7 | D5: =D15+D18+D19+D22+D25+D26+SUM(D29:D35) -> 132350713.9 | E5: 167502807.7 | F5: 111387338 | G5: 117672211.5 | H5: 117672211.5 | I5: 259388753 | J5: 281579229.9 | K5: 262518663.1
A6: Roads Infrastructure | C6: =SA34a!C7 -> 34982820.64 | D6: =SA34a!D7 -> 2747414.07 | E6: =SA34a!E7 -> 15103038.98 | F6: =SA34a!F7 -> 1292500 | G6: =SA34a!G7 -> 1515600.552 | H6: =SA34a!H7 -> 1515600.552 | I6: =SA34a!I7 -> 6000000 | J6: =SA34a!J7 -> 1650000 | K6: =SA34a!K7 -> 1749000
A7: Storm water Infrastructure | C7: =SA34a!C12 -> 0 | D7: =SA34a!D12 -> 0 | E7: =SA34a!E12 -> 0 | F7: =SA34a!F12 -> 0 | G7: =SA34a!G12 -> 0 | H7: =SA34a!H12 -> 0 | I7: =SA34a!I12 -> 0 | J7: =SA34a!J12 -> 0 | K7: =SA34a!K12 -> 0
A8: Electrical Infrastructure | C8: =SA34a!C16 -> 27835534.81 | D8: =SA34a!D16 -> 10171264.32 | E8: =SA34a!E16 -> 48683770.77 | F8: =SA34a!F16 -> 40853902.59 | G8: =SA34a!G16 -> 41027656.83 | H8: =SA34a!H16 -> 41027656.83 | I8: =SA34a!I16 -> 7500000 | J8: =SA34a!J16 -> 9000000 | K8: =SA34a!K16 -> 9540000
A9: Water Supply Infrastructure | C9: =SA34a!C26 -> 3412274.2 | D9: =SA34a!D26 -> 0 | E9: =SA34a!E26 -> 0 | F9: =SA34a!F26 -> 3290000 | G9: =SA34a!G26 -> 3968025.753 | H9: =SA34a!H26 -> 3968025.753 | I9: =SA34a!I26 -> 179388753 | J9: =SA34a!J26 -> 208480602.9 | K9: =SA34a!K26 -> 185958118.5
A10: Sanitation Infrastructure | C10: =SA34a!C37 -> 8376795.31 | D10: =SA34a!D37 -> 0 | E10: =SA34a!E37 -> 0 | F10: =SA34a!F37 -> 13269350 | G10: =SA34a!G37 -> 13617283.44 | H10: =SA34a!H37 -> 13617283.44 | I10: =SA34a!I37 -> 23500000 | J10: =SA34a!J37 -> 29848627 | K10: =SA34a!K37 -> 30791544.62
A11: Solid Waste Infrastructure | C11: =SA34a!C44 -> 0 | D11: =SA34a!D44 -> 148867 | E11: =SA34a!E44 -> 0 | F11: =SA34a!F44 -> 0 | G11: =SA34a!G44 -> 0 | H11: =SA34a!H44 -> 0 | I11: =SA34a!I44 -> 0 | J11: =SA34a!J44 -> 0 | K11: =SA34a!K44 -> 0
A12: Rail Infrastructure | C12: =SA34a!C52 -> 0 | D12: =SA34a!D52 -> 0 | E12: =SA34a!E52 -> 0 | F12: =SA34a!F52 -> 0 | G12: =SA34a!G52 -> 0 | H12: =SA34a!H52 -> 0 | I12: =SA34a!I52 -> 0 | J12: =SA34a!J52 -> 0 | K12: =SA34a!K52 -> 0
A13: Coastal Infrastructure | C13: =SA34a!C62 -> 0 | D13: =SA34a!D62 -> 0 | E13: =SA34a!E62 -> 0 | F13: =SA34a!F62 -> 0 | G13: =SA34a!G62 -> 0 | H13: =SA34a!H62 -> 0 | I13: =SA34a!I62 -> 0 | J13: =SA34a!J62 -> 0 | K13: =SA34a!K62 -> 0
A14: Information and Communication Infrastructure | C14: =SA34a!C68 -> 0 | D14: =SA34a!D68 -> 0 | E14: =SA34a!E68 -> 0 | F14: =SA34a!F68 -> 0 | G14: =SA34a!G68 -> 0 | H14: =SA34a!H68 -> 0 | I14: =SA34a!I68 -> 0 | J14: =SA34a!J68 -> 0 | K14: =SA34a!K68 -> 0
A15: Infrastructure | C15: =SUM(C6:C14) -> 74607424.96 | D15: =SUM(D6:D14) -> 13067545.39 | E15: 63786809.75 | F15: 58705752.59 | G15: 60128566.58 | H15: 60128566.58 | I15: 216388753 | J15: 248979229.9 | K15: 228038663.1
A16: Community Facilities | C16: =SA34a!C75 -> 168828 | D16: =SA34a!D75 -> 0 | E16: =SA34a!E75 -> 336655.96 | F16: =SA34a!F75 -> 3112466.03 | G16: =SA34a!G75 -> 4132319.688 | H16: =SA34a!H75 -> 4132319.688 | I16: =SA34a!I75 -> 23000000 | J16: =SA34a!J75 -> 23000000 | K16: =SA34a!K75 -> 24080000
A17: Sport and Recreation Facilities | C17: =SA34a!C98 -> 34334715.2 | D17: =SA34a!D98 -> 5106431.17 | E17: =SA34a!E98 -> 0 | F17: =SA34a!F98 -> 10457500 | G17: =SA34a!G98 -> 11384081.86 | H17: =SA34a!H98 -> 11384081.86 | I17: =SA34a!I98 -> 0 | J17: =SA34a!J98 -> 0 | K17: =SA34a!K98 -> 0
A18: Community Assets | C18: =SUM(C16:C17) -> 34503543.2 | D18: =SUM(D16:D17) -> 5106431.17 | E18: 336655.96 | F18: 13569966.03 | G18: 15516401.55 | H18: 15516401.55 | I18: 23000000 | J18: 23000000 | K18: 24080000
A19: Heritage Assets | C19: =SA34a!C103 -> 7290305.24 | D19: =SA34a!D103 -> 24328842.71 | E19: =SA34a!E103 -> 18343511.91 | F19: =SA34a!F103 -> 4042000 | G19: =SA34a!G103 -> 4866431.639 | H19: =SA34a!H103 -> 4866431.639 | I19: =SA34a!I103 -> 0 | J19: =SA34a!J103 -> 0 | K19: =SA34a!K103 -> 0
A20: Revenue Generating | C20: =SA34a!C111 -> 0 | D20: =SA34a!D111 -> 0 | E20: =SA34a!E111 -> 0 | F20: =SA34a!F111 -> 0 | G20: =SA34a!G111 -> 0 | H20: =SA34a!H111 -> 0 | I20: =SA34a!I111 -> 0 | J20: =SA34a!J111 -> 0 | K20: =SA34a!K111 -> 0
A21: Non-revenue Generating | C21: =SA34a!C114 -> 0 | D21: =SA34a!D114 -> 0 | E21: =SA34a!E114 -> 0 | F21: =SA34a!F114 -> 0 | G21: =SA34a!G114 -> 0 | H21: =SA34a!H114 -> 0 | I21: =SA34a!I114 -> 0 | J21: =SA34a!J114 -> 0 | K21: =SA34a!K114 -> 0
A22: Investment properties | C22: =SUM(C20:C21) -> 0 | D22: =SUM(D20:D21) -> 0 | E22: 0 | F22: 0 | G22: 0 | H22: 0 | I22: 0 | J22: 0 | K22: 0
A23: Operational Buildings | C23: =SA34a!C119 -> 5182667.6 | D23: =SA34a!D119 -> 0 | E23: =SA34a!E119 -> 2885283.88 | F23: =SA34a!F119 -> 0 | G23: =SA34a!G119 -> 0 | H23: =SA34a!H119 -> 0 | I23: =SA34a!I119 -> 0 | J23: =SA34a!J119 -> 0 | K23: =SA34a!K119 -> 0
A24: Housing | C24: =SA34a!C131 -> 0 | D24: =SA34a!D131 -> 0 | E24: =SA34a!E131 -> 0 | F24: =SA34a!F131 -> 5123000 | G24: =SA34a!G131 -> 5901640.101 | H24: =SA34a!H131 -> 5901640.101 | I24: =SA34a!I131 -> 0 | J24: =SA34a!J131 -> 0 | K24: =SA34a!K131 -> 0
A25: Other Assets | C25: =SUM(C23:C24) -> 5182667.6 | D25: =SUM(D23:D24) -> 0 | E25: 2885283.88 | F25: 5123000 | G25: 5901640.101 | H25: 5901640.101 | I25: 0 | J25: 0 | K25: 0
A26: Biological or Cultivated Assets | C26: =SA34a!C136 -> 0 | D26: =SA34a!D136 -> 0 | E26: =SA34a!E136 -> 0 | F26: =SA34a!F136 -> 0 | G26: =SA34a!G136 -> 0 | H26: =SA34a!H136 -> 0 | I26: =SA34a!I136 -> 0 | J26: =SA34a!J136 -> 0 | K26: =SA34a!K136 -> 0
A27: Servitudes | C27: =SA34a!C140 -> 0 | D27: =SA34a!D140 -> 0 | E27: =SA34a!E140 -> 0 | F27: =SA34a!F140 -> 0 | G27: =SA34a!G140 -> 0 | H27: =SA34a!H140 -> 0 | I27: =SA34a!I140 -> 0 | J27: =SA34a!J140 -> 0 | K27: =SA34a!K140 -> 0
A28: Licences and Rights | C28: =SA34a!C141 -> 29286885.5 | D28: =SA34a!D141 -> 195112.8 | E28: =SA34a!E141 -> 8968380.12 | F28: =SA34a!F141 -> 282000 | G28: =SA34a!G141 -> 374402.2074 | H28: =SA34a!H141 -> 374402.2074 | I28: =SA34a!I141 -> 5000000 | J28: =SA34a!J141 -> 300000 | K28: =SA34a!K141 -> 0
A29: Intangible Assets | C29: =SUM(C27:C28) -> 29286885.5 | D29: =SUM(D27:D28) -> 195112.8 | E29: 8968380.12 | F29: 282000 | G29: 374402.2074 | H29: 374402.2074 | I29: 5000000 | J29: 300000 | K29: 0
A30: Computer Equipment | C30: =SA34a!C149 -> 0 | D30: =SA34a!D149 -> 19861904.45 | E30: =SA34a!E149 -> 34960244.87 | F30: =SA34a!F149 -> 2324616.466 | G30: =SA34a!G149 -> 2536317.504 | H30: =SA34a!H149 -> 2536317.504 | I30: =SA34a!I149 -> 0 | J30: =SA34a!J149 -> 0 | K30: =SA34a!K149 -> 0
A31: Furniture and Office Equipment | C31: =SA34a!C152 -> 9148861.98 | D31: =SA34a!D152 -> 50761735.64 | E31: =SA34a!E152 -> 4304516.88 | F31: =SA34a!F152 -> 7117685.64 | G31: =SA34a!G152 -> 7449919.203 | H31: =SA34a!H152 -> 7449919.203 | I31: =SA34a!I152 -> 0 | J31: =SA34a!J152 -> 0 | K31: =SA34a!K152 -> 0
A32: Machinery and Equipment | C32: =SA34a!C155 -> 24823213.99 | D32: =SA34a!D155 -> 10858594.59 | E32: =SA34a!E155 -> 33839751.12 | F32: =SA34a!F155 -> 9698251.801 | G32: =SA34a!G155 -> 10176052.77 | H32: =SA34a!H155 -> 10176052.77 | I32: =SA34a!I155 -> 0 | J32: =SA34a!J155 -> 0 | K32: =SA34a!K155 -> 0
A33: Transport Assets | C33: =SA34a!C158 -> 469329.27 | D33: =SA34a!D158 -> 337124.62 | E33: =SA34a!E158 -> 77653.21 | F33: =SA34a!F158 -> 10524065.47 | G33: =SA34a!G158 -> 10722479.99 | H33: =SA34a!H158 -> 10722479.99 | I33: =SA34a!I158 -> 15000000 | J33: =SA34a!J158 -> 9300000 | K33: =SA34a!K158 -> 10400000
A34: Land | C34: =SA34a!C161 -> 0 | D34: =SA34a!D161 -> 7833422.52 | E34: =SA34a!E161 -> 0 | F34: =SA34a!F161 -> 0 | G34: =SA34a!G161 -> 0 | H34: =SA34a!H161 -> 0 | I34: =SA34a!I161 -> 0 | J34: =SA34a!J161 -> 0 | K34: =SA34a!K161 -> 0
A35: Zoo's, Marine and Non-biological Animals | C35: =SA34a!C164 -> 0 | D35: =SA34a!D164 -> 0 | E35: =SA34a!E164 -> 0 | F35: =SA34a!F164 -> 0 | G35: =SA34a!G164 -> 0 | H35: =SA34a!H164 -> 0 | I35: =SA34a!I164 -> 0 | J35: =SA34a!J164 -> 0 | K35: =SA34a!K164 -> 0
A37: Total Renewal of Existing Assets | B37: 2 | C37: =C47+C50+C51+C54+C57+C58+SUM(C61:C67) -> 297657017.7 | D37: =D47+D50+D51+D54+D57+D58+SUM(D61:D67) -> 515763053.1 | E37: 251586368.5 | F37: 387397253 | G37: 314315263.2 | H37: 314315263.2 | I37: 154200000 | J37: 184001547.8 | K37: 196981640.7
A38: Roads Infrastructure | C38: =SA34b!C7 -> 108918249.6 | D38: =SA34b!D7 -> 98713824.34 | E38: =SA34b!E7 -> 32198255.8 | F38: =SA34b!F7 -> 169403028.9 | G38: =SA34b!G7 -> 142551024.1 | H38: =SA34b!H7 -> 142551024.1 | I38: =SA34b!I7 -> 81700000 | J38: =SA34b!J7 -> 71192049.82 | K38: =SA34b!K7 -> 75463572.81
A39: Storm water Infrastructure | C39: =SA34b!C12 -> 0 | D39: =SA34b!D12 -> 0 | E39: =SA34b!E12 -> 0 | F39: =SA34b!F12 -> 0 | G39: =SA34b!G12 -> 0 | H39: =SA34b!H12 -> 0 | I39: =SA34b!I12 -> 0 | J39: =SA34b!J12 -> 0 | K39: =SA34b!K12 -> 0
A40: Electrical Infrastructure | C40: =SA34b!C16 -> 66802290.32 | D40: =SA34b!D16 -> 51960594.32 | E40: =SA34b!E16 -> 44447125.26 | F40: =SA34b!F16 -> 56974000 | G40: =SA34b!G16 -> 47943074.58 | H40: =SA34b!H16 -> 47943074.58 | I40: =SA34b!I16 -> 5000000 | J40: =SA34b!J16 -> 0 | K40: =SA34b!K16 -> 0
A41: Water Supply Infrastructure | C41: =SA34b!C26 -> 71045870.73 | D41: =SA34b!D26 -> 48979612.42 | E41: =SA34b!E26 -> 0 | F41: =SA34b!F26 -> 35119891.3 | G41: =SA34b!G26 -> 29553051.71 | H41: =SA34b!H26 -> 29553051.71 | I41: =SA34b!I26 -> 30500000 | J41: =SA34b!J26 -> 57817500 | K41: =SA34b!K26 -> 64306550
A42: Sanitation Infrastructure | C42: =SA34b!C37 -> 28814431.18 | D42: =SA34b!D37 -> 0 | E42: =SA34b!E37 -> 1197869.29 | F42: =SA34b!F37 -> 54750720 | G42: =SA34b!G37 -> 46072205.78 | H42: =SA34b!H37 -> 46072205.78 | I42: =SA34b!I37 -> 19500000 | J42: =SA34b!J37 -> 36991998 | K42: =SA34b!K37 -> 39211517.88
A43: Solid Waste Infrastructure | C43: =SA34b!C44 -> 1056656.56 | D43: =SA34b!D44 -> 30713723.54 | E43: =SA34b!E44 -> 19377263.52 | F43: =SA34b!F44 -> 5856000 | G43: =SA34b!G44 -> 4927767.837 | H43: =SA34b!H44 -> 4927767.837 | I43: =SA34b!I44 -> 0 | J43: =SA34b!J44 -> 0 | K43: =SA34b!K44 -> 0
A44: Rail Infrastructure | C44: =SA34b!C52 -> 0 | D44: =SA34b!D52 -> 0 | E44: =SA34b!E52 -> 0 | F44: =SA34b!F52 -> 0 | G44: =SA34b!G52 -> 0 | H44: =SA34b!H52 -> 0 | I44: =SA34b!I52 -> 0 | J44: =SA34b!J52 -> 0 | K44: =SA34b!K52 -> 0
A45: Coastal Infrastructure | C45: =SA34b!C62 -> 0 | D45: =SA34b!D62 -> 0 | E45: =SA34b!E62 -> 0 | F45: =SA34b!F62 -> 0 | G45: =SA34b!G62 -> 0 | H45: =SA34b!H62 -> 0 | I45: =SA34b!I62 -> 0 | J45: =SA34b!J62 -> 0 | K45: =SA34b!K62 -> 0
A46: Information and Communication Infrastructure | C46: =SA34b!C68 -> 0 | D46: =SA34b!D68 -> 0 | E46: =SA34b!E68 -> 0 | F46: =SA34b!F68 -> 0 | G46: =SA34b!G68 -> 0 | H46: =SA34b!H68 -> 0 | I46: =SA34b!I68 -> 0 | J46: =SA34b!J68 -> 0 | K46: =SA34b!K68 -> 0
A47: Infrastructure | C47: =SUM(C38:C46) -> 276637498.4 | D47: =SUM(D38:D46) -> 230367754.6 | E47: 97220513.87 | F47: 322103640.2 | G47: 271047124 | H47: 271047124 | I47: 136700000 | J47: 166001547.8 | K47: 178981640.7
A48: Community Facilities | C48: =SA34b!C75 -> 909995.46 | D48: =SA34b!D75 -> 8706674.4 | E48: =SA34b!E75 -> 3705234.78 | F48: =SA34b!F75 -> 13770588.7 | G48: =SA34b!G75 -> 1587818.322 | H48: =SA34b!H75 -> 1587818.322 | I48: =SA34b!I75 -> 0 | J48: =SA34b!J75 -> 0 | K48: =SA34b!K75 -> 0
A49: Sport and Recreation Facilities | C49: =SA34b!C98 -> 2822837.94 | D49: =SA34b!D98 -> 28616267.99 | E49: =SA34b!E98 -> 24870985.83 | F49: =SA34b!F98 -> 0 | G49: =SA34b!G98 -> 0 | H49: =SA34b!H98 -> 0 | I49: =SA34b!I98 -> 0 | J49: =SA34b!J98 -> 0 | K49: =SA34b!K98 -> 0
A50: Community Assets | C50: =SUM(C48:C49) -> 3732833.4 | D50: =SUM(D48:D49) -> 37322942.39 | E50: 28576220.61 | F50: 13770588.7 | G50: 1587818.322 | H50: 1587818.322 | I50: 0 | J50: 0 | K50: 0
A51: Heritage Assets | C51: =SA34b!C103 -> 311199.53 | D51: =SA34b!D103 -> 16065512.57 | E51: =SA34b!E103 -> 15407721.55 | F51: =SA34b!F103 -> 0 | G51: =SA34b!G103 -> 0 | H51: =SA34b!H103 -> 0 | I51: =SA34b!I103 -> 0 | J51: =SA34b!J103 -> 0 | K51: =SA34b!K103 -> 0
A52: Revenue Generating | C52: =SA34b!C111 -> 0 | D52: =SA34b!D111 -> 0 | E52: =SA34b!E111 -> 0 | F52: =SA34b!F111 -> 0 | G52: =SA34b!G111 -> 0 | H52: =SA34b!H111 -> 0 | I52: =SA34b!I111 -> 0 | J52: =SA34b!J111 -> 0 | K52: =SA34b!K111 -> 0
A53: Non-revenue Generating | C53: =SA34b!C114 -> 0 | D53: =SA34b!D114 -> 0 | E53: =SA34b!E114 -> 0 | F53: =SA34b!F114 -> 0 | G53: =SA34b!G114 -> 0 | H53: =SA34b!H114 -> 0 | I53: =SA34b!I114 -> 0 | J53: =SA34b!J114 -> 0 | K53: =SA34b!K114 -> 0
A54: Investment properties | C54: =SUM(C52:C53) -> 0 | D54: =SUM(D52:D53) -> 0 | E54: 0 | F54: 0 | G54: 0 | H54: 0 | I54: 0 | J54: 0 | K54: 0
A55: Operational Buildings | C55: =SA34b!C119 -> 13702356.26 | D55: =SA34b!D119 -> 0 | E55: =SA34b!E119 -> 0 | F55: =SA34b!F119 -> 1586000 | G55: =SA34b!G119 -> 1334603.789 | H55: =SA34b!H119 -> 1334603.789 | I55: =SA34b!I119 -> 0 | J55: =SA34b!J119 -> 0 | K55: =SA34b!K119 -> 0
A56: Housing | C56: =SA34b!C131 -> 0 | D56: =SA34b!D131 -> 0 | E56: =SA34b!E131 -> 0 | F56: =SA34b!F131 -> 0 | G56: =SA34b!G131 -> 0 | H56: =SA34b!H131 -> 0 | I56: =SA34b!I131 -> 0 | J56: =SA34b!J131 -> 0 | K56: =SA34b!K131 -> 0
A57: Other Assets | C57: =SUM(C55:C56) -> 13702356.26 | D57: =SUM(D55:D56) -> 0 | E57: 0 | F57: 1586000 | G57: 1334603.789 | H57: 1334603.789 | I57: 0 | J57: 0 | K57: 0
A58: Biological or Cultivated Assets | C58: =SA34b!C136 -> 0 | D58: =SA34b!D136 -> 0 | E58: =SA34b!E136 -> 0 | F58: =SA34b!F136 -> 0 | G58: =SA34b!G136 -> 0 | H58: =SA34b!H136 -> 0 | I58: =SA34b!I136 -> 0 | J58: =SA34b!J136 -> 0 | K58: =SA34b!K136 -> 0
A59: Servitudes | C59: =SA34b!C140 -> 0 | D59: =SA34b!D140 -> 0 | E59: =SA34b!E140 -> 0 | F59: =SA34b!F140 -> 0 | G59: =SA34b!G140 -> 0 | H59: =SA34b!H140 -> 0 | I59: =SA34b!I140 -> 0 | J59: =SA34b!J140 -> 0 | K59: =SA34b!K140 -> 0
A60: Licences and Rights | C60: =SA34b!C141 -> 0 | D60: =SA34b!D141 -> 0 | E60: =SA34b!E141 -> 0 | F60: =SA34b!F141 -> 49937024.14 | G60: =SA34b!G141 -> 40345717.03 | H60: =SA34b!H141 -> 40345717.03 | I60: =SA34b!I141 -> 12500000 | J60: =SA34b!J141 -> 18000000 | K60: =SA34b!K141 -> 18000000
A61: Intangible Assets | C61: =SUM(C59:C60) -> 0 | D61: =SUM(D59:D60) -> 0 | E61: 0 | F61: 49937024.14 | G61: 40345717.03 | H61: 40345717.03 | I61: 12500000 | J61: 18000000 | K61: 18000000
A62: Computer Equipment | C62: =SA34b!C149 -> 0 | D62: =SA34b!D149 -> 1950065.1 | E62: =SA34b!E149 -> 0 | F62: =SA34b!F149 -> 0 | G62: =SA34b!G149 -> 0 | H62: =SA34b!H149 -> 0 | I62: =SA34b!I149 -> 0 | J62: =SA34b!J149 -> 0 | K62: =SA34b!K149 -> 0
A63: Furniture and Office Equipment | C63: =SA34b!C152 -> 2018789.55 | D63: =SA34b!D152 -> 5781198.02 | E63: =SA34b!E152 -> 0 | F63: =SA34b!F152 -> 0 | G63: =SA34b!G152 -> 0 | H63: =SA34b!H152 -> 0 | I63: =SA34b!I152 -> 5000000 | J63: =SA34b!J152 -> 0 | K63: =SA34b!K152 -> 0
A64: Machinery and Equipment | C64: =SA34b!C155 -> 299999.27 | D64: =SA34b!D155 -> 15350489.89 | E64: =SA34b!E155 -> 0 | F64: =SA34b!F155 -> 0 | G64: =SA34b!G155 -> 0 | H64: =SA34b!H155 -> 0 | I64: =SA34b!I155 -> 0 | J64: =SA34b!J155 -> 0 | K64: =SA34b!K155 -> 0
A65: Transport Assets | C65: =SA34b!C158 -> 954341.25 | D65: =SA34b!D158 -> 177628403.2 | E65: =SA34b!E158 -> 110381912.5 | F65: =SA34b!F158 -> 0 | G65: =SA34b!G158 -> 0 | H65: =SA34b!H158 -> 0 | I65: =SA34b!I158 -> 0 | J65: =SA34b!J158 -> 0 | K65: =SA34b!K158 -> 0
A66: Land | C66: =SA34b!C161 -> 0 | D66: =SA34b!D161 -> 31296687.34 | E66: =SA34b!E161 -> 0 | F66: =SA34b!F161 -> 0 | G66: =SA34b!G161 -> 0 | H66: =SA34b!H161 -> 0 | I66: =SA34b!I161 -> 0 | J66: =SA34b!J161 -> 0 | K66: =SA34b!K161 -> 0
A67: Zoo's, Marine and Non-biological Animals | C67: =SA34b!C164 -> 0 | D67: =SA34b!D164 -> 0 | E67: =SA34b!E164 -> 0 | F67: =SA34b!F164 -> 0 | G67: =SA34b!G164 -> 0 | H67: =SA34b!H164 -> 0 | I67: =SA34b!I164 -> 0 | J67: =SA34b!J164 -> 0 | K67: =SA34b!K164 -> 0
A69: Total Upgrading of Existing Assets | B69: 6 | C69: =C79+C82+C83+C86+C89+C90+SUM(C93:C99) -> 0 | D69: =D79+D82+D83+D86+D89+D90+SUM(D93:D99) -> 0 | E69: 175803267.3 | F69: 72597555 | G69: 163688560.3 | H69: 163688560.3 | I69: 0 | J69: 0 | K69: 0
A70: Roads Infrastructure | C70: =SA34e!C7 -> 0 | D70: =SA34e!D7 -> 0 | E70: =SA34e!E7 -> 90517841.19 | F70: =SA34e!F7 -> 53201005 | G70: =SA34e!G7 -> 121014525.6 | H70: =SA34e!H7 -> 121014525.6 | I70: =SA34e!I7 -> 0 | J70: =SA34e!J7 -> 0 | K70: =SA34e!K7 -> 0
A71: Storm water Infrastructure | C71: =SA34e!C12 -> 0 | D71: =SA34e!D12 -> 0 | E71: =SA34e!E12 -> 0 | F71: =SA34e!F12 -> 0 | G71: =SA34e!G12 -> 0 | H71: =SA34e!H12 -> 0 | I71: =SA34e!I12 -> 0 | J71: =SA34e!J12 -> 0 | K71: =SA34e!K12 -> 0
A72: Electrical Infrastructure | C72: =SA34e!C16 -> 0 | D72: =SA34e!D16 -> 0 | E72: =SA34e!E16 -> 6325203.16 | F72: =SA34e!F16 -> 0 | G72: =SA34e!G16 -> 0 | H72: =SA34e!H16 -> 0 | I72: =SA34e!I16 -> 0 | J72: =SA34e!J16 -> 0 | K72: =SA34e!K16 -> 0
A73: Water Supply Infrastructure | C73: =SA34e!C26 -> 0 | D73: =SA34e!D26 -> 0 | E73: =SA34e!E26 -> 50483941.24 | F73: =SA34e!F26 -> 4351550.21 | G73: =SA34e!G26 -> 9526661.71 | H73: =SA34e!H26 -> 9526661.71 | I73: =SA34e!I26 -> 0 | J73: =SA34e!J26 -> 0 | K73: =SA34e!K26 -> 0
A74: Sanitation Infrastructure | C74: =SA34e!C37 -> 0 | D74: =SA34e!D37 -> 0 | E74: =SA34e!E37 -> 0 | F74: =SA34e!F37 -> 0 | G74: =SA34e!G37 -> 0 | H74: =SA34e!H37 -> 0 | I74: =SA34e!I37 -> 0 | J74: =SA34e!J37 -> 0 | K74: =SA34e!K37 -> 0
A75: Solid Waste Infrastructure | C75: =SA34e!C44 -> 0 | D75: =SA34e!D44 -> 0 | E75: =SA34e!E44 -> 4262949.49 | F75: =SA34e!F44 -> 8294999.79 | G75: =SA34e!G44 -> 18159886.26 | H75: =SA34e!H44 -> 18159886.26 | I75: =SA34e!I44 -> 0 | J75: =SA34e!J44 -> 0 | K75: =SA34e!K44 -> 0
A76: Rail Infrastructure | C76: =SA34e!C52 -> 0 | D76: =SA34e!D52 -> 0 | E76: =SA34e!E52 -> 0 | F76: =SA34e!F52 -> 0 | G76: =SA34e!G52 -> 0 | H76: =SA34e!H52 -> 0 | I76: =SA34e!I52 -> 0 | J76: =SA34e!J52 -> 0 | K76: =SA34e!K52 -> 0
A77: Coastal Infrastructure | C77: =SA34e!C62 -> 0 | D77: =SA34e!D62 -> 0 | E77: =SA34e!E62 -> 0 | F77: =SA34e!F62 -> 0 | G77: =SA34e!G62 -> 0 | H77: =SA34e!H62 -> 0 | I77: =SA34e!I62 -> 0 | J77: =SA34e!J62 -> 0 | K77: =SA34e!K62 -> 0
A78: Information and Communication Infrastructure | C78: =SA34e!C68 -> 0 | D78: =SA34e!D68 -> 0 | E78: =SA34e!E68 -> 0 | F78: =SA34e!F68 -> 0 | G78: =SA34e!G68 -> 0 | H78: =SA34e!H68 -> 0 | I78: =SA34e!I68 -> 0 | J78: =SA34e!J68 -> 0 | K78: =SA34e!K68 -> 0
A79: Infrastructure | C79: =SUM(C70:C78) -> 0 | D79: 0 | E79: 151589935.1 | F79: 65847555 | G79: 148701073.6 | H79: 148701073.6 | I79: 0 | J79: 0 | K79: 0
A80: Community Facilities | C80: =SA34e!C75 -> 0 | D80: =SA34e!D75 -> 0 | E80: =SA34e!E75 -> 149110.31 | F80: =SA34e!F75 -> 0 | G80: =SA34e!G75 -> 0 | H80: =SA34e!H75 -> 0 | I80: =SA34e!I75 -> 0 | J80: =SA34e!J75 -> 0 | K80: =SA34e!K75 -> 0
A81: Sport and Recreation Facilities | C81: =SA34e!C98 -> 0 | D81: =SA34e!D98 -> 0 | E81: =SA34e!E98 -> 1632721.64 | F81: =SA34e!F98 -> 1000000 | G81: =SA34e!G98 -> 2189256.989 | H81: =SA34e!H98 -> 2189256.989 | I81: =SA34e!I98 -> 0 | J81: =SA34e!J98 -> 0 | K81: =SA34e!K98 -> 0
A82: Community Assets | C82: =SUM(C80:C81) -> 0 | D82: 0 | E82: 1781831.95 | F82: 1000000 | G82: 2189256.989 | H82: 2189256.989 | I82: 0 | J82: 0 | K82: 0
A83: Heritage Assets | C83: =SA34e!C103 -> 0 | D83: =SA34e!D103 -> 0 | E83: =SA34e!E103 -> 8422674.74 | F83: =SA34e!F103 -> 0 | G83: =SA34e!G103 -> 0 | H83: =SA34e!H103 -> 0 | I83: =SA34e!I103 -> 0 | J83: =SA34e!J103 -> 0 | K83: =SA34e!K103 -> 0
A84: Revenue Generating | C84: =SA34e!C111 -> 0 | D84: =SA34e!D111 -> 0 | E84: =SA34e!E111 -> 0 | F84: =SA34e!F111 -> 0 | G84: =SA34e!G111 -> 0 | H84: =SA34e!H111 -> 0 | I84: =SA34e!I111 -> 0 | J84: =SA34e!J111 -> 0 | K84: =SA34e!K111 -> 0
A85: Non-revenue Generating | C85: =SA34e!C114 -> 0 | D85: =SA34e!D114 -> 0 | E85: =SA34e!E114 -> 0 | F85: =SA34e!F114 -> 0 | G85: =SA34e!G114 -> 0 | H85: =SA34e!H114 -> 0 | I85: =SA34e!I114 -> 0 | J85: =SA34e!J114 -> 0 | K85: =SA34e!K114 -> 0
A86: Investment properties | C86: =SUM(C84:C85) -> 0 | D86: 0 | E86: 0 | F86: 0 | G86: 0 | H86: 0 | I86: 0 | J86: 0 | K86: 0
A87: Operational Buildings | C87: =SA34e!C119 -> 0 | D87: =SA34e!D119 -> 0 | E87: =SA34e!E119 -> 0 | F87: =SA34e!F119 -> 0 | G87: =SA34e!G119 -> 0 | H87: =SA34e!H119 -> 0 | I87: =SA34e!I119 -> 0 | J87: =SA34e!J119 -> 0 | K87: =SA34e!K119 -> 0
A88: Housing | C88: =SA34e!C131 -> 0 | D88: =SA34e!D131 -> 0 | E88: =SA34e!E131 -> 0 | F88: =SA34e!F131 -> 0 | G88: =SA34e!G131 -> 0 | H88: =SA34e!H131 -> 0 | I88: =SA34e!I131 -> 0 | J88: =SA34e!J131 -> 0 | K88: =SA34e!K131 -> 0
A89: Other Assets | C89: =SUM(C87:C88) -> 0 | D89: 0 | E89: 0 | F89: 0 | G89: 0 | H89: 0 | I89: 0 | J89: 0 | K89: 0
A90: Biological or Cultivated Assets | C90: =SA34e!C136 -> 0 | D90: =SA34e!D136 -> 0 | E90: =SA34e!E136 -> 0 | F90: =SA34e!F136 -> 0 | G90: =SA34e!G136 -> 0 | H90: =SA34e!H136 -> 0 | I90: =SA34e!I136 -> 0 | J90: =SA34e!J136 -> 0 | K90: =SA34e!K136 -> 0
A91: Servitudes | C91: =SA34e!C140 -> 0 | D91: =SA34e!D140 -> 0 | E91: =SA34e!E140 -> 0 | F91: =SA34e!F140 -> 0 | G91: =SA34e!G140 -> 0 | H91: =SA34e!H140 -> 0 | I91: =SA34e!I140 -> 0 | J91: =SA34e!J140 -> 0 | K91: =SA34e!K140 -> 0
A92: Licences and Rights | C92: =SA34e!C141 -> 0 | D92: =SA34e!D141 -> 0 | E92: =SA34e!E141 -> 0 | F92: =SA34e!F141 -> 0 | G92: =SA34e!G141 -> 0 | H92: =SA34e!H141 -> 0 | I92: =SA34e!I141 -> 0 | J92: =SA34e!J141 -> 0 | K92: =SA34e!K141 -> 0
A93: Intangible Assets | C93: =SUM(C91:C92) -> 0 | D93: 0 | E93: 0 | F93: 0 | G93: 0 | H93: 0 | I93: 0 | J93: 0 | K93: 0
A94: Computer Equipment | C94: =SA34e!C149 -> 0 | D94: =SA34e!D149 -> 0 | E94: =SA34e!E149 -> 0 | F94: =SA34e!F149 -> 0 | G94: =SA34e!G149 -> 0 | H94: =SA34e!H149 -> 0 | I94: =SA34e!I149 -> 0 | J94: =SA34e!J149 -> 0 | K94: =SA34e!K149 -> 0
A95: Furniture and Office Equipment | C95: =SA34e!C152 -> 0 | D95: =SA34e!D152 -> 0 | E95: =SA34e!E152 -> 0 | F95: =SA34e!F152 -> 0 | G95: =SA34e!G152 -> 0 | H95: =SA34e!H152 -> 0 | I95: =SA34e!I152 -> 0 | J95: =SA34e!J152 -> 0 | K95: =SA34e!K152 -> 0
A96: Machinery and Equipment | C96: =SA34e!C155 -> 0 | D96: =SA34e!D155 -> 0 | E96: =SA34e!E155 -> 1388509.91 | F96: =SA34e!F155 -> 5750000 | G96: =SA34e!G155 -> 12588226.46 | H96: =SA34e!H155 -> 12588226.46 | I96: =SA34e!I155 -> 0 | J96: =SA34e!J155 -> 0 | K96: =SA34e!K155 -> 0
A97: Transport Assets | C97: =SA34e!C158 -> 0 | D97: =SA34e!D158 -> 0 | E97: =SA34e!E158 -> 0 | F97: =SA34e!F158 -> 0 | G97: =SA34e!G158 -> 210003.31 | H97: =SA34e!H158 -> 210003.31 | I97: =SA34e!I158 -> 0 | J97: =SA34e!J158 -> 0 | K97: =SA34e!K158 -> 0
A98: Land | C98: =SA34e!C161 -> 0 | D98: =SA34e!D161 -> 0 | E98: =SA34e!E161 -> 12620315.63 | F98: =SA34e!F161 -> 0 | G98: =SA34e!G161 -> 0 | H98: =SA34e!H161 -> 0 | I98: =SA34e!I161 -> 0 | J98: =SA34e!J161 -> 0 | K98: =SA34e!K161 -> 0
A99: Zoo's, Marine and Non-biological Animals | C99: =SA34e!C164 -> 0 | D99: =SA34e!D164 -> 0 | E99: =SA34e!E164 -> 0 | F99: =SA34e!F164 -> 0 | G99: =SA34e!G164 -> 0 | H99: =SA34e!H164 -> 0 | I99: =SA34e!I164 -> 0 | J99: =SA34e!J164 -> 0 | K99: =SA34e!K164 -> 0
A101: Total Capital Expenditure | B101: 4 | C101: =+C5+C37+C69 -> 482969249.4 | D101: =+D5+D37+D69 -> 648113767 | E101: 594892443.5 | F101: 571382146 | G101: 595676035 | H101: 595676035 | I101: 413588753 | J101: 465580777.7 | K101: 459500303.8
A102: Roads Infrastructure | C102: =+C6+C38+C70 -> 143901070.3 | D102: =+D6+D38+D70 -> 101461238.4 | E102: 137819136 | F102: 223896533.9 | G102: 265081150.2 | H102: 265081150.2 | I102: 87700000 | J102: 72842049.82 | K102: 77212572.81
A103: Storm water Infrastructure | C103: =+C7+C39+C71 -> 0 | D103: 0 | E103: 0 | F103: 0 | G103: 0 | H103: 0 | I103: 0 | J103: 0 | K103: 0
A104: Electrical Infrastructure | C104: 94637825.13 | D104: 62131858.64 | E104: 99456099.19 | F104: 97827902.59 | G104: 88970731.41 | H104: 88970731.41 | I104: 12500000 | J104: 9000000 | K104: 9540000
A105: Water Supply Infrastructure | C105: 74458144.93 | D105: 48979612.42 | E105: 50483941.24 | F105: 42761441.51 | G105: 43047739.17 | H105: 43047739.17 | I105: 209888753 | J105: 266298102.9 | K105: 250264668.5
A106: Sanitation Infrastructure | C106: 37191226.49 | D106: 0 | E106: 1197869.29 | F106: 68020070 | G106: 59689489.23 | H106: 59689489.23 | I106: 43000000 | J106: 66840625 | K106: 70003062.5
A107: Solid Waste Infrastructure | C107: 1056656.56 | D107: 30862590.54 | E107: 23640213.01 | F107: 14150999.79 | G107: 23087654.1 | H107: 23087654.1 | I107: 0 | J107: 0 | K107: 0
A108: Rail Infrastructure | C108: 0 | D108: 0 | E108: 0 | F108: 0 | G108: 0 | H108: 0 | I108: 0 | J108: 0 | K108: 0
A109: Coastal Infrastructure | C109: 0 | D109: 0 | E109: 0 | F109: 0 | G109: 0 | H109: 0 | I109: 0 | J109: 0 | K109: 0
A110: Information and Communication Infrastructure | C110: 0 | D110: 0 | E110: 0 | F110: 0 | G110: 0 | H110: 0 | I110: 0 | J110: 0 | K110: 0
A111: Infrastructure | C111: =SUM(C102:C110) -> 351244923.4 | D111: =SUM(D102:D110) -> 243435300 | E111: 312597258.7 | F111: 446656947.7 | G111: 479876764.1 | H111: 479876764.1 | I111: 353088753 | J111: 414980777.7 | K111: 407020303.8
A112: Community Facilities | C112: =+C16+C48+C80 -> 1078823.46 | D112: =+D16+D48+D80 -> 8706674.4 | E112: 4191001.05 | F112: 16883054.73 | G112: 5720138.01 | H112: 5720138.01 | I112: 23000000 | J112: 23000000 | K112: 24080000
A113: Sport and Recreation Facilities | C113: =+C17+C49+C81 -> 37157553.14 | D113: =+D17+D49+D81 -> 33722699.16 | E113: 26503707.47 | F113: 11457500 | G113: 13573338.85 | H113: 13573338.85 | I113: 0 | J113: 0 | K113: 0
A114: Community Assets | C114: =SUM(C112:C113) -> 38236376.6 | D114: =SUM(D112:D113) -> 42429373.56 | E114: 30694708.52 | F114: 28340554.73 | G114: 19293476.86 | H114: 19293476.86 | I114: 23000000 | J114: 23000000 | K114: 24080000
A115: Heritage Assets | C115: =+C19+C51+C83 -> 7601504.77 | D115: =+D19+D51+D83 -> 40394355.28 | E115: 42173908.2 | F115: 4042000 | G115: 4866431.639 | H115: 4866431.639 | I115: 0 | J115: 0 | K115: 0
A116: Revenue Generating | C116: =+C20+C52+C84 -> 0 | D116: =+D20+D52+D84 -> 0 | E116: 0 | F116: 0 | G116: 0 | H116: 0 | I116: 0 | J116: 0 | K116: 0
A117: Non-revenue Generating | C117: =+C21+C53+C85 -> 0 | D117: =+D21+D53+D85 -> 0 | E117: 0 | F117: 0 | G117: 0 | H117: 0 | I117: 0 | J117: 0 | K117: 0
A118: Investment properties | C118: =SUM(C116:C117) -> 0 | D118: =SUM(D116:D117) -> 0 | E118: 0 | F118: 0 | G118: 0 | H118: 0 | I118: 0 | J118: 0 | K118: 0
A119: Operational Buildings | C119: =+C23+C55+C87 -> 18885023.86 | D119: =+D23+D55+D87 -> 0 | E119: 2885283.88 | F119: 1586000 | G119: 1334603.789 | H119: 1334603.789 | I119: 0 | J119: 0 | K119: 0
A120: Housing | C120: =+C24+C56+C88 -> 0 | D120: =+D24+D56+D88 -> 0 | E120: 0 | F120: 5123000 | G120: 5901640.101 | H120: 5901640.101 | I120: 0 | J120: 0 | K120: 0
A121: Other Assets | C121: =SUM(C119:C120) -> 18885023.86 | D121: 0 | E121: 2885283.88 | F121: 6709000 | G121: 7236243.89 | H121: 7236243.89 | I121: 0 | J121: 0 | K121: 0
A122: Biological or Cultivated Assets | C122: =+C26+C58+C90 -> 0 | D122: =+D26+D58+D90 -> 0 | E122: 0 | F122: 0 | G122: 0 | H122: 0 | I122: 0 | J122: 0 | K122: 0
A123: Servitudes | C123: =+C27+C59+C91 -> 0 | D123: =+D27+D59+D91 -> 0 | E123: 0 | F123: 0 | G123: 0 | H123: 0 | I123: 0 | J123: 0 | K123: 0
A124: Licences and Rights | C124: =+C28+C60+C92 -> 29286885.5 | D124: =+D28+D60+D92 -> 195112.8 | E124: 8968380.12 | F124: 50219024.14 | G124: 40720119.24 | H124: 40720119.24 | I124: 17500000 | J124: 18300000 | K124: 18000000
A125: Intangible Assets | C125: =SUM(C123:C124) -> 29286885.5 | D125: =SUM(D123:D124) -> 195112.8 | E125: 8968380.12 | F125: 50219024.14 | G125: 40720119.24 | H125: 40720119.24 | I125: 17500000 | J125: 18300000 | K125: 18000000
A126: Computer Equipment | C126: =+C30+C62+C94 -> 0 | D126: =+D30+D62+D94 -> 21811969.55 | E126: 34960244.87 | F126: 2324616.466 | G126: 2536317.504 | H126: 2536317.504 | I126: 0 | J126: 0 | K126: 0
A127: Furniture and Office Equipment | C127: =+C31+C63+C95 -> 11167651.53 | D127: 56542933.66 | E127: 4304516.88 | F127: 7117685.64 | G127: 7449919.203 | H127: 7449919.203 | I127: 5000000 | J127: 0 | K127: 0
A128: Machinery and Equipment | C128: 25123213.26 | D128: 26209084.48 | E128: 35228261.03 | F128: 15448251.8 | G128: 22764279.23 | H128: 22764279.23 | I128: 0 | J128: 0 | K128: 0
A129: Transport Assets | C129: 1423670.52 | D129: 177965527.8 | E129: 110459565.7 | F129: 10524065.47 | G129: 10932483.3 | H129: 10932483.3 | I129: 15000000 | J129: 9300000 | K129: 10400000
A130: Land | C130: 0 | D130: 39130109.86 | E130: 12620315.63 | F130: 0 | G130: 0 | H130: 0 | I130: 0 | J130: 0 | K130: 0
A131: Zoo's, Marine and Non-biological Animals | C131: 0 | D131: 0 | E131: 0 | F131: 0 | G131: 0 | H131: 0 | I131: 0 | J131: 0 | K131: 0
A132: TOTAL CAPITAL EXPENDITURE - Asset class | C132: =+C5+C37+C69 -> 482969249.4 | D132: =+D5+D37+D69 -> 648113767 | E132: 594892443.5 | F132: 571382146 | G132: 595676035 | H132: 595676035 | I132: 413588753 | J132: 465580777.7 | K132: 459500303.8
A134: ASSET REGISTER SUMMARY - PPE (WDV) | B134: 5 | C134: =C144+C147+C148+C151+C154+C155+C158+C159+C160+C161+C162+C163+C164 -> 7170057388 | D134: =D144+D147+D148+D151+D154+D155+D158+D159+D160+D161+D162+D163+D164 -> 8003466549 | E134: 0 | F134: 8299932731 | G134: 8011347404 | H134: 8011347404 | I134: 7904395512 | J134: 7818203206 | K134: 7943582371
A135: Roads Infrastructure | C135: 2995368342 | D135: 3657550278 | F135: 2665950944 | G135: 2652089474 | H135: 2652089474 | I135: 2724855854 | J135: 2781868267 | K135: 2721435110
A136: Storm water Infrastructure | C136: 156434542 | D136: 164256269.1 | F136: 171146519.2 | G136: 162996685 | H136: 162996685 | I136: 162996685 | J136: 162996685 | K136: 162996685
A137: Electrical Infrastructure | C137: 1275053426 | D137: 1338806097 | F137: 1319290256 | G137: 1256466911 | H137: 1256466911 | I137: 1157523024 | J137: 1048392504 | K137: 1164070855
A138: Water Supply Infrastructure | C138: 912162895 | D138: 957771039.8 | F138: 1207157612 | G138: 1149673916 | H138: 1149673916 | I138: 1251648752 | J138: 1403558104 | K138: 1274545512
A139: Sanitation Infrastructure | C139: 470204815 | D139: 493715055.8 | F139: 682631645.9 | G139: 650125377 | H139: 650125377 | I139: 603125377 | J139: 576366002 | K139: 607486939.5
A140: Solid Waste Infrastructure | C140: 15672934 | D140: 16456580.7 | F140: 37297702.88 | G140: 35521621.79 | H140: 35521621.79 | I140: 35521621.79 | J140: 35521621.79 | K140: 35521621.79
A141: Rail Infrastructure | C141: 1408108 | D141: 1478513.4 | F141: 1552439.07 | G141: 0 | H141: 0 | I141: 0 | J141: 0 | K141: 0
A142: Coastal Infrastructure | C142: 4867139 | D142: 5110495.95 | F142: 5366020.748 | G142: 0 | H142: 0 | I142: 0 | J142: 0 | K142: 0
A143: Information and Communication Infrastructure | C143: 5022000 | D143: 5301000 | F143: 5859000 | G143: 5580000 | H143: 5580000 | I143: 5580000 | J143: 5580000 | K143: 5580000
A144: Infrastructure | C144: =SUM(C135:C143) -> 5836194201 | D144: =SUM(D135:D143) -> 6640445330 | E144: 0 | F144: 6096252140 | G144: 5912453985 | H144: 5912453985 | I144: 5941251314 | J144: 6014283183 | K144: 5971636723
A147: Community Assets | C147: 294811229 | D147: 309551790.4 | F147: 36233641.81 | G147: 34508230.3 | H147: 34508230.3 | I147: 19178018.57 | J147: 1547994.139 | K147: 20535820.04
A148: Heritage Assets | C148: 126091404 | D148: 132395974.2 | F148: 260307963.3 | G148: 247912346 | H148: 247912346 | I148: 247912346 | J148: 247912346 | K148: 247912346
A151: Investment properties | C151: 226212346 | D151: 230736592.9 | F151: 756234992.1 | G151: 720223802 | H151: 720223802 | I151: 720223802 | J151: 720223802 | K151: 720223802
A154: Other Assets | C154: 283455412 | D154: 289124520.2 | F154: 351457459.5 | G154: 334721390 | H154: 334721390 | I154: 261697420.4 | J154: 182492012.7 | K154: 264541744.9
A155: Biological or Cultivated Assets
A158: Intangible Assets | C158: 803846 | D158: 844038.3 | F158: 27865742.94 | G158: 26538802.8 | H158: 26538802.8 | I158: 33643762.8 | J158: 39387567.13 | K158: 34697134.54
A159: Computer Equipment | C159: 49799112 | D159: 52289067.6 | F159: 1288020.205 | G159: 1226685.91 | H159: 1226685.91 | I159: 1226685.91 | J159: 1226685.91 | K159: 1226685.91
A160: Furniture and Office Equipment | C160: 56298121 | D160: 59113027.05 | F160: 16820364.75 | G160: 16019395 | H160: 16019395 | I160: 21019395 | J160: 21019395 | K160: 21019395
A161: Machinery and Equipment | C161: 222450941 | D161: 211328393.9 | F161: 606200849.9 | G161: 577334142.8 | H161: 577334142.8 | I161: 502834142.8 | J161: 425401596 | K161: 507480095.6
A162: Transport Assets | C162: 73940776 | D162: 77637814.8 | F162: 147271555.6 | G162: 140258624.4 | H162: 140258624.4 | I162: 155258624.4 | J162: 164558624.4 | K162: 154158624.4
A163: Land | G163: 150000 | H163: 150000 | I163: 150000 | J163: 150000 | K163: 150000
A164: Zoo's, Marine and Non-biological Animals
A165: TOTAL ASSET REGISTER SUMMARY - PPE (WDV) | B165: 5 | C165: =C144+C147+C148+C151+C154+C155+C158+C159+C160+C161+C162+C163+C164 -> 7170057388 | D165: =D144+D147+D148+D151+D154+D155+D158+D159+D160+D161+D162+D163+D164 -> 8003466549 | E165: 0 | F165: 8299932731 | G165: 8011347404 | H165: 8011347404 | I165: 7904395512 | J165: 7818203206 | K165: 7943582371
A167: EXPENDITURE OTHER ITEMS | C167: =SUM(C168:C169) -> 717997039.2 | D167: =SUM(D168:D169) -> 776765600 | E167: 470370498.3 | F167: 681043240.6 | G167: 681043253.2 | H167: 681043253.2 | I167: 753844459.4 | J167: 792134804.5 | K167: 836375279.6
A168: Depreciation | B168: 7 | C168: =SA34d!C167 -> 555153429.2 | D168: =SA34d!D167 -> 605422092.3 | E168: =SA34d!E167 -> 470370498.3 | F168: =SA34d!F167 -> 468636492.5 | G168: =SA34d!G167 -> 468636505 | H168: =SA34d!H167 -> 468636505 | I168: =SA34d!I167 -> 520540645.1 | J168: =SA34d!J167 -> 551773083.8 | K168: =SA34d!K167 -> 584879468.8
A169: Repairs and Maintenance by Asset Class | B169: 3 | C169: =C179+C182+C183+C186+C189+C190+SUM(C193:C199) -> 162843610 | D169: =D179+D182+D183+D186+D189+D190+SUM(D193:D199) -> 171343507.7 | E169: 0 | F169: 212406748.2 | G169: 212406748.2 | H169: 212406748.2 | I169: 233303814.3 | J169: 240361720.7 | K169: 251495810.8
A170: Roads Infrastructure | C170: =SA34c!C7 -> 47028527 | D170: =SA34c!D7 -> 49483260.51 | E170: =SA34c!E7 -> 0 | F170: =SA34c!F7 -> 0 | G170: =SA34c!G7 -> 0 | H170: =SA34c!H7 -> 0 | I170: =SA34c!I7 -> 67377416.65 | J170: =SA34c!J7 -> 69415709.35 | K170: =SA34c!K7 -> 72631186.19
A171: Storm water Infrastructure | C171: =SA34c!C12 -> 0 | D171: =SA34c!D12 -> 0 | E171: =SA34c!E12 -> 0 | F171: =SA34c!F12 -> 0 | G171: =SA34c!G12 -> 0 | H171: =SA34c!H12 -> 0 | I171: =SA34c!I12 -> 0 | J171: =SA34c!J12 -> 0 | K171: =SA34c!K12 -> 0
A172: Electrical Infrastructure | C172: =SA34c!C16 -> 50160358 | D172: =SA34c!D16 -> 52778562.73 | E172: =SA34c!E16 -> 0 | F172: =SA34c!F16 -> 55411000 | G172: =SA34c!G16 -> 55411000 | H172: =SA34c!H16 -> 55411000 | I172: =SA34c!I16 -> 72368461.65 | J172: =SA34c!J16 -> 74557773.04 | K172: =SA34c!K16 -> 78011487.04
A173: Water Supply Infrastructure | C173: =SA34c!C26 -> 15460146 | D173: =SA34c!D26 -> 16267114.47 | E173: =SA34c!E26 -> 0 | F173: =SA34c!F26 -> 8427432 | G173: =SA34c!G26 -> 8427432 | H173: =SA34c!H26 -> 8427432 | I173: =SA34c!I26 -> 22149634.81 | J173: =SA34c!J26 -> 22819702.63 | K173: =SA34c!K26 -> 23876757.67
A174: Sanitation Infrastructure | C174: =SA34c!C37 -> 6125106 | D174: =SA34c!D37 -> 6444816.268 | E174: =SA34c!E37 -> 0 | F174: =SA34c!F37 -> 121922517.4 | G174: =SA34c!G37 -> 121922517.4 | H174: =SA34c!H37 -> 121922517.4 | I174: =SA34c!I37 -> 8775393.263 | J174: =SA34c!J37 -> 9040865.3 | K174: =SA34c!K37 -> 9459656.568
A175: Solid Waste Infrastructure | C175: =SA34c!C44 -> 8472287 | D175: =SA34c!D44 -> 8914512.35 | E175: =SA34c!E44 -> 0 | F175: =SA34c!F44 -> 1707553 | G175: =SA34c!G44 -> 1707553 | H175: =SA34c!H44 -> 1707553 | I175: =SA34c!I44 -> 12138181.81 | J175: =SA34c!J44 -> 12505384.49 | K175: =SA34c!K44 -> 13084659.33
A176: Rail Infrastructure | C176: =SA34c!C52 -> 0 | D176: =SA34c!D52 -> 0 | E176: =SA34c!E52 -> 0 | F176: =SA34c!F52 -> 0 | G176: =SA34c!G52 -> 0 | H176: =SA34c!H52 -> 0 | I176: =SA34c!I52 -> 0 | J176: =SA34c!J52 -> 0 | K176: =SA34c!K52 -> 0
A177: Coastal Infrastructure | C177: =SA34c!C62 -> 0 | D177: =SA34c!D62 -> 0 | E177: =SA34c!E62 -> 0 | F177: =SA34c!F62 -> 0 | G177: =SA34c!G62 -> 0 | H177: =SA34c!H62 -> 0 | I177: =SA34c!I62 -> 0 | J177: =SA34c!J62 -> 0 | K177: =SA34c!K62 -> 0
A178: Information and Communication Infrastructure | C178: =SA34c!C68 -> 0 | D178: =SA34c!D68 -> 0 | E178: =SA34c!E68 -> 0 | F178: =SA34c!F68 -> 0 | G178: =SA34c!G68 -> 0 | H178: =SA34c!H68 -> 0 | I178: =SA34c!I68 -> 0 | J178: =SA34c!J68 -> 0 | K178: =SA34c!K68 -> 0
A179: Infrastructure | C179: =SUM(C170:C178) -> 127246424 | D179: =SUM(D170:D178) -> 133888266.3 | E179: 0 | F179: 187468502.4 | G179: 187468502.4 | H179: 187468502.4 | I179: 182809088.2 | J179: 188339434.8 | K179: 197063746.8
A180: Community Facilities | C180: =SA34c!C75 -> 17218037 | D180: =SA34c!D75 -> 17639142.13 | E180: =SA34c!E75 -> 0 | F180: =SA34c!F75 -> 4042924.79 | G180: =SA34c!G75 -> 4042924.79 | H180: =SA34c!H75 -> 4042924.79 | I180: =SA34c!I75 -> 23512721.35 | J180: =SA34c!J75 -> 24224025.09 | K180: =SA34c!K75 -> 25346131.2
A181: Sport and Recreation Facilities | C181: =SA34c!C98 -> 0 | D181: =SA34c!D98 -> 0 | E181: =SA34c!E98 -> 0 | F181: =SA34c!F98 -> 5390286 | G181: =SA34c!G98 -> 5390286 | H181: =SA34c!H98 -> 5390286 | I181: =SA34c!I98 -> 0 | J181: =SA34c!J98 -> 0 | K181: =SA34c!K98 -> 0
A182: Community Assets | C182: =SUM(C180:C181) -> 17218037 | D182: 17639142.13 | E182: 0 | F182: 9433210.79 | G182: 9433210.79 | H182: 9433210.79 | I182: 23512721.35 | J182: 24224025.09 | K182: 25346131.2
A183: Heritage Assets | C183: =SA34c!C103 -> 18379149 | D183: =SA34c!D103 -> 19816099.2 | E183: =SA34c!E103 -> 0 | F183: =SA34c!F103 -> 0 | G183: =SA34c!G103 -> 0 | H183: =SA34c!H103 -> 0 | I183: =SA34c!I103 -> 26982004.8 | J183: =SA34c!J103 -> 27798260.84 | K183: =SA34c!K103 -> 29085932.82
A184: Revenue Generating | C184: =SA34c!C111 -> 0 | D184: =SA34c!D111 -> 0 | E184: =SA34c!E111 -> 0 | F184: =SA34c!F111 -> 0 | G184: =SA34c!G111 -> 0 | H184: =SA34c!H111 -> 0 | I184: =SA34c!I111 -> 0 | J184: =SA34c!J111 -> 0 | K184: =SA34c!K111 -> 0
A185: Non-revenue Generating | C185: =SA34c!C114 -> 0 | D185: =SA34c!D114 -> 0 | E185: =SA34c!E114 -> 0 | F185: =SA34c!F114 -> 0 | G185: =SA34c!G114 -> 0 | H185: =SA34c!H114 -> 0 | I185: =SA34c!I114 -> 0 | J185: =SA34c!J114 -> 0 | K185: =SA34c!K114 -> 0
A186: Investment properties | C186: =SUM(C184:C185) -> 0 | D186: 0 | E186: 0 | F186: 0 | G186: 0 | H186: 0 | I186: 0 | J186: 0 | K186: 0
A187: Operational Buildings | C187: =SA34c!C119 -> 0 | D187: =SA34c!D119 -> 0 | E187: =SA34c!E119 -> 0 | F187: =SA34c!F119 -> 3508782.331 | G187: =SA34c!G119 -> 3508782.331 | H187: =SA34c!H119 -> 3508782.331 | I187: =SA34c!I119 -> 0 | J187: =SA34c!J119 -> 0 | K187: =SA34c!K119 -> 0
A188: Housing | C188: =SA34c!C131 -> 0 | D188: =SA34c!D131 -> 0 | E188: =SA34c!E131 -> 0 | F188: =SA34c!F131 -> 0 | G188: =SA34c!G131 -> 0 | H188: =SA34c!H131 -> 0 | I188: =SA34c!I131 -> 0 | J188: =SA34c!J131 -> 0 | K188: =SA34c!K131 -> 0
A189: Other Assets | C189: =SUM(C187:C188) -> 0 | D189: 0 | E189: 0 | F189: 3508782.331 | G189: 3508782.331 | H189: 3508782.331 | I189: 0 | J189: 0 | K189: 0
A190: Biological or Cultivated Assets | C190: =SA34c!C136 -> 0 | D190: =SA34c!D136 -> 0 | E190: =SA34c!E136 -> 0 | F190: =SA34c!F136 -> 0 | G190: =SA34c!G136 -> 0 | H190: =SA34c!H136 -> 0 | I190: =SA34c!I136 -> 0 | J190: =SA34c!J136 -> 0 | K190: =SA34c!K136 -> 0
A191: Servitudes | C191: =SA34c!C140 -> 0 | D191: =SA34c!D140 -> 0 | E191: =SA34c!E140 -> 0 | F191: =SA34c!F140 -> 0 | G191: =SA34c!G140 -> 0 | H191: =SA34c!H140 -> 0 | I191: =SA34c!I140 -> 0 | J191: =SA34c!J140 -> 0 | K191: =SA34c!K140 -> 0
A192: Licences and Rights | C192: =SA34c!C141 -> 0 | D192: =SA34c!D141 -> 0 | E192: =SA34c!E141 -> 0 | F192: =SA34c!F141 -> 0 | G192: =SA34c!G141 -> 0 | H192: =SA34c!H141 -> 0 | I192: =SA34c!I141 -> 0 | J192: =SA34c!J141 -> 0 | K192: =SA34c!K141 -> 0
A193: Intangible Assets | C193: =SUM(C191:C192) -> 0 | D193: 0 | E193: 0 | F193: 0 | G193: 0 | H193: 0 | I193: 0 | J193: 0 | K193: 0
A194: Computer Equipment | C194: =SA34c!C149 -> 0 | D194: =SA34c!D149 -> 0 | E194: =SA34c!E149 -> 0 | F194: =SA34c!F149 -> 0 | G194: =SA34c!G149 -> 0 | H194: =SA34c!H149 -> 0 | I194: =SA34c!I149 -> 0 | J194: =SA34c!J149 -> 0 | K194: =SA34c!K149 -> 0
A195: Furniture and Office Equipment | C195: =SA34c!C152 -> 0 | D195: =SA34c!D152 -> 0 | E195: =SA34c!E152 -> 0 | F195: =SA34c!F152 -> 0 | G195: =SA34c!G152 -> 0 | H195: =SA34c!H152 -> 0 | I195: =SA34c!I152 -> 0 | J195: =SA34c!J152 -> 0 | K195: =SA34c!K152 -> 0
A196: Machinery and Equipment | C196: =SA34c!C155 -> 0 | D196: =SA34c!D155 -> 0 | E196: =SA34c!E155 -> 0 | F196: =SA34c!F155 -> 1061342.336 | G196: =SA34c!G155 -> 1061342.336 | H196: =SA34c!H155 -> 1061342.336 | I196: =SA34c!I155 -> 0 | J196: =SA34c!J155 -> 0 | K196: =SA34c!K155 -> 0
A197: Transport Assets | C197: =SA34c!C158 -> 0 | D197: =SA34c!D158 -> 0 | E197: =SA34c!E158 -> 0 | F197: =SA34c!F158 -> 10934910.36 | G197: =SA34c!G158 -> 10934910.36 | H197: =SA34c!H158 -> 10934910.36 | I197: =SA34c!I158 -> 0 | J197: =SA34c!J158 -> 0 | K197: =SA34c!K158 -> 0
A198: Land | C198: =SA34c!C161 -> 0 | D198: =SA34c!D161 -> 0 | E198: =SA34c!E161 -> 0 | F198: =SA34c!F161 -> 0 | G198: =SA34c!G161 -> 0 | H198: =SA34c!H161 -> 0 | I198: =SA34c!I161 -> 0 | J198: =SA34c!J161 -> 0 | K198: =SA34c!K161 -> 0
A199: Zoo's, Marine and Non-biological Animals | C199: =SA34c!C164 -> 0 | D199: =SA34c!D164 -> 0 | E199: =SA34c!E164 -> 0 | F199: =SA34c!F164 -> 0 | G199: =SA34c!G164 -> 0 | H199: =SA34c!H164 -> 0 | I199: =SA34c!I164 -> 0 | J199: =SA34c!J164 -> 0 | K199: =SA34c!K164 -> 0
A201: TOTAL EXPENDITURE OTHER ITEMS | C201: =SUM(C168:C169) -> 717997039.2 | D201: 776765600 | E201: 470370498.3 | F201: 681043240.6 | G201: 681043253.2 | H201: 681043253.2 | I201: 753844459.4 | J201: 792134804.5 | K201: 836375279.6
A203: Renewal and upgrading of Existing Assets as % of total capex | C203: =IF(ISERROR((C37+C69)/C132),0,((C37+C69)/C132)) -> 0.616306355 | D203: =IF(ISERROR((D37+D69)/D132),0,((D37+D69)/D132)) -> 0.7957909234 | E203: 0.7184317779 | F203: 0.8050563204 | G203: 0.8024560254 | H203: 0.8024560254 | I203: 0.372834123 | J203: 0.395208644 | K203: 0.4286866386
A204: Renewal and upgrading of Existing Assets as % of deprecn | C204: =IF(ISERROR((C37+C69)/C168),0,((C37+C69)/C168)) -> 0.5361707269 | D204: =IF(ISERROR((D37+D69)/D168),0,((D37+D69)/D168)) -> 0.8519065618 | E204: 0.9086233882 | F204: 0.9815599413 | G204: 1.019988452 | H204: 1.019988452 | I204: 0.2962304701 | J204: 0.3334732216 | K204: 0.3367901443
A205: R&M as a % of PPE | C205: =IF(ISERROR(ROUND(C169/'A6-FinPos'!C19,3)),0,(ROUND(C169/'A6-FinPos'!C19,3))) -> 0.023 | D205: =IF(ISERROR(ROUND(D169/'A6-FinPos'!D19,3)),0,(ROUND(D169/'A6-FinPos'!D19,3))) -> 0.025 | E205: =IF(ISERROR(ROUND(E169/'A6-FinPos'!E19,3)),0,(ROUND(E169/'A6-FinPos'!E19,3))) -> 0 | F205: =IF(ISERROR(ROUND(F169/'A6-FinPos'!F19,3)),0,(ROUND(F169/'A6-FinPos'!F19,3))) -> 0.03 | G205: =IF(ISERROR(ROUND(G169/'A6-FinPos'!G19,3)),0,(ROUND(G169/'A6-FinPos'!G19,3))) -> 0.03 | H205: =IF(ISERROR(ROUND(H169/'A6-FinPos'!H19,3)),0,(ROUND(H169/'A6-FinPos'!H19,3))) -> 0.03 | I205: =IF(ISERROR(ROUND(I169/'A6-FinPos'!J19,3)),0,(ROUND(I169/'A6-FinPos'!J19,3))) -> 0.034 | J205: =IF(ISERROR(ROUND(J169/'A6-FinPos'!K19,3)),0,(ROUND(J169/'A6-FinPos'!K19,3))) -> 0.035 | K205: =IF(ISERROR(ROUND(K169/'A6-FinPos'!L19,3)),0,(ROUND(K169/'A6-FinPos'!L19,3))) -> 0.038
A206: Renewal and upgrading and R&M as a % of PPE | C206: =IF(ISERROR(ROUND((C37+C69+C169)/C165,2)),0,(ROUND((C37+C69+C169)/C165,2))) -> 0.06 | D206: =IF(ISERROR(ROUND((D37+D69+D169)/D165,2)),0,(ROUND((D37+D69+D169)/D165,2))) -> 0.09 | E206: 0 | F206: 0.08 | G206: 0.09 | H206: 0.09 | I206: 0.05 | J206: 0.05 | K206: 0.06
A208: =head27a -> References
A209: 1. Detail of new assets provided in Table SA34a
A210: 2. Detail of renewal of existing assets provided in Table SA34b
A211: 3. Detail of Repairs and Maintenance by Asset Class provided in Table SA34c
A212: 4. Must reconcile to total capital expenditure on Budgeted Capital Expenditure
A213: 5. Must reconcile to 'Budgeted Financial Position' (written down value)
A214: 6. Detail of upgrading of existing assets provided in Table SA34e
A215: 7. Detail of depreciation provided in Table SA34d
A217: Check balance to A6 | C217: =C165-'A6-FinPos'!D17-'A6-FinPos'!D19-'A6-FinPos'!D20-'A6-FinPos'!D21-'A6-FinPos'!D22-C148 -> -733368081.6 | D217: =D165-'A6-FinPos'!E17-'A6-FinPos'!E19-'A6-FinPos'!E20-'A6-FinPos'!E21-'A6-FinPos'!E22-D148 -> 106232422.3 | E217: =E165-'A6-FinPos'!F17-'A6-FinPos'!F19-'A6-FinPos'!F20-'A6-FinPos'!F21-'A6-FinPos'!F22-E148 -> -8039624767 | F217: =F165-'A6-FinPos'!G17-'A6-FinPos'!G19-'A6-FinPos'!G20-'A6-FinPos'!G21-'A6-FinPos'!G22-F148 -> 276189709 | G217: =G165-'A6-FinPos'!H17-'A6-FinPos'!H19-'A6-FinPos'!H20-'A6-FinPos'!H21-'A6-FinPos'!H22-G148 -> 9.536743164e-07 | H217: =H165-'A6-FinPos'!I17-'A6-FinPos'!I19-'A6-FinPos'!I20-'A6-FinPos'!I21-'A6-FinPos'!I22-H148 -> 9.536743164e-07 | I217: =I165-'A6-FinPos'!J17-'A6-FinPos'!J19-'A6-FinPos'!J20-'A6-FinPos'!J21-'A6-FinPos'!J22-I148 -> -123231914.7 | J217: =J165-'A6-FinPos'!K17-'A6-FinPos'!K19-'A6-FinPos'!K20-'A6-FinPos'!K21-'A6-FinPos'!K22-J148 -> -166108139.7 | K217: =K165-'A6-FinPos'!L17-'A6-FinPos'!L19-'A6-FinPos'!L20-'A6-FinPos'!L21-'A6-FinPos'!L22-K148 -> 39630154.02

Sheet A10-SerDel
A1: =muni&" - "&Approve10 -> KZN225 Msunduzi - Table A10 Basic service delivery measurement
A2: =desc -> Description | B2: =head27 -> Ref | C2: =head1b -> 2016/17 | D2: =head1A -> 2017/18 | E2: =Head1 -> 2018/19 | F2: =Head2 -> Current Year 2019/20 | I2: =Head3 -> 2020/21 Medium Term Revenue & Expenditure Framework
C3: =Head5A -> Outcome | D3: =Head5A -> Outcome | E3: =Head5A -> Outcome | F3: =Head6 -> Original Budget | G3: =Head7 -> Adjusted Budget | H3: =Head8 -> Full Year Forecast | I3: =Head9 -> Budget Year 2020/21 | J3: =Head10 -> Budget Year +1 2021/22 | K3: =Head11 -> Budget Year +2 2022/23
A4: Household service targets | B4: 1
A5: Water:
A6: Piped water inside dwelling | C6: ='SA9'!E67 -> 81490 | D6: ='SA9'!F67 -> 83119.8 | E6: ='SA9'!G67 -> 84782.196 | F6: ='SA9'!H67 -> 86477.83992 | G6: ='SA9'!I67 -> 86477.83992 | H6: ='SA9'!J67 -> 86477.83992 | I6: ='SA9'!K67 -> 90207.39672 | J6: ='SA9'!L67 -> 92372.37424 | K6: ='SA9'!M67 -> 94589.31122
A7: Piped water inside yard (but not in dwelling) | C7: ='SA9'!E68 -> 63899 | D7: ='SA9'!F68 -> 65176.98 | E7: ='SA9'!G68 -> 67480.5196 | F7: ='SA9'!H68 -> 69310.12999 | G7: ='SA9'!I68 -> 69310.12999 | H7: ='SA9'!J68 -> 69310.12999 | I7: ='SA9'!K68 -> 69166.33259 | J7: ='SA9'!L68 -> 70826.32457 | K7: ='SA9'!M68 -> 72526.15636
A8: Using public tap (at least min.service level) | B8: 2 | C8: ='SA9'!E69 -> 6396 | D8: ='SA9'!F69 -> 6523.92 | E8: ='SA9'!G69 -> 6654.3984 | F8: ='SA9'!H69 -> 6787.486368 | G8: ='SA9'!I69 -> 6787.486368 | H8: ='SA9'!J69 -> 6787.486368 | I8: ='SA9'!K69 -> 6923.236095 | J8: ='SA9'!L69 -> 7089.393762 | K8: ='SA9'!M69 -> 7259.539212
A9: Other water supply (at least min.service level) | B9: 4 | C9: ='SA9'!E70 -> 3072 | D9: ='SA9'!F70 -> 3133.44 | E9: ='SA9'!G70 -> 3196.1088 | F9: ='SA9'!H70 -> 3260.030976 | G9: ='SA9'!I70 -> 3260.030976 | H9: ='SA9'!J70 -> 3260.030976 | I9: ='SA9'!K70 -> 3325.231596 | J9: ='SA9'!L70 -> 3405.037154 | K9: ='SA9'!M70 -> 3486.758046
A10: Minimum Service Level and Above sub-total | C10: =SUM(C6:C9) -> 154857 | D10: =SUM(D6:D9) -> 157954.14 | E10: 162113.2228 | F10: 165835.4873 | G10: 165835.4873 | H10: 165835.4873 | I10: 169622.197 | J10: 173693.1297 | K10: 177861.7648
A11: Using public tap (< min.service level) | B11: 3 | C11: ='SA9'!E72 -> 6396 | D11: ='SA9'!F72 -> 6523.92 | E11: ='SA9'!G72 -> 6654.3984 | F11: ='SA9'!H72 -> 6787.486368 | G11: ='SA9'!I72 -> 6787.486368 | H11: ='SA9'!J72 -> 6787.486368 | I11: ='SA9'!K72 -> 6923.236095 | J11: ='SA9'!L72 -> 7089.393762 | K11: ='SA9'!M72 -> 7259.539212
A12: Other water supply (< min.service level) | B12: =B9 -> 4 | C12: ='SA9'!E73 -> 2740 | D12: ='SA9'!F73 -> 2794.8 | E12: ='SA9'!G73 -> 1850.696 | F12: ='SA9'!H73 -> 1407.70992 | G12: ='SA9'!I73 -> 1407.70992 | H12: ='SA9'!J73 -> 1407.70992 | I12: ='SA9'!K73 -> 965.8641184 | J12: ='SA9'!L73 -> 989.0448572 | K12: ='SA9'!M73 -> 1012.781934
A13: No water supply | C13: ='SA9'!E74 -> 0 | D13: ='SA9'!F74 -> 0 | E13: ='SA9'!G74 -> 0 | F13: ='SA9'!H74 -> 0 | G13: ='SA9'!I74 -> 0 | H13: ='SA9'!J74 -> 0 | I13: ='SA9'!K74 -> 0 | J13: ='SA9'!L74 -> 0 | K13: ='SA9'!M74 -> 0
A14: Below Minimum Service Level sub-total | C14: =SUM(C11:C13) -> 9136 | D14: =SUM(D11:D13) -> 9318.72 | E14: 8505.0944 | F14: 8195.196288 | G14: 8195.196288 | H14: 8195.196288 | I14: 7889.100214 | J14: 8078.438619 | K14: 8272.321146
A15: Total number of households | B15: 5 | C15: =C10+C14 -> 163993 | D15: =D10+D14 -> 167272.86 | E15: 170618.3172 | F15: 174030.6835 | G15: 174030.6835 | H15: 174030.6835 | I15: 177511.2972 | J15: 181771.5683 | K15: 186134.086
A16: Sanitation/sewerage:
A17: Flush toilet (connected to sewerage) | C17: ='SA9'!E78 -> 85149 | D17: ='SA9'!F78 -> 86851.98 | E17: ='SA9'!G78 -> 91589.0196 | F17: ='SA9'!H78 -> 96760.79999 | G17: ='SA9'!I78 -> 96760.79999 | H17: ='SA9'!J78 -> 96760.79999 | I17: ='SA9'!K78 -> 101168.016 | J17: ='SA9'!L78 -> 103596.0484 | K17: ='SA9'!M78 -> 106082.3535
A18: Flush toilet (with septic tank) | C18: ='SA9'!E79 -> 8319 | D18: ='SA9'!F79 -> 8485.38 | E18: ='SA9'!G79 -> 8655.0876 | F18: ='SA9'!H79 -> 8828.189352 | G18: ='SA9'!I79 -> 8828.189352 | H18: ='SA9'!J79 -> 8828.189352 | I18: ='SA9'!K79 -> 9004.753139 | J18: ='SA9'!L79 -> 9220.867214 | K18: ='SA9'!M79 -> 9442.168028
A19: Chemical toilet | C19: ='SA9'!E80 -> 7076 | D19: ='SA9'!F80 -> 7217.52 | E19: ='SA9'!G80 -> 7361.8704 | F19: ='SA9'!H80 -> 7509.107808 | G19: ='SA9'!I80 -> 7509.107808 | H19: ='SA9'!J80 -> 7509.107808 | I19: ='SA9'!K80 -> 7659.289964 | J19: ='SA9'!L80 -> 7843.112923 | K19: ='SA9'!M80 -> 8031.347633
A20: Pit toilet (ventilated) | C20: ='SA9'!E81 -> 59427 | D20: ='SA9'!F81 -> 62615.54 | E20: ='SA9'!G81 -> 61827.8508 | F20: ='SA9'!H81 -> 60064.40782 | G20: ='SA9'!I81 -> 60064.40782 | H20: ='SA9'!J81 -> 60064.40782 | I20: ='SA9'!K81 -> 59325.69597 | J20: ='SA9'!L81 -> 60749.51268 | K20: ='SA9'!M81 -> 62207.50098
A21: Other toilet provisions (> min.service level) | C21: ='SA9'!E82 -> 0 | D21: ='SA9'!F82 -> 0 | E21: ='SA9'!G82 -> 0 | F21: ='SA9'!H82 -> 0 | G21: ='SA9'!I82 -> 0 | H21: ='SA9'!J82 -> 0 | I21: ='SA9'!K82 -> 0 | J21: ='SA9'!L82 -> 0 | K21: ='SA9'!M82 -> 0
A22: =$A$10 -> Minimum Service Level and Above sub-total | C22: =SUM(C17:C21) -> 159971 | D22: =SUM(D17:D21) -> 165170.42 | E22: 169433.8284 | F22: 173162.505 | G22: 173162.505 | H22: 173162.505 | I22: 177157.7551 | J22: 181409.5412 | K22: 185763.3702
A23: Bucket toilet | C23: ='SA9'!E84 -> 0 | D23: ='SA9'!F84 -> 0 | E23: ='SA9'!G84 -> 0 | F23: ='SA9'!H84 -> 0 | G23: ='SA9'!I84 -> 0 | H23: ='SA9'!J84 -> 0 | I23: ='SA9'!K84 -> 0 | J23: ='SA9'!L84 -> 0 | K23: ='SA9'!M84 -> 0
A24: Other toilet provisions (< min.service level) | C24: ='SA9'!E85 -> 4022 | D24: ='SA9'!F85 -> 2102.44 | E24: ='SA9'!G85 -> 1184.4888 | F24: ='SA9'!H85 -> 868.178576 | G24: ='SA9'!I85 -> 868.178576 | H24: ='SA9'!J85 -> 868.178576 | I24: ='SA9'!K85 -> 353.5421475 | J24: ='SA9'!L85 -> 362.0271591 | K24: ='SA9'!M85 -> 370.7158109
A25: No toilet provisions | C25: ='SA9'!E86 -> 0 | D25: ='SA9'!F86 -> 0 | E25: ='SA9'!G86 -> 0 | F25: ='SA9'!H86 -> 0 | G25: ='SA9'!I86 -> 0 | H25: ='SA9'!J86 -> 0 | I25: ='SA9'!K86 -> 0 | J25: ='SA9'!L86 -> 0 | K25: ='SA9'!M86 -> 0
A26: =$A$14 -> Below Minimum Service Level sub-total | C26: =SUM(C23:C25) -> 4022 | D26: =SUM(D23:D25) -> 2102.44 | E26: 1184.4888 | F26: 868.178576 | G26: 868.178576 | H26: 868.178576 | I26: 353.5421475 | J26: 362.0271591 | K26: 370.7158109
A27: =$A$15 -> Total number of households | B27: =$B$15 -> 5 | C27: =C22+C26 -> 163993 | D27: =D22+D26 -> 167272.86 | E27: 170618.3172 | F27: 174030.6835 | G27: 174030.6835 | H27: 174030.6835 | I27: 177511.2972 | J27: 181771.5683 | K27: 186134.086
A28: Energy:
A29: Electricity (at least min.service level) | C29: ='SA9'!E90 -> 123471 | D29: ='SA9'!F90 -> 130462.16 | E29: ='SA9'!G90 -> 135271.4032 | F29: ='SA9'!H90 -> 140136.8313 | G29: ='SA9'!I90 -> 140136.8313 | H29: ='SA9'!J90 -> 140136.8313 | I29: ='SA9'!K90 -> 145059.5679 | J29: ='SA9'!L90 -> 148540.9975 | K29: ='SA9'!M90 -> 152105.9815
A30: Electricity - prepaid (min.service level) | C30: ='SA9'!E91 -> 26285 | D30: ='SA9'!F91 -> 26810.7 | E30: ='SA9'!G91 -> 27346.914 | F30: ='SA9'!H91 -> 27893.85228 | G30: ='SA9'!I91 -> 27893.85228 | H30: ='SA9'!J91 -> 27893.85228 | I30: ='SA9'!K91 -> 28451.72933 | J30: ='SA9'!L91 -> 29134.57083 | K30: ='SA9'!M91 -> 29833.80053
A31: =$A$10 -> Minimum Service Level and Above sub-total | C31: =SUM(C29:C30) -> 149756 | D31: =SUM(D29:D30) -> 157272.86 | E31: 162618.3172 | F31: 168030.6835 | G31: 168030.6835 | H31: 168030.6835 | I31: 173511.2972 | J31: 177675.5683 | K31: 181939.782
A32: Electricity (< min.service level) | C32: ='SA9'!E93 -> 1570 | D32: ='SA9'!F93 -> 0 | E32: ='SA9'!G93 -> 0 | F32: ='SA9'!H93 -> 0 | G32: ='SA9'!I93 -> 0 | H32: ='SA9'!J93 -> 0 | I32: ='SA9'!K93 -> 0 | J32: ='SA9'!L93 -> 0 | K32: ='SA9'!M93 -> 0
A33: Electricity - prepaid (< min. service level) | C33: ='SA9'!E94 -> 0 | D33: ='SA9'!F94 -> 0 | E33: ='SA9'!G94 -> 0 | F33: ='SA9'!H94 -> 0 | G33: ='SA9'!I94 -> 0 | H33: ='SA9'!J94 -> 0 | I33: ='SA9'!K94 -> 0 | J33: ='SA9'!L94 -> 0 | K33: ='SA9'!M94 -> 0
A34: Other energy sources | C34: ='SA9'!E95 -> 12667 | D34: ='SA9'!F95 -> 10000 | E34: ='SA9'!G95 -> 8000 | F34: ='SA9'!H95 -> 6000 | G34: ='SA9'!I95 -> 6000 | H34: ='SA9'!J95 -> 6000 | I34: ='SA9'!K95 -> 4000 | J34: ='SA9'!L95 -> 4096 | K34: ='SA9'!M95 -> 4194.304
A35: =$A$14 -> Below Minimum Service Level sub-total | C35: =SUM(C32:C34) -> 14237 | D35: =SUM(D32:D34) -> 10000 | E35: 8000 | F35: 6000 | G35: 6000 | H35: 6000 | I35: 4000 | J35: 4096 | K35: 4194.304
A36: =$A$15 -> Total number of households | B36: =$B$15 -> 5 | C36: =C31+C35 -> 163993 | D36: =D31+D35 -> 167272.86 | E36: 170618.3172 | F36: 174030.6835 | G36: 174030.6835 | H36: 174030.6835 | I36: 177511.2972 | J36: 181771.5683 | K36: 186134.086
A37: Refuse:
A38: Removed at least once a week | C38: ='SA9'!E99 -> 120000 | D38: ='SA9'!F99 -> 122400 | E38: ='SA9'!G99 -> 129848 | F38: ='SA9'!H99 -> 137344.96 | G38: ='SA9'!I99 -> 137344.96 | H38: ='SA9'!J99 -> 137344.96 | I38: ='SA9'!K99 -> 148558.8592 | J38: ='SA9'!L99 -> 152124.2718 | K38: ='SA9'!M99 -> 155775.2543
A39: =$A$10 -> Minimum Service Level and Above sub-total | C39: =SUM(C38) -> 120000 | D39: =SUM(D38) -> 122400 | E39: 129848 | F39: 137344.96 | G39: 137344.96 | H39: 137344.96 | I39: 148558.8592 | J39: 152124.2718 | K39: 155775.2543
A40: Removed less frequently than once a week | C40: ='SA9'!E101 -> 43993 | D40: ='SA9'!F101 -> 44872.86 | E40: ='SA9'!G101 -> 40770.3172 | F40: ='SA9'!H101 -> 36685.72354 | G40: ='SA9'!I101 -> 36685.72354 | H40: ='SA9'!J101 -> 36685.72354 | I40: ='SA9'!K101 -> 28952.43801 | J40: ='SA9'!L101 -> 29647.29653 | K40: ='SA9'!M101 -> 30358.83164
A41: Using communal refuse dump | C41: ='SA9'!E102 -> 0 | D41: ='SA9'!F102 -> 0 | E41: ='SA9'!G102 -> 0 | F41: ='SA9'!H102 -> 0 | G41: ='SA9'!I102 -> 0 | H41: ='SA9'!J102 -> 0 | I41: ='SA9'!K102 -> 0 | J41: ='SA9'!L102 -> 0 | K41: ='SA9'!M102 -> 0
A42: Using own refuse dump | C42: ='SA9'!E103 -> 0 | D42: ='SA9'!F103 -> 0 | E42: ='SA9'!G103 -> 0 | F42: ='SA9'!H103 -> 0 | G42: ='SA9'!I103 -> 0 | H42: ='SA9'!J103 -> 0 | I42: ='SA9'!K103 -> 0 | J42: ='SA9'!L103 -> 0 | K42: ='SA9'!M103 -> 0
A43: Other rubbish disposal | C43: ='SA9'!E104 -> 0 | D43: ='SA9'!F104 -> 0 | E43: ='SA9'!G104 -> 0 | F43: ='SA9'!H104 -> 0 | G43: ='SA9'!I104 -> 0 | H43: ='SA9'!J104 -> 0 | I43: ='SA9'!K104 -> 0 | J43: ='SA9'!L104 -> 0 | K43: ='SA9'!M104 -> 0
A44: No rubbish disposal | C44: ='SA9'!E105 -> 0 | D44: ='SA9'!F105 -> 0 | E44: ='SA9'!G105 -> 0 | F44: ='SA9'!H105 -> 0 | G44: ='SA9'!I105 -> 0 | H44: ='SA9'!J105 -> 0 | I44: ='SA9'!K105 -> 0 | J44: ='SA9'!L105 -> 0 | K44: ='SA9'!M105 -> 0
A45: =$A$14 -> Below Minimum Service Level sub-total | C45: =SUM(C40:C44) -> 43993 | D45: 44872.86 | E45: 40770.3172 | F45: 36685.72354 | G45: 36685.72354 | H45: 36685.72354 | I45: 28952.43801 | J45: 29647.29653 | K45: 30358.83164
A46: =$A$15 -> Total number of households | B46: =$B$15 -> 5 | C46: =C39+C45 -> 163993 | D46: =D39+D45 -> 167272.86 | E46: 170618.3172 | F46: 174030.6835 | G46: 174030.6835 | H46: 174030.6835 | I46: 177511.2972 | J46: 181771.5683 | K46: 186134.086
A48: Households receiving Free Basic Service | B48: 7
A49: Water (6 kilolitres per household per month) | C49: ='SA9'!E263 -> 23884 | D49: ='SA9'!F263 -> 29536.08 | E49: ='SA9'!G263 -> 39475.6016 | F49: ='SA9'!H263 -> 43586.71363 | G49: ='SA9'!I263 -> 43586.71363 | H49: ='SA9'!J263 -> 43586.71363 | I49: ='SA9'!K263 -> 48550.3679 | J49: ='SA9'!L263 -> 51948.89366 | K49: ='SA9'!M263 -> 55585.31621
A50: Sanitation (free minimum level service) | C50: ='SA9'!E275 -> 23884 | D50: ='SA9'!F275 -> 29536.08 | E50: ='SA9'!G275 -> 39475.6016 | F50: ='SA9'!H275 -> 43586.71363 | G50: ='SA9'!I275 -> 43586.71363 | H50: ='SA9'!J275 -> 43586.71363 | I50: ='SA9'!K275 -> 48550.3679 | J50: ='SA9'!L275 -> 51948.89366 | K50: ='SA9'!M275 -> 55585.31621
A51: Electricity/other energy (50kwh per household per month) | C51: ='SA9'!E251 -> 2800 | D51: ='SA9'!F251 -> 3080 | E51: ='SA9'!G251 -> 3264.8 | F51: ='SA9'!H251 -> 3460.688 | G51: ='SA9'!I251 -> 3460.688 | H51: ='SA9'!J251 -> 3460.688 | I51: ='SA9'!K251 -> 3668.32928 | J51: ='SA9'!L251 -> 3925.11233 | K51: ='SA9'!M251 -> 4199.870193
A52: Refuse (removed at least once a week) | C52: ='SA9'!E287 -> 5182 | D52: ='SA9'!F287 -> 5959.3 | E52: ='SA9'!G287 -> 6078.486 | F52: ='SA9'!H287 -> 6200.05572 | G52: ='SA9'!I287 -> 6200.05572 | H52: ='SA9'!J287 -> 6200.05572 | I52: ='SA9'!K287 -> 6324.056834 | J52: ='SA9'!L287 -> 6766.740813 | K52: ='SA9'!M287 -> 7240.41267
A54: Cost of Free Basic Services provided - Formal Settlements (R'000) | B54: 8
A55: Water (6 kilolitres per indigent household per month) | C55: ='SA1'!C20 -> 134410361.4 | D55: ='SA1'!D20 -> 141877603.7 | E55: ='SA1'!E20 -> 150960120.2 | F55: ='SA1'!F20 -> 163681951.2 | G55: ='SA1'!G20 -> 163681951.2 | H55: ='SA1'!H20 -> 163681951.2 | I55: ='SA1'!J20 -> 178413326.8 | J55: ='SA1'!K20 -> 194470526.2 | K55: ='SA1'!L20 -> 211972873.6
A56: Sanitation (free sanitation service to indigent households) | C56: ='SA1'!C26 -> 10065797.1 | D56: ='SA1'!D26 -> 10625008.05 | E56: ='SA1'!E26 -> 11184219 | F56: ='SA1'!F26 -> 11855272.14 | G56: ='SA1'!G26 -> 11855272.14 | H56: ='SA1'!H26 -> 11855272.14 | I56: ='SA1'!J26 -> 12566588.47 | J56: ='SA1'!K26 -> 13320583.78 | K56: ='SA1'!L26 -> 14119818.8
A57: Electricity/other energy (50kwh per indigent household per month) | C57: ='SA1'!C14 -> 1653510.214 | D57: ='SA1'!D14 -> 1745371.893 | E57: ='SA1'!E14 -> 1837233.571 | F57: ='SA1'!F14 -> 2077359.999 | G57: ='SA1'!G14 -> 2077359.999 | H57: ='SA1'!H14 -> 2077359.999 | I57: ='SA1'!J14 -> 3143876.623 | J57: ='SA1'!K14 -> 3307358.207 | K57: ='SA1'!L14 -> 3601713.088
A58: Refuse (removed once a week for indigent households) | C58: ='SA1'!C33 -> 5381400.474 | D58: ='SA1'!D33 -> 5680367.167 | E58: ='SA1'!E33 -> 5979333.86 | F58: ='SA1'!F33 -> 6338094.04 | G58: ='SA1'!G33 -> 6338094.04 | H58: ='SA1'!H33 -> 6338094.04 | I58: ='SA1'!J33 -> 6718379.682 | J58: ='SA1'!K33 -> 7121482.463 | K58: ='SA1'!L33 -> 7548771.411
A59: Cost of Free Basic Services provided - Informal Formal Settlements (R'000) | C59: ='SA9'!E260+'SA9'!E272+'SA9'!E284+'SA9'!E296 -> 0 | D59: ='SA9'!F260+'SA9'!F272+'SA9'!F284+'SA9'!F296 -> 0 | E59: ='SA9'!G260+'SA9'!G272+'SA9'!G284+'SA9'!G296 -> 0 | F59: ='SA9'!H260+'SA9'!H272+'SA9'!H284+'SA9'!H296 -> 0 | G59: ='SA9'!I260+'SA9'!I272+'SA9'!I284+'SA9'!I296 -> 0 | H59: ='SA9'!J260+'SA9'!J272+'SA9'!J284+'SA9'!J296 -> 0 | I59: ='SA9'!K260+'SA9'!K272+'SA9'!K284+'SA9'!K296 -> 0 | J59: ='SA9'!L260+'SA9'!L272+'SA9'!L284+'SA9'!L296 -> 0 | K59: ='SA9'!M260+'SA9'!M272+'SA9'!M284+'SA9'!M296 -> 0
A60: Total cost of FBS provided | C60: =SUM(C55:C59) -> 151511069.2 | D60: 159928350.8 | E60: 169960906.6 | F60: 183952677.4 | G60: 183952677.4 | H60: 183952677.4 | I60: 200842171.6 | J60: 218219950.7 | K60: 237243176.9
A62: Highest level of free service provided per household
